Workbook

Sheet Developer notes
C2: Developer Notes (Model version 36.00)
D6: Date | F6: Version | H6: Updates | J6: Notes
D7: < 2025 | F7: 34 | H7: Prior to this model version, various updates were implemented. The Develop notes for this version of the model does not include these updates. | J7: Our records were mainly captured in separate notes that were not documented in Excel prior to the current model version. In the final model, we implemented this Developer notes section to capture any addition changes with this version of the model.
D8: 2025-02-01 | F8: 34.11 | H8: Added three decision trees to allow for stochastic process for the parameters when a subject re-enters the Markov model from the decision tree model. | J8: We noticed that the parameters from the decision tree would not be random. Hence, the need to have three unique decision trees to generate random values for the PSA.
D9: 2025-02-09 | F9: 34.12 | H9: For subjects who discontinue opioid use, they were assigned the population baseline mortality rate. Subjects who continued on an opioid were assigned the mortality rate based on the survival function. | J9: We assumed that subjects who discontined an opioid would inherit the population average mortality rate.
D10: 2025-02-09 | F10: 34.12 | H10: One-way sensitivity analysis macro was created. | J10: This macro was created using the Record function of the Developer tools.
D11: 2025-02-09 | F11: 34.12 | H11: Where possible, the labels for the parameters replaced the word "heroin" with "opioid." | J11: We modifed a previous model (Coffin and Sullivan, 2013) which simulated a population of heroin users. Our population was based on opioid users.
D12: 2025-02-21 | F12: 35 | H12: Updated macro buttons / colored labels | J12: Added macro buttons to the Simulation tab; Added label colors to the worksheet tabs.
D13: 2025-06-06 | F13: 36 | H13: Performed scenario analysis by changing the disutility from -0.119 to -0.19. Performed additional OWSA by adding the probaiblity of naloxone prescribing without AD outreach. | J13: Created an updated Tornado Diagram figure.

Sheet User Navigation
B2: User Navigation
B5: This model consists of the following worksheets:
B6: Model Overview | D6: Provides an overview of the model
B7: Analysis | D7: Centralized results and analysis summary
B8: Parameters | D8: Inputs for the model are entered here
B9: Decision Tree | D9: Outputs and visualization for the decision tree
B10: Markov Model AD+ | D10: Markov model with the intervention Academic Detailing
B11: Markov Model AD- | D11: Markov model without the intervention Academic Detailing
B12: OWSA | D12: One-way sensitivity analysis outputs & tornado diagram
B13: Scenario Analyses | D13: Scenario analyses of AD effectiveness
B14: Simulation | D14: Probabilistic sensitivity analysis
B15: Mortality | D15: Baseline mortality rates from 2021 US Life Table. Opioid user mortality rates are based on a cohort with opioid-related inpatient withdrawal treatment.
B16: Survival Curve | D16: Digitized Kaplan-Meier plot to inform survival modeling
B21: Worksheet labels | D21: Description
B22: Red | D22: Results of the model
B23: Blue | D23: Parameters table
B24: Green | D24: Markov model for AD (+) and AD (-) strategies
B25: Yellow | D25: Decision tree models (Each decision tree represented a different overdose state
B26: Purple | D26: Supporting data

Sheet Model Overview
B2: Integrated hybrid model

Sheet Scenario Analyses
B2: Scenario Analyses
B5: Scenario - AD Effectiveness | C5: Incremental Cost | D5: Incremental QALY | E5: ICER | F5: iNMB
B6: Base Case - AD Effectiveness = 80% | C6: =inc.cost -> 308.6689536 | D6: =inc.qaly -> 0.600951827 | E6: =baseICER -> 513.633439 | F6: =baseNMB -> 29738.9224
B8: Scenario 1 - AD Effectiveness = 90% | C8: 351.567288 | D8: 0.7026437452 | E8: 500.3492744 | F8: 34780.61997
B9: Scenario 2 - AD Effectiveness = 50% | C9: 184.8830566 | D9: 0.3059532964 | E9: 604.285225 | F9: 15112.78177
B10: Scenario - Disutility | C10: Incremental Cost | D10: Incremental QALY | E10: ICER | F10: iNMB
B11: Base Case - Disutility due to long-term effects of severe hypoxia = -0.119 | C11: =inc.cost -> 308.6689536 | D11: =inc.qaly -> 0.600951827 | E11: =baseICER -> 513.633439 | F11: =baseNMB -> 29738.9224
B13: Scenario 3 - Disutility due to long-term effects of severe hypoxia = -0.19 | C13: 308.6689536 | D13: 0.5904753819 | E13: 522.7465242 | F13: 29215.10014

Sheet Analysis
A1: Results (deterministic) | H1: Results (probabilistic)
B3: Treatment | C3: Cost | D3: Life Years | E3: QALYs | I3: Treatment | J3: Cost | K3: cost (SE) | L3: Life Years | M3: Life Years (SE) | N3: QALYs | O3: QALYs (SE)
B5: AD + | C5: =ad.cost -> 6280.025808 | D5: =ad.ly -> 35.86335614 | E5: =ad.qaly -> 16.5209451 | I5: AD + | J5: =Simulation!CV5008 -> 6124.683735 | L5: =Simulation!CW5008 -> 36.15056801 | N5: =Simulation!CX5008 -> 16.58904821
B6: AD - | C6: =std.cost -> 5971.356854 | D6: =std.ly -> 34.03254056 | E6: =std.qaly -> 15.91999328 | I6: AD - | J6: =Simulation!CZ5008 -> 5832.967862 | L6: =Simulation!DA5008 -> 34.39203076 | N6: =Simulation!DB5008 -> 16.00880102
C7: =C5-C6 -> 308.6689536 | D7: =D5-D6 -> 1.830815573 | E7: =E5-E6 -> 0.600951827 | J7: =J5-J6 -> 291.715873 | N7: =N5-N6 -> 0.5802471883
B8: ICERs: | C8: =(C5-C6)/(E5-E6) -> 513.633439 | E8: per QALY | I8: ICERs: | J8: =(J5-J6)/(N5-N6) -> 502.7441388 | N8: per QALY
B9: iNMB | C9: =E7*50000-C7 -> 29738.9224 | I9: iNMB (95% CrI) | J9: =_xlfn.CONCAT(ROUND(Simulation!DI5008,0)," (95% CrI: ",ROUND(Simulation!DI5010,0), ", ", ROUND(Simulation!DI5011,0), ")") -> 28721 (95% CrI: 27835, 29606)

Sheet Parameters
K1: FALSE
J2: Probabilistic? | K2: 0
D7: Probabilistic Sensitivity Analysis
A8: Name | B8: live' value | C8: probabilistic | D8: deterministic | E8: standard error | F8: distribution | G8: alpha | H8: beta | I8: Description
A9: Miscellaneous Variables
A10: CohortSize | B10: 1
A12: cDR | B12: 0.03 | I12: Monthly cost discounting rate, assuming 3.0% yearly rate
A13: oDR | B13: 0.03 | I13: Monthly outcome discounting rate, assuming 3.0% yearly rate
A14: Decision Tree Probability Variables
A15: p.ad_nal_yes1 | B15: =IF($K$2=0,D15,C15) -> 0.8 | C15: =BETAINV(RAND(),G15,H15) -> 0.7937707261 | D15: 0.8 | E15: =SQRT(G15*H15/((G15+H15)^2*(G15+H15+1))) -> 0.03980148761 | F15: Beta | G15: =100*D15 -> 80 | H15: =100-G15 -> 20 | I15: Probability of naloxone prescription after AD education
A16: p.od_yes1 | B16: 0.85 | C16: =BETAINV(RAND(),G16,H16) -> 0.8755808226 | D16: 0.85 | E16: =SQRT(G16*H16/((G16+H16)^2*(G16+H16+1))) -> 0.03552993439 | F16: Beta | G16: =100*D16 -> 85 | H16: =100-G16 -> 15 | I16: Probability of witnessing an overdose
A17: p.used_yes1 | B17: 0.8 | C17: 0.7963147292 | D17: 0.8 | E17: 0.03980148761 | F17: Beta | G17: 80 | H17: 20 | I17: Probability of naloxone being used
A18: p.amb_yes1 | B18: 0.6 | C18: 0.6208769927 | D18: 0.6 | E18: 0.04874666782 | F18: Beta | G18: 60 | H18: 40 | I18: Probability ambulance being called
A19: p.live_yes1 | B19: 0.979 | C19: 0.9784525766 | D19: 0.979 | E19: 0.01426725115 | F19: Beta | G19: 97.9 | H19: 2.1 | I19: Probability of surviving
A20: p.nal_ems_live_yes1 | B20: 0.899 | C20: 0.8189365791 | D20: 0.899 | E20: 0.0299833287 | F20: Beta | G20: 89.9 | H20: =100-G20 -> 10.1 | I20: Probability of surviving when naloxone is not administered
A21: p.nal_yes1 | B21: 0.2 | C21: 0.2635875693 | D21: 0.2 | E21: 0.03980148761 | F21: Beta | G21: 20 | H21: 80 | I21: Probability of naloxone prescription after no AD education
A22: p.ad_nal_yes2 | B22: 0.8 | C22: =BETAINV(RAND(),G22,H22) -> 0.8382625813 | D22: 0.8 | E22: =SQRT(G22*H22/((G22+H22)^2*(G22+H22+1))) -> 0.03980148761 | F22: Beta | G22: =100*D22 -> 80 | H22: =100-G22 -> 20 | I22: Probability of naloxone prescription after AD education
A23: p.od_yes2 | B23: 0.85 | C23: =BETAINV(RAND(),G23,H23) -> 0.8572849504 | D23: 0.85 | E23: =SQRT(G23*H23/((G23+H23)^2*(G23+H23+1))) -> 0.03552993439 | F23: Beta | G23: =100*D23 -> 85 | H23: =100-G23 -> 15 | I23: Probability of witnessing an overdose
A24: p.used_yes2 | B24: 0.8 | C24: 0.7796971427 | D24: 0.8 | E24: 0.03980148761 | F24: Beta | G24: 80 | H24: 20 | I24: Probability of naloxone being used
A25: p.amb_yes2 | B25: 0.6 | C25: 0.545441384 | D25: 0.6 | E25: 0.04874666782 | F25: Beta | G25: 60 | H25: 40 | I25: Probability ambulance being called
A26: p.live_yes2 | B26: 0.979 | C26: 0.9724342944 | D26: 0.979 | E26: 0.01426725115 | F26: Beta | G26: 97.9 | H26: 2.1 | I26: Probability of surviving
A27: p.nal_ems_live_yes2 | B27: 0.899 | C27: 0.9481021975 | D27: 0.899 | E27: 0.0299833287 | F27: Beta | G27: 89.9 | H27: =100-G27 -> 10.1 | I27: Probability of surviving when naloxone is not administered
A28: p.nal_yes2 | B28: 0.2 | C28: 0.2867350824 | D28: 0.2 | E28: 0.03980148761 | F28: Beta | G28: 20 | H28: =100-G28 -> 80 | I28: Probability of naloxone prescription after no AD education
A29: p.ad_nal_yes3 | B29: 0.8 | C29: =BETAINV(RAND(),G29,H29) -> 0.8420908946 | D29: 0.8 | E29: =SQRT(G29*H29/((G29+H29)^2*(G29+H29+1))) -> 0.03980148761 | F29: Beta | G29: =100*D29 -> 80 | H29: =100-G29 -> 20 | I29: Probability of naloxone prescription after AD education
A30: p.od_yes3 | B30: 0.85 | C30: =BETAINV(RAND(),G30,H30) -> 0.8838138077 | D30: 0.85 | E30: =SQRT(G30*H30/((G30+H30)^2*(G30+H30+1))) -> 0.03552993439 | F30: Beta | G30: =100*D30 -> 85 | H30: =100-G30 -> 15 | I30: Probability of witnessing an overdose
A31: p.used_yes3 | B31: 0.8 | C31: 0.7222752332 | D31: 0.8 | E31: 0.03980148761 | F31: Beta | G31: 80 | H31: 20 | I31: Probability of naloxone being used
A32: p.amb_yes3 | B32: 0.6 | C32: 0.6230041341 | D32: 0.6 | E32: 0.04874666782 | F32: Beta | G32: 60 | H32: 40 | I32: Probability ambulance being called
A33: p.live_yes3 | B33: 0.979 | C33: 0.969938782 | D33: 0.979 | E33: 0.01426725115 | F33: Beta | G33: 97.9 | H33: 2.1 | I33: Probability of surviving
A34: p.nal_ems_live_yes3 | B34: 0.899 | C34: 0.9220759709 | D34: 0.899 | E34: 0.0299833287 | F34: Beta | G34: 89.9 | H34: =100-G34 -> 10.1 | I34: Probability of surviving when naloxone is not administered
A35: p.nal_yes3 | B35: 0.2 | C35: 0.1539971332 | D35: 0.2 | E35: 0.03980148761 | F35: Beta | G35: 20 | H35: =100-G35 -> 80 | I35: Probability of naloxone prescription after no AD education
A36: Cost of Resource Values
A37: c.society | B37: 0 | C37: 0 | D37: 0 | E37: =0.2*D37 -> 0 | F37: Gamma | G37: =(D37/E37)^2 ->  | H37: =(E37^2)/D37 ->  | I37: heroin user cost to society
A38: c.nal1 | B38: =IF($K$2=0,D38,C38) -> 40 | C38: =GAMMAINV(RAND(),G38,H38) -> 39.24299816 | D38: 40 | E38: =0.2*D38 -> 8 | F38: Gamma | G38: =(D38/E38)^2 -> 25 | H38: =(E38^2)/D38 -> 1.6 | I38: Cost of biannual naloxone kit
A39: c.EMS1 | B39: =c.trans1+c.ED1 -> 3969.73 | C39: =GAMMAINV(RAND(),G39,H39) -> 2494.168606 | D39: 3969.73 | E39: =0.2*D39 -> 793.946 | F39: Gamma | G39: =(D39/E39)^2 -> 25 | H39: =(E39^2)/D39 -> 158.7892 | I39: Cost of EMS visit
A40: c.trans1 | B40: =IF($K$2=0,D40,C40) -> 808 | C40: 705.0553876 | D40: 808 | E40: 161.6 | F40: Gamma | G40: 25 | H40: 32.32 | I40: Cost of EMS transport to hospital
A41: c.ED1 | B41: 3161.73 | C41: 4047.666222 | D41: 3161.73 | E41: 632.346 | F41: Gamma | G41: 25 | H41: 126.4692 | I41: Emergency department care if transported
A42: c.AD1 | B42: 64.81 | C42: 68.3838643 | D42: 64.81 | E42: 12.962 | F42: Gamma | G42: 25 | H42: 2.5924 | I42: academic detailing
A43: c.nal2 | B43: 40 | C43: =GAMMAINV(RAND(),G43,H43) -> 50.48033249 | D43: 40 | E43: =0.2*D43 -> 8 | F43: Gamma | G43: =(D43/E43)^2 -> 25 | H43: =(E43^2)/D43 -> 1.6 | I43: Cost of biannual naloxone kit
A44: c.EMS2 | B44: =c.trans2+c.ED2 -> 3969.73 | C44: =GAMMAINV(RAND(),G44,H44) -> 3028.304543 | D44: 3969.73 | E44: =0.2*D44 -> 793.946 | F44: Gamma | G44: =(D44/E44)^2 -> 25 | H44: =(E44^2)/D44 -> 158.7892 | I44: Cost of EMS visit
A45: c.trans2 | B45: =IF($K$2=0,D45,C45) -> 808 | C45: 737.1750039 | D45: 808 | E45: 161.6 | F45: Gamma | G45: 25 | H45: 32.32 | I45: Cost of EMS transport to hospital
A46: c.ED2 | B46: 3161.73 | C46: 4511.366253 | D46: 3161.73 | E46: 632.346 | F46: Gamma | G46: 25 | H46: 126.4692 | I46: Emergency department care if transported
A47: c.AD2 | B47: 64.81 | C47: 68.79568827 | D47: 64.81 | E47: 12.962 | F47: Gamma | G47: 25 | H47: 2.5924 | I47: academic detailing
A48: c.nal3 | B48: 40 | C48: =GAMMAINV(RAND(),G48,H48) -> 43.19619014 | D48: 40 | E48: =0.2*D48 -> 8 | F48: Gamma | G48: =(D48/E48)^2 -> 25 | H48: =(E48^2)/D48 -> 1.6 | I48: Cost of biannual naloxone kit
A49: c.EMS3 | B49: =c.trans3+c.ED3 -> 3969.73 | C49: =GAMMAINV(RAND(),G49,H49) -> 5183.774811 | D49: 3969.73 | E49: =0.2*D49 -> 793.946 | F49: Gamma | G49: =(D49/E49)^2 -> 25 | H49: =(E49^2)/D49 -> 158.7892 | I49: Cost of EMS visit
A50: c.trans3 | B50: =IF($K$2=0,D50,C50) -> 808 | C50: 823.4343935 | D50: 808 | E50: 161.6 | F50: Gamma | G50: 25 | H50: 32.32 | I50: Cost of EMS transport to hospital
A51: c.ED3 | B51: 3161.73 | C51: 2538.275872 | D51: 3161.73 | E51: 632.346 | F51: Gamma | G51: 25 | H51: 126.4692 | I51: Emergency department care if transported
A52: c.AD3 | B52: 64.81 | C52: 65.55898593 | D52: 64.81 | E52: 12.962 | F52: Gamma | G52: 25 | H52: 2.5924 | I52: academic detailing
A53: c.discontinue1 | B53: 0 | C53: 0 | D53: 0 | E53: 0 | F53: Gamma | G53: 0 | H53: 0 | I53: Costs for the discontinue1 state
A54: c.overdose1 | B54: =D54 -> 2121.3723 | C54: 2577.643412 | D54: =cost.tcA1 -> 2121.3723 | E54: 424.27446 | F54: Gamma | G54: 25 | H54: 84.854892 | I54: Costs for the overdose1 state
A55: c.overdose1_tcB | B55: =D55 -> 2032.5623 | C55: 2205.163562 | D55: =cost.tcB1 -> 2032.5623 | E55: 406.51246 | F55: Gamma | G55: 25 | H55: 81.302492
A56: c.discontinue2 | B56: 0 | C56: 0 | D56: 0 | E56: 0 | F56: Gamma | G56: 0 | H56: 0 | I56: Costs for the discontinue2 state
A57: c.overdose2 | B57: =D57 -> 2121.3723 | C57: 1974.291249 | D57: =cost.tcA2 -> 2121.3723 | E57: 424.27446 | F57: Gamma | G57: 25 | H57: 84.854892 | I57: Costs for the overdose2 state
A58: c.overdose2_tcB | B58: =D58 -> 2032.5623 | C58: 1868.185782 | D58: =cost.tcB2 -> 2032.5623 | E58: 406.51246 | F58: Gamma | G58: 25 | H58: 81.302492
A59: c.discontinue3 | B59: 0 | C59: 0 | D59: 0 | E59: 0 | F59: Gamma | G59: 0 | H59: 0 | I59: Costs for the discontinue3 state
A60: c.overdose3 | B60: =D60 -> 2121.3723 | C60: 2048.23847 | D60: =cost.tcA3 -> 2121.3723 | E60: 424.27446 | F60: Gamma | G60: 25 | H60: 84.854892 | I60: Costs for the overdose3 state
A61: c.overdose3_tcB | B61: 2121.3723 | C61: 2522.607667 | D61: =cost.tcA3 -> 2121.3723 | E61: 424.27446 | F61: Gamma | G61: 25 | H61: 84.854892
A62: c.death | B62: 0 | C62: 0 | D62: 0 | E62: 0 | F62: Gamma | G62: 0 | H62: 0 | I62: Costs for the death state
A63: Utility Variables
A64: u.heroin1 | B64: =IF($K$2=0,D64,C64) -> 0.817 | C64: =BETAINV(RAND(),G64,H64) -> 0.8379118802 | D64: 0.817 | E64: 0.03847475706 | F64: Beta | G64: 81.7 | H64: 18.3 | I64: Utility for the heroin1 state
A65: u.heroin2 | B65: 0.817 | C65: 0.8155540735 | D65: 0.817 | E65: 0.03847475706 | F65: Beta | G65: 81.7 | H65: 18.3 | I65: Utility for the heroin2 state
A66: u.heroin3 | B66: 0.817 | C66: 0.8264718349 | D66: 0.817 | E66: 0.03847475706 | F66: Beta | G66: 81.7 | H66: 18.3 | I66: Utility for the heroin3 state
A67: u.discontinue1 | B67: 0.875 | C67: 0.8984605606 | D67: 0.875 | E67: 0.03290776188 | F67: Beta | G67: 87.5 | H67: 12.5 | I67: Utility for the discontinue1 state
A68: u.discontinue2 | B68: 0.875 | C68: 0.8975542291 | D68: 0.875 | E68: 0.03290776188 | F68: Beta | G68: 87.5 | H68: 12.5 | I68: Utility for the discontinue2 state
A69: u.discontinue3 | B69: 0.875 | C69: 0.8886047192 | D69: 0.875 | E69: 0.03290776188 | F69: Beta | G69: 87.5 | H69: 12.5 | I69: Utility for the discontinue3 state
A70: u.overdose1 | B70: =D70 -> 0.79368051 | C70: =BETAINV(RAND(),G70,H70) -> 0.7789886272 | D70: =utility.tcA1 -> 0.79368051 | E70: 0.04026542605 | F70: Beta | G70: 79.368051 | H70: 20.631949 | I70: Utility for the overdose1 state
A71: u.overdose2 | B71: =D71 -> 0.79368051 | C71: =BETAINV(RAND(),G71,H71) -> 0.8227357044 | D71: =utility.tcA2 -> 0.79368051 | E71: 0.04026542605 | F71: Beta | G71: 79.368051 | H71: 20.631949 | I71: Utility for the overdose2 state
A72: u.overdose3 | B72: 0.79368051 | C72: 0.8069629871 | D72: =utility.tcA3 -> 0.79368051 | E72: 0.04026542605 | F72: Beta | G72: 79.368051 | H72: 20.631949 | I72: Utility for the overdose3 state
A73: u.overdose1_tcB | B73: 0.773569622 | C73: 0.7473933364 | D73: =utility.tcB1 -> 0.773569622 | E73: 0.04164437631 | F73: Beta | G73: 77.3569622 | H73: 22.6430378
A74: u.overdose2_tcB | B74: 0.773569622 | C74: 0.8172771908 | D74: =utility.tcB2 -> 0.773569622 | E74: 0.04164437631 | F74: Beta | G74: 77.3569622 | H74: 22.6430378
A75: u.overdose3_tcB | B75: 0.773569622 | C75: 0.7675218233 | D75: =utility.tcB3 -> 0.773569622 | E75: 0.04164437631 | F75: Beta | G75: 77.3569622 | H75: 22.6430378
A76: u.live1 | B76: =IF($K$2=0,D76,C76) -> 0.93625 | C76: 0.949974058 | D76: 0.93625 | E76: 0.02430946063 | F76: Beta | G76: 93.625 | H76: 6.375 | I76: utility for survival
A77: u.live2 | B77: =IF($K$2=0,D77,C77) -> 0.93625 | C77: =BETAINV(RAND(),G77,H77) -> 0.9577538047 | D77: 0.93625 | E77: =SQRT(G77*H77/((G77+H77)^2*(G77+H77+1))) -> 0.02430946063 | F77: Beta | G77: =100*D77 -> 93.625 | H77: =100-G77 -> 6.375 | I77: utility for survival
A78: u.live3 | B78: 0.93625 | C78: =BETAINV(RAND(),G78,H78) -> 0.9581785595 | D78: 0.93625 | E78: =SQRT(G78*H78/((G78+H78)^2*(G78+H78+1))) -> 0.02430946063 | F78: Beta | G78: =100*D78 -> 93.625 | H78: =100-G78 -> 6.375 | I78: utility for survival
A79: u.death | B79: 0 | C79: 0 | D79: 0 | E79: 0 | F79: Beta | G79: 0 | H79: 100 | I79: Utility for death
A80: Markov Parameters (Long Term Survival)
A81: tpheroin_OD1 | B81: 0.09 | C81: 0.1193542923 | D81: 0.09 | E81: 0.02847614948 | F81: Beta | G81: 9 | H81: 91 | I81: Opioid Use --> 1st Overdose
A82: tpheroin_DC1 | B82: 0.06 | C82: 0.05209587602 | D82: 0.06 | E82: 0.02363082397 | F82: Beta | G82: 6 | H82: 94 | I82: Opioid Use --> Discontinue opioid use 1
A83: tpOD1_heroin1 | B83: 0.90916 | C83: 0.9014134555 | D83: =1-'Decision Tree 1'!G45-D85 -> 0.90916 | E83: 0.02859552246 | F83: Beta | G83: 90.916 | H83: 9.084 | I83: 1st Overdose --> Resume Opioid Use 1
A84: tpOD1_heroin1_tcB | B84: 0.884552 | C84: 0.8583680449 | D84: =1-death.tcB-D85 -> 0.884552 | E84: 0.03179758994 | F84: Beta | G84: 88.4552 | H84: 11.5448
A85: tpOD1_DC2 | B85: 0.062 | C85: 0.06265239927 | D85: 0.062 | E85: 0.02399587423 | F85: Beta | G85: 6.2 | H85: 93.8 | I85: 1st Overdose --> Discontinue Opioid Use 2
A86: tpOD1_death | B86: 0.06 | C86: 0.07140023138 | D86: 0.06 | E86: 0.02363082397 | F86: Beta | G86: 6 | H86: 94 | I86: 1st Overdose --> Death
A87: tpOD1_death_tcB | B87: 0.053448 | C87: 0.05582617531 | D87: =death.tcB -> 0.053448 | E87: 0.02238088631 | F87: Beta | G87: 5.3448 | H87: 94.6552
A88: tpheroin1_OD2 | B88: 0.22 | C88: 0.1775577817 | D88: 0.22 | E88: 0.04121904779 | F88: Beta | G88: 22 | H88: 78 | I88: Resume Opioid Use 1--> 2nd Overdose
A89: tpheroin_death | B89: 0.095 | C89: 0.138072979 | D89: 0.095 | E89: 0.02917597683 | F89: Beta | G89: 9.5 | H89: 90.5 | I89: Resume Opioid Use 1--> Death
A90: tpheroin1_DC2 | B90: 0.06 | C90: 0.04281215857 | D90: 0.06 | E90: 0.02363082397 | F90: Beta | G90: 6 | H90: 94 | I90: Resume Opioid Use 1--> Discontinue Opioid use 2
A91: tpOD2_heroin2 | B91: 0.90916 | C91: 0.9190296648 | D91: =1-D93-'Decision Tree 1'!G45 -> 0.90916 | E91: 0.02859552246 | F91: Beta | G91: 90.916 | H91: 9.084 | I91: 2nd Overdose --> Resume Opioid Use 2
A92: tpOD2_heroin2_tcB | B92: 0.884552 | C92: 0.8684106352 | D92: =1-death.tcB-D93 -> 0.884552 | E92: 0.03179758994 | F92: Beta | G92: 88.4552 | H92: 11.5448 | I92: 2nd Overdose --> Resume Opioid Use 2
A93: tpOD2_DC3 | B93: 0.062 | C93: 0.06458017576 | D93: 0.062 | E93: 0.02399587423 | F93: Beta | G93: 6.2 | H93: 93.8 | I93: 2nd Overdose --> Discontinue Opioid Use 3
A94: tpOD2_death | B94: 0.074 | C94: 0.06378105075 | D94: 0.074 | E94: 0.0260471773 | F94: Beta | G94: 7.4 | H94: 92.6 | I94: 2nd Overdose --> Death
A95: tpOD2_death_tcB | B95: 0.053448 | C95: 0.07928175506 | D95: =death.tcB -> 0.053448 | E95: 0.02238088631 | F95: Beta | G95: 5.3448 | H95: 94.6552 | I95: 2nd Overdose --> Death
A96: tpheroin2_OD3 | B96: 0.34 | C96: 0.2681010383 | D96: 0.34 | E96: 0.04713578448 | F96: Beta | G96: 34 | H96: 66 | I96: Resume Opioid Use 2--> 3rd Overdose
A97: tpheroin_death | B97: 0.095 | C97: 0.09529373317 | D97: 0.095 | E97: 0.02917597683 | F97: Beta | G97: 9.5 | H97: 90.5 | I97: Resume Opioid Use 2--> Dealth
A98: tpheroin2_DC3 | B98: 0.06 | C98: 0.03987351417 | D98: 0.06 | E98: 0.02363082397 | F98: Beta | G98: 6 | H98: 94 | I98: Resume Opioid Use 2--> Discontinue opioid use 3
A99: tpOD3_heroin2 | B99: 0.90916 | C99: 0.9391213765 | D99: =1-D101-'Decision Tree 1'!G45 -> 0.90916 | E99: 0.02859552246 | F99: Beta | G99: 90.916 | H99: 9.084 | I99: 3rd Overdose --> Resume Opioid Use 2
A100: tpOD3_heroin2_tcB | B100: 0.884552 | C100: 0.9047927861 | D100: =1-death.tcB-D101 -> 0.884552 | E100: 0.03179758994 | F100: Beta | G100: 88.4552 | H100: 11.5448 | I100: 3rd Overdose --> Resume Opioid Use 2
A101: tpOD3_DC3 | B101: 0.062 | C101: 0.04695145361 | D101: 0.062 | E101: 0.02399587423 | F101: Beta | G101: 6.2 | H101: 93.8 | I101: 3rd Overdose --> Discontinue Opioid Use 3
A102: tpOD3_death | B102: 0.074 | C102: 0.07632072914 | D102: 0.074 | E102: 0.0260471773 | F102: Beta | G102: 7.4 | H102: 92.6 | I102: 3rd Overdose --> Death
A103: tpOD3_death_tcB | B103: 0.053448 | C103: 0.0762173554 | D103: =death.tcB -> 0.053448 | E103: 0.02238088631 | F103: Beta | G103: 5.3448 | H103: 94.6552
A104: tpDC1_heroin | B104: 0.07 | C104: 0.07158822254 | D104: 0.07 | E104: 0.02538807703 | F104: Beta | G104: 7 | H104: 93 | I104: Discontinue Opioid use 1 --> Opioid Use
A105: tpDC1_DC1 | B105: 0.9289351901 | C105: 0.9302559831 | D105: =1-Mortality!C24-D104 -> 0.9289351901 | E105: 0.02556579604 | F105: Beta | G105: 92.89351901 | H105: 7.106480985 | I105: Discontinue Opioid use 1 --> Discontinue Opioid use 1
A106: tpDC2_heroin | B106: 0.07 | C106: 0.03618509413 | D106: 0.07 | E106: 0.02538807703 | F106: Beta | G106: 7 | H106: 93 | I106: Discontinue Opioid use 2 --> Resume Opioid Use 1
A107: tpDC2_DC2 | B107: 0.9289351901 | C107: 0.9424820161 | D107: =1-D106-Mortality!C24 -> 0.9289351901 | E107: 0.02556579604 | F107: Beta | G107: 92.89351901 | H107: 7.106480985 | I107: Discontinue Opioid use 2 --> Discontinue Opioid use 2
A108: tpDC3_heroin2 | B108: 0.07 | C108: 0.04255601244 | D108: 0.07 | E108: 0.02538807703 | F108: Beta | G108: 7 | H108: 93 | I108: Discontinue Opioid use 3 --> Resume Opioid Use 2
A109: tpDC3_DC3 | B109: 0.9289351901 | C109: 0.9262165681 | D109: =1-D108-Mortality!C24 -> 0.9289351901 | E109: 0.02556579604 | F109: Beta | G109: 92.89351901 | H109: 7.106480985 | I109: Discontinue Opioid use 3 --> Discontinue Opioid use 3
A110: add_death | B110: 0.0075 | C110: 0.00667937838 | D110: 0.0075 | E110: 0.008584899245 | F110: Beta | G110: 0.75 | H110: 99.25 | I110: Additional death rate due to opiod use

Sheet OWSA
A1: Order | B1: Decision tree parameters | C1: Base-case value | D1: Lower Limit | E1: Upper Limit | F1: Base NMB | G1: Base case ICER | H1: Low Incremental Cost | I1: High Incremental Cost | J1: Low Incremental QALY | K1: High Incremental QALY | L1: Low NMB | M1: High NMB | N1: Low ICER | O1: High ICER | Q1: NMB Spread | S1: ICER Spread | U1: Line X | V1: Line Y
A2: 1 | B2: Probability, Survival when naloxone is administered | C2: 0.979 | D2: =0.8*C2 -> 0.7832 | E2: 1 | F2: =baseNMB -> 29738.9224 | G2: =baseICER -> 513.633439 | H2: -109 | I2: 397 | J2: -0.52 | K2: 0.85 | L2: -24998.85428 | M2: 40202.51786 | N2: 213.7746218 | O2: 480.9154973 | Q2: =ABS(L2-M2) -> 65201.37215 | S2: =ABS(N2-O2) -> 267.1408755 | U2: 0 | V2: 0
A3: 2 | B3: Probability, Survival when naloxone is not administered | C3: 0.899 | D3: 0.78 | E3: 0.94 | F3: 29738.9224 | G3: 513.633439 | H3: 588 | I3: 200 | J3: 1.38 | K3: 0.32 | L3: 65670.31844 | M3: 15102.76948 | N3: 436.6511807 | O3: 645.2156849 | Q3: 50567.54896 | S3: 208.5645042 | U3: 0 | V3: 17
A4: 3 | B4: Probability, Emergency medical services called | C4: 0.6 | D4: 0.3 | E4: 0.8 | F4: 29738.9224 | G4: 513.633439 | H4: 258 | I4: 286 | J4: 0.92 | K4: 0.42 | L4: 43770.81785 | M4: 19723.84487 | N4: 288.697838 | O4: 703.4261726 | Q4: 24046.97297 | S4: 414.7283346
A5: 4 | B5: Probability, First overdose event | C5: 0.09 | D5: 0.02 | E5: 0.1 | F5: 29738.9224 | G5: 513.633439 | H5: 111 | I5: 331 | J5: 0.22 | K5: 0.66 | L5: 10266.43874 | M5: 31410.29749 | N5: 523.4529344 | O5: 512.7873533 | Q5: 21143.85875 | S5: 10.66558104
A6: 11 | B6: Probability, Naloxone prescription after AD outreach | C6: 0.8 | D6: 0.5 | E6: 0.9 | F6: 29738.9224 | G6: 513.633439 | H6: 328 | I6: 309 | J6: 0.66 | K6: 0.61 | L6: 15112.78177 | M6: 34780.61997 | N6: 604.285225 | O6: 500.3492744 | Q6: 19667.8382 | S6: 103.9359507
A7: 5 | B7: Probability, Witnessing an overdose | C7: 0.85 | D7: 0.32 | E7: 0.94 | F7: 29738.9224 | G7: 513.633439 | H7: 222 | I7: 314 | J7: 0.95 | K7: 0.57 | L7: 45263.14615 | M7: 26953.13811 | N7: 240.9467013 | O7: 566.1097673 | Q7: 18310.00805 | S7: 325.163066
A8: 6 | B8: Probability, Second overdose event | C8: 0.22 | D8: 0.05 | E8: 0.3 | F8: 29738.9224 | G8: 513.633439 | H8: 177 | I8: 337 | J8: 0.41 | K8: 0.66 | L8: 19395.27245 | M8: 31561.99463 | N8: 444.1675807 | O8: 520.0752813 | Q8: 12166.72218 | S8: 75.90770062
A9: 9 | B9: Probability, Opioid use state to Discontinuation state | C9: 0.06 | D9: 0.01 | E9: 0.1 | F9: 29738.9224 | G9: 513.633439 | H9: 446 | I9: 247 | J9: 0.73 | K9: 0.56 | L9: 35354.52277 | M9: 26155.86569 | N9: 618.6839918 | O9: 458.7944565 | Q9: 9198.657075 | S9: 159.8895352
A10: 8 | B10: Probability, Subsequent overdose event | C10: 0.34 | D10: 0.27 | E10: 0.6 | F10: 29738.9224 | G10: 513.633439 | H10: 264 | I10: 493 | J10: 0.58 | K10: 0.76 | L10: 27645.71239 | M10: 35821.44289 | N10: 466.3259509 | O10: 667.0289584 | Q10: 8175.730502 | S10: 200.7030075
A11: 20 | B11: Probability, Naloxone prescription without AD outreach | C11: 0.2 | D11: 0.16 | E11: 0.24 | F11: 29738.9224 | G11: 513.633439 | L11: 31286.49605 | M11: 28183 | N11: 509.1889881 | O11: 519 | Q11: 3103.496045 | S11: 9.81101194
A12: 12 | B12: Utility, Alive | C12: 0.93625 | D12: =0.8*C12 -> 0.749 | E12: 1 | F12: 29738.9224 | G12: 513.633439 | H12: 314 | I12: 314 | J12: 0.6 | K12: 0.64 | L12: 28357.43342 | M12: 30209.25576 | N12: 538.3866796 | O12: 505.7174701 | Q12: 1851.822333 | S12: 32.66920954
A13: 13 | B13: Probability, Discontinuation state to Opioid use state | C13: 0.07 | D13: 0.056 | E13: 0.084 | F13: 29738.9224 | G13: 513.633439 | H13: 294 | I13: 331 | J13: 0.61 | K13: 0.64 | L13: 28802.58943 | M13: 30519.86837 | N13: 497.4381292 | O13: 527.4534308 | Q13: 1717.278942 | S13: 30.01530158
A14: 10 | B14: Probability, Overdose state to Discontinuation state | C14: 0.062 | D14: 0.028 | E14: 0.1 | F14: 29738.9224 | G14: 513.633439 | H14: 357 | I14: 338 | J14: 0.63 | K14: 0.72 | L14: 30341.55544 | M14: 29084.38471 | N14: 531.116771 | O14: 496.1783092 | Q14: 1257.170729 | S14: 34.93846177
A15: 7 | B15: Probability, Naloxone administered | C15: 0.8 | D15: 0.7 | E15: 0.9 | F15: 29738.9224 | G15: 513.633439 | H15: 271 | I15: 357 | J15: 0.52 | K15: 0.73 | L15: 30363.97575 | M15: 29112.45956 | N15: 510.8356866 | O15: 516.5565429 | Q15: 1251.516194 | S15: 5.720856315
A16: 14 | B16: Utility associated with Opioid use state | C16: 0.817 | D16: 0.786 | E16: 0.845 | F16: 29738.9224 | G16: 513.633439 | H16: 314 | I16: 314 | J16: 0.61 | K16: 0.64 | L16: 29206.16486 | M16: 30220.12275 | N16: 522.9047798 | O16: 505.5374555 | Q16: 1013.957887 | S16: 17.36732428
A17: 15 | B17: Utility associated with Discontinuation state | C17: 0.875 | D17: 0.854 | E17: 0.893 | F17: 29738.9224 | G17: 513.633439 | H17: 314 | I17: 314 | J17: 0.62 | K17: 0.63 | L17: 29499.46568 | M17: 29944.17101 | N17: 517.7595938 | O17: 510.1487231 | Q17: 444.7053325 | S17: 7.610870668
A18: 17 | B18: Cost, Acdaemic detailing outreach visit | C18: 64.81 | D18: 52 | E18: 78 | F18: 29738.9224 | G18: 513.633439 | H18: 301 | I18: 327 | J18: 0.63 | K18: 0.63 | L18: 29751.88214 | M18: 29725.57821 | N18: 492.0680766 | O18: 535.8385233 | Q18: 26.30392989 | S18: 43.77044667
A19: 19 | B19: Cost, Naloxone 4 mg (Narcan®) Nasal Spray Kit | C19: 40 | D19: 32 | E19: 48 | F19: 29738.9224 | G19: 513.633439 | H19: 308 | I19: 319 | J19: 0.63 | K19: 0.63 | L19: 29743.95076 | M19: 29733.89403 | N19: 505.2661089 | O19: 522.0007691 | Q19: 10.05672462 | S19: 16.7346602
A20: 16 | B20: Cost, Emergency medical services transportation and visit | C20: 3969.73 | D20: =0.8*C20 -> 3175.784 | E20: =1.2*C20 -> 4763.676 | F20: 29738.9224 | G20: 513.633439 | H20: 269 | I20: 358 | J20: 0.63 | K20: 0.63 | L20: 29738.9224 | M20: 29738.9224 | N20: 513.633439 | O20: 513.633439 | Q20: 0 | S20: 0
L23: Minimum iNMB | M23: Maximum iNMB | N23: Minimum ICER | O23: Maximum ICER
L24: =MIN(L2:M19) -> -24998.85428 | M24: =MAX(L2:M19) -> 65670.31844 | N24: =MIN(N2:O19) -> 213.7746218 | O24: =MAX(N2:O19) -> 703.4261726

Sheet Decision Tree 1
C3: Table 1. Decision Model Parameters
C4: Probabilities
D5: p.ad_nal_yes1 | F5: =INDIRECT(D5) -> 0.8
D6: p.od_yes1 | F6: =INDIRECT(D6) -> 0.85
D7: p.used_yes1 | F7: =INDIRECT(D7) -> 0.8
D8: p.amb_yes1 | F8: =INDIRECT(D8) -> 0.6
D9: p.live_yes1 | F9: =INDIRECT(D9) -> 0.979
D10: p.nal_ems_live_yes1 | F10: =INDIRECT(D10) -> 0.899
D11: p.nal_yes1 | F11: =INDIRECT(D11) -> 0.2
C12: Costs
D13: c.nal1 | F13: =INDIRECT(D13) -> 40
D14: c.EMS1 | F14: =INDIRECT(D14) -> 3969.73
D15: c.trans1 | F15: =INDIRECT(D15) -> 808
D16: c.ED1 | F16: =INDIRECT(D16) -> 3161.73
D17: c.AD1 | F17: =INDIRECT(D17) -> 64.81
C18: QALYs
D19: u.live-0.119 | F19: =u.live1-0.119 -> 0.81725
D20: u.death | F20: =u.death -> 0
C25: Table 2. Expected Path Costs and Probabilities
C26: Decision Path | F26: Total Cost | G26: Expected Probability | H26: Expected Cost | I26: Utility
D27: Academic detailing
D28: 1 | F28: =c.AD1+c.nal1+c.EMS1 -> 4074.54 | G28: =p.ad_nal_yes1*p.od_yes1*p.used_yes1*p.amb_yes1*p.live_yes1 -> 0.3195456 | H28: =F28*G28 -> 1302.001329 | I28: =F19*G28 -> 0.2611486416
D29: 2 | F29: =c.AD1+c.nal1+c.EMS1 -> 4074.54 | G29: =p.ad_nal_yes1*p.od_yes1*p.used_yes1*p.amb_yes1*(1-p.live_yes1) -> 0.0068544 | H29: =F29*G29 -> 27.92852698 | I29: =u.death*G29 -> 0
D30: 3 | F30: =c.AD1 + c.nal1 -> 104.81 | G30: =p.ad_nal_yes1*p.od_yes1*p.used_yes1*(1-p.amb_yes1)*p.live_yes1 -> 0.2130304 | H30: 22.32771622 | I30: =F19*G30 -> 0.1740990944
D31: 4 | F31: =c.AD1 + c.nal1 -> 104.81 | G31: =p.ad_nal_yes1*p.od_yes1*p.used_yes1*(1-p.amb_yes1)*(1-p.live_yes1) -> 0.0045696 | H31: 0.478939776 | I31: =u.death*G31 -> 0
D32: 5 | F32: =c.AD1 + c.nal1 + c.EMS1 -> 4074.54 | G32: =p.ad_nal_yes1*p.od_yes1*(1-p.used_yes1)*p.amb_yes1*p.live_yes1 -> 0.0798864 | H32: 325.5003323 | I32: =F19*G32 -> 0.0652871604
D33: 6 | F33: =c.AD1 + c.nal1 + c.EMS1 -> 4074.54 | G33: =p.ad_nal_yes1*p.od_yes1*(1-p.used_yes1)*p.amb_yes1*(1-p.live_yes1) -> 0.0017136 | H33: 6.982131744 | I33: =u.death*G33 -> 0
D34: 7 | F34: =c.AD1 + c.nal1 -> 104.81 | G34: =p.ad_nal_yes1*p.od_yes1*(1-p.used_yes1)*(1-p.amb_yes1)*p.live_yes1 -> 0.0532576 | H34: 5.581929056 | I34: =F19*G34 -> 0.0435247736
D35: 8 | F35: =c.AD1 + c.nal1 -> 104.81 | G35: =p.ad_nal_yes1*p.od_yes1*(1-p.used_yes1)*(1-p.amb_yes1)*(1-p.live_yes1) -> 0.0011424 | H35: 0.119734944 | I35: =u.death*G35 -> 0
D36: 9 | F36: =c.AD1 + c.nal1 -> 104.81 | G36: =p.ad_nal_yes1*(1 - p.od_yes1)* p.live_yes1 -> 0.11748 | H36: 12.3130788 | I36: =F19*G36 -> 0.09601053
D37: 10 | F37: =c.AD1 + c.nal1 -> 104.81 | G37: =p.ad_nal_yes1*(1 - p.od_yes1)*(1-p.live_yes1) -> 0.00252 | H37: 0.2641212 | I37: =u.death*G37 -> 0
D38: 11 | F38: =c.AD1 + c.EMS1 -> 4034.54 | G38: =(1 - p.ad_nal_yes1) * p.od_yes1 * p.amb_yes1 * p.live_yes1 -> 0.099858 | H38: 402.8810953 | I38: =F19*G38 -> 0.0816089505
D39: 12 | F39: =c.AD1 + c.EMS1 -> 4034.54 | G39: =(1 - p.ad_nal_yes1) * p.od_yes1 * p.amb_yes1 *(1-p.live_yes1) -> 0.002142 | H39: 8.64198468 | I39: =u.death*G39 -> 0
D40: 13 | F40: =c.AD1 -> 64.81 | G40: =(1 - p.ad_nal_yes1) * p.od_yes1 * (1 - p.amb_yes1)*p.nal_ems_live_yes1 -> 0.061132 | H40: 3.96196492 | I40: =F19*G40 -> 0.049960127
D41: 14 | F41: =c.AD1 -> 64.81 | G41: =(1 - p.ad_nal_yes1) * p.od_yes1 * (1 - p.amb_yes1) * (1 - p.nal_ems_live_yes1) -> 0.006868 | H41: 0.44511508 | I41: =u.death*G41 -> 0
D42: 15 | F42: =c.AD1 -> 64.81 | G42: =(1 - p.ad_nal_yes1) * (1 - p.od_yes1) * p.nal_ems_live_yes1 -> 0.02697 | H42: 1.7479257 | I42: =F19*G42 -> 0.0220412325
D43: 16 | F43: =c.AD1 -> 64.81 | G43: =(1 - p.ad_nal_yes1) * (1 - p.od_yes1) * (1 - p.nal_ems_live_yes1) -> 0.00303 | H43: 0.1963743 | I43: =u.death*G43 -> 0
F44: Expected probability of alive | G44: =G28+G30+G32+G34+G36+G38+G40+G42 -> 0.97116
F45: Expected probability of death | G45: =G29+G31+G33+G35+G37+G39+G41+G43 -> 0.02884
D46: No Academic Detailing
D47: 1 | F47: =c.nal1 + c.EMS1 -> 4009.73 | G47: =p.nal_yes1 * p.od_yes1 * p.used_yes1 * p.amb_yes1 * p.live_yes1 -> 0.0798864 | H47: 320.3228947 | I47: =F19*G47 -> 0.0652871604
D48: 2 | F48: =c.nal1 + c.EMS1 -> 4009.73 | G48: =p.nal_yes1 * p.od_yes1 * p.used_yes1 * p.amb_yes1 * (1 - p.live_yes1) -> 0.0017136 | H48: 6.871073328 | I48: =u.death*G48 -> 0
D49: 3 | F49: =c.nal1 -> 40 | G49: =p.nal_yes1 * p.od_yes1 * p.used_yes1 * (1 - p.amb_yes1) * p.live_yes1 -> 0.0532576 | H49: 2.130304 | I49: =F19*G49 -> 0.0435247736
D50: 4 | F50: =c.nal1 -> 40 | G50: =p.nal_yes1 * p.od_yes1 * p.used_yes1 * (1 - p.amb_yes1) * (1 - p.live_yes1) -> 0.0011424 | H50: 0.045696 | I50: =u.death*G50 -> 0
D51: 5 | F51: =c.nal1 + c.EMS1 -> 4009.73 | G51: =p.nal_yes1 * p.od_yes1 * (1 - p.used_yes1) * p.amb_yes1 * p.live_yes1 -> 0.0199716 | H51: 80.08072367 | I51: =F19*G51 -> 0.0163217901
D52: 6 | F52: =c.nal1 + c.EMS1 -> 4009.73 | G52: =p.nal_yes1 * p.od_yes1 * (1 - p.used_yes1) * p.amb_yes1 * (1 - p.live_yes1) -> 0.0004284 | H52: 1.717768332 | I52: =u.death*G52 -> 0
D53: 7 | F53: =c.nal1 -> 40 | G53: =p.nal_yes1 * p.od_yes1 * (1 - p.used_yes1) * (1 - p.amb_yes1) * p.nal_ems_live_yes1 -> 0.0122264 | H53: 0.489056 | I53: =F19*G53 -> 0.0099920254
D54: 8 | F54: =c.nal1 -> 40 | G54: =p.nal_yes1 * p.od_yes1 * (1 - p.used_yes1) * (1 - p.amb_yes1) * (1 - p.nal_ems_live_yes1) -> 0.0013736 | H54: 0.054944 | I54: =u.death*G54 -> 0
D55: 9 | F55: =c.nal1 -> 40 | G55: =p.nal_yes1 * (1 - p.od_yes1) * p.live_yes1 -> 0.02937 | H55: 1.1748 | I55: =F19*G55 -> 0.0240026325
D56: 10 | F56: =c.nal1 -> 40 | G56: =p.nal_yes1 * (1 - p.od_yes1) * (1 - p.live_yes1) -> 0.00063 | H56: 0.0252 | I56: =u.death*G56 -> 0
D57: 11 | F57: =c.EMS1 -> 3969.73 | G57: =(1 - p.nal_yes1) * p.od_yes1 * p.amb_yes1 * p.live_yes1 -> 0.399432 | H57: 1585.637193 | I57: =F19*G57 -> 0.326435802
D58: 12 | F58: =c.EMS1 -> 3969.73 | G58: =(1 - p.nal_yes1) * p.od_yes1 * p.amb_yes1 * (1 - p.live_yes1) -> 0.008568 | H58: 34.01264664 | I58: =u.death*G58 -> 0
D59: 13 | F59: 0 | G59: =(1 - p.nal_yes1) * p.od_yes1 * (1 - p.amb_yes1) * p.nal_ems_live_yes1 -> 0.244528 | H59: 0 | I59: =F19*G59 -> 0.199840508
D60: 14 | F60: 0 | G60: =(1 - p.nal_yes1) * p.od_yes1 * (1 - p.amb_yes1) * (1 - p.nal_ems_live_yes1) -> 0.027472 | H60: 0 | I60: =u.death*G60 -> 0
D61: 15 | F61: 0 | G61: =(1 - p.nal_yes1) * (1 - p.od_yes1) * p.nal_ems_live_yes1 -> 0.10788 | H61: 0 | I61: =F19*G61 -> 0.08816493
D62: 16 | F62: 0 | G62: =(1 - p.nal_yes1) * (1 - p.od_yes1) * (1 - p.nal_ems_live_yes1) -> 0.01212 | H62: 0 | I62: =u.death*G62 -> 0
F63: Expected probability of alive | G63: =G47+G49+G51+G53+G55+G57+G59+G61 -> 0.946552
F64: Expected probability of death | G64: =G48+G50+G52+G54+G56+G58+G60+G62 -> 0.053448
C67: Table 3. Costs, QALYs, and Incremental Cost-Effectiveness Ratio
D69: Strategy | F69: Total Costs | G69: Total Utility | H69: Incremental Cost | I69: Incremental Utility | J69: ICER
D70: AD | F70: =SUM(H28:H43) -> 2121.3723 | G70: =SUM(I28:I43) -> 0.79368051
D71: No AD | F71: =SUM(H47:H62) -> 2032.5623 | G71: =SUM(I47:I62) -> 0.773569622 | H71: =cost.tcA1-cost.tcB1 -> 88.81 | I71: =utility.tcA1-utility.tcB1 -> 0.020110888 | J71: =H71/I71 -> 4416.015842

Sheet Decision Tree 2
C3: Table 1. Decision Model Parameters
C4: Probabilities
D5: p.ad_nal_yes2 | F5: =INDIRECT(D5) -> 0.8
D6: p.od_yes2 | F6: =INDIRECT(D6) -> 0.85
D7: p.used_yes2 | F7: =INDIRECT(D7) -> 0.8
D8: p.amb_yes2 | F8: =INDIRECT(D8) -> 0.6
D9: p.live_yes2 | F9: =INDIRECT(D9) -> 0.979
D10: p.nal_ems_live_yes2 | F10: =INDIRECT(D10) -> 0.899
D11: p.nal_yes2 | F11: =INDIRECT(D11) -> 0.2
C12: Costs
D13: c.nal2 | F13: =INDIRECT(D13) -> 40
D14: c.EMS2 | F14: =INDIRECT(D14) -> 3969.73
D15: c.trans2 | F15: =INDIRECT(D15) -> 808
D16: c.ED2 | F16: =INDIRECT(D16) -> 3161.73
D17: c.AD2 | F17: =INDIRECT(D17) -> 64.81
C18: QALYs
D19: u.live-0.119 | F19: =u.live2-0.119 -> 0.81725
D20: u.death | F20: =u.death -> 0
C25: Table 2. Expected Path Costs and Probabilities
C26: Decision Path | F26: Total Cost | G26: Expected Probability | H26: Expected Cost | I26: Utility
D27: Academic detailing
D28: 1 | F28: =c.AD2+c.nal2+c.EMS2 -> 4074.54 | G28: =p.ad_nal_yes2*p.od_yes2*p.used_yes2*p.amb_yes2*p.live_yes2 -> 0.3195456 | H28: =F28*G28 -> 1302.001329 | I28: =F19*G28 -> 0.2611486416
D29: 2 | F29: =c.AD2+c.nal2+c.EMS2 -> 4074.54 | G29: =p.ad_nal_yes2*p.od_yes2*p.used_yes2*p.amb_yes2*(1-p.live_yes2) -> 0.0068544 | H29: =F29*G29 -> 27.92852698 | I29: =u.death*G29 -> 0
D30: 3 | F30: =c.AD2+ c.nal2 -> 104.81 | G30: =p.ad_nal_yes2*p.od_yes2*p.used_yes2*(1-p.amb_yes2)*p.live_yes2 -> 0.2130304 | H30: 22.32771622 | I30: =F19*G30 -> 0.1740990944
D31: 4 | F31: =c.AD2+ c.nal2 -> 104.81 | G31: =p.ad_nal_yes2*p.od_yes2*p.used_yes2*(1-p.amb_yes2)*(1-p.live_yes2) -> 0.0045696 | H31: 0.478939776 | I31: =u.death*G31 -> 0
D32: 5 | F32: =c.AD2+ c.nal2 + c.EMS2 -> 4074.54 | G32: =p.ad_nal_yes2*p.od_yes2*(1-p.used_yes2)*p.amb_yes2*p.live_yes2 -> 0.0798864 | H32: 325.5003323 | I32: =F19*G32 -> 0.0652871604
D33: 6 | F33: =c.AD2+ c.nal2 + c.EMS2 -> 4074.54 | G33: =p.ad_nal_yes2*p.od_yes2*(1-p.used_yes2)*p.amb_yes2*(1-p.live_yes2) -> 0.0017136 | H33: 6.982131744 | I33: =u.death*G33 -> 0
D34: 7 | F34: =c.AD2 + c.nal2 -> 104.81 | G34: =p.ad_nal_yes2*p.od_yes2*(1-p.used_yes2)*(1-p.amb_yes2)*p.live_yes2 -> 0.0532576 | H34: 5.581929056 | I34: =F19*G34 -> 0.0435247736
D35: 8 | F35: =c.AD2 + c.nal2 -> 104.81 | G35: =p.ad_nal_yes2*p.od_yes2*(1-p.used_yes2)*(1-p.amb_yes2)*(1-p.live_yes2) -> 0.0011424 | H35: 0.119734944 | I35: =u.death*G35 -> 0
D36: 9 | F36: =c.AD2 + c.nal2 -> 104.81 | G36: =p.ad_nal_yes2*(1 - p.od_yes2)* p.live_yes2 -> 0.11748 | H36: 12.3130788 | I36: =F19*G36 -> 0.09601053
D37: 10 | F37: =c.AD2 + c.nal2 -> 104.81 | G37: =p.ad_nal_yes2*(1 - p.od_yes2)*(1-p.live_yes2) -> 0.00252 | H37: 0.2641212 | I37: =u.death*G37 -> 0
D38: 11 | F38: =c.AD2 + c.EMS2 -> 4034.54 | G38: =(1 - p.ad_nal_yes2) * p.od_yes2 * p.amb_yes2* p.live_yes2 -> 0.099858 | H38: 402.8810953 | I38: =F19*G38 -> 0.0816089505
D39: 12 | F39: =c.AD2 + c.EMS2 -> 4034.54 | G39: =(1 - p.ad_nal_yes2) * p.od_yes2 * p.amb_yes2*(1-p.live_yes2) -> 0.002142 | H39: 8.64198468 | I39: =u.death*G39 -> 0
D40: 13 | F40: =c.AD2 -> 64.81 | G40: =(1 - p.ad_nal_yes2) * p.od_yes2 * (1 - p.amb_yes2)*p.nal_ems_live_yes2 -> 0.061132 | H40: 3.96196492 | I40: =F19*G40 -> 0.049960127
D41: 14 | F41: =c.AD2 -> 64.81 | G41: =(1 - p.ad_nal_yes2) * p.od_yes2 * (1 - p.amb_yes2) * (1 - p.nal_ems_live_yes2) -> 0.006868 | H41: 0.44511508 | I41: =u.death*G41 -> 0
D42: 15 | F42: =c.AD2 -> 64.81 | G42: =(1 - p.ad_nal_yes2) * (1 - p.od_yes2) * p.nal_ems_live_yes2 -> 0.02697 | H42: 1.7479257 | I42: =F19*G42 -> 0.0220412325
D43: 16 | F43: =c.AD2 -> 64.81 | G43: =(1 - p.ad_nal_yes2) * (1 - p.od_yes2) * (1 - p.nal_ems_live_yes2) -> 0.00303 | H43: 0.1963743 | I43: =u.death*G43 -> 0
F44: Expected probability of alive | G44: =G28+G30+G32+G34+G36+G38+G40+G42 -> 0.97116
F45: Expected probability of death | G45: =G29+G31+G33+G35+G37+G39+G41+G43 -> 0.02884
D46: No Academic Detailing
D47: 1 | F47: =c.nal2 + c.EMS2 -> 4009.73 | G47: =p.nal_yes2 * p.od_yes2 * p.used_yes2 * p.amb_yes2 * p.live_yes2 -> 0.0798864 | H47: 320.3228947 | I47: =F19*G47 -> 0.0652871604
D48: 2 | F48: =c.nal2 + c.EMS2 -> 4009.73 | G48: =p.nal_yes2 * p.od_yes2 * p.used_yes2 * p.amb_yes2 * (1 - p.live_yes2) -> 0.0017136 | H48: 6.871073328 | I48: =u.death*G48 -> 0
D49: 3 | F49: =c.nal2 -> 40 | G49: =p.nal_yes2 * p.od_yes2 * p.used_yes2 * (1 - p.amb_yes2) * p.live_yes2 -> 0.0532576 | H49: 2.130304 | I49: =F19*G49 -> 0.0435247736
D50: 4 | F50: =c.nal2 -> 40 | G50: =p.nal_yes2 * p.od_yes2 * p.used_yes2 * (1 - p.amb_yes2) * (1 - p.live_yes2) -> 0.0011424 | H50: 0.045696 | I50: =u.death*G50 -> 0
D51: 5 | F51: =c.nal2 + c.EMS2 -> 4009.73 | G51: =p.nal_yes2 * p.od_yes2 * (1 - p.used_yes2) * p.amb_yes2 * p.live_yes2 -> 0.0199716 | H51: 80.08072367 | I51: =F19*G51 -> 0.0163217901
D52: 6 | F52: =c.nal2 + c.EMS2 -> 4009.73 | G52: =p.nal_yes2 * p.od_yes2 * (1 - p.used_yes2) * p.amb_yes2 * (1 - p.live_yes2) -> 0.0004284 | H52: 1.717768332 | I52: =u.death*G52 -> 0
D53: 7 | F53: =c.nal2 -> 40 | G53: =p.nal_yes2 * p.od_yes2 * (1 - p.used_yes2) * (1 - p.amb_yes2) * p.nal_ems_live_yes2 -> 0.0122264 | H53: 0.489056 | I53: =F19*G53 -> 0.0099920254
D54: 8 | F54: =c.nal2 -> 40 | G54: =p.nal_yes2 * p.od_yes2 * (1 - p.used_yes2) * (1 - p.amb_yes2) * (1 - p.nal_ems_live_yes2) -> 0.0013736 | H54: 0.054944 | I54: =u.death*G54 -> 0
D55: 9 | F55: =c.nal2 -> 40 | G55: =p.nal_yes2 * (1 - p.od_yes2) * p.live_yes2 -> 0.02937 | H55: 1.1748 | I55: =F19*G55 -> 0.0240026325
D56: 10 | F56: =c.nal2 -> 40 | G56: =p.nal_yes2 * (1 - p.od_yes2) * (1 - p.live_yes2) -> 0.00063 | H56: 0.0252 | I56: =u.death*G56 -> 0
D57: 11 | F57: =c.EMS2 -> 3969.73 | G57: =(1 - p.nal_yes2) * p.od_yes2 * p.amb_yes2 * p.live_yes2 -> 0.399432 | H57: 1585.637193 | I57: =F19*G57 -> 0.326435802
D58: 12 | F58: =c.EMS2 -> 3969.73 | G58: =(1 - p.nal_yes2) * p.od_yes2 * p.amb_yes2 * (1 - p.live_yes2) -> 0.008568 | H58: 34.01264664 | I58: =u.death*G58 -> 0
D59: 13 | F59: 0 | G59: =(1 - p.nal_yes2) * p.od_yes2 * (1 - p.amb_yes2) * p.nal_ems_live_yes2 -> 0.244528 | H59: 0 | I59: =F19*G59 -> 0.199840508
D60: 14 | F60: 0 | G60: =(1 - p.nal_yes2) * p.od_yes2 * (1 - p.amb_yes2) * (1 - p.nal_ems_live_yes2) -> 0.027472 | H60: 0 | I60: =u.death*G60 -> 0
D61: 15 | F61: 0 | G61: =(1 - p.nal_yes2) * (1 - p.od_yes2) * p.nal_ems_live_yes2 -> 0.10788 | H61: 0 | I61: =F19*G61 -> 0.08816493
D62: 16 | F62: 0 | G62: =(1 - p.nal_yes2) * (1 - p.od_yes2) * (1 - p.nal_ems_live_yes2) -> 0.01212 | H62: 0 | I62: =u.death*G62 -> 0
F63: Expected probability of alive | G63: =G47+G49+G51+G53+G55+G57+G59+G61 -> 0.946552
F64: Expected probability of death | G64: =G48+G50+G52+G54+G56+G58+G60+G62 -> 0.053448
C67: Table 3. Costs, QALYs, and Incremental Cost-Effectiveness Ratio
D69: Strategy | F69: Total Costs | G69: Total Utility | H69: Incremental Cost | I69: Incremental Utility | J69: ICER
D70: AD | F70: =SUM(H28:H43) -> 2121.3723 | G70: =SUM(I28:I43) -> 0.79368051
D71: No AD | F71: =SUM(H47:H62) -> 2032.5623 | G71: =SUM(I47:I62) -> 0.773569622 | H71: =cost.tcA2-cost.tcB2 -> 88.81 | I71: =utility.tcA2-utility.tcB2 -> 0.020110888 | J71: =H71/I71 -> 4416.015842

Sheet Decision Tree 3
C3: Table 1. Decision Model Parameters
C4: Probabilities
D5: p.ad_nal_yes3 | F5: =INDIRECT(D5) -> 0.8
D6: p.od_yes3 | F6: =INDIRECT(D6) -> 0.85
D7: p.used_yes3 | F7: =INDIRECT(D7) -> 0.8
D8: p.amb_yes3 | F8: =INDIRECT(D8) -> 0.6
D9: p.live_yes3 | F9: =INDIRECT(D9) -> 0.979
D10: p.nal_ems_live_yes3 | F10: =INDIRECT(D10) -> 0.899
D11: p.nal_yes3 | F11: =INDIRECT(D11) -> 0.2
C12: Costs
D13: c.nal3 | F13: =INDIRECT(D13) -> 40
D14: c.EMS3 | F14: =INDIRECT(D14) -> 3969.73
D15: c.trans3 | F15: =INDIRECT(D15) -> 808
D16: c.ED3 | F16: =INDIRECT(D16) -> 3161.73
D17: c.AD3 | F17: =INDIRECT(D17) -> 64.81
C18: QALYs
D19: u.live | F19: =u.live3-0.119 -> 0.81725
D20: u.death | F20: =u.death -> 0
C25: Table 2. Expected Path Costs and Probabilities
C26: Decision Path | F26: Total Cost | G26: Expected Probability | H26: Expected Cost | I26: Utility
D27: Academic detailing
D28: 1 | F28: =c.AD3+c.nal3+c.EMS3 -> 4074.54 | G28: =p.ad_nal_yes3*p.od_yes3*p.used_yes3*p.amb_yes3*p.live_yes3 -> 0.3195456 | H28: =F28*G28 -> 1302.001329 | I28: =F19*G28 -> 0.2611486416
D29: 2 | F29: =c.AD3+c.nal3+c.EMS3 -> 4074.54 | G29: =p.ad_nal_yes3*p.od_yes3*p.used_yes3*p.amb_yes3*(1-p.live_yes3) -> 0.0068544 | H29: =F29*G29 -> 27.92852698 | I29: =u.death*G29 -> 0
D30: 3 | F30: =c.AD3 + c.nal3 -> 104.81 | G30: =p.ad_nal_yes3*p.od_yes3*p.used_yes3*(1-p.amb_yes3)*p.live_yes3 -> 0.2130304 | H30: 22.32771622 | I30: =F19*G30 -> 0.1740990944
D31: 4 | F31: =c.AD3 + c.nal3 -> 104.81 | G31: =p.ad_nal_yes3*p.od_yes3*p.used_yes3*(1-p.amb_yes3)*(1-p.live_yes3) -> 0.0045696 | H31: 0.478939776 | I31: =u.death*G31 -> 0
D32: 5 | F32: =c.AD3 + c.nal3+ c.EMS3 -> 4074.54 | G32: =p.ad_nal_yes3*p.od_yes3*(1-p.used_yes3)*p.amb_yes3*p.live_yes3 -> 0.0798864 | H32: 325.5003323 | I32: =F19*G32 -> 0.0652871604
D33: 6 | F33: =c.AD3 + c.nal3+ c.EMS3 -> 4074.54 | G33: =p.ad_nal_yes3*p.od_yes3*(1-p.used_yes3)*p.amb_yes3*(1-p.live_yes3) -> 0.0017136 | H33: 6.982131744 | I33: =u.death*G33 -> 0
D34: 7 | F34: =c.AD3 + c.nal3 -> 104.81 | G34: =p.ad_nal_yes3*p.od_yes3*(1-p.used_yes3)*(1-p.amb_yes3)*p.live_yes3 -> 0.0532576 | H34: 5.581929056 | I34: =F19*G34 -> 0.0435247736
D35: 8 | F35: =c.AD3 + c.nal3 -> 104.81 | G35: =p.ad_nal_yes3*p.od_yes3*(1-p.used_yes3)*(1-p.amb_yes3)*(1-p.live_yes3) -> 0.0011424 | H35: 0.119734944 | I35: =u.death*G35 -> 0
D36: 9 | F36: =c.AD3 + c.nal3 -> 104.81 | G36: =p.ad_nal_yes3*(1 - p.od_yes3)* p.live_yes3 -> 0.11748 | H36: 12.3130788 | I36: =F19*G36 -> 0.09601053
D37: 10 | F37: =c.AD3 + c.nal3 -> 104.81 | G37: =p.ad_nal_yes3*(1 - p.od_yes3)*(1-p.live_yes3) -> 0.00252 | H37: 0.2641212 | I37: =u.death*G37 -> 0
D38: 11 | F38: =c.AD3 + c.EMS3 -> 4034.54 | G38: =(1 - p.ad_nal_yes3) * p.od_yes3 * p.amb_yes3 * p.live_yes3 -> 0.099858 | H38: 402.8810953 | I38: =F19*G38 -> 0.0816089505
D39: 12 | F39: =c.AD3 + c.EMS3 -> 4034.54 | G39: =(1 - p.ad_nal_yes3) * p.od_yes3 * p.amb_yes3 *(1-p.live_yes3) -> 0.002142 | H39: 8.64198468 | I39: =u.death*G39 -> 0
D40: 13 | F40: =c.AD3 -> 64.81 | G40: =(1 - p.ad_nal_yes3) * p.od_yes3 * (1 - p.amb_yes3)*p.nal_ems_live_yes3 -> 0.061132 | H40: 3.96196492 | I40: =F19*G40 -> 0.049960127
D41: 14 | F41: =c.AD3 -> 64.81 | G41: =(1 - p.ad_nal_yes3) * p.od_yes3 * (1 - p.amb_yes3) * (1 - p.nal_ems_live_yes3) -> 0.006868 | H41: 0.44511508 | I41: =u.death*G41 -> 0
D42: 15 | F42: =c.AD3 -> 64.81 | G42: =(1 - p.ad_nal_yes3) * (1 - p.od_yes3) * p.nal_ems_live_yes3 -> 0.02697 | H42: 1.7479257 | I42: =F19*G42 -> 0.0220412325
D43: 16 | F43: =c.AD3 -> 64.81 | G43: =(1 - p.ad_nal_yes3) * (1 - p.od_yes3) * (1 - p.nal_ems_live_yes3) -> 0.00303 | H43: 0.1963743 | I43: =u.death*G43 -> 0
F44: Expected probability of alive | G44: =G28+G30+G32+G34+G36+G38+G40+G42 -> 0.97116
F45: Expected probability of death | G45: =G29+G31+G33+G35+G37+G39+G41+G43 -> 0.02884
D46: No Academic Detailing
D47: 1 | F47: =c.nal3 + c.EMS3 -> 4009.73 | G47: =p.nal_yes3 * p.od_yes3 * p.used_yes3 * p.amb_yes3 * p.live_yes3 -> 0.0798864 | H47: 320.3228947 | I47: =F19*G47 -> 0.0652871604
D48: 2 | F48: =c.nal3 + c.EMS3 -> 4009.73 | G48: =p.nal_yes3 * p.od_yes3 * p.used_yes3 * p.amb_yes3 * (1 - p.live_yes3) -> 0.0017136 | H48: 6.871073328 | I48: =u.death*G48 -> 0
D49: 3 | F49: =c.nal3 -> 40 | G49: =p.nal_yes3 * p.od_yes3 * p.used_yes3 * (1 - p.amb_yes3) * p.live_yes3 -> 0.0532576 | H49: 2.130304 | I49: =F19*G49 -> 0.0435247736
D50: 4 | F50: =c.nal3 -> 40 | G50: =p.nal_yes3 * p.od_yes3 * p.used_yes3 * (1 - p.amb_yes3) * (1 - p.live_yes3) -> 0.0011424 | H50: 0.045696 | I50: =u.death*G50 -> 0
D51: 5 | F51: =c.nal3 + c.EMS3 -> 4009.73 | G51: =p.nal_yes3 * p.od_yes3 * (1 - p.used_yes3) * p.amb_yes3 * p.live_yes3 -> 0.0199716 | H51: 80.08072367 | I51: =F19*G51 -> 0.0163217901
D52: 6 | F52: =c.nal3 + c.EMS3 -> 4009.73 | G52: =p.nal_yes3 * p.od_yes3 * (1 - p.used_yes3) * p.amb_yes3 * (1 - p.live_yes3) -> 0.0004284 | H52: 1.717768332 | I52: =u.death*G52 -> 0
D53: 7 | F53: =c.nal3 -> 40 | G53: =p.nal_yes3 * p.od_yes3 * (1 - p.used_yes3) * (1 - p.amb_yes3) * p.nal_ems_live_yes3 -> 0.0122264 | H53: 0.489056 | I53: =F19*G53 -> 0.0099920254
D54: 8 | F54: =c.nal3 -> 40 | G54: =p.nal_yes3 * p.od_yes3 * (1 - p.used_yes3) * (1 - p.amb_yes3) * (1 - p.nal_ems_live_yes3) -> 0.0013736 | H54: 0.054944 | I54: =u.death*G54 -> 0
D55: 9 | F55: =c.nal3 -> 40 | G55: =p.nal_yes3 * (1 - p.od_yes3) * p.live_yes3 -> 0.02937 | H55: 1.1748 | I55: =F19*G55 -> 0.0240026325
D56: 10 | F56: =c.nal3 -> 40 | G56: =p.nal_yes3 * (1 - p.od_yes3) * (1 - p.live_yes3) -> 0.00063 | H56: 0.0252 | I56: =u.death*G56 -> 0
D57: 11 | F57: =c.EMS3 -> 3969.73 | G57: =(1 - p.nal_yes3) * p.od_yes3 * p.amb_yes3 * p.live_yes3 -> 0.399432 | H57: 1585.637193 | I57: =F19*G57 -> 0.326435802
D58: 12 | F58: =c.EMS3 -> 3969.73 | G58: =(1 - p.nal_yes3) * p.od_yes3 * p.amb_yes3 * (1 - p.live_yes3) -> 0.008568 | H58: 34.01264664 | I58: =u.death*G58 -> 0
D59: 13 | F59: 0 | G59: =(1 - p.nal_yes3) * p.od_yes3 * (1 - p.amb_yes3) * p.nal_ems_live_yes3 -> 0.244528 | H59: 0 | I59: =F19*G59 -> 0.199840508
D60: 14 | F60: 0 | G60: =(1 - p.nal_yes3) * p.od_yes3 * (1 - p.amb_yes3) * (1 - p.nal_ems_live_yes3) -> 0.027472 | H60: 0 | I60: =u.death*G60 -> 0
D61: 15 | F61: 0 | G61: =(1 - p.nal_yes3) * (1 - p.od_yes3) * p.nal_ems_live_yes3 -> 0.10788 | H61: 0 | I61: =F19*G61 -> 0.08816493
D62: 16 | F62: 0 | G62: =(1 - p.nal_yes3) * (1 - p.od_yes3) * (1 - p.nal_ems_live_yes3) -> 0.01212 | H62: 0 | I62: =u.death*G62 -> 0
F63: Expected probability of alive | G63: =G47+G49+G51+G53+G55+G57+G59+G61 -> 0.946552
F64: Expected probability of death | G64: =G48+G50+G52+G54+G56+G58+G60+G62 -> 0.053448
C67: Table 3. Costs, QALYs, and Incremental Cost-Effectiveness Ratio
D69: Strategy | F69: Total Costs | G69: Total Utility | H69: Incremental Cost | I69: Incremental Utility | J69: ICER
D70: AD | F70: =SUM(H28:H43) -> 2121.3723 | G70: =SUM(I28:I43) -> 0.79368051
D71: No AD | F71: =SUM(H47:H62) -> 2032.5623 | G71: =SUM(I47:I62) -> 0.773569622 | H71: =cost.tcA3-cost.tcB3 -> 88.81 | I71: =utility.tcA3-utility.tcB3 -> 0.020110888 | J71: =H71/I71 -> 4416.015842

Sheet Markov trans matrix
E3: Markov Transition Matrix (AD+)
F5: Heroin use | G5: DC heroin 1 | H5: Overdose 1 | I5: Resume heroin use 1 | J5: DC heroin 2 | K5: Overdose 2 | L5: Resume heroin 2 | M5: DC heroin 3 | N5: OD 3+ | O5: Death
E6: Heroin use | F6: =Mortality!$H$3 -> 0.8355897143 | G6: =Parameters!$D$104 -> 0.07 | H6: 0 | I6: 0 | J6: 0 | K6: 0 | L6: 0 | M6: 0 | N6: 0 | O6: 0
E7: DC heroin 1 | F7: =Parameters!$D$82 -> 0.06 | G7: =Parameters!$D$105 -> 0.9289351901 | H7: 0 | I7: 0 | J7: 0 | K7: 0 | L7: 0 | M7: 0 | N7: 0 | O7: 0
E8: Overdose 1 | F8: =Parameters!$D$81 -> 0.09 | G8: 0 | H8: 0 | I8: 0 | J8: 0 | K8: 0 | L8: 0 | M8: 0 | N8: 0 | O8: 0
E9: Resume heroin use 1 | F9: 0 | G9: 0 | H9: =Parameters!$D$83 -> 0.90916 | I9: =Mortality!$J$3 -> 0.7055897143 | J9: =Parameters!$D$106 -> 0.07 | K9: 0 | L9: 0 | M9: 0 | N9: 0 | O9: 0
E10: DC heroin 2 | F10: 0 | G10: 0 | H10: =Parameters!$D$85 -> 0.062 | I10: =Parameters!$D$82 -> 0.06 | J10: =Parameters!$D$107 -> 0.9289351901 | K10: 0 | L10: 0 | M10: 0 | N10: 0 | O10: 0
E11: Overdose 2 | F11: 0 | G11: 0 | H11: 0 | I11: =Parameters!$D$88 -> 0.22 | J11: 0 | K11: 0 | L11: 0 | M11: 0 | N11: 0 | O11: 0
E12: Resume heroin use 2 | F12: 0 | G12: 0 | H12: 0 | I12: 0 | J12: 0 | K12: =Parameters!$D$91 -> 0.90916 | L12: =Mortality!$L$3 -> 0.5855897143 | M12: =Parameters!$D$108 -> 0.07 | N12: 0 | O12: 0
E13: DC heroin 3 | F13: 0 | G13: 0 | H13: 0 | I13: 0 | J13: 0 | K13: =Parameters!$D$93 -> 0.062 | L13: =Parameters!$D$98 -> 0.06 | M13: =Parameters!$D$109 -> 0.9289351901 | N13: =Parameters!$D$99 -> 0.90916 | O13: 0
E14: OD 3+ | F14: 0 | G14: 0 | H14: 0 | I14: 0 | J14: 0 | K14: 0 | L14: =Parameters!$D$96 -> 0.34 | M14: 0 | N14: =Parameters!$D$101 -> 0.062 | O14: 0
E15: Death | F15: ='Markov Model AD+'!$O$4 -> 0.01441028573 | G15: =Mortality!$C$24 -> 0.001064809854 | H15: ='Decision Tree 1'!$G$45 -> 0.02884 | I15: ='Markov Model AD+'!$O$4 -> 0.01441028573 | J15: =Mortality!$C$24 -> 0.001064809854 | K15: ='Decision Tree 1'!$G$45 -> 0.02884 | L15: ='Markov Model AD+'!$O$4 -> 0.01441028573 | M15: =Mortality!$C$24 -> 0.001064809854 | N15: ='Decision Tree 1'!$G$45 -> 0.02884 | O15: 1
E16: Total | F16: =SUM(F6:F15) -> 1 | G16: =SUM(G6:G15) -> 1 | H16: 1 | I16: 1 | J16: 1 | K16: 1 | L16: 1 | M16: 1 | N16: 1 | O16: 1
E19: Markov Transition Matrix (AD-)
F21: Heroin use | G21: DC heroin 1 | H21: Overdose 1 | I21: Resume heroin use 1 | J21: DC heroin 2 | K21: Overdose 2 | L21: Resume heroin 2 | M21: DC heroin 3 | N21: OD 3+ | O21: Death
E22: Heroin use | F22: =Mortality!$H$3 -> 0.8355897143 | G22: =Parameters!$D$104 -> 0.07 | H22: 0 | I22: 0 | J22: 0 | K22: 0 | L22: 0 | M22: 0 | N22: 0 | O22: 0
E23: DC heroin 1 | F23: =Parameters!$D$82 -> 0.06 | G23: =Parameters!$D$105 -> 0.9289351901 | H23: 0 | I23: 0 | J23: 0 | K23: 0 | L23: 0 | M23: 0 | N23: 0 | O23: 0
E24: Overdose 1 | F24: =Parameters!$D$81 -> 0.09 | G24: 0 | H24: 0 | I24: 0 | J24: 0 | K24: 0 | L24: 0 | M24: 0 | N24: 0 | O24: 0
E25: Resume heroin use 1 | F25: 0 | G25: 0 | H25: =Parameters!D84 -> 0.884552 | I25: =Mortality!$J$3 -> 0.7055897143 | J25: =Parameters!$D$106 -> 0.07 | K25: 0 | L25: 0 | M25: 0 | N25: 0 | O25: 0
E26: DC heroin 2 | F26: 0 | G26: 0 | H26: =Parameters!$D$85 -> 0.062 | I26: =Parameters!$D$82 -> 0.06 | J26: =Parameters!$D$107 -> 0.9289351901 | K26: 0 | L26: 0 | M26: 0 | N26: 0 | O26: 0
E27: Overdose 2 | F27: 0 | G27: 0 | H27: 0 | I27: =Parameters!$D$88 -> 0.22 | J27: 0 | K27: 0 | L27: 0 | M27: 0 | N27: 0 | O27: 0
E28: Resume heroin use 2 | F28: 0 | G28: 0 | H28: 0 | I28: 0 | J28: 0 | K28: =tpOD2_heroin2_tcB -> 0.884552 | L28: =Mortality!$L$3 -> 0.5855897143 | M28: =Parameters!$D$108 -> 0.07 | N28: 0 | O28: 0
E29: DC heroin 3 | F29: 0 | G29: 0 | H29: 0 | I29: 0 | J29: 0 | K29: =Parameters!$D$93 -> 0.062 | L29: =Parameters!$D$98 -> 0.06 | M29: =Parameters!$D$109 -> 0.9289351901 | N29: =tpOD3_heroin2_tcB -> 0.884552 | O29: 0
E30: OD 3+ | F30: 0 | G30: 0 | H30: 0 | I30: 0 | J30: 0 | K30: 0 | L30: =Parameters!$D$96 -> 0.34 | M30: 0 | N30: =Parameters!$D$101 -> 0.062 | O30: 0
E31: Death | F31: ='Markov Model AD+'!$O$4 -> 0.01441028573 | G31: =Mortality!$C$24 -> 0.001064809854 | H31: =death.tcB -> 0.053448 | I31: ='Markov Model AD+'!$O$4 -> 0.01441028573 | J31: =Mortality!$C$24 -> 0.001064809854 | K31: =death.tcB -> 0.053448 | L31: ='Markov Model AD+'!$O$4 -> 0.01441028573 | M31: =Mortality!$C$24 -> 0.001064809854 | N31: =death.tcB -> 0.053448 | O31: 1
E32: Total | F32: =SUM(F22:F31) -> 1 | G32: =SUM(G22:G31) -> 1 | H32: 1 | I32: 1 | J32: 1 | K32: 1 | L32: 1 | M32: 1 | N32: 1 | O32: 1

Sheet Markov Model AD+
A2: Mortality_time | B2: Cycle | C2: Heroin Use | D2: Overdose | E2: Resume Heroin Use 1 | F2: 2nd Overdose | G2: Resume Heroin Use 2 | H2: 3rd Overdose | I2: Discontinue Heroin Use 1 | J2: Discontinue Heroin Use 2 | K2: Discontinue Heroin Use 3 | L2: Death Risk | M2: Total | N2: S(t) | O2: mortality | Q2: Cost | R2: Life-years | S2: QALYs
A3: 0 | B3: 0 | C3: 1 | D3: 0 | E3: 0 | F3: 0 | G3: 0 | H3: 0 | I3: 0 | J3: 0 | K3: 0 | L3: =1-C3 -> 0 | M3: =SUM(C3:L3) -> 1 | N3: =1-L3 -> 1 | O3: 0 | Q3: =(C3*c.society+D3*c.overdose1+E3*c.society+F3*c.overdose2+G3*c.society+H3*c.overdose3+I3*c.discontinue1+J3*c.discontinue2+K3*c.discontinue3+L3*c.death+c.nal1*2)/(1+cDR)^cycle -> 80 | R3: =SUM(C3:K3) -> 1 | S3: =(C3*u.heroin1+D3*u.overdose1+E3*u.heroin2+F3*u.overdose2+G3*u.heroin2+H3*u.overdose3+I3*u.discontinue1+J3*u.discontinue2+K3*_xlfn.SINGLE(u.discontinue3)+L3*u.death)/(1+oDR)^_xlfn.SINGLE(cycle) -> 0.817
A4: 12 | B4: 1 | C4: =Mortality!H3*'Markov Model AD+'!C3+tpDC1_heroin*'Markov Model AD+'!I3 -> 0.8355897143 | D4: =tpheroin_OD1*'Markov Model AD+'!C3 -> 0.09 | E4: =tpOD1_heroin1*'Markov Model AD+'!D3+Mortality!J3*'Markov Model AD+'!E3+tpDC2_heroin*'Markov Model AD+'!J3 -> 0 | F4: =tpheroin1_OD2*'Markov Model AD+'!E3 -> 0 | G4: =tpOD2_heroin2*'Markov Model AD+'!F3+Mortality!L3*'Markov Model AD+'!G3+tpOD3_heroin2*'Markov Model AD+'!H3+tpDC3_heroin2*'Markov Model AD+'!K3 -> 0 | H4: =tpheroin2_OD3*'Markov Model AD+'!G3 -> 0 | I4: =tpheroin_DC1*'Markov Model AD+'!C3+(1-tpDC1_heroin-Mortality!C24)*'Markov Model AD+'!I3 -> 0.06 | J4: =tpOD1_DC2*'Markov Model AD+'!D3+tpheroin1_DC2*'Markov Model AD+'!E3+(1-tpDC2_heroin-Mortality!C24)*'Markov Model AD+'!J3 -> 0 | K4: =tpOD2_DC3*'Markov Model AD+'!F3+tpheroin2_DC3*'Markov Model AD+'!G3+tpOD3_DC3*'Markov Model AD+'!H3+(1-tpDC3_heroin2-Mortality!C24)*'Markov Model AD+'!K3 -> 0 | L4: =O4*'Markov Model AD+'!C3+death.tcA*'Markov Model AD+'!D3+O4*'Markov Model AD+'!E3+death.tcA*'Markov Model AD+'!F3+O4*'Markov Model AD+'!G3+death.tcA*'Markov Model AD+'!H3+'Markov Model AD+'!L3+Mortality!C24*I3+Mortality!C24*J3+Mortality!C24*K3 -> 0.01441028573 | M4: =SUM(C4:L4) -> 1 | N4: =1-L4 -> 0.9855897143 | O4: =1-EXP(lambda*(A3^gamma - A4^gamma)) -> 0.01441028573 | Q4: =(C4*c.society+D4*c.overdose1+E4*c.society+F4*c.overdose2+G4*c.society+H4*c.overdose3+I4*c.discontinue1+J4*c.discontinue2+K4*c.discontinue3+L4*c.death+c.nal1*2)/(1+cDR)^cycle -> 263.0325311 | R4: 0.9855897143 | S4: 0.7831146043
A5: 24 | B5: 2 | C5: =Mortality!H4*'Markov Model AD+'!C4+tpDC1_heroin*'Markov Model AD+'!I4 -> 0.6982687595 | D5: =tpheroin_OD1*'Markov Model AD+'!C4 -> 0.07520307428 | E5: =tpOD1_heroin1*'Markov Model AD+'!D4+Mortality!J4*'Markov Model AD+'!E4+tpDC2_heroin*'Markov Model AD+'!J4 -> 0.0818244 | F5: =tpheroin1_OD2*'Markov Model AD+'!E4 -> 0 | G5: =tpOD2_heroin2*'Markov Model AD+'!F4+Mortality!L4*'Markov Model AD+'!G4+tpOD3_heroin2*'Markov Model AD+'!H4+tpDC3_heroin2*'Markov Model AD+'!K4 -> 0 | H5: =tpheroin2_OD3*'Markov Model AD+'!G4 -> 0 | I5: =tpheroin_DC1*'Markov Model AD+'!C4+(1-tpDC1_heroin-Mortality!C25)*'Markov Model AD+'!I4 -> 0.1058651918 | J5: =tpOD1_DC2*'Markov Model AD+'!D4+tpheroin1_DC2*'Markov Model AD+'!E4+(1-tpDC2_heroin-Mortality!C25)*'Markov Model AD+'!J4 -> 0.00558 | K5: =tpOD2_DC3*'Markov Model AD+'!F4+tpheroin2_DC3*'Markov Model AD+'!G4+tpOD3_DC3*'Markov Model AD+'!H4+(1-tpDC3_heroin2-Mortality!C25)*'Markov Model AD+'!K4 -> 0 | L5: =O5*'Markov Model AD+'!C4+death.tcA*'Markov Model AD+'!D4+O5*'Markov Model AD+'!E4+death.tcA*'Markov Model AD+'!F4+O5*'Markov Model AD+'!G4+death.tcA*'Markov Model AD+'!H4+'Markov Model AD+'!L4+Mortality!C25*I4+Mortality!C25*J4+Mortality!C25*K4 -> 0.03325857443 | M5: 1 | N5: 0.9667414256 | O5: =1-EXP(lambda*(A4^gamma - A5^gamma)) -> 0.01936655915 | Q5: =(C5*c.society+D5*c.overdose1+E5*c.society+F5*c.overdose2+G5*c.society+H5*c.overdose3+I5*c.discontinue1+J5*c.discontinue2+K5*c.discontinue3+L5*c.death+c.nal1*2)/(1+cDR)^cycle -> 225.7835033 | R5: 0.9667414256 | S5: 0.7489281445
A6: 36 | B6: 3 | C6: =Mortality!H5*'Markov Model AD+'!C5+tpDC1_heroin*'Markov Model AD+'!I5 -> 0.5857076924 | D6: =tpheroin_OD1*'Markov Model AD+'!C5 -> 0.06284418836 | E6: =tpOD1_heroin1*'Markov Model AD+'!D5+Mortality!J5*'Markov Model AD+'!E5+tpDC2_heroin*'Markov Model AD+'!J5 -> 0.1258909617 | F6: =tpheroin1_OD2*'Markov Model AD+'!E5 -> 0.018001368 | G6: =tpOD2_heroin2*'Markov Model AD+'!F5+Mortality!L5*'Markov Model AD+'!G5+tpOD3_heroin2*'Markov Model AD+'!H5+tpDC3_heroin2*'Markov Model AD+'!K5 -> 0 | H6: =tpheroin2_OD3*'Markov Model AD+'!G5 -> 0 | I6: =tpheroin_DC1*'Markov Model AD+'!C5+(1-tpDC1_heroin-Mortality!C26)*'Markov Model AD+'!I5 -> 0.1402175142 | J6: =tpOD1_DC2*'Markov Model AD+'!D5+tpheroin1_DC2*'Markov Model AD+'!E5+(1-tpDC2_heroin-Mortality!C26)*'Markov Model AD+'!J5 -> 0.01475443173 | K6: =tpOD2_DC3*'Markov Model AD+'!F5+tpheroin2_DC3*'Markov Model AD+'!G5+tpOD3_DC3*'Markov Model AD+'!H5+(1-tpDC3_heroin2-Mortality!C26)*'Markov Model AD+'!K5 -> 0 | L6: =O6*'Markov Model AD+'!C5+death.tcA*'Markov Model AD+'!D5+O6*'Markov Model AD+'!E5+death.tcA*'Markov Model AD+'!F5+O6*'Markov Model AD+'!G5+death.tcA*'Markov Model AD+'!H5+'Markov Model AD+'!L5+Mortality!C26*I5+Mortality!C26*J5+Mortality!C26*K5 -> 0.05258384365 | M6: 1 | N6: 0.9474161564 | O6: 0.02181297164 | Q6: 230.1613521 | R6: 0.9474161564 | S6: 0.7148556734
A7: 48 | B7: 4 | C7: =Mortality!H6*'Markov Model AD+'!C6+tpDC1_heroin*'Markov Model AD+'!I6 -> 0.4938622556 | D7: =tpheroin_OD1*'Markov Model AD+'!C6 -> 0.05271369231 | E7: =tpOD1_heroin1*'Markov Model AD+'!D6+Mortality!J6*'Markov Model AD+'!E6+tpDC2_heroin*'Markov Model AD+'!J6 -> 0.1458426085 | F7: =tpheroin1_OD2*'Markov Model AD+'!E6 -> 0.02769601157 | G7: =tpOD2_heroin2*'Markov Model AD+'!F6+Mortality!L6*'Markov Model AD+'!G6+tpOD3_heroin2*'Markov Model AD+'!H6+tpDC3_heroin2*'Markov Model AD+'!K6 -> 0.01636612373 | H7: =tpheroin2_OD3*'Markov Model AD+'!G6 -> 0 | I7: =tpheroin_DC1*'Markov Model AD+'!C6+(1-tpDC1_heroin-Mortality!C27)*'Markov Model AD+'!I6 -> 0.1653575705 | J7: =tpOD1_DC2*'Markov Model AD+'!D6+tpheroin1_DC2*'Markov Model AD+'!E6+(1-tpDC2_heroin-Mortality!C27)*'Markov Model AD+'!J6 -> 0.0251517229 | K7: =tpOD2_DC3*'Markov Model AD+'!F6+tpheroin2_DC3*'Markov Model AD+'!G6+tpOD3_DC3*'Markov Model AD+'!H6+(1-tpDC3_heroin2-Mortality!C27)*'Markov Model AD+'!K6 -> 0.001116084816 | L7: =O7*'Markov Model AD+'!C6+death.tcA*'Markov Model AD+'!D6+O7*'Markov Model AD+'!E6+death.tcA*'Markov Model AD+'!F6+O7*'Markov Model AD+'!G6+death.tcA*'Markov Model AD+'!H6+'Markov Model AD+'!L6+Mortality!C27*I6+Mortality!C27*J6+Mortality!C27*K6 -> 0.07189393007 | M7: 1 | N7: 0.9281060699 | O7: 0.0235689391 | Q7: 222.6361235 | R7: 0.9281060699 | S7: 0.6819154244
A8: 60 | B8: 5 | C8: =Mortality!H7*'Markov Model AD+'!C7+tpDC1_heroin*'Markov Model AD+'!I7 -> 0.4190281792 | D8: =tpheroin_OD1*'Markov Model AD+'!C7 -> 0.044447603 | E8: =tpOD1_heroin1*'Markov Model AD+'!D7+Mortality!J7*'Markov Model AD+'!E7+tpDC2_heroin*'Markov Model AD+'!J7 -> 0.1510513718 | F8: =tpheroin1_OD2*'Markov Model AD+'!E7 -> 0.03208537387 | G8: =tpOD2_heroin2*'Markov Model AD+'!F7+Mortality!L7*'Markov Model AD+'!G7+tpOD3_heroin2*'Markov Model AD+'!H7+tpDC3_heroin2*'Markov Model AD+'!K7 -> 0.03466930932 | H8: =tpheroin2_OD3*'Markov Model AD+'!G7 -> 0.005564482068 | I8: =tpheroin_DC1*'Markov Model AD+'!C7+(1-tpDC1_heroin-Mortality!C28)*'Markov Model AD+'!I7 -> 0.1831818479 | J8: =tpOD1_DC2*'Markov Model AD+'!D7+tpheroin1_DC2*'Markov Model AD+'!E7+(1-tpDC2_heroin-Mortality!C28)*'Markov Model AD+'!J7 -> 0.03537455425 | K8: =tpOD2_DC3*'Markov Model AD+'!F7+tpheroin2_DC3*'Markov Model AD+'!G7+tpOD3_DC3*'Markov Model AD+'!H7+(1-tpDC3_heroin2-Mortality!C28)*'Markov Model AD+'!K7 -> 0.003735510242 | L8: =O8*'Markov Model AD+'!C7+death.tcA*'Markov Model AD+'!D7+O8*'Markov Model AD+'!E7+death.tcA*'Markov Model AD+'!F7+O8*'Markov Model AD+'!G7+death.tcA*'Markov Model AD+'!H7+'Markov Model AD+'!L7+Mortality!C28*I7+Mortality!C28*J7+Mortality!C28*K7 -> 0.0908617684 | M8: 1 | N8: 0.9091382316 | O8: 0.02496600592 | Q8: 219.2400235 | R8: 0.9091382316 | S8: 0.6501865365
A9: 72 | B9: 6 | C9: =Mortality!H8*'Markov Model AD+'!C8+tpDC1_heroin*'Markov Model AD+'!I8 -> 0.3580440605 | D9: =tpheroin_OD1*'Markov Model AD+'!C8 -> 0.03771253612 | E9: =tpOD1_heroin1*'Markov Model AD+'!D8+Mortality!J8*'Markov Model AD+'!E8+tpDC2_heroin*'Markov Model AD+'!J8 -> 0.1476949859 | F9: =tpheroin1_OD2*'Markov Model AD+'!E8 -> 0.0332313018 | G9: =tpOD2_heroin2*'Markov Model AD+'!F8+Mortality!L8*'Markov Model AD+'!G8+tpOD3_heroin2*'Markov Model AD+'!H8+tpDC3_heroin2*'Markov Model AD+'!K8 -> 0.05438662275 | H9: =tpheroin2_OD3*'Markov Model AD+'!G8 -> 0.01178756517 | I9: =tpheroin_DC1*'Markov Model AD+'!C8+(1-tpDC1_heroin-Mortality!C29)*'Markov Model AD+'!I8 -> 0.1952297881 | J9: =tpOD1_DC2*'Markov Model AD+'!D8+tpheroin1_DC2*'Markov Model AD+'!E8+(1-tpDC2_heroin-Mortality!C29)*'Markov Model AD+'!J8 -> 0.04466483179 | K9: =tpOD2_DC3*'Markov Model AD+'!F8+tpheroin2_DC3*'Markov Model AD+'!G8+tpOD3_DC3*'Markov Model AD+'!H8+(1-tpDC3_heroin2-Mortality!C29)*'Markov Model AD+'!K8 -> 0.00788294739 | L9: =O9*'Markov Model AD+'!C8+death.tcA*'Markov Model AD+'!D8+O9*'Markov Model AD+'!E8+death.tcA*'Markov Model AD+'!F8+O9*'Markov Model AD+'!G8+death.tcA*'Markov Model AD+'!H8+'Markov Model AD+'!L8+Mortality!C29*I8+Mortality!C29*J8+Mortality!C29*K8 -> 0.1093653605 | M9: 1 | N9: 0.8906346395 | O9: 0.02613814938 | Q9: =(C9*c.society+D9*c.overdose1+E9*c.society+F9*c.overdose2+G9*c.society+H9*c.overdose3+I9*c.discontinue1+J9*c.discontinue2+K9*c.discontinue3+L9*c.death+c.nal1*2)/(1+cDR)^cycle -> 213.980667 | R9: 0.8906346395 | S9: 0.6198140127
A10: 84 | B10: 7 | C10: =Mortality!H9*'Markov Model AD+'!C9+tpDC1_heroin*'Markov Model AD+'!I9 -> 0.3082810742 | D10: =tpheroin_OD1*'Markov Model AD+'!C9 -> 0.03222396545 | E10: =tpOD1_heroin1*'Markov Model AD+'!D9+Mortality!J9*'Markov Model AD+'!E9+tpDC2_heroin*'Markov Model AD+'!J9 -> 0.1397430925 | F10: =tpheroin1_OD2*'Markov Model AD+'!E9 -> 0.0324928969 | G10: =tpOD2_heroin2*'Markov Model AD+'!F9+Mortality!L9*'Markov Model AD+'!G9+tpOD3_heroin2*'Markov Model AD+'!H9+tpDC3_heroin2*'Markov Model AD+'!K9 -> 0.07263629835 | H10: =tpheroin2_OD3*'Markov Model AD+'!G9 -> 0.01849145173 | I10: =tpheroin_DC1*'Markov Model AD+'!C9+(1-tpDC1_heroin-Mortality!C30)*'Markov Model AD+'!I9 -> 0.2027417812 | J10: =tpOD1_DC2*'Markov Model AD+'!D9+tpheroin1_DC2*'Markov Model AD+'!E9+(1-tpDC2_heroin-Mortality!C30)*'Markov Model AD+'!J9 -> 0.05266849126 | K10: =tpOD2_DC3*'Markov Model AD+'!F9+tpheroin2_DC3*'Markov Model AD+'!G9+tpOD3_DC3*'Markov Model AD+'!H9+(1-tpDC3_heroin2-Mortality!C30)*'Markov Model AD+'!K9 -> 0.01337321052 | L10: =O10*'Markov Model AD+'!C9+death.tcA*'Markov Model AD+'!D9+O10*'Markov Model AD+'!E9+death.tcA*'Markov Model AD+'!F9+O10*'Markov Model AD+'!G9+death.tcA*'Markov Model AD+'!H9+'Markov Model AD+'!L9+Mortality!C30*I9+Mortality!C30*J9+Mortality!C30*K9 -> 0.1273477379 | M10: 1 | N10: 0.8726522621 | O10: 0.02715437431 | Q10: 208.5708298 | R10: 0.8726522621 | S10: 0.590797142
A11: 96 | B11: 8 | C11: =Mortality!H10*'Markov Model AD+'!C10+tpDC1_heroin*'Markov Model AD+'!I10 -> 0.2675819044 | D11: =tpheroin_OD1*'Markov Model AD+'!C10 -> 0.02774529667 | E11: =tpOD1_heroin1*'Markov Model AD+'!D10+Mortality!J10*'Markov Model AD+'!E10+tpDC2_heroin*'Markov Model AD+'!J10 -> 0.1296780201 | F11: =tpheroin1_OD2*'Markov Model AD+'!E10 -> 0.03074348035 | G11: =tpOD2_heroin2*'Markov Model AD+'!F10+Mortality!L10*'Markov Model AD+'!G10+tpOD3_heroin2*'Markov Model AD+'!H10+tpDC3_heroin2*'Markov Model AD+'!K10 -> 0.0888329974 | H11: =tpheroin2_OD3*'Markov Model AD+'!G10 -> 0.02469634144 | I11: =tpheroin_DC1*'Markov Model AD+'!C10+(1-tpDC1_heroin-Mortality!C31)*'Markov Model AD+'!I10 -> 0.2067120114 | J11: =tpOD1_DC2*'Markov Model AD+'!D10+tpheroin1_DC2*'Markov Model AD+'!E10+(1-tpDC2_heroin-Mortality!C31)*'Markov Model AD+'!J10 -> 0.05927721704 | K11: =tpOD2_DC3*'Markov Model AD+'!F10+tpheroin2_DC3*'Markov Model AD+'!G10+tpOD3_DC3*'Markov Model AD+'!H10+(1-tpDC3_heroin2-Mortality!C31)*'Markov Model AD+'!K10 -> 0.01993421525 | L11: =O11*'Markov Model AD+'!C10+death.tcA*'Markov Model AD+'!D10+O11*'Markov Model AD+'!E10+death.tcA*'Markov Model AD+'!F10+O11*'Markov Model AD+'!G10+death.tcA*'Markov Model AD+'!H10+'Markov Model AD+'!L10+Mortality!C31*I10+Mortality!C31*J10+Mortality!C31*K10 -> 0.1447985159 | M11: 1 | N11: 0.8552014841 | O11: 0.02805534968 | Q11: 202.4571071 | R11: 0.8552014841 | S11: 0.563119818
A12: 108 | B12: 9 | C12: =Mortality!H11*'Markov Model AD+'!C11+tpDC1_heroin*'Markov Model AD+'!I11 -> 0.2341901085 | D12: =tpheroin_OD1*'Markov Model AD+'!C11 -> 0.02408237139 | E12: =tpOD1_heroin1*'Markov Model AD+'!D11+Mortality!J11*'Markov Model AD+'!E11+tpDC2_heroin*'Markov Model AD+'!J11 -> 0.118999047 | F12: =tpheroin1_OD2*'Markov Model AD+'!E11 -> 0.02852916442 | G12: =tpOD2_heroin2*'Markov Model AD+'!F11+Mortality!L11*'Markov Model AD+'!G11+tpOD3_heroin2*'Markov Model AD+'!H11+tpDC3_heroin2*'Markov Model AD+'!K11 -> 0.1025344984 | H12: =tpheroin2_OD3*'Markov Model AD+'!G11 -> 0.03020321912 | I12: =tpheroin_DC1*'Markov Model AD+'!C11+(1-tpDC1_heroin-Mortality!C32)*'Markov Model AD+'!I11 -> 0.20793558 | J12: =tpOD1_DC2*'Markov Model AD+'!D11+tpheroin1_DC2*'Markov Model AD+'!E11+(1-tpDC2_heroin-Mortality!C32)*'Markov Model AD+'!J11 -> 0.06452503546 | K12: =tpOD2_DC3*'Markov Model AD+'!F11+tpheroin2_DC3*'Markov Model AD+'!G11+tpOD3_DC3*'Markov Model AD+'!H11+(1-tpDC3_heroin2-Mortality!C32)*'Markov Model AD+'!K11 -> 0.02727120735 | L12: =O12*'Markov Model AD+'!C11+death.tcA*'Markov Model AD+'!D11+O12*'Markov Model AD+'!E11+death.tcA*'Markov Model AD+'!F11+O12*'Markov Model AD+'!G11+death.tcA*'Markov Model AD+'!H11+'Markov Model AD+'!L11+Mortality!C32*I11+Mortality!C32*J11+Mortality!C32*K11 -> 0.1617297684 | M12: 1 | N12: 0.8382702316 | O12: 0.02886724004 | Q12: 195.9581407 | R12: 0.8382702316 | S12: 0.5367369868
A13: 120 | B13: 10 | C13: =Mortality!H12*'Markov Model AD+'!C12+tpDC1_heroin*'Markov Model AD+'!I12 -> 0.2066831923 | D13: =tpheroin_OD1*'Markov Model AD+'!C12 -> 0.02107710976 | E13: =tpOD1_heroin1*'Markov Model AD+'!D12+Mortality!J12*'Markov Model AD+'!E12+tpDC2_heroin*'Markov Model AD+'!J12 -> 0.1085674765 | F13: =tpheroin1_OD2*'Markov Model AD+'!E12 -> 0.02617979035 | G13: =tpOD2_heroin2*'Markov Model AD+'!F12+Mortality!L12*'Markov Model AD+'!G12+tpOD3_heroin2*'Markov Model AD+'!H12+tpDC3_heroin2*'Markov Model AD+'!K12 -> 0.1137909804 | H13: =tpheroin2_OD3*'Markov Model AD+'!G12 -> 0.03486172947 | I13: =tpheroin_DC1*'Markov Model AD+'!C12+(1-tpDC1_heroin-Mortality!C33)*'Markov Model AD+'!I12 -> 0.2070469701 | J13: =tpOD1_DC2*'Markov Model AD+'!D12+tpheroin1_DC2*'Markov Model AD+'!E12+(1-tpDC2_heroin-Mortality!C33)*'Markov Model AD+'!J12 -> 0.06852200961 | K13: =tpOD2_DC3*'Markov Model AD+'!F12+tpheroin2_DC3*'Markov Model AD+'!G12+tpOD3_DC3*'Markov Model AD+'!H12+(1-tpDC3_heroin2-Mortality!C33)*'Markov Model AD+'!K12 -> 0.03510526912 | L13: =O13*'Markov Model AD+'!C12+death.tcA*'Markov Model AD+'!D12+O13*'Markov Model AD+'!E12+death.tcA*'Markov Model AD+'!F12+O13*'Markov Model AD+'!G12+death.tcA*'Markov Model AD+'!H12+'Markov Model AD+'!L12+Mortality!C33*I12+Mortality!C33*J12+Mortality!C33*K12 -> 0.1781654724 | M13: 1 | N13: 0.8218345276 | O13: 0.02960795647 | Q13: 189.151788 | R13: 0.8218345276 | S13: 0.511596526
A14: 132 | B14: 11 | C14: =Mortality!H13*'Markov Model AD+'!C13+tpDC1_heroin*'Markov Model AD+'!I13 -> 0.1839134965 | D14: =tpheroin_OD1*'Markov Model AD+'!C13 -> 0.0186014873 | E14: =tpOD1_heroin1*'Markov Model AD+'!D13+Mortality!J13*'Markov Model AD+'!E13+tpDC2_heroin*'Markov Model AD+'!J13 -> 0.09883904277 | F14: =tpheroin1_OD2*'Markov Model AD+'!E13 -> 0.02388484484 | G14: =tpOD2_heroin2*'Markov Model AD+'!F13+Mortality!L13*'Markov Model AD+'!G13+tpOD3_heroin2*'Markov Model AD+'!H13+tpDC3_heroin2*'Markov Model AD+'!K13 -> 0.1227816974 | H14: =tpheroin2_OD3*'Markov Model AD+'!G13 -> 0.03868893334 | I14: =tpheroin_DC1*'Markov Model AD+'!C13+(1-tpDC1_heroin-Mortality!C34)*'Markov Model AD+'!I13 -> 0.2045516496 | J14: =tpOD1_DC2*'Markov Model AD+'!D13+tpheroin1_DC2*'Markov Model AD+'!E13+(1-tpDC2_heroin-Mortality!C34)*'Markov Model AD+'!J13 -> 0.07141291786 | K14: =tpOD2_DC3*'Markov Model AD+'!F13+tpheroin2_DC3*'Markov Model AD+'!G13+tpOD3_DC3*'Markov Model AD+'!H13+(1-tpDC3_heroin2-Mortality!C34)*'Markov Model AD+'!K13 -> 0.04319159971 | L14: =O14*'Markov Model AD+'!C13+death.tcA*'Markov Model AD+'!D13+O14*'Markov Model AD+'!E13+death.tcA*'Markov Model AD+'!F13+O14*'Markov Model AD+'!G13+death.tcA*'Markov Model AD+'!H13+'Markov Model AD+'!L13+Mortality!C34*I13+Mortality!C34*J13+Mortality!C34*K13 -> 0.1941343307 | M14: 1 | N14: 0.8058656693 | O14: 0.03029034312 | Q14: 182.1967841 | R14: 0.8058656693 | S14: 0.4876418342
A15: 144 | B15: 12 | C15: =Mortality!H14*'Markov Model AD+'!C14+tpDC1_heroin*'Markov Model AD+'!I14 -> 0.1649577558 | D15: =tpheroin_OD1*'Markov Model AD+'!C14 -> 0.01655221469 | E15: =tpOD1_heroin1*'Markov Model AD+'!D14+Mortality!J14*'Markov Model AD+'!E14+tpDC2_heroin*'Markov Model AD+'!J14 -> 0.09001824966 | F15: =tpheroin1_OD2*'Markov Model AD+'!E14 -> 0.02174458941 | G15: =tpOD2_heroin2*'Markov Model AD+'!F14+Mortality!L14*'Markov Model AD+'!G14+tpOD3_heroin2*'Markov Model AD+'!H14+tpDC3_heroin2*'Markov Model AD+'!K14 -> 0.1297851116 | H15: =tpheroin2_OD3*'Markov Model AD+'!G14 -> 0.04174577712 | I15: =tpheroin_DC1*'Markov Model AD+'!C14+(1-tpDC1_heroin-Mortality!C35)*'Markov Model AD+'!I14 -> 0.2008506196 | J15: =tpOD1_DC2*'Markov Model AD+'!D14+tpheroin1_DC2*'Markov Model AD+'!E14+(1-tpDC2_heroin-Mortality!C35)*'Markov Model AD+'!J14 -> 0.07335198736 | K15: =tpOD2_DC3*'Markov Model AD+'!F14+tpheroin2_DC3*'Markov Model AD+'!G14+tpOD3_DC3*'Markov Model AD+'!H14+(1-tpDC3_heroin2-Mortality!C35)*'Markov Model AD+'!K14 -> 0.05132656585 | L15: =O15*'Markov Model AD+'!C14+death.tcA*'Markov Model AD+'!D14+O15*'Markov Model AD+'!E14+death.tcA*'Markov Model AD+'!F14+O15*'Markov Model AD+'!G14+death.tcA*'Markov Model AD+'!H14+'Markov Model AD+'!L14+Mortality!C35*I14+Mortality!C35*J14+Mortality!C35*K14 -> 0.209667129 | M15: 1 | N15: 0.790332871 | O15: 0.03092394961 | Q15: 175.2047745 | R15: 0.790332871 | S15: 0.4648157357
A16: 156 | B16: 13 | C16: =Mortality!H15*'Markov Model AD+'!C15+tpDC1_heroin*'Markov Model AD+'!I15 -> 0.1490748132 | D16: =tpheroin_OD1*'Markov Model AD+'!C15 -> 0.01484619802 | E16: =tpOD1_heroin1*'Markov Model AD+'!D15+Mortality!J15*'Markov Model AD+'!E15+tpDC2_heroin*'Markov Model AD+'!J15 -> 0.08215936758 | F16: =tpheroin1_OD2*'Markov Model AD+'!E15 -> 0.01980401493 | G16: =tpOD2_heroin2*'Markov Model AD+'!F15+Mortality!L15*'Markov Model AD+'!G15+tpOD3_heroin2*'Markov Model AD+'!H15+tpDC3_heroin2*'Markov Model AD+'!K15 -> 0.1350965096 | H16: =tpheroin2_OD3*'Markov Model AD+'!G15 -> 0.04412693793 | I16: =tpheroin_DC1*'Markov Model AD+'!C15+(1-tpDC1_heroin-Mortality!C36)*'Markov Model AD+'!I15 -> 0.1962611227 | J16: =tpOD1_DC2*'Markov Model AD+'!D15+tpheroin1_DC2*'Markov Model AD+'!E15+(1-tpDC2_heroin-Mortality!C36)*'Markov Model AD+'!J15 -> 0.07448858431 | K16: =tpOD2_DC3*'Markov Model AD+'!F15+tpheroin2_DC3*'Markov Model AD+'!G15+tpOD3_DC3*'Markov Model AD+'!H15+(1-tpDC3_heroin2-Mortality!C36)*'Markov Model AD+'!K15 -> 0.0593479905 | L16: =O16*'Markov Model AD+'!C15+death.tcA*'Markov Model AD+'!D15+O16*'Markov Model AD+'!E15+death.tcA*'Markov Model AD+'!F15+O16*'Markov Model AD+'!G15+death.tcA*'Markov Model AD+'!H15+'Markov Model AD+'!L15+Mortality!C36*I15+Mortality!C36*J15+Mortality!C36*K15 -> 0.2247944612 | M16: 1 | N16: 0.7752055388 | O16: 0.03151608482 | Q16: 168.2737437 | R16: 0.7752055388 | S16: 0.4430620439
A17: 168 | B17: 14 | C17: =Mortality!H16*'Markov Model AD+'!C16+tpDC1_heroin*'Markov Model AD+'!I16 -> 0.1356706713 | D17: =tpheroin_OD1*'Markov Model AD+'!C16 -> 0.01341673319 | E17: =tpOD1_heroin1*'Markov Model AD+'!D16+Mortality!J16*'Markov Model AD+'!E16+tpDC2_heroin*'Markov Model AD+'!J16 -> 0.07523146052 | F17: =tpheroin1_OD2*'Markov Model AD+'!E16 -> 0.01807506087 | G17: =tpOD2_heroin2*'Markov Model AD+'!F16+Mortality!L16*'Markov Model AD+'!G16+tpOD3_heroin2*'Markov Model AD+'!H16+tpDC3_heroin2*'Markov Model AD+'!K16 -> 0.1390028505 | H17: =tpheroin2_OD3*'Markov Model AD+'!G16 -> 0.04593281326 | I17: =tpheroin_DC1*'Markov Model AD+'!C16+(1-tpDC1_heroin-Mortality!C37)*'Markov Model AD+'!I16 -> 0.191032504 | J17: =tpOD1_DC2*'Markov Model AD+'!D16+tpheroin1_DC2*'Markov Model AD+'!E16+(1-tpDC2_heroin-Mortality!C37)*'Markov Model AD+'!J16 -> 0.07495937557 | K17: =tpOD2_DC3*'Markov Model AD+'!F16+tpheroin2_DC3*'Markov Model AD+'!G16+tpOD3_DC3*'Markov Model AD+'!H16+(1-tpDC3_heroin2-Mortality!C37)*'Markov Model AD+'!K16 -> 0.06713165159 | L17: =O17*'Markov Model AD+'!C16+death.tcA*'Markov Model AD+'!D16+O17*'Markov Model AD+'!E16+death.tcA*'Markov Model AD+'!F16+O17*'Markov Model AD+'!G16+death.tcA*'Markov Model AD+'!H16+'Markov Model AD+'!L16+Mortality!C37*I16+Mortality!C37*J16+Mortality!C37*K16 -> 0.2395468793 | M17: 1 | N17: 0.7604531207 | O17: 0.03207247711 | Q17: =(C17*c.society+D17*c.overdose1+E17*c.society+F17*c.overdose2+G17*c.society+H17*c.overdose3+I17*c.discontinue1+J17*c.discontinue2+K17*c.discontinue3+L17*c.death+c.nal1*2)/(1+cDR)^cycle -> 161.4756555 | R17: 0.7604531207 | S17: 0.4223259299
A18: 180 | B18: 15 | C18: =Mortality!H17*'Markov Model AD+'!C17+tpDC1_heroin*'Markov Model AD+'!I17 -> 0.1242697932 | D18: =tpheroin_OD1*'Markov Model AD+'!C17 -> 0.01221036041 | E18: =tpOD1_heroin1*'Markov Model AD+'!D17+Mortality!J17*'Markov Model AD+'!E17+tpDC2_heroin*'Markov Model AD+'!J17 -> 0.06915939197 | F18: =tpheroin1_OD2*'Markov Model AD+'!E17 -> 0.01655092131 | G18: =tpOD2_heroin2*'Markov Model AD+'!F17+Mortality!L17*'Markov Model AD+'!G17+tpOD3_heroin2*'Markov Model AD+'!H17+tpDC3_heroin2*'Markov Model AD+'!K17 -> 0.1417631507 | H18: =tpheroin2_OD3*'Markov Model AD+'!G17 -> 0.04726096916 | I18: =tpheroin_DC1*'Markov Model AD+'!C17+(1-tpDC1_heroin-Mortality!C38)*'Markov Model AD+'!I17 -> 0.1853595485 | J18: =tpOD1_DC2*'Markov Model AD+'!D17+tpheroin1_DC2*'Markov Model AD+'!E17+(1-tpDC2_heroin-Mortality!C38)*'Markov Model AD+'!J17 -> 0.07488493128 | K18: =tpOD2_DC3*'Markov Model AD+'!F17+tpheroin2_DC3*'Markov Model AD+'!G17+tpOD3_DC3*'Markov Model AD+'!H17+(1-tpDC3_heroin2-Mortality!C38)*'Markov Model AD+'!K17 -> 0.07458614921 | L18: =O18*'Markov Model AD+'!C17+death.tcA*'Markov Model AD+'!D17+O18*'Markov Model AD+'!E17+death.tcA*'Markov Model AD+'!F17+O18*'Markov Model AD+'!G17+death.tcA*'Markov Model AD+'!H17+'Markov Model AD+'!L17+Mortality!C38*I17+Mortality!C38*J17+Mortality!C38*K17 -> 0.2539547843 | M18: 1 | N18: 0.7460452157 | O18: 0.03259770609 | Q18: 154.8629931 | R18: 0.7460452157 | S18: 0.402554194
A19: 192 | B19: 16 | C19: =Mortality!H18*'Markov Model AD+'!C18+tpDC1_heroin*'Markov Model AD+'!I18 -> 0.1144917223 | D19: =tpheroin_OD1*'Markov Model AD+'!C18 -> 0.01118428139 | E19: =tpOD1_heroin1*'Markov Model AD+'!D18+Mortality!J18*'Markov Model AD+'!E18+tpDC2_heroin*'Markov Model AD+'!J18 -> 0.06384901436 | F19: =tpheroin1_OD2*'Markov Model AD+'!E18 -> 0.01521506623 | G19: =tpOD2_heroin2*'Markov Model AD+'!F18+Mortality!L18*'Markov Model AD+'!G18+tpOD3_heroin2*'Markov Model AD+'!H18+tpDC3_heroin2*'Markov Model AD+'!K18 -> 0.1436024175 | H19: =tpheroin2_OD3*'Markov Model AD+'!G18 -> 0.04819947123 | I19: =tpheroin_DC1*'Markov Model AD+'!C18+(1-tpDC1_heroin-Mortality!C39)*'Markov Model AD+'!I18 -> 0.1793939915 | J19: =tpOD1_DC2*'Markov Model AD+'!D18+tpheroin1_DC2*'Markov Model AD+'!E18+(1-tpDC2_heroin-Mortality!C39)*'Markov Model AD+'!J18 -> 0.07436917594 | K19: =tpOD2_DC3*'Markov Model AD+'!F18+tpheroin2_DC3*'Markov Model AD+'!G18+tpOD3_DC3*'Markov Model AD+'!H18+(1-tpDC3_heroin2-Mortality!C39)*'Markov Model AD+'!K18 -> 0.08164754884 | L19: =O19*'Markov Model AD+'!C18+death.tcA*'Markov Model AD+'!D18+O19*'Markov Model AD+'!E18+death.tcA*'Markov Model AD+'!F18+O19*'Markov Model AD+'!G18+death.tcA*'Markov Model AD+'!H18+'Markov Model AD+'!L18+Mortality!C39*I18+Mortality!C39*J18+Mortality!C39*K18 -> 0.2680473108 | M19: 1 | N19: 0.7319526892 | O19: 0.03309549516 | Q19: 148.4706873 | R19: 0.7319526892 | S19: 0.383696075
A20: 204 | B20: 17 | C20: =Mortality!H19*'Markov Model AD+'!C19+tpDC1_heroin*'Markov Model AD+'!I19 -> 0.1060321804 | D20: =tpheroin_OD1*'Markov Model AD+'!C19 -> 0.010304255 | E20: =tpOD1_heroin1*'Markov Model AD+'!D19+Mortality!J19*'Markov Model AD+'!E19+tpDC2_heroin*'Markov Model AD+'!J19 -> 0.05920209174 | F20: =tpheroin1_OD2*'Markov Model AD+'!E19 -> 0.01404678316 | G20: =tpOD2_heroin2*'Markov Model AD+'!F19+Mortality!L19*'Markov Model AD+'!G19+tpOD3_heroin2*'Markov Model AD+'!H19+tpDC3_heroin2*'Markov Model AD+'!K19 -> 0.1447101624 | H20: =tpheroin2_OD3*'Markov Model AD+'!G19 -> 0.04882482196 | I20: =tpheroin_DC1*'Markov Model AD+'!C19+(1-tpDC1_heroin-Mortality!C40)*'Markov Model AD+'!I19 -> 0.1732540508 | J20: =tpOD1_DC2*'Markov Model AD+'!D19+tpheroin1_DC2*'Markov Model AD+'!E19+(1-tpDC2_heroin-Mortality!C40)*'Markov Model AD+'!J19 -> 0.07350037593 | K20: =tpOD2_DC3*'Markov Model AD+'!F19+tpheroin2_DC3*'Markov Model AD+'!G19+tpOD3_DC3*'Markov Model AD+'!H19+(1-tpDC3_heroin2-Mortality!C40)*'Markov Model AD+'!K19 -> 0.08827440975 | L20: =O20*'Markov Model AD+'!C19+death.tcA*'Markov Model AD+'!D19+O20*'Markov Model AD+'!E19+death.tcA*'Markov Model AD+'!F19+O20*'Markov Model AD+'!G19+death.tcA*'Markov Model AD+'!H19+'Markov Model AD+'!L19+Mortality!C40*I19+Mortality!C40*J19+Mortality!C40*K19 -> 0.2818508689 | M20: 1 | N20: 0.7181491311 | O20: 0.03356891563 | Q20: 142.3199804 | R20: 0.7181491311 | S20: 0.3657040595
A21: 216 | B21: 18 | C21: =Mortality!H20*'Markov Model AD+'!C20+tpDC1_heroin*'Markov Model AD+'!I20 -> 0.09864786557 | D21: =tpheroin_OD1*'Markov Model AD+'!C20 -> 0.009542896232 | E21: =tpOD1_heroin1*'Markov Model AD+'!D20+Mortality!J20*'Markov Model AD+'!E20+tpDC2_heroin*'Markov Model AD+'!J20 -> 0.05512466213 | F21: =tpheroin1_OD2*'Markov Model AD+'!E20 -> 0.01302446018 | G21: =tpOD2_heroin2*'Markov Model AD+'!F20+Mortality!L20*'Markov Model AD+'!G20+tpOD3_heroin2*'Markov Model AD+'!H20+tpDC3_heroin2*'Markov Model AD+'!K20 -> 0.1452425378 | H21: =tpheroin2_OD3*'Markov Model AD+'!G20 -> 0.04920145521 | I21: =tpheroin_DC1*'Markov Model AD+'!C20+(1-tpDC1_heroin-Mortality!C41)*'Markov Model AD+'!I20 -> 0.1670311066 | J21: =tpOD1_DC2*'Markov Model AD+'!D20+tpheroin1_DC2*'Markov Model AD+'!E20+(1-tpDC2_heroin-Mortality!C41)*'Markov Model AD+'!J20 -> 0.0723524249 | K21: =tpOD2_DC3*'Markov Model AD+'!F20+tpheroin2_DC3*'Markov Model AD+'!G20+tpOD3_DC3*'Markov Model AD+'!H20+(1-tpDC3_heroin2-Mortality!C41)*'Markov Model AD+'!K20 -> 0.09444295836 | L21: =O21*'Markov Model AD+'!C20+death.tcA*'Markov Model AD+'!D20+O21*'Markov Model AD+'!E20+death.tcA*'Markov Model AD+'!F20+O21*'Markov Model AD+'!G20+death.tcA*'Markov Model AD+'!H20+'Markov Model AD+'!L20+Mortality!C41*I20+Mortality!C41*J20+Mortality!C41*K20 -> 0.295389633 | M21: 1 | N21: 0.704610367 | O21: 0.03402053302 | Q21: 136.4214396 | R21: 0.704610367 | S21: 0.348533524
A22: 228 | B22: 19 | C22: =Mortality!H21*'Markov Model AD+'!C21+tpDC1_heroin*'Markov Model AD+'!I21 -> 0.09214419622 | D22: =tpheroin_OD1*'Markov Model AD+'!C21 -> 0.008878307901 | E22: =tpOD1_heroin1*'Markov Model AD+'!D21+Mortality!J21*'Markov Model AD+'!E21+tpDC2_heroin*'Markov Model AD+'!J21 -> 0.05153126282 | F22: =tpheroin1_OD2*'Markov Model AD+'!E21 -> 0.01212742567 | G22: =tpOD2_heroin2*'Markov Model AD+'!F21+Mortality!L21*'Markov Model AD+'!G21+tpOD3_heroin2*'Markov Model AD+'!H21+tpDC3_heroin2*'Markov Model AD+'!K21 -> 0.1453258724 | H22: =tpheroin2_OD3*'Markov Model AD+'!G21 -> 0.04938246284 | I22: =tpheroin_DC1*'Markov Model AD+'!C21+(1-tpDC1_heroin-Mortality!C42)*'Markov Model AD+'!I21 -> 0.1607954161 | J22: =tpOD1_DC2*'Markov Model AD+'!D21+tpheroin1_DC2*'Markov Model AD+'!E21+(1-tpDC2_heroin-Mortality!C42)*'Markov Model AD+'!J21 -> 0.07098660435 | K22: =tpOD2_DC3*'Markov Model AD+'!F21+tpheroin2_DC3*'Markov Model AD+'!G21+tpOD3_DC3*'Markov Model AD+'!H21+(1-tpDC3_heroin2-Mortality!C42)*'Markov Model AD+'!K21 -> 0.1001430679 | L22: =O22*'Markov Model AD+'!C21+death.tcA*'Markov Model AD+'!D21+O22*'Markov Model AD+'!E21+death.tcA*'Markov Model AD+'!F21+O22*'Markov Model AD+'!G21+death.tcA*'Markov Model AD+'!H21+'Markov Model AD+'!L21+Mortality!C42*I21+Mortality!C42*J21+Mortality!C42*K21 -> 0.3086853838 | M22: 1 | N22: 0.6913146162 | O22: 0.03445251402 | Q22: 130.7777465 | R22: 0.6913146162 | S22: 0.3321427255
A23: 240 | B23: 20 | C23: =Mortality!H22*'Markov Model AD+'!C22+tpDC1_heroin*'Markov Model AD+'!I22 -> 0.08636548127 | D23: =tpheroin_OD1*'Markov Model AD+'!C22 -> 0.00829297766 | E23: =tpOD1_heroin1*'Markov Model AD+'!D22+Mortality!J22*'Markov Model AD+'!E22+tpDC2_heroin*'Markov Model AD+'!J22 -> 0.04834664853 | F23: =tpheroin1_OD2*'Markov Model AD+'!E22 -> 0.01133687782 | G23: =tpOD2_heroin2*'Markov Model AD+'!F22+Mortality!L22*'Markov Model AD+'!G22+tpOD3_heroin2*'Markov Model AD+'!H22+tpDC3_heroin2*'Markov Model AD+'!K22 -> 0.1450608339 | H23: =tpheroin2_OD3*'Markov Model AD+'!G22 -> 0.04941079662 | I23: =tpheroin_DC1*'Markov Model AD+'!C22+(1-tpDC1_heroin-Mortality!C43)*'Markov Model AD+'!I22 -> 0.1545994303 | J23: =tpOD1_DC2*'Markov Model AD+'!D22+tpheroin1_DC2*'Markov Model AD+'!E22+(1-tpDC2_heroin-Mortality!C43)*'Markov Model AD+'!J22 -> 0.06945284112 | K23: =tpOD2_DC3*'Markov Model AD+'!F22+tpheroin2_DC3*'Markov Model AD+'!G22+tpOD3_DC3*'Markov Model AD+'!H22+(1-tpDC3_heroin2-Mortality!C43)*'Markov Model AD+'!K22 -> 0.1053741523 | L23: =O23*'Markov Model AD+'!C22+death.tcA*'Markov Model AD+'!D22+O23*'Markov Model AD+'!E22+death.tcA*'Markov Model AD+'!F22+O23*'Markov Model AD+'!G22+death.tcA*'Markov Model AD+'!H22+'Markov Model AD+'!L22+Mortality!C43*I22+Mortality!C43*J22+Mortality!C43*K22 -> 0.3217599605 | M23: 1 | N23: 0.6782400395 | O23: 0.03486670645 | Q23: 125.3859245 | R23: 0.6782400395 | S23: 0.316491499
A24: 252 | B24: 21 | C24: =Mortality!H23*'Markov Model AD+'!C23+tpDC1_heroin*'Markov Model AD+'!I23 -> 0.08118696643 | D24: =tpheroin_OD1*'Markov Model AD+'!C23 -> 0.007772893314 | E24: =tpOD1_heroin1*'Markov Model AD+'!D23+Mortality!J23*'Markov Model AD+'!E23+tpDC2_heroin*'Markov Model AD+'!J23 -> 0.04550599934 | F24: =tpheroin1_OD2*'Markov Model AD+'!E23 -> 0.01063626268 | G24: =tpOD2_heroin2*'Markov Model AD+'!F23+Mortality!L23*'Markov Model AD+'!G23+tpOD3_heroin2*'Markov Model AD+'!H23+tpDC3_heroin2*'Markov Model AD+'!K23 -> 0.1445265199 | H24: =tpheroin2_OD3*'Markov Model AD+'!G23 -> 0.04932068353 | I24: =tpheroin_DC1*'Markov Model AD+'!C23+(1-tpDC1_heroin-Mortality!C44)*'Markov Model AD+'!I23 -> 0.1484834671 | J24: =tpOD1_DC2*'Markov Model AD+'!D23+tpheroin1_DC2*'Markov Model AD+'!E23+(1-tpDC2_heroin-Mortality!C44)*'Markov Model AD+'!J23 -> 0.06779229624 | K24: =tpOD2_DC3*'Markov Model AD+'!F23+tpheroin2_DC3*'Markov Model AD+'!G23+tpOD3_DC3*'Markov Model AD+'!H23+(1-tpDC3_heroin2-Mortality!C44)*'Markov Model AD+'!K23 -> 0.1101435747 | L24: =O24*'Markov Model AD+'!C23+death.tcA*'Markov Model AD+'!D23+O24*'Markov Model AD+'!E23+death.tcA*'Markov Model AD+'!F23+O24*'Markov Model AD+'!G23+death.tcA*'Markov Model AD+'!H23+'Markov Model AD+'!L23+Mortality!C44*I23+Mortality!C44*J23+Mortality!C44*K23 -> 0.3346313368 | M24: 1 | N24: 0.6653686632 | O24: 0.0352646999 | Q24: 120.2391325 | R24: 0.6653686632 | S24: 0.3015431549
A25: 264 | B25: 22 | C25: =Mortality!H24*'Markov Model AD+'!C24+tpDC1_heroin*'Markov Model AD+'!I24 -> 0.07650862153 | D25: =tpheroin_OD1*'Markov Model AD+'!C24 -> 0.007306826978 | E25: =tpOD1_heroin1*'Markov Model AD+'!D24+Mortality!J24*'Markov Model AD+'!E24+tpDC2_heroin*'Markov Model AD+'!J24 -> 0.04295439189 | F25: =tpheroin1_OD2*'Markov Model AD+'!E24 -> 0.01001131985 | G25: =tpOD2_heroin2*'Markov Model AD+'!F24+Mortality!L24*'Markov Model AD+'!G24+tpOD3_heroin2*'Markov Model AD+'!H24+tpDC3_heroin2*'Markov Model AD+'!K24 -> 0.1437843564 | H25: =tpheroin2_OD3*'Markov Model AD+'!G24 -> 0.04913901677 | I25: =tpheroin_DC1*'Markov Model AD+'!C24+(1-tpDC1_heroin-Mortality!C45)*'Markov Model AD+'!I24 -> 0.1424792326 | J25: =tpOD1_DC2*'Markov Model AD+'!D24+tpheroin1_DC2*'Markov Model AD+'!E24+(1-tpDC2_heroin-Mortality!C45)*'Markov Model AD+'!J24 -> 0.06603922887 | K25: =tpOD2_DC3*'Markov Model AD+'!F24+tpheroin2_DC3*'Markov Model AD+'!G24+tpOD3_DC3*'Markov Model AD+'!H24+(1-tpDC3_heroin2-Mortality!C45)*'Markov Model AD+'!K24 -> 0.1144651929 | L25: =O25*'Markov Model AD+'!C24+death.tcA*'Markov Model AD+'!D24+O25*'Markov Model AD+'!E24+death.tcA*'Markov Model AD+'!F24+O25*'Markov Model AD+'!G24+death.tcA*'Markov Model AD+'!H24+'Markov Model AD+'!L24+Mortality!C45*I24+Mortality!C45*J24+Mortality!C45*K24 -> 0.3473118121 | M25: 1 | N25: 0.6526881879 | O25: 0.03564787245 | Q25: 115.3280063 | R25: 0.6526881879 | S25: 0.2872650567
A26: 276 | B26: 23 | C26: =Mortality!H25*'Markov Model AD+'!C25+tpDC1_heroin*'Markov Model AD+'!I25 -> 0.07225023087 | D26: =tpheroin_OD1*'Markov Model AD+'!C25 -> 0.006885775938 | E26: =tpOD1_heroin1*'Markov Model AD+'!D25+Mortality!J25*'Markov Model AD+'!E25+tpDC2_heroin*'Markov Model AD+'!J25 -> 0.04064587631 | F26: =tpheroin1_OD2*'Markov Model AD+'!E25 -> 0.009449966215 | G26: =tpOD2_heroin2*'Markov Model AD+'!F25+Mortality!L25*'Markov Model AD+'!G25+tpOD3_heroin2*'Markov Model AD+'!H25+tpDC3_heroin2*'Markov Model AD+'!K25 -> 0.1428815548 | H26: =tpheroin2_OD3*'Markov Model AD+'!G25 -> 0.04888668119 | I26: =tpheroin_DC1*'Markov Model AD+'!C25+(1-tpDC1_heroin-Mortality!C46)*'Markov Model AD+'!I25 -> 0.1366103989 | J26: =tpOD1_DC2*'Markov Model AD+'!D25+tpheroin1_DC2*'Markov Model AD+'!E25+(1-tpDC2_heroin-Mortality!C46)*'Markov Model AD+'!J25 -> 0.06422159878 | K26: =tpOD2_DC3*'Markov Model AD+'!F25+tpheroin2_DC3*'Markov Model AD+'!G25+tpOD3_DC3*'Markov Model AD+'!H25+(1-tpDC3_heroin2-Mortality!C46)*'Markov Model AD+'!K25 -> 0.1183567251 | L26: =O26*'Markov Model AD+'!C25+death.tcA*'Markov Model AD+'!D25+O26*'Markov Model AD+'!E25+death.tcA*'Markov Model AD+'!F25+O26*'Markov Model AD+'!G25+death.tcA*'Markov Model AD+'!H25+'Markov Model AD+'!L25+Mortality!C46*I25+Mortality!C46*J25+Mortality!C46*K25 -> 0.3598111919 | M26: 1 | N26: 0.6401888081 | O26: 0.03601742729 | Q26: 110.6417383 | R26: 0.6401888081 | S26: 0.273626844
A27: 288 | B27: 24 | C27: =Mortality!H26*'Markov Model AD+'!C26+tpDC1_heroin*'Markov Model AD+'!I26 -> 0.06834736381 | D27: =tpheroin_OD1*'Markov Model AD+'!C26 -> 0.006502520778 | E27: =tpOD1_heroin1*'Markov Model AD+'!D26+Mortality!J26*'Markov Model AD+'!E26+tpDC2_heroin*'Markov Model AD+'!J26 -> 0.03854234467 | F27: =tpheroin1_OD2*'Markov Model AD+'!E26 -> 0.008942092788 | G27: =tpOD2_heroin2*'Markov Model AD+'!F26+Mortality!L26*'Markov Model AD+'!G26+tpOD3_heroin2*'Markov Model AD+'!H26+tpDC3_heroin2*'Markov Model AD+'!K26 -> 0.1418540161 | H27: =tpheroin2_OD3*'Markov Model AD+'!G26 -> 0.04857972864 | I27: =tpheroin_DC1*'Markov Model AD+'!C26+(1-tpDC1_heroin-Mortality!C47)*'Markov Model AD+'!I26 -> 0.1308926325 | J27: =tpOD1_DC2*'Markov Model AD+'!D26+tpheroin1_DC2*'Markov Model AD+'!E26+(1-tpDC2_heroin-Mortality!C47)*'Markov Model AD+'!J26 -> 0.06236138022 | K27: =tpOD2_DC3*'Markov Model AD+'!F26+tpheroin2_DC3*'Markov Model AD+'!G26+tpOD3_DC3*'Markov Model AD+'!H26+(1-tpDC3_heroin2-Mortality!C47)*'Markov Model AD+'!K26 -> 0.1218369476 | L27: =O27*'Markov Model AD+'!C26+death.tcA*'Markov Model AD+'!D26+O27*'Markov Model AD+'!E26+death.tcA*'Markov Model AD+'!F26+O27*'Markov Model AD+'!G26+death.tcA*'Markov Model AD+'!H26+'Markov Model AD+'!L26+Mortality!C47*I26+Mortality!C47*J26+Mortality!C47*K26 -> 0.3721409729 | M27: 1 | N27: 0.6278590271 | O27: 0.03637442153 | Q27: 106.1688763 | R27: 0.6278590271 | S27: 0.2605984955
A28: 300 | B28: 25 | C28: =Mortality!H27*'Markov Model AD+'!C27+tpDC1_heroin*'Markov Model AD+'!I27 -> 0.06474804271 | D28: =tpheroin_OD1*'Markov Model AD+'!C27 -> 0.006151262743 | E28: =tpOD1_heroin1*'Markov Model AD+'!D27+Mortality!J27*'Markov Model AD+'!E27+tpDC2_heroin*'Markov Model AD+'!J27 -> 0.03661234979 | F28: =tpheroin1_OD2*'Markov Model AD+'!E27 -> 0.008479315828 | G28: =tpOD2_heroin2*'Markov Model AD+'!F27+Mortality!L27*'Markov Model AD+'!G27+tpOD3_heroin2*'Markov Model AD+'!H27+tpDC3_heroin2*'Markov Model AD+'!K27 -> 0.1407286856 | H28: =tpheroin2_OD3*'Markov Model AD+'!G27 -> 0.04823036548 | I28: =tpheroin_DC1*'Markov Model AD+'!C27+(1-tpDC1_heroin-Mortality!C48)*'Markov Model AD+'!I27 -> 0.1253346425 | J28: =tpOD1_DC2*'Markov Model AD+'!D27+tpheroin1_DC2*'Markov Model AD+'!E27+(1-tpDC2_heroin-Mortality!C48)*'Markov Model AD+'!J27 -> 0.06047530492 | K28: =tpOD2_DC3*'Markov Model AD+'!F27+tpheroin2_DC3*'Markov Model AD+'!G27+tpOD3_DC3*'Markov Model AD+'!H27+(1-tpDC3_heroin2-Mortality!C48)*'Markov Model AD+'!K27 -> 0.1249239469 | L28: =O28*'Markov Model AD+'!C27+death.tcA*'Markov Model AD+'!D27+O28*'Markov Model AD+'!E27+death.tcA*'Markov Model AD+'!F27+O28*'Markov Model AD+'!G27+death.tcA*'Markov Model AD+'!H27+'Markov Model AD+'!L27+Mortality!C48*I27+Mortality!C48*J27+Mortality!C48*K27 -> 0.3843160836 | M28: 1 | N28: 0.6156839164 | O28: 0.03671978937 | Q28: 101.8978481 | R28: 0.6156839164 | S28: 0.248149736
A29: 312 | B29: 26 | C29: =Mortality!H28*'Markov Model AD+'!C28+tpDC1_heroin*'Markov Model AD+'!I28 -> 0.06141006395 | D29: =tpheroin_OD1*'Markov Model AD+'!C28 -> 0.005827323844 | E29: =tpOD1_heroin1*'Markov Model AD+'!D28+Mortality!J28*'Markov Model AD+'!E28+tpDC2_heroin*'Markov Model AD+'!J28 -> 0.03482999801 | F29: =tpheroin1_OD2*'Markov Model AD+'!E28 -> 0.008054716954 | G29: =tpOD2_heroin2*'Markov Model AD+'!F28+Mortality!L28*'Markov Model AD+'!G28+tpOD3_heroin2*'Markov Model AD+'!H28+tpDC3_heroin2*'Markov Model AD+'!K28 -> 0.13952545 | H29: =tpheroin2_OD3*'Markov Model AD+'!G28 -> 0.04784775309 | I29: =tpheroin_DC1*'Markov Model AD+'!C28+(1-tpDC1_heroin-Mortality!C49)*'Markov Model AD+'!I28 -> 0.1199402697 | J29: =tpOD1_DC2*'Markov Model AD+'!D28+tpheroin1_DC2*'Markov Model AD+'!E28+(1-tpDC2_heroin-Mortality!C49)*'Markov Model AD+'!J28 -> 0.05857608427 | K29: =tpOD2_DC3*'Markov Model AD+'!F28+tpheroin2_DC3*'Markov Model AD+'!G28+tpOD3_DC3*'Markov Model AD+'!H28+(1-tpDC3_heroin2-Mortality!C49)*'Markov Model AD+'!K28 -> 0.1276348191 | L29: =O29*'Markov Model AD+'!C28+death.tcA*'Markov Model AD+'!D28+O29*'Markov Model AD+'!E28+death.tcA*'Markov Model AD+'!F28+O29*'Markov Model AD+'!G28+death.tcA*'Markov Model AD+'!H28+'Markov Model AD+'!L28+Mortality!C49*I28+Mortality!C49*J28+Mortality!C49*K28 -> 0.3963535212 | M29: 1 | N29: 0.6036464788 | O29: 0.03705436074 | Q29: 97.81727211 | R29: 0.6036464788 | S29: 0.2362508101
A30: 324 | B30: 27 | C30: =Mortality!H29*'Markov Model AD+'!C29+tpDC1_heroin*'Markov Model AD+'!I29 -> 0.05829893403 | D30: =tpheroin_OD1*'Markov Model AD+'!C29 -> 0.005526905755 | E30: =tpOD1_heroin1*'Markov Model AD+'!D29+Mortality!J29*'Markov Model AD+'!E29+tpDC2_heroin*'Markov Model AD+'!J29 -> 0.03317398802 | F30: =tpheroin1_OD2*'Markov Model AD+'!E29 -> 0.007662599563 | G30: =tpOD2_heroin2*'Markov Model AD+'!F29+Mortality!L29*'Markov Model AD+'!G29+tpOD3_heroin2*'Markov Model AD+'!H29+tpDC3_heroin2*'Markov Model AD+'!K29 -> 0.1382586924 | H30: =tpheroin2_OD3*'Markov Model AD+'!G29 -> 0.047438653 | I30: =tpheroin_DC1*'Markov Model AD+'!C29+(1-tpDC1_heroin-Mortality!C50)*'Markov Model AD+'!I29 -> 0.1147114825 | J30: =tpOD1_DC2*'Markov Model AD+'!D29+tpheroin1_DC2*'Markov Model AD+'!E29+(1-tpDC2_heroin-Mortality!C50)*'Markov Model AD+'!J29 -> 0.05667408196 | K30: =tpOD2_DC3*'Markov Model AD+'!F29+tpheroin2_DC3*'Markov Model AD+'!G29+tpOD3_DC3*'Markov Model AD+'!H29+(1-tpDC3_heroin2-Mortality!C50)*'Markov Model AD+'!K29 -> 0.1299870859 | L30: =O30*'Markov Model AD+'!C29+death.tcA*'Markov Model AD+'!D29+O30*'Markov Model AD+'!E29+death.tcA*'Markov Model AD+'!F29+O30*'Markov Model AD+'!G29+death.tcA*'Markov Model AD+'!H29+'Markov Model AD+'!L29+Mortality!C50*I29+Mortality!C50*J29+Mortality!C50*K29 -> 0.4082675768 | M30: 1 | N30: 0.5917324232 | O30: 0.03737887653 | Q30: 93.91614289 | R30: 0.5917324232 | S30: 0.224874469
A31: 336 | B31: 28 | C31: =Mortality!H30*'Markov Model AD+'!C30+tpDC1_heroin*'Markov Model AD+'!I30 -> 0.05538637762 | D31: =tpheroin_OD1*'Markov Model AD+'!C30 -> 0.005246904063 | E31: =tpOD1_heroin1*'Markov Model AD+'!D30+Mortality!J30*'Markov Model AD+'!E30+tpDC2_heroin*'Markov Model AD+'!J30 -> 0.03162683841 | F31: =tpheroin1_OD2*'Markov Model AD+'!E30 -> 0.007298277364 | G31: =tpOD2_heroin2*'Markov Model AD+'!F30+Mortality!L30*'Markov Model AD+'!G30+tpOD3_heroin2*'Markov Model AD+'!H30+tpDC3_heroin2*'Markov Model AD+'!K30 -> 0.1369386429 | H31: =tpheroin2_OD3*'Markov Model AD+'!G30 -> 0.04700795543 | I31: =tpheroin_DC1*'Markov Model AD+'!C30+(1-tpDC1_heroin-Mortality!C51)*'Markov Model AD+'!I30 -> 0.1096490658 | J31: =tpOD1_DC2*'Markov Model AD+'!D30+tpheroin1_DC2*'Markov Model AD+'!E30+(1-tpDC2_heroin-Mortality!C51)*'Markov Model AD+'!J30 -> 0.05477788188 | K31: =tpOD2_DC3*'Markov Model AD+'!F30+tpheroin2_DC3*'Markov Model AD+'!G30+tpOD3_DC3*'Markov Model AD+'!H30+(1-tpDC3_heroin2-Mortality!C51)*'Markov Model AD+'!K30 -> 0.1319985893 | L31: =O31*'Markov Model AD+'!C30+death.tcA*'Markov Model AD+'!D30+O31*'Markov Model AD+'!E30+death.tcA*'Markov Model AD+'!F30+O31*'Markov Model AD+'!G30+death.tcA*'Markov Model AD+'!H30+'Markov Model AD+'!L30+Mortality!C51*I30+Mortality!C51*J30+Mortality!C51*K30 -> 0.4200694672 | M31: 1 | N31: 0.5799305328 | O31: 0.0376940011 | Q31: 90.18395865 | R31: 0.5799305328 | S31: 0.2139959155
A32: 348 | B32: 29 | C32: =Mortality!H31*'Markov Model AD+'!C31+tpDC1_heroin*'Markov Model AD+'!I31 -> 0.05264915481 | D32: =tpheroin_OD1*'Markov Model AD+'!C31 -> 0.004984773986 | E32: =tpOD1_heroin1*'Markov Model AD+'!D31+Mortality!J31*'Markov Model AD+'!E31+tpDC2_heroin*'Markov Model AD+'!J31 -> 0.0301742203 | F32: =tpheroin1_OD2*'Markov Model AD+'!E31 -> 0.006957904449 | G32: =tpOD2_heroin2*'Markov Model AD+'!F31+Mortality!L31*'Markov Model AD+'!G31+tpOD3_heroin2*'Markov Model AD+'!H31+tpDC3_heroin2*'Markov Model AD+'!K31 -> 0.1355724276 | H32: =tpheroin2_OD3*'Markov Model AD+'!G31 -> 0.0465591386 | I32: =tpheroin_DC1*'Markov Model AD+'!C31+(1-tpDC1_heroin-Mortality!C52)*'Markov Model AD+'!I31 -> 0.1047530268 | J32: =tpOD1_DC2*'Markov Model AD+'!D31+tpheroin1_DC2*'Markov Model AD+'!E31+(1-tpDC2_heroin-Mortality!C52)*'Markov Model AD+'!J31 -> 0.05289468633 | K32: =tpOD2_DC3*'Markov Model AD+'!F31+tpheroin2_DC3*'Markov Model AD+'!G31+tpOD3_DC3*'Markov Model AD+'!H31+(1-tpDC3_heroin2-Mortality!C52)*'Markov Model AD+'!K31 -> 0.1336873671 | L32: =O32*'Markov Model AD+'!C31+death.tcA*'Markov Model AD+'!D31+O32*'Markov Model AD+'!E31+death.tcA*'Markov Model AD+'!F31+O32*'Markov Model AD+'!G31+death.tcA*'Markov Model AD+'!H31+'Markov Model AD+'!L31+Mortality!C52*I31+Mortality!C52*J31+Mortality!C52*K31 -> 0.4317673 | M32: 1 | N32: 0.5682327 | O32: 0.03800033267 | Q32: 86.61084686 | R32: 0.5682327 | S32: 0.2035926083
A33: 360 | B33: 30 | C33: =Mortality!H32*'Markov Model AD+'!C32+tpDC1_heroin*'Markov Model AD+'!I32 -> 0.05006811444 | D33: =tpheroin_OD1*'Markov Model AD+'!C32 -> 0.004738423933 | E33: =tpOD1_heroin1*'Markov Model AD+'!D32+Mortality!J32*'Markov Model AD+'!E32+tpDC2_heroin*'Markov Model AD+'!J32 -> 0.02880439906 | F33: =tpheroin1_OD2*'Markov Model AD+'!E32 -> 0.006638328466 | G33: =tpOD2_heroin2*'Markov Model AD+'!F32+Mortality!L32*'Markov Model AD+'!G32+tpOD3_heroin2*'Markov Model AD+'!H32+tpDC3_heroin2*'Markov Model AD+'!K32 -> 0.1341649185 | H33: =tpheroin2_OD3*'Markov Model AD+'!G32 -> 0.0460946254 | I33: =tpheroin_DC1*'Markov Model AD+'!C32+(1-tpDC1_heroin-Mortality!C53)*'Markov Model AD+'!I32 -> 0.1000232748 | J33: =tpOD1_DC2*'Markov Model AD+'!D32+tpheroin1_DC2*'Markov Model AD+'!E32+(1-tpDC2_heroin-Mortality!C53)*'Markov Model AD+'!J32 -> 0.05103082255 | K33: =tpOD2_DC3*'Markov Model AD+'!F32+tpheroin2_DC3*'Markov Model AD+'!G32+tpOD3_DC3*'Markov Model AD+'!H32+(1-tpDC3_heroin2-Mortality!C53)*'Markov Model AD+'!K32 -> 0.1350720919 | L33: =O33*'Markov Model AD+'!C32+death.tcA*'Markov Model AD+'!D32+O33*'Markov Model AD+'!E32+death.tcA*'Markov Model AD+'!F32+O33*'Markov Model AD+'!G32+death.tcA*'Markov Model AD+'!H32+'Markov Model AD+'!L32+Mortality!C53*I32+Mortality!C53*J32+Mortality!C53*K32 -> 0.443365001 | M33: 1 | N33: 0.556634999 | O33: 0.03829841195 | Q33: 83.18762033 | R33: 0.556634999 | S33: 0.1936444515
A34: 372 | B34: 31 | C34: =Mortality!H33*'Markov Model AD+'!C33+tpDC1_heroin*'Markov Model AD+'!I33 -> 0.0476274616 | D34: =tpheroin_OD1*'Markov Model AD+'!C33 -> 0.0045061303 | E34: =tpOD1_heroin1*'Markov Model AD+'!D33+Mortality!J33*'Markov Model AD+'!E33+tpDC2_heroin*'Markov Model AD+'!J33 -> 0.02750778524 | F34: =tpheroin1_OD2*'Markov Model AD+'!E33 -> 0.006336967793 | G34: =tpOD2_heroin2*'Markov Model AD+'!F33+Mortality!L33*'Markov Model AD+'!G33+tpOD3_heroin2*'Markov Model AD+'!H33+tpDC3_heroin2*'Markov Model AD+'!K33 -> 0.1327194361 | H34: =tpheroin2_OD3*'Markov Model AD+'!G33 -> 0.04561607227 | I34: =tpheroin_DC1*'Markov Model AD+'!C33+(1-tpDC1_heroin-Mortality!C54)*'Markov Model AD+'!I33 -> 0.09545703497 | J34: =tpOD1_DC2*'Markov Model AD+'!D33+tpheroin1_DC2*'Markov Model AD+'!E33+(1-tpDC2_heroin-Mortality!C54)*'Markov Model AD+'!J33 -> 0.04919056772 | K34: =tpOD2_DC3*'Markov Model AD+'!F33+tpheroin2_DC3*'Markov Model AD+'!G33+tpOD3_DC3*'Markov Model AD+'!H33+(1-tpDC3_heroin2-Mortality!C54)*'Markov Model AD+'!K33 -> 0.1361684108 | L34: =O34*'Markov Model AD+'!C33+death.tcA*'Markov Model AD+'!D33+O34*'Markov Model AD+'!E33+death.tcA*'Markov Model AD+'!F33+O34*'Markov Model AD+'!G33+death.tcA*'Markov Model AD+'!H33+'Markov Model AD+'!L33+Mortality!C54*I33+Mortality!C54*J33+Mortality!C54*K33 -> 0.4548701332 | M34: 1 | N34: 0.5451298668 | O34: 0.03858872939 | Q34: 79.90580002 | R34: 0.5451298668 | S34: 0.1841308147
A35: 384 | B35: 32 | C35: =Mortality!H34*'Markov Model AD+'!C34+tpDC1_heroin*'Markov Model AD+'!I34 -> 0.04531397291 | D35: =tpheroin_OD1*'Markov Model AD+'!C34 -> 0.004286471544 | E35: =tpOD1_heroin1*'Markov Model AD+'!D34+Mortality!J34*'Markov Model AD+'!E34+tpDC2_heroin*'Markov Model AD+'!J34 -> 0.0262764633 | F35: =tpheroin1_OD2*'Markov Model AD+'!E34 -> 0.006051712753 | G35: =tpOD2_heroin2*'Markov Model AD+'!F34+Mortality!L34*'Markov Model AD+'!G34+tpOD3_heroin2*'Markov Model AD+'!H34+tpDC3_heroin2*'Markov Model AD+'!K34 -> 0.1312380421 | H35: =tpheroin2_OD3*'Markov Model AD+'!G34 -> 0.04512460827 | I35: =tpheroin_DC1*'Markov Model AD+'!C34+(1-tpDC1_heroin-Mortality!C55)*'Markov Model AD+'!I34 -> 0.09104871706 | J35: =tpOD1_DC2*'Markov Model AD+'!D34+tpheroin1_DC2*'Markov Model AD+'!E34+(1-tpDC2_heroin-Mortality!C55)*'Markov Model AD+'!J34 -> 0.04737614427 | K35: =tpOD2_DC3*'Markov Model AD+'!F34+tpheroin2_DC3*'Markov Model AD+'!G34+tpOD3_DC3*'Markov Model AD+'!H34+(1-tpDC3_heroin2-Mortality!C55)*'Markov Model AD+'!K34 -> 0.1369878454 | L35: =O35*'Markov Model AD+'!C34+death.tcA*'Markov Model AD+'!D34+O35*'Markov Model AD+'!E34+death.tcA*'Markov Model AD+'!F34+O35*'Markov Model AD+'!G34+death.tcA*'Markov Model AD+'!H34+'Markov Model AD+'!L34+Mortality!C55*I34+Mortality!C55*J34+Mortality!C55*K34 -> 0.4662960224 | M35: 1 | N35: 0.5337039776 | O35: 0.03887173139 | Q35: =(C35*c.society+D35*c.overdose1+E35*c.society+F35*c.overdose2+G35*c.society+H35*c.overdose3+I35*c.discontinue1+J35*c.discontinue2+K35*c.discontinue3+L35*c.death+c.nal1*2)/(1+cDR)^cycle -> 76.75762319 | R35: 0.5337039776 | S35: =(C35*u.heroin1+D35*u.overdose1+E35*u.heroin2+F35*u.overdose2+G35*u.heroin2+H35*u.overdose3+I35*u.discontinue1+J35*u.discontinue2+K35*_xlfn.SINGLE(u.discontinue3)+L35*u.death)/(1+oDR)^_xlfn.SINGLE(cycle) -> 0.1750299953
A36: 396 | B36: 33 | C36: =Mortality!H35*'Markov Model AD+'!C35+tpDC1_heroin*'Markov Model AD+'!I35 -> 0.04311634367 | D36: =tpheroin_OD1*'Markov Model AD+'!C35 -> 0.004078257562 | E36: =tpOD1_heroin1*'Markov Model AD+'!D35+Mortality!J35*'Markov Model AD+'!E35+tpDC2_heroin*'Markov Model AD+'!J35 -> 0.02510380575 | F36: =tpheroin1_OD2*'Markov Model AD+'!E35 -> 0.005780821926 | G36: =tpOD2_heroin2*'Markov Model AD+'!F35+Mortality!L35*'Markov Model AD+'!G35+tpOD3_heroin2*'Markov Model AD+'!H35+tpDC3_heroin2*'Markov Model AD+'!K35 -> 0.1297217545 | H36: =tpheroin2_OD3*'Markov Model AD+'!G35 -> 0.0446209343 | I36: =tpheroin_DC1*'Markov Model AD+'!C35+(1-tpDC1_heroin-Mortality!C56)*'Markov Model AD+'!I35 -> 0.08679144779 | J36: =tpOD1_DC2*'Markov Model AD+'!D35+tpheroin1_DC2*'Markov Model AD+'!E35+(1-tpDC2_heroin-Mortality!C56)*'Markov Model AD+'!J35 -> 0.04558855658 | K36: =tpOD2_DC3*'Markov Model AD+'!F35+tpheroin2_DC3*'Markov Model AD+'!G35+tpOD3_DC3*'Markov Model AD+'!H35+(1-tpDC3_heroin2-Mortality!C56)*'Markov Model AD+'!K35 -> 0.1375391189 | L36: =O36*'Markov Model AD+'!C35+death.tcA*'Markov Model AD+'!D35+O36*'Markov Model AD+'!E35+death.tcA*'Markov Model AD+'!F35+O36*'Markov Model AD+'!G35+death.tcA*'Markov Model AD+'!H35+'Markov Model AD+'!L35+Mortality!C56*I35+Mortality!C56*J35+Mortality!C56*K35 -> 0.477658959 | M36: 1 | N36: 0.522341041 | O36: =1-EXP(lambda*(A35^gamma - A36^gamma)) -> 0.03914782544 | Q36: 73.73592498 | R36: 0.522341041 | S36: 0.1663204135
A37: 408 | B37: 34 | C37: =Mortality!H36*'Markov Model AD+'!C36+tpDC1_heroin*'Markov Model AD+'!I36 -> 0.04102475996 | D37: =tpheroin_OD1*'Markov Model AD+'!C36 -> 0.00388047093 | E37: =tpOD1_heroin1*'Markov Model AD+'!D36+Mortality!J36*'Markov Model AD+'!E36+tpDC2_heroin*'Markov Model AD+'!J36 -> 0.02398420137 | F37: =tpheroin1_OD2*'Markov Model AD+'!E36 -> 0.005522837264 | G37: =tpOD2_heroin2*'Markov Model AD+'!F36+Mortality!L36*'Markov Model AD+'!G36+tpOD3_heroin2*'Markov Model AD+'!H36+tpDC3_heroin2*'Markov Model AD+'!K36 -> 0.1281707594 | H37: =tpheroin2_OD3*'Markov Model AD+'!G36 -> 0.04410539652 | I37: =tpheroin_DC1*'Markov Model AD+'!C36+(1-tpDC1_heroin-Mortality!C57)*'Markov Model AD+'!I36 -> 0.08267949793 | J37: =tpOD1_DC2*'Markov Model AD+'!D36+tpheroin1_DC2*'Markov Model AD+'!E36+(1-tpDC2_heroin-Mortality!C57)*'Markov Model AD+'!J36 -> 0.04382891956 | K37: =tpOD2_DC3*'Markov Model AD+'!F36+tpheroin2_DC3*'Markov Model AD+'!G36+tpOD3_DC3*'Markov Model AD+'!H36+(1-tpDC3_heroin2-Mortality!C57)*'Markov Model AD+'!K36 -> 0.137831483 | L37: =O37*'Markov Model AD+'!C36+death.tcA*'Markov Model AD+'!D36+O37*'Markov Model AD+'!E36+death.tcA*'Markov Model AD+'!F36+O37*'Markov Model AD+'!G36+death.tcA*'Markov Model AD+'!H36+'Markov Model AD+'!L36+Mortality!C57*I36+Mortality!C57*J36+Mortality!C57*K36 -> 0.4889716741 | M37: 1 | N37: 0.5110283259 | O37: 0.03941738467 | Q37: 70.83403818 | R37: 0.5110283259 | S37: 0.1579828047
A38: 420 | B38: 35 | C38: =Mortality!H37*'Markov Model AD+'!C37+tpDC1_heroin*'Markov Model AD+'!I37 -> 0.03903071751 | D38: =tpheroin_OD1*'Markov Model AD+'!C37 -> 0.003692228396 | E38: =tpOD1_heroin1*'Markov Model AD+'!D37+Mortality!J37*'Markov Model AD+'!E37+tpDC2_heroin*'Markov Model AD+'!J37 -> 0.02291290717 | F38: =tpheroin1_OD2*'Markov Model AD+'!E37 -> 0.005276524302 | G38: =tpOD2_heroin2*'Markov Model AD+'!F37+Mortality!L37*'Markov Model AD+'!G37+tpOD3_heroin2*'Markov Model AD+'!H37+tpDC3_heroin2*'Markov Model AD+'!K37 -> 0.1265847524 | H38: =tpheroin2_OD3*'Markov Model AD+'!G37 -> 0.0435780582 | I38: =tpheroin_DC1*'Markov Model AD+'!C37+(1-tpDC1_heroin-Mortality!C58)*'Markov Model AD+'!I37 -> 0.07871129088 | J38: =tpOD1_DC2*'Markov Model AD+'!D37+tpheroin1_DC2*'Markov Model AD+'!E37+(1-tpDC2_heroin-Mortality!C58)*'Markov Model AD+'!J37 -> 0.04210014051 | K38: =tpOD2_DC3*'Markov Model AD+'!F37+tpheroin2_DC3*'Markov Model AD+'!G37+tpOD3_DC3*'Markov Model AD+'!H37+(1-tpDC3_heroin2-Mortality!C58)*'Markov Model AD+'!K37 -> 0.1378800113 | L38: =O38*'Markov Model AD+'!C37+death.tcA*'Markov Model AD+'!D37+O38*'Markov Model AD+'!E37+death.tcA*'Markov Model AD+'!F37+O38*'Markov Model AD+'!G37+death.tcA*'Markov Model AD+'!H37+'Markov Model AD+'!L37+Mortality!C58*I37+Mortality!C58*J37+Mortality!C58*K37 -> 0.5002333694 | M38: 1 | N38: 0.4997666306 | O38: 0.0396807516 | Q38: 68.04573862 | R38: 0.4997666306 | S38: 0.1500030947
A39: 432 | B39: 36 | C39: =Mortality!H38*'Markov Model AD+'!C38+tpDC1_heroin*'Markov Model AD+'!I38 -> 0.03712708202 | D39: =tpheroin_OD1*'Markov Model AD+'!C38 -> 0.003512764576 | E39: =tpOD1_heroin1*'Markov Model AD+'!D38+Mortality!J38*'Markov Model AD+'!E38+tpDC2_heroin*'Markov Model AD+'!J38 -> 0.02188602815 | F39: =tpheroin1_OD2*'Markov Model AD+'!E38 -> 0.005040839578 | G39: =tpOD2_heroin2*'Markov Model AD+'!F38+Mortality!L38*'Markov Model AD+'!G38+tpOD3_heroin2*'Markov Model AD+'!H38+tpDC3_heroin2*'Markov Model AD+'!K38 -> 0.124963512 | H39: =tpheroin2_OD3*'Markov Model AD+'!G38 -> 0.04303881582 | I39: =tpheroin_DC1*'Markov Model AD+'!C38+(1-tpDC1_heroin-Mortality!C59)*'Markov Model AD+'!I38 -> 0.07488460206 | J39: =tpOD1_DC2*'Markov Model AD+'!D38+tpheroin1_DC2*'Markov Model AD+'!E38+(1-tpDC2_heroin-Mortality!C59)*'Markov Model AD+'!J38 -> 0.0404044836 | K39: =tpOD2_DC3*'Markov Model AD+'!F38+tpheroin2_DC3*'Markov Model AD+'!G38+tpOD3_DC3*'Markov Model AD+'!H38+(1-tpDC3_heroin2-Mortality!C59)*'Markov Model AD+'!K38 -> 0.1376985501 | L39: =O39*'Markov Model AD+'!C38+death.tcA*'Markov Model AD+'!D38+O39*'Markov Model AD+'!E38+death.tcA*'Markov Model AD+'!F38+O39*'Markov Model AD+'!G38+death.tcA*'Markov Model AD+'!H38+'Markov Model AD+'!L38+Mortality!C59*I38+Mortality!C59*J38+Mortality!C59*K38 -> 0.511443322 | M39: 1 | N39: 0.488556678 | O39: 0.03993824152 | Q39: 65.36526489 | R39: 0.488556678 | S39: 0.1423676173
A40: 444 | B40: 37 | C40: =Mortality!H39*'Markov Model AD+'!C39+tpDC1_heroin*'Markov Model AD+'!I39 -> 0.03530779904 | D40: =tpheroin_OD1*'Markov Model AD+'!C39 -> 0.003341437382 | E40: =tpOD1_heroin1*'Markov Model AD+'!D39+Mortality!J39*'Markov Model AD+'!E39+tpDC2_heroin*'Markov Model AD+'!J39 -> 0.02090031651 | F40: =tpheroin1_OD2*'Markov Model AD+'!E39 -> 0.004814926193 | G40: =tpOD2_heroin2*'Markov Model AD+'!F39+Mortality!L39*'Markov Model AD+'!G39+tpOD3_heroin2*'Markov Model AD+'!H39+tpDC3_heroin2*'Markov Model AD+'!K39 -> 0.1233068035 | H40: =tpheroin2_OD3*'Markov Model AD+'!G39 -> 0.0424875941 | I40: =tpheroin_DC1*'Markov Model AD+'!C39+(1-tpDC1_heroin-Mortality!C60)*'Markov Model AD+'!I39 -> 0.07119321616 | J40: =tpOD1_DC2*'Markov Model AD+'!D39+tpheroin1_DC2*'Markov Model AD+'!E39+(1-tpDC2_heroin-Mortality!C60)*'Markov Model AD+'!J39 -> 0.03874179515 | K40: =tpOD2_DC3*'Markov Model AD+'!F39+tpheroin2_DC3*'Markov Model AD+'!G39+tpOD3_DC3*'Markov Model AD+'!H39+(1-tpDC3_heroin2-Mortality!C60)*'Markov Model AD+'!K39 -> 0.1372933636 | L40: =O40*'Markov Model AD+'!C39+death.tcA*'Markov Model AD+'!D39+O40*'Markov Model AD+'!E39+death.tcA*'Markov Model AD+'!F39+O40*'Markov Model AD+'!G39+death.tcA*'Markov Model AD+'!H39+'Markov Model AD+'!L39+Mortality!C60*I39+Mortality!C60*J39+Mortality!C60*K39 -> 0.5226127483 | M40: 1 | N40: 0.4773872517 | O40: 0.04019014531 | Q40: 62.7874226 | R40: 0.4773872517 | S40: 0.1350596396
A41: 456 | B41: 38 | C41: =Mortality!H40*'Markov Model AD+'!C40+tpDC1_heroin*'Markov Model AD+'!I40 -> 0.03356742231 | D41: =tpheroin_OD1*'Markov Model AD+'!C40 -> 0.003177701914 | E41: =tpOD1_heroin1*'Markov Model AD+'!D40+Mortality!J40*'Markov Model AD+'!E40+tpDC2_heroin*'Markov Model AD+'!J40 -> 0.01995291426 | F41: =tpheroin1_OD2*'Markov Model AD+'!E40 -> 0.004598069632 | G41: =tpOD2_heroin2*'Markov Model AD+'!F40+Mortality!L40*'Markov Model AD+'!G40+tpOD3_heroin2*'Markov Model AD+'!H40+tpDC3_heroin2*'Markov Model AD+'!K40 -> 0.1216140528 | H41: =tpheroin2_OD3*'Markov Model AD+'!G40 -> 0.0419243132 | I41: =tpheroin_DC1*'Markov Model AD+'!C40+(1-tpDC1_heroin-Mortality!C61)*'Markov Model AD+'!I40 -> 0.06763082163 | J41: =tpOD1_DC2*'Markov Model AD+'!D40+tpheroin1_DC2*'Markov Model AD+'!E40+(1-tpDC2_heroin-Mortality!C61)*'Markov Model AD+'!J40 -> 0.03711158183 | K41: =tpOD2_DC3*'Markov Model AD+'!F40+tpheroin2_DC3*'Markov Model AD+'!G40+tpOD3_DC3*'Markov Model AD+'!H40+(1-tpDC3_heroin2-Mortality!C61)*'Markov Model AD+'!K40 -> 0.1366692045 | L41: =O41*'Markov Model AD+'!C40+death.tcA*'Markov Model AD+'!D40+O41*'Markov Model AD+'!E40+death.tcA*'Markov Model AD+'!F40+O41*'Markov Model AD+'!G40+death.tcA*'Markov Model AD+'!H40+'Markov Model AD+'!L40+Mortality!C61*I40+Mortality!C61*J40+Mortality!C61*K40 -> 0.5337539179 | M41: 1 | N41: 0.4662460821 | O41: 0.04043673198 | Q41: 60.30746048 | R41: 0.4662460821 | S41: 0.1280629821
A42: 468 | B42: 39 | C42: =Mortality!H41*'Markov Model AD+'!C41+tpDC1_heroin*'Markov Model AD+'!I41 -> 0.03190100245 | D42: =tpheroin_OD1*'Markov Model AD+'!C41 -> 0.003021068008 | E42: =tpOD1_heroin1*'Markov Model AD+'!D41+Mortality!J41*'Markov Model AD+'!E41+tpDC2_heroin*'Markov Model AD+'!J41 -> 0.01904129882 | F42: =tpheroin1_OD2*'Markov Model AD+'!E41 -> 0.004389641137 | G42: =tpOD2_heroin2*'Markov Model AD+'!F41+Mortality!L41*'Markov Model AD+'!G41+tpOD3_heroin2*'Markov Model AD+'!H41+tpDC3_heroin2*'Markov Model AD+'!K41 -> 0.1198845186 | H42: =tpheroin2_OD3*'Markov Model AD+'!G41 -> 0.04134877794 | I42: =tpheroin_DC1*'Markov Model AD+'!C41+(1-tpDC1_heroin-Mortality!C62)*'Markov Model AD+'!I41 -> 0.0641933949 | J42: =tpOD1_DC2*'Markov Model AD+'!D41+tpheroin1_DC2*'Markov Model AD+'!E41+(1-tpDC2_heroin-Mortality!C62)*'Markov Model AD+'!J41 -> 0.03551434594 | K42: =tpOD2_DC3*'Markov Model AD+'!F41+tpheroin2_DC3*'Markov Model AD+'!G41+tpOD3_DC3*'Markov Model AD+'!H41+(1-tpDC3_heroin2-Mortality!C62)*'Markov Model AD+'!K41 -> 0.135834033 | L42: =O42*'Markov Model AD+'!C41+death.tcA*'Markov Model AD+'!D41+O42*'Markov Model AD+'!E41+death.tcA*'Markov Model AD+'!F41+O42*'Markov Model AD+'!G41+death.tcA*'Markov Model AD+'!H41+'Markov Model AD+'!L41+Mortality!C62*I41+Mortality!C62*J41+Mortality!C62*K41 -> 0.5448719193 | M42: 1 | N42: 0.4551280807 | O42: 0.04067825081 | Q42: 57.92089119 | R42: 0.4551280807 | S42: 0.1213643018
A43: 480 | B43: 40 | C43: =Mortality!H42*'Markov Model AD+'!C42+tpDC1_heroin*'Markov Model AD+'!I42 -> 0.03030416234 | D43: =tpheroin_OD1*'Markov Model AD+'!C42 -> 0.002871090221 | E43: =tpOD1_heroin1*'Markov Model AD+'!D42+Mortality!J42*'Markov Model AD+'!E42+tpDC2_heroin*'Markov Model AD+'!J42 -> 0.01816330008 | F43: =tpheroin1_OD2*'Markov Model AD+'!E42 -> 0.00418908574 | G43: =tpOD2_heroin2*'Markov Model AD+'!F42+Mortality!L42*'Markov Model AD+'!G42+tpOD3_heroin2*'Markov Model AD+'!H42+tpDC3_heroin2*'Markov Model AD+'!K42 -> 0.1181175675 | H43: =tpheroin2_OD3*'Markov Model AD+'!G42 -> 0.04076073633 | I43: =tpheroin_DC1*'Markov Model AD+'!C42+(1-tpDC1_heroin-Mortality!C63)*'Markov Model AD+'!I42 -> 0.06087781345 | J43: =tpOD1_DC2*'Markov Model AD+'!D42+tpheroin1_DC2*'Markov Model AD+'!E42+(1-tpDC2_heroin-Mortality!C63)*'Markov Model AD+'!J42 -> 0.0339508838 | K43: =tpOD2_DC3*'Markov Model AD+'!F42+tpheroin2_DC3*'Markov Model AD+'!G42+tpOD3_DC3*'Markov Model AD+'!H42+(1-tpDC3_heroin2-Mortality!C63)*'Markov Model AD+'!K42 -> 0.1347968985 | L43: =O43*'Markov Model AD+'!C42+death.tcA*'Markov Model AD+'!D42+O43*'Markov Model AD+'!E42+death.tcA*'Markov Model AD+'!F42+O43*'Markov Model AD+'!G42+death.tcA*'Markov Model AD+'!H42+'Markov Model AD+'!L42+Mortality!C63*I42+Mortality!C63*J42+Mortality!C63*K42 -> 0.5559684621 | M43: 1 | N43: 0.4440315379 | O43: 0.04091493328 | Q43: 55.62349987 | R43: 0.4440315379 | S43: 0.1149517313
A44: 492 | B44: 41 | C44: =Mortality!H43*'Markov Model AD+'!C43+tpDC1_heroin*'Markov Model AD+'!I43 -> 0.02877305972 | D44: =tpheroin_OD1*'Markov Model AD+'!C43 -> 0.002727374611 | E44: =tpOD1_heroin1*'Markov Model AD+'!D43+Mortality!J43*'Markov Model AD+'!E43+tpDC2_heroin*'Markov Model AD+'!J43 -> 0.0173170531 | F44: =tpheroin1_OD2*'Markov Model AD+'!E43 -> 0.003995926018 | G44: =tpOD2_heroin2*'Markov Model AD+'!F43+Mortality!L43*'Markov Model AD+'!G43+tpOD3_heroin2*'Markov Model AD+'!H43+tpDC3_heroin2*'Markov Model AD+'!K43 -> 0.1163127207 | H44: =tpheroin2_OD3*'Markov Model AD+'!G43 -> 0.04015997294 | I44: =tpheroin_DC1*'Markov Model AD+'!C43+(1-tpDC1_heroin-Mortality!C64)*'Markov Model AD+'!I43 -> 0.05768378097 | J44: =tpOD1_DC2*'Markov Model AD+'!D43+tpheroin1_DC2*'Markov Model AD+'!E43+(1-tpDC2_heroin-Mortality!C64)*'Markov Model AD+'!J43 -> 0.032423395 | K44: =tpOD2_DC3*'Markov Model AD+'!F43+tpheroin2_DC3*'Markov Model AD+'!G43+tpOD3_DC3*'Markov Model AD+'!H43+(1-tpDC3_heroin2-Mortality!C64)*'Markov Model AD+'!K43 -> 0.1335725438 | L44: =O44*'Markov Model AD+'!C43+death.tcA*'Markov Model AD+'!D43+O44*'Markov Model AD+'!E43+death.tcA*'Markov Model AD+'!F43+O44*'Markov Model AD+'!G43+death.tcA*'Markov Model AD+'!H43+'Markov Model AD+'!L43+Mortality!C64*I43+Mortality!C64*J43+Mortality!C64*K43 -> 0.5670341732 | M44: 1 | N44: 0.4329658268 | O44: 0.04114699479 | Q44: 53.41139179 | R44: 0.4329658268 | S44: 0.1088167288
A45: 504 | B45: 42 | C45: =Mortality!H44*'Markov Model AD+'!C44+tpDC1_heroin*'Markov Model AD+'!I44 -> 0.02730449056 | D45: =tpheroin_OD1*'Markov Model AD+'!C44 -> 0.002589575375 | E45: =tpOD1_heroin1*'Markov Model AD+'!D44+Mortality!J44*'Markov Model AD+'!E44+tpDC2_heroin*'Markov Model AD+'!J44 -> 0.01650104901 | F45: =tpheroin1_OD2*'Markov Model AD+'!E44 -> 0.003809751681 | G45: =tpOD2_heroin2*'Markov Model AD+'!F44+Mortality!L44*'Markov Model AD+'!G44+tpOD3_heroin2*'Markov Model AD+'!H44+tpDC3_heroin2*'Markov Model AD+'!K44 -> 0.1144700911 | H45: =tpheroin2_OD3*'Markov Model AD+'!G44 -> 0.03954632503 | I45: =tpheroin_DC1*'Markov Model AD+'!C44+(1-tpDC1_heroin-Mortality!C65)*'Markov Model AD+'!I44 -> 0.05461240474 | J45: =tpOD1_DC2*'Markov Model AD+'!D44+tpheroin1_DC2*'Markov Model AD+'!E44+(1-tpDC2_heroin-Mortality!C65)*'Markov Model AD+'!J44 -> 0.03093474937 | K45: =tpOD2_DC3*'Markov Model AD+'!F44+tpheroin2_DC3*'Markov Model AD+'!G44+tpOD3_DC3*'Markov Model AD+'!H44+(1-tpDC3_heroin2-Mortality!C65)*'Markov Model AD+'!K44 -> 0.1321792818 | L45: =O45*'Markov Model AD+'!C44+death.tcA*'Markov Model AD+'!D44+O45*'Markov Model AD+'!E44+death.tcA*'Markov Model AD+'!F44+O45*'Markov Model AD+'!G44+death.tcA*'Markov Model AD+'!H44+'Markov Model AD+'!L44+Mortality!C65*I44+Mortality!C65*J44+Mortality!C65*K44 -> 0.5780522814 | M45: 1 | N45: 0.4219477186 | O45: 0.04137463607 | Q45: 51.2809675 | R45: 0.4219477186 | S45: 0.1029527012
A46: 516 | B46: 43 | C46: =Mortality!H45*'Markov Model AD+'!C45+tpDC1_heroin*'Markov Model AD+'!I45 -> 0.02589587189 | D46: =tpheroin_OD1*'Markov Model AD+'!C45 -> 0.00245740415 | E46: =tpOD1_heroin1*'Markov Model AD+'!D45+Mortality!J45*'Markov Model AD+'!E45+tpDC2_heroin*'Markov Model AD+'!J45 -> 0.01571411472 | F46: =tpheroin1_OD2*'Markov Model AD+'!E45 -> 0.003630230782 | G46: =tpOD2_heroin2*'Markov Model AD+'!F45+Mortality!L45*'Markov Model AD+'!G45+tpOD3_heroin2*'Markov Model AD+'!H45+tpDC3_heroin2*'Markov Model AD+'!K45 -> 0.1125904831 | H46: =tpheroin2_OD3*'Markov Model AD+'!G45 -> 0.03891983097 | I46: =tpheroin_DC1*'Markov Model AD+'!C45+(1-tpDC1_heroin-Mortality!C66)*'Markov Model AD+'!I45 -> 0.05166428382 | J46: =tpOD1_DC2*'Markov Model AD+'!D45+tpheroin1_DC2*'Markov Model AD+'!E45+(1-tpDC2_heroin-Mortality!C66)*'Markov Model AD+'!J45 -> 0.02948744273 | K46: =tpOD2_DC3*'Markov Model AD+'!F45+tpheroin2_DC3*'Markov Model AD+'!G45+tpOD3_DC3*'Markov Model AD+'!H45+(1-tpDC3_heroin2-Mortality!C66)*'Markov Model AD+'!K45 -> 0.1306350496 | L46: =O46*'Markov Model AD+'!C45+death.tcA*'Markov Model AD+'!D45+O46*'Markov Model AD+'!E45+death.tcA*'Markov Model AD+'!F45+O46*'Markov Model AD+'!G45+death.tcA*'Markov Model AD+'!H45+'Markov Model AD+'!L45+Mortality!C66*I45+Mortality!C66*J45+Mortality!C66*K45 -> 0.5890052882 | M46: 1 | N46: 0.4109947118 | O46: 0.04159804459 | Q46: 49.2289987 | R46: 0.4109947118 | S46: 0.09735310108
A47: 528 | B47: 44 | C47: =Mortality!H46*'Markov Model AD+'!C46+tpDC1_heroin*'Markov Model AD+'!I46 -> 0.02454509305 | D47: =tpheroin_OD1*'Markov Model AD+'!C46 -> 0.00233062847 | E47: =tpOD1_heroin1*'Markov Model AD+'!D46+Mortality!J46*'Markov Model AD+'!E46+tpDC2_heroin*'Markov Model AD+'!J46 -> 0.01495533379 | F47: =tpheroin1_OD2*'Markov Model AD+'!E46 -> 0.003457105238 | G47: =tpOD2_heroin2*'Markov Model AD+'!F46+Mortality!L46*'Markov Model AD+'!G46+tpOD3_heroin2*'Markov Model AD+'!H46+tpDC3_heroin2*'Markov Model AD+'!K46 -> 0.1106753167 | H47: =tpheroin2_OD3*'Markov Model AD+'!G46 -> 0.03828076426 | I47: =tpheroin_DC1*'Markov Model AD+'!C46+(1-tpDC1_heroin-Mortality!C67)*'Markov Model AD+'!I46 -> 0.04883701164 | J47: =tpOD1_DC2*'Markov Model AD+'!D46+tpheroin1_DC2*'Markov Model AD+'!E46+(1-tpDC2_heroin-Mortality!C67)*'Markov Model AD+'!J46 -> 0.02808217447 | K47: =tpOD2_DC3*'Markov Model AD+'!F46+tpheroin2_DC3*'Markov Model AD+'!G46+tpOD3_DC3*'Markov Model AD+'!H46+(1-tpDC3_heroin2-Mortality!C67)*'Markov Model AD+'!K46 -> 0.1289510002 | L47: =O47*'Markov Model AD+'!C46+death.tcA*'Markov Model AD+'!D46+O47*'Markov Model AD+'!E46+death.tcA*'Markov Model AD+'!F46+O47*'Markov Model AD+'!G46+death.tcA*'Markov Model AD+'!H46+'Markov Model AD+'!L46+Mortality!C67*I46+Mortality!C67*J46+Mortality!C67*K46 -> 0.5998855722 | M47: 1 | N47: 0.4001144278 | O47: 0.04181739566 | Q47: 47.25260686 | R47: 0.4001144278 | S47: 0.09200890501
A48: 540 | B48: 45 | C48: =Mortality!H47*'Markov Model AD+'!C47+tpDC1_heroin*'Markov Model AD+'!I47 -> 0.02325021961 | D48: =tpheroin_OD1*'Markov Model AD+'!C47 -> 0.002209058375 | E48: =tpOD1_heroin1*'Markov Model AD+'!D47+Mortality!J47*'Markov Model AD+'!E47+tpDC2_heroin*'Markov Model AD+'!J47 -> 0.01422389137 | F48: =tpheroin1_OD2*'Markov Model AD+'!E47 -> 0.003290173435 | G48: =tpOD2_heroin2*'Markov Model AD+'!F47+Mortality!L47*'Markov Model AD+'!G47+tpOD3_heroin2*'Markov Model AD+'!H47+tpDC3_heroin2*'Markov Model AD+'!K47 -> 0.1087261621 | H48: =tpheroin2_OD3*'Markov Model AD+'!G47 -> 0.03762960768 | I48: =tpheroin_DC1*'Markov Model AD+'!C47+(1-tpDC1_heroin-Mortality!C68)*'Markov Model AD+'!I47 -> 0.04612606085 | J48: =tpOD1_DC2*'Markov Model AD+'!D47+tpheroin1_DC2*'Markov Model AD+'!E47+(1-tpDC2_heroin-Mortality!C68)*'Markov Model AD+'!J47 -> 0.02671831457 | K48: =tpOD2_DC3*'Markov Model AD+'!F47+tpheroin2_DC3*'Markov Model AD+'!G47+tpOD3_DC3*'Markov Model AD+'!H47+(1-tpDC3_heroin2-Mortality!C68)*'Markov Model AD+'!K47 -> 0.1271325905 | L48: =O48*'Markov Model AD+'!C47+death.tcA*'Markov Model AD+'!D47+O48*'Markov Model AD+'!E47+death.tcA*'Markov Model AD+'!F47+O48*'Markov Model AD+'!G47+death.tcA*'Markov Model AD+'!H47+'Markov Model AD+'!L47+Mortality!C68*I47+Mortality!C68*J47+Mortality!C68*K47 -> 0.6106939215 | M48: 1 | N48: 0.3893060785 | O48: 0.04203285351 | Q48: 45.34919452 | R48: 0.3893060785 | S48: 0.08690933707
A49: 552 | B49: 46 | C49: =Mortality!H48*'Markov Model AD+'!C48+tpDC1_heroin*'Markov Model AD+'!I48 -> 0.02200931535 | D49: =tpheroin_OD1*'Markov Model AD+'!C48 -> 0.002092519765 | E49: =tpOD1_heroin1*'Markov Model AD+'!D48+Mortality!J48*'Markov Model AD+'!E48+tpDC2_heroin*'Markov Model AD+'!J48 -> 0.01351898911 | F49: =tpheroin1_OD2*'Markov Model AD+'!E48 -> 0.003129256101 | G49: =tpOD2_heroin2*'Markov Model AD+'!F48+Mortality!L48*'Markov Model AD+'!G48+tpOD3_heroin2*'Markov Model AD+'!H48+tpDC3_heroin2*'Markov Model AD+'!K48 -> 0.1067445166 | H49: =tpheroin2_OD3*'Markov Model AD+'!G48 -> 0.03696689511 | I49: =tpheroin_DC1*'Markov Model AD+'!C48+(1-tpDC1_heroin-Mortality!C69)*'Markov Model AD+'!I48 -> 0.04352076056 | J49: =tpOD1_DC2*'Markov Model AD+'!D48+tpheroin1_DC2*'Markov Model AD+'!E48+(1-tpDC2_heroin-Mortality!C69)*'Markov Model AD+'!J48 -> 0.02539154598 | K49: =tpOD2_DC3*'Markov Model AD+'!F48+tpheroin2_DC3*'Markov Model AD+'!G48+tpOD3_DC3*'Markov Model AD+'!H48+(1-tpDC3_heroin2-Mortality!C69)*'Markov Model AD+'!K48 -> 0.1251675278 | L49: =O49*'Markov Model AD+'!C48+death.tcA*'Markov Model AD+'!D48+O49*'Markov Model AD+'!E48+death.tcA*'Markov Model AD+'!F48+O49*'Markov Model AD+'!G48+death.tcA*'Markov Model AD+'!H48+'Markov Model AD+'!L48+Mortality!C69*I48+Mortality!C69*J48+Mortality!C69*K48 -> 0.6214586737 | M49: 1 | N49: 0.3785413263 | O49: 0.0422445722 | Q49: 43.51629669 | R49: 0.3785413263 | S49: 0.08203786631
A50: 564 | B50: 47 | C50: =Mortality!H49*'Markov Model AD+'!C49+tpDC1_heroin*'Markov Model AD+'!I49 -> 0.0208200165 | D50: =tpheroin_OD1*'Markov Model AD+'!C49 -> 0.001980838381 | E50: =tpOD1_heroin1*'Markov Model AD+'!D49+Mortality!J49*'Markov Model AD+'!E49+tpDC2_heroin*'Markov Model AD+'!J49 -> 0.01283959811 | F50: =tpheroin1_OD2*'Markov Model AD+'!E49 -> 0.002974177605 | G50: =tpOD2_heroin2*'Markov Model AD+'!F49+Mortality!L49*'Markov Model AD+'!G49+tpOD3_heroin2*'Markov Model AD+'!H49+tpDC3_heroin2*'Markov Model AD+'!K49 -> 0.1047306612 | H50: =tpheroin2_OD3*'Markov Model AD+'!G49 -> 0.03629313564 | I50: =tpheroin_DC1*'Markov Model AD+'!C49+(1-tpDC1_heroin-Mortality!C70)*'Markov Model AD+'!I49 -> 0.04101789711 | J50: =tpOD1_DC2*'Markov Model AD+'!D49+tpheroin1_DC2*'Markov Model AD+'!E49+(1-tpDC2_heroin-Mortality!C70)*'Markov Model AD+'!J49 -> 0.02410170215 | K50: =tpOD2_DC3*'Markov Model AD+'!F49+tpheroin2_DC3*'Markov Model AD+'!G49+tpOD3_DC3*'Markov Model AD+'!H49+(1-tpDC3_heroin2-Mortality!C70)*'Markov Model AD+'!K49 -> 0.1230618375 | L50: =O50*'Markov Model AD+'!C49+death.tcA*'Markov Model AD+'!D49+O50*'Markov Model AD+'!E49+death.tcA*'Markov Model AD+'!F49+O50*'Markov Model AD+'!G49+death.tcA*'Markov Model AD+'!H49+'Markov Model AD+'!L49+Mortality!C70*I49+Mortality!C70*J49+Mortality!C70*K49 -> 0.6321801359 | M50: 1 | N50: 0.3678198641 | O50: 0.04245269649 | Q50: 41.75151271 | R50: 0.3678198641 | S50: 0.0773852417
A51: 576 | B51: 48 | C51: =Mortality!H50*'Markov Model AD+'!C50+tpDC1_heroin*'Markov Model AD+'!I50 -> 0.01968013983 | D51: =tpheroin_OD1*'Markov Model AD+'!C50 -> 0.001873801485 | E51: =tpOD1_heroin1*'Markov Model AD+'!D50+Mortality!J50*'Markov Model AD+'!E50+tpDC2_heroin*'Markov Model AD+'!J50 -> 0.01218482542 | F51: =tpheroin1_OD2*'Markov Model AD+'!E50 -> 0.002824711583 | G51: =tpOD2_heroin2*'Markov Model AD+'!F50+Mortality!L50*'Markov Model AD+'!G50+tpOD3_heroin2*'Markov Model AD+'!H50+tpDC3_heroin2*'Markov Model AD+'!K50 -> 0.1026854621 | H51: =tpheroin2_OD3*'Markov Model AD+'!G50 -> 0.0356084248 | I51: =tpheroin_DC1*'Markov Model AD+'!C50+(1-tpDC1_heroin-Mortality!C71)*'Markov Model AD+'!I50 -> 0.03861149386 | J51: =tpOD1_DC2*'Markov Model AD+'!D50+tpheroin1_DC2*'Markov Model AD+'!E50+(1-tpDC2_heroin-Mortality!C71)*'Markov Model AD+'!J50 -> 0.02284689387 | K51: =tpOD2_DC3*'Markov Model AD+'!F50+tpheroin2_DC3*'Markov Model AD+'!G50+tpOD3_DC3*'Markov Model AD+'!H50+(1-tpDC3_heroin2-Mortality!C71)*'Markov Model AD+'!K50 -> 0.1208127118 | L51: =O51*'Markov Model AD+'!C50+death.tcA*'Markov Model AD+'!D50+O51*'Markov Model AD+'!E50+death.tcA*'Markov Model AD+'!F50+O51*'Markov Model AD+'!G50+death.tcA*'Markov Model AD+'!H50+'Markov Model AD+'!L50+Mortality!C71*I50+Mortality!C71*J50+Mortality!C71*K50 -> 0.6428715353 | M51: 1 | N51: 0.3571284647 | O51: 0.04265736256 | Q51: 40.05225875 | R51: 0.3571284647 | S51: 0.07293982822
A52: 588 | B52: 49 | C52: =Mortality!H51*'Markov Model AD+'!C51+tpDC1_heroin*'Markov Model AD+'!I51 -> 0.01858745824 | D52: =tpheroin_OD1*'Markov Model AD+'!C51 -> 0.001771212585 | E52: =tpOD1_heroin1*'Markov Model AD+'!D51+Mortality!J51*'Markov Model AD+'!E51+tpDC2_heroin*'Markov Model AD+'!J51 -> 0.01155371647 | F52: =tpheroin1_OD2*'Markov Model AD+'!E51 -> 0.002680661592 | G52: =tpOD2_heroin2*'Markov Model AD+'!F51+Mortality!L51*'Markov Model AD+'!G51+tpOD3_heroin2*'Markov Model AD+'!H51+tpDC3_heroin2*'Markov Model AD+'!K51 -> 0.1006090721 | H52: =tpheroin2_OD3*'Markov Model AD+'!G51 -> 0.0349130571 | I52: =tpheroin_DC1*'Markov Model AD+'!C51+(1-tpDC1_heroin-Mortality!C72)*'Markov Model AD+'!I51 -> 0.03629696573 | J52: =tpOD1_DC2*'Markov Model AD+'!D51+tpheroin1_DC2*'Markov Model AD+'!E51+(1-tpDC2_heroin-Mortality!C72)*'Markov Model AD+'!J51 -> 0.02162592566 | K52: =tpOD2_DC3*'Markov Model AD+'!F51+tpheroin2_DC3*'Markov Model AD+'!G51+tpOD3_DC3*'Markov Model AD+'!H51+(1-tpDC3_heroin2-Mortality!C72)*'Markov Model AD+'!K51 -> 0.1184200262 | L52: =O52*'Markov Model AD+'!C51+death.tcA*'Markov Model AD+'!D51+O52*'Markov Model AD+'!E51+death.tcA*'Markov Model AD+'!F51+O52*'Markov Model AD+'!G51+death.tcA*'Markov Model AD+'!H51+'Markov Model AD+'!L51+Mortality!C72*I51+Mortality!C72*J51+Mortality!C72*K51 -> 0.6535419044 | M52: 1 | N52: 0.3464580956 | O52: 0.0428586987 | Q52: 38.41617597 | R52: 0.3464580956 | S52: 0.06869152017
A53: 600 | B53: 50 | C53: =Mortality!H52*'Markov Model AD+'!C52+tpDC1_heroin*'Markov Model AD+'!I52 -> 0.01753981015 | D53: =tpheroin_OD1*'Markov Model AD+'!C52 -> 0.001672871242 | E53: =tpOD1_heroin1*'Markov Model AD+'!D52+Mortality!J52*'Markov Model AD+'!E52+tpDC2_heroin*'Markov Model AD+'!J52 -> 0.01094533993 | F53: =tpheroin1_OD2*'Markov Model AD+'!E52 -> 0.002541817623 | G53: =tpOD2_heroin2*'Markov Model AD+'!F52+Mortality!L52*'Markov Model AD+'!G52+tpOD3_heroin2*'Markov Model AD+'!H52+tpDC3_heroin2*'Markov Model AD+'!K52 -> 0.09850164305 | H53: =tpheroin2_OD3*'Markov Model AD+'!G52 -> 0.0342070845 | I53: =tpheroin_DC1*'Markov Model AD+'!C52+(1-tpDC1_heroin-Mortality!C73)*'Markov Model AD+'!I52 -> 0.03407581861 | J53: =tpOD1_DC2*'Markov Model AD+'!D52+tpheroin1_DC2*'Markov Model AD+'!E52+(1-tpDC2_heroin-Mortality!C73)*'Markov Model AD+'!J52 -> 0.02044112213 | K53: =tpOD2_DC3*'Markov Model AD+'!F52+tpheroin2_DC3*'Markov Model AD+'!G52+tpOD3_DC3*'Markov Model AD+'!H52+(1-tpDC3_heroin2-Mortality!C73)*'Markov Model AD+'!K52 -> 0.1159022856 | L53: =O53*'Markov Model AD+'!C52+death.tcA*'Markov Model AD+'!D52+O53*'Markov Model AD+'!E52+death.tcA*'Markov Model AD+'!F52+O53*'Markov Model AD+'!G52+death.tcA*'Markov Model AD+'!H52+'Markov Model AD+'!L52+Mortality!C73*I52+Mortality!C73*J52+Mortality!C73*K52 -> 0.6641722072 | M53: 1 | N53: 0.3358277928 | O53: 0.0430568259 | Q53: 36.84086407 | R53: 0.3358277928 | S53: 0.06463634131
A54: 612 | B54: 51 | C54: =Mortality!H53*'Markov Model AD+'!C53+tpDC1_heroin*'Markov Model AD+'!I53 -> 0.01653551655 | D54: =tpheroin_OD1*'Markov Model AD+'!C53 -> 0.001578582914 | E54: =tpOD1_heroin1*'Markov Model AD+'!D53+Mortality!J53*'Markov Model AD+'!E53+tpDC2_heroin*'Markov Model AD+'!J53 -> 0.01035902462 | F54: =tpheroin1_OD2*'Markov Model AD+'!E53 -> 0.002407974784 | G54: =tpOD2_heroin2*'Markov Model AD+'!F53+Mortality!L53*'Markov Model AD+'!G53+tpOD3_heroin2*'Markov Model AD+'!H53+tpDC3_heroin2*'Markov Model AD+'!K53 -> 0.09636439855 | H54: =tpheroin2_OD3*'Markov Model AD+'!G53 -> 0.03349055864 | I54: =tpheroin_DC1*'Markov Model AD+'!C53+(1-tpDC1_heroin-Mortality!C74)*'Markov Model AD+'!I53 -> 0.0319408762 | J54: =tpOD1_DC2*'Markov Model AD+'!D53+tpheroin1_DC2*'Markov Model AD+'!E53+(1-tpDC2_heroin-Mortality!C74)*'Markov Model AD+'!J53 -> 0.0192895706 | K54: =tpOD2_DC3*'Markov Model AD+'!F53+tpheroin2_DC3*'Markov Model AD+'!G53+tpOD3_DC3*'Markov Model AD+'!H53+(1-tpDC3_heroin2-Mortality!C74)*'Markov Model AD+'!K53 -> 0.113249728 | L54: =O54*'Markov Model AD+'!C53+death.tcA*'Markov Model AD+'!D53+O54*'Markov Model AD+'!E53+death.tcA*'Markov Model AD+'!F53+O54*'Markov Model AD+'!G53+death.tcA*'Markov Model AD+'!H53+'Markov Model AD+'!L53+Mortality!C74*I53+Mortality!C74*J53+Mortality!C74*K53 -> 0.6747837691 | M54: 1 | N54: 0.3252162309 | O54: 0.04325185844 | Q54: 35.32402378 | R54: 0.3252162309 | S54: 0.06076231428
A55: 624 | B55: 52 | C55: =Mortality!H54*'Markov Model AD+'!C54+tpDC1_heroin*'Markov Model AD+'!I54 -> 0.015572683 | D55: =tpheroin_OD1*'Markov Model AD+'!C54 -> 0.001488196489 | E55: =tpOD1_heroin1*'Markov Model AD+'!D54+Mortality!J54*'Markov Model AD+'!E54+tpDC2_heroin*'Markov Model AD+'!J54 -> 0.009793915637 | F55: =tpheroin1_OD2*'Markov Model AD+'!E54 -> 0.002278985417 | G55: =tpOD2_heroin2*'Markov Model AD+'!F54+Mortality!L54*'Markov Model AD+'!G54+tpOD3_heroin2*'Markov Model AD+'!H54+tpDC3_heroin2*'Markov Model AD+'!K54 -> 0.09419718502 | H55: =tpheroin2_OD3*'Markov Model AD+'!G54 -> 0.03276389551 | I55: =tpheroin_DC1*'Markov Model AD+'!C54+(1-tpDC1_heroin-Mortality!C75)*'Markov Model AD+'!I54 -> 0.02988672706 | J55: =tpOD1_DC2*'Markov Model AD+'!D54+tpheroin1_DC2*'Markov Model AD+'!E54+(1-tpDC2_heroin-Mortality!C75)*'Markov Model AD+'!J54 -> 0.0181692903 | K55: =tpOD2_DC3*'Markov Model AD+'!F54+tpheroin2_DC3*'Markov Model AD+'!G54+tpOD3_DC3*'Markov Model AD+'!H54+(1-tpDC3_heroin2-Mortality!C75)*'Markov Model AD+'!K54 -> 0.1104563952 | L55: =O55*'Markov Model AD+'!C54+death.tcA*'Markov Model AD+'!D54+O55*'Markov Model AD+'!E54+death.tcA*'Markov Model AD+'!F54+O55*'Markov Model AD+'!G54+death.tcA*'Markov Model AD+'!H54+'Markov Model AD+'!L54+Mortality!C75*I54+Mortality!C75*J54+Mortality!C75*K54 -> 0.6853927264 | M55: 1 | N55: 0.3146072736 | O55: 0.04344390435 | Q55: 33.86365937 | R55: 0.3146072736 | S55: 0.0570592318
A56: 636 | B56: 53 | C56: =Mortality!H55*'Markov Model AD+'!C55+tpDC1_heroin*'Markov Model AD+'!I55 -> 0.01464936754 | D56: =tpheroin_OD1*'Markov Model AD+'!C55 -> 0.00140154147 | E56: =tpOD1_heroin1*'Markov Model AD+'!D55+Mortality!J55*'Markov Model AD+'!E55+tpDC2_heroin*'Markov Model AD+'!J55 -> 0.009249139733 | F56: =tpheroin1_OD2*'Markov Model AD+'!E55 -> 0.00215466144 | G56: =tpOD2_heroin2*'Markov Model AD+'!F55+Mortality!L55*'Markov Model AD+'!G55+tpOD3_heroin2*'Markov Model AD+'!H55+tpDC3_heroin2*'Markov Model AD+'!K55 -> 0.09199973232 | H56: =tpheroin2_OD3*'Markov Model AD+'!G55 -> 0.03202704291 | I56: =tpheroin_DC1*'Markov Model AD+'!C55+(1-tpDC1_heroin-Mortality!C76)*'Markov Model AD+'!I55 -> 0.027903658 | J56: =tpOD1_DC2*'Markov Model AD+'!D55+tpheroin1_DC2*'Markov Model AD+'!E55+(1-tpDC2_heroin-Mortality!C76)*'Markov Model AD+'!J55 -> 0.01707557555 | K56: =tpOD2_DC3*'Markov Model AD+'!F55+tpheroin2_DC3*'Markov Model AD+'!G55+tpOD3_DC3*'Markov Model AD+'!H55+(1-tpDC3_heroin2-Mortality!C76)*'Markov Model AD+'!K55 -> 0.1074985465 | L56: =O56*'Markov Model AD+'!C55+death.tcA*'Markov Model AD+'!D55+O56*'Markov Model AD+'!E55+death.tcA*'Markov Model AD+'!F55+O56*'Markov Model AD+'!G55+death.tcA*'Markov Model AD+'!H55+'Markov Model AD+'!L55+Mortality!C76*I55+Mortality!C76*J55+Mortality!C76*K55 -> 0.6960407345 | M56: 1 | N56: 0.3039592655 | O56: 0.04363306589 | Q56: 32.45760421 | R56: 0.3039592655 | S56: 0.05351285499
A57: 648 | B57: 54 | C57: =Mortality!H56*'Markov Model AD+'!C56+tpDC1_heroin*'Markov Model AD+'!I56 -> 0.01376329139 | D57: =tpheroin_OD1*'Markov Model AD+'!C56 -> 0.001318443079 | E57: =tpOD1_heroin1*'Markov Model AD+'!D56+Mortality!J56*'Markov Model AD+'!E56+tpDC2_heroin*'Markov Model AD+'!J56 -> 0.008723604216 | F57: =tpheroin1_OD2*'Markov Model AD+'!E56 -> 0.002034810741 | G57: =tpOD2_heroin2*'Markov Model AD+'!F56+Mortality!L56*'Markov Model AD+'!G56+tpOD3_heroin2*'Markov Model AD+'!H56+tpDC3_heroin2*'Markov Model AD+'!K56 -> 0.08976999923 | H57: =tpheroin2_OD3*'Markov Model AD+'!G56 -> 0.03127990899 | I57: =tpheroin_DC1*'Markov Model AD+'!C56+(1-tpDC1_heroin-Mortality!C77)*'Markov Model AD+'!I56 -> 0.02599534983 | J57: =tpOD1_DC2*'Markov Model AD+'!D56+tpheroin1_DC2*'Markov Model AD+'!E56+(1-tpDC2_heroin-Mortality!C77)*'Markov Model AD+'!J56 -> 0.01601175628 | K57: =tpOD2_DC3*'Markov Model AD+'!F56+tpheroin2_DC3*'Markov Model AD+'!G56+tpOD3_DC3*'Markov Model AD+'!H56+(1-tpDC3_heroin2-Mortality!C77)*'Markov Model AD+'!K56 -> 0.1043998671 | L57: =O57*'Markov Model AD+'!C56+death.tcA*'Markov Model AD+'!D56+O57*'Markov Model AD+'!E56+death.tcA*'Markov Model AD+'!F56+O57*'Markov Model AD+'!G56+death.tcA*'Markov Model AD+'!H56+'Markov Model AD+'!L56+Mortality!C77*I56+Mortality!C77*J56+Mortality!C77*K56 -> 0.7067029691 | M57: 1 | N57: 0.2932970309 | O57: 0.04381943994 | Q57: 31.10375944 | R57: 0.2932970309 | S57: 0.0501218876
A58: 660 | B58: 55 | C58: =Mortality!H57*'Markov Model AD+'!C57+tpDC1_heroin*'Markov Model AD+'!I57 -> 0.01291284443 | D58: =tpheroin_OD1*'Markov Model AD+'!C57 -> 0.001238696225 | E58: =tpOD1_heroin1*'Markov Model AD+'!D57+Mortality!J57*'Markov Model AD+'!E57+tpDC2_heroin*'Markov Model AD+'!J57 -> 0.008216627895 | F58: =tpheroin1_OD2*'Markov Model AD+'!E57 -> 0.001919192928 | G58: =tpOD2_heroin2*'Markov Model AD+'!F57+Mortality!L57*'Markov Model AD+'!G57+tpOD3_heroin2*'Markov Model AD+'!H57+tpDC3_heroin2*'Markov Model AD+'!K57 -> 0.08750824092 | H58: =tpheroin2_OD3*'Markov Model AD+'!G57 -> 0.03052179974 | I58: =tpheroin_DC1*'Markov Model AD+'!C57+(1-tpDC1_heroin-Mortality!C78)*'Markov Model AD+'!I57 -> 0.02412475832 | J58: =tpOD1_DC2*'Markov Model AD+'!D57+tpheroin1_DC2*'Markov Model AD+'!E57+(1-tpDC2_heroin-Mortality!C78)*'Markov Model AD+'!J57 -> 0.01495608344 | K58: =tpOD2_DC3*'Markov Model AD+'!F57+tpheroin2_DC3*'Markov Model AD+'!G57+tpOD3_DC3*'Markov Model AD+'!H57+(1-tpDC3_heroin2-Mortality!C78)*'Markov Model AD+'!K57 -> 0.1010226178 | L58: =O58*'Markov Model AD+'!C57+death.tcA*'Markov Model AD+'!D57+O58*'Markov Model AD+'!E57+death.tcA*'Markov Model AD+'!F57+O58*'Markov Model AD+'!G57+death.tcA*'Markov Model AD+'!H57+'Markov Model AD+'!L57+Mortality!C78*I57+Mortality!C78*J57+Mortality!C78*K57 -> 0.7175791383 | M58: 1 | N58: 0.2824208617 | O58: 0.0440031184 | Q58: 29.79982902 | R58: 0.2824208617 | S58: 0.04684602333
A59: 672 | B59: 56 | C59: =Mortality!H58*'Markov Model AD+'!C58+tpDC1_heroin*'Markov Model AD+'!I58 -> 0.01209410729 | D59: =tpheroin_OD1*'Markov Model AD+'!C58 -> 0.001162155998 | E59: =tpOD1_heroin1*'Markov Model AD+'!D58+Mortality!J58*'Markov Model AD+'!E58+tpDC2_heroin*'Markov Model AD+'!J58 -> 0.007726025949 | F59: =tpheroin1_OD2*'Markov Model AD+'!E58 -> 0.001807658137 | G59: =tpOD2_heroin2*'Markov Model AD+'!F58+Mortality!L58*'Markov Model AD+'!G58+tpOD3_heroin2*'Markov Model AD+'!H58+tpDC3_heroin2*'Markov Model AD+'!K58 -> 0.08520410008 | H59: =tpheroin2_OD3*'Markov Model AD+'!G58 -> 0.02975280191 | I59: =tpheroin_DC1*'Markov Model AD+'!C58+(1-tpDC1_heroin-Mortality!C79)*'Markov Model AD+'!I58 -> 0.02231978522 | J59: =tpOD1_DC2*'Markov Model AD+'!D58+tpheroin1_DC2*'Markov Model AD+'!E58+(1-tpDC2_heroin-Mortality!C79)*'Markov Model AD+'!J58 -> 0.0139265746 | K59: =tpOD2_DC3*'Markov Model AD+'!F58+tpheroin2_DC3*'Markov Model AD+'!G58+tpOD3_DC3*'Markov Model AD+'!H58+(1-tpDC3_heroin2-Mortality!C79)*'Markov Model AD+'!K58 -> 0.0974817562 | L59: =O59*'Markov Model AD+'!C58+death.tcA*'Markov Model AD+'!D58+O59*'Markov Model AD+'!E58+death.tcA*'Markov Model AD+'!F58+O59*'Markov Model AD+'!G58+death.tcA*'Markov Model AD+'!H58+'Markov Model AD+'!L58+Mortality!C79*I58+Mortality!C79*J58+Mortality!C79*K58 -> 0.7285250346 | M59: 1 | N59: 0.2714749654 | O59: 0.04418418852 | Q59: 28.54401077 | R59: 0.2714749654 | S59: 0.04370680327
A60: 684 | B60: 57 | C60: =Mortality!H59*'Markov Model AD+'!C59+tpDC1_heroin*'Markov Model AD+'!I59 -> 0.01130584851 | D60: =tpheroin_OD1*'Markov Model AD+'!C59 -> 0.001088469656 | E60: =tpOD1_heroin1*'Markov Model AD+'!D59+Mortality!J59*'Markov Model AD+'!E59+tpDC2_heroin*'Markov Model AD+'!J59 -> 0.007251437025 | F60: =tpheroin1_OD2*'Markov Model AD+'!E59 -> 0.001699725709 | G60: =tpOD2_heroin2*'Markov Model AD+'!F59+Mortality!L59*'Markov Model AD+'!G59+tpOD3_heroin2*'Markov Model AD+'!H59+tpDC3_heroin2*'Markov Model AD+'!K59 -> 0.08285980408 | H60: =tpheroin2_OD3*'Markov Model AD+'!G59 -> 0.02896939403 | I60: =tpheroin_DC1*'Markov Model AD+'!C59+(1-tpDC1_heroin-Mortality!C80)*'Markov Model AD+'!I59 -> 0.0205675707 | J60: =tpOD1_DC2*'Markov Model AD+'!D59+tpheroin1_DC2*'Markov Model AD+'!E59+(1-tpDC2_heroin-Mortality!C80)*'Markov Model AD+'!J59 -> 0.01291611243 | K60: =tpOD2_DC3*'Markov Model AD+'!F59+tpheroin2_DC3*'Markov Model AD+'!G59+tpOD3_DC3*'Markov Model AD+'!H59+(1-tpDC3_heroin2-Mortality!C80)*'Markov Model AD+'!K59 -> 0.09372868255 | L60: =O60*'Markov Model AD+'!C59+death.tcA*'Markov Model AD+'!D59+O60*'Markov Model AD+'!E59+death.tcA*'Markov Model AD+'!F59+O60*'Markov Model AD+'!G59+death.tcA*'Markov Model AD+'!H59+'Markov Model AD+'!L59+Mortality!C80*I59+Mortality!C80*J59+Mortality!C80*K59 -> 0.7396129553 | M60: 1 | N60: 0.2603870447 | O60: 0.04436273322 | Q60: 27.33293724 | R60: 0.2603870447 | S60: 0.04068771217
A61: 696 | B61: 58 | C61: =Mortality!H60*'Markov Model AD+'!C60+tpDC1_heroin*'Markov Model AD+'!I60 -> 0.0105461519 | D61: =tpheroin_OD1*'Markov Model AD+'!C60 -> 0.001017526366 | E61: =tpOD1_heroin1*'Markov Model AD+'!D60+Mortality!J60*'Markov Model AD+'!E60+tpDC2_heroin*'Markov Model AD+'!J60 -> 0.00679178507 | F61: =tpheroin1_OD2*'Markov Model AD+'!E60 -> 0.001595316146 | G61: =tpOD2_heroin2*'Markov Model AD+'!F60+Mortality!L60*'Markov Model AD+'!G60+tpOD3_heroin2*'Markov Model AD+'!H60+tpDC3_heroin2*'Markov Model AD+'!K60 -> 0.08046954828 | H61: =tpheroin2_OD3*'Markov Model AD+'!G60 -> 0.02817233339 | I61: =tpheroin_DC1*'Markov Model AD+'!C60+(1-tpDC1_heroin-Mortality!C81)*'Markov Model AD+'!I60 -> 0.01888562298 | J61: =tpOD1_DC2*'Markov Model AD+'!D60+tpheroin1_DC2*'Markov Model AD+'!E60+(1-tpDC2_heroin-Mortality!C81)*'Markov Model AD+'!J60 -> 0.01193645318 | K61: =tpOD2_DC3*'Markov Model AD+'!F60+tpheroin2_DC3*'Markov Model AD+'!G60+tpOD3_DC3*'Markov Model AD+'!H60+(1-tpDC3_heroin2-Mortality!C81)*'Markov Model AD+'!K60 -> 0.08984561568 | L61: =O61*'Markov Model AD+'!C60+death.tcA*'Markov Model AD+'!D60+O61*'Markov Model AD+'!E60+death.tcA*'Markov Model AD+'!F60+O61*'Markov Model AD+'!G60+death.tcA*'Markov Model AD+'!H60+'Markov Model AD+'!L60+Mortality!C81*I60+Mortality!C81*J60+Mortality!C81*K60 -> 0.750739647 | M61: 1 | N61: 0.249260353 | O61: 0.04453883136 | Q61: 26.16537502 | R61: 0.249260353 | S61: 0.03780143745
A62: 708 | B62: 59 | C62: =Mortality!H61*'Markov Model AD+'!C61+tpDC1_heroin*'Markov Model AD+'!I61 -> 0.009814677296 | D62: =tpheroin_OD1*'Markov Model AD+'!C61 -> 0.0009491536712 | E62: =tpOD1_heroin1*'Markov Model AD+'!D61+Mortality!J61*'Markov Model AD+'!E61+tpDC2_heroin*'Markov Model AD+'!J61 -> 0.00634705316 | F62: =tpheroin1_OD2*'Markov Model AD+'!E61 -> 0.001494192715 | G62: =tpOD2_heroin2*'Markov Model AD+'!F61+Mortality!L61*'Markov Model AD+'!G61+tpOD3_heroin2*'Markov Model AD+'!H61+tpDC3_heroin2*'Markov Model AD+'!K61 -> 0.07803647897 | H62: =tpheroin2_OD3*'Markov Model AD+'!G61 -> 0.02735964642 | I62: =tpheroin_DC1*'Markov Model AD+'!C61+(1-tpDC1_heroin-Mortality!C82)*'Markov Model AD+'!I61 -> 0.01726099148 | J62: =tpOD1_DC2*'Markov Model AD+'!D61+tpheroin1_DC2*'Markov Model AD+'!E61+(1-tpDC2_heroin-Mortality!C82)*'Markov Model AD+'!J61 -> 0.01098028134 | K62: =tpOD2_DC3*'Markov Model AD+'!F61+tpheroin2_DC3*'Markov Model AD+'!G61+tpOD3_DC3*'Markov Model AD+'!H61+(1-tpDC3_heroin2-Mortality!C82)*'Markov Model AD+'!K61 -> 0.08578012641 | L62: =O62*'Markov Model AD+'!C61+death.tcA*'Markov Model AD+'!D61+O62*'Markov Model AD+'!E61+death.tcA*'Markov Model AD+'!F61+O62*'Markov Model AD+'!G61+death.tcA*'Markov Model AD+'!H61+'Markov Model AD+'!L61+Mortality!C82*I61+Mortality!C82*J61+Mortality!C82*K61 -> 0.7619773985 | M62: 1 | N62: 0.2380226015 | O62: 0.04471255804 | Q62: 25.03901537 | R62: 0.2380226015 | S62: 0.03503192489
A63: 720 | B63: 60 | C63: =Mortality!H62*'Markov Model AD+'!C62+tpDC1_heroin*'Markov Model AD+'!I62 -> 0.009110223279 | D63: =tpheroin_OD1*'Markov Model AD+'!C62 -> 0.0008833209567 | E63: =tpOD1_heroin1*'Markov Model AD+'!D62+Mortality!J62*'Markov Model AD+'!E62+tpDC2_heroin*'Markov Model AD+'!J62 -> 0.005916549483 | F63: =tpheroin1_OD2*'Markov Model AD+'!E62 -> 0.001396351695 | G63: =tpOD2_heroin2*'Markov Model AD+'!F62+Mortality!L62*'Markov Model AD+'!G62+tpOD3_heroin2*'Markov Model AD+'!H62+tpDC3_heroin2*'Markov Model AD+'!K62 -> 0.07555666448 | H63: =tpheroin2_OD3*'Markov Model AD+'!G62 -> 0.02653240285 | I63: =tpheroin_DC1*'Markov Model AD+'!C62+(1-tpDC1_heroin-Mortality!C83)*'Markov Model AD+'!I62 -> 0.01570744267 | J63: =tpOD1_DC2*'Markov Model AD+'!D62+tpheroin1_DC2*'Markov Model AD+'!E62+(1-tpDC2_heroin-Mortality!C83)*'Markov Model AD+'!J62 -> 0.0100570826 | K63: =tpOD2_DC3*'Markov Model AD+'!F62+tpheroin2_DC3*'Markov Model AD+'!G62+tpOD3_DC3*'Markov Model AD+'!H62+(1-tpDC3_heroin2-Mortality!C83)*'Markov Model AD+'!K62 -> 0.08160424781 | L63: =O63*'Markov Model AD+'!C62+death.tcA*'Markov Model AD+'!D62+O63*'Markov Model AD+'!E62+death.tcA*'Markov Model AD+'!F62+O63*'Markov Model AD+'!G62+death.tcA*'Markov Model AD+'!H62+'Markov Model AD+'!L62+Mortality!C83*I62+Mortality!C83*J62+Mortality!C83*K62 -> 0.7732357142 | M63: 1 | N63: 0.2267642858 | O63: 0.0448839848 | Q63: 23.95292697 | R63: 0.2267642858 | S63: 0.03238879539
A64: 732 | B64: 61 | C64: =Mortality!H63*'Markov Model AD+'!C63+tpDC1_heroin*'Markov Model AD+'!I63 -> 0.008432766246 | D64: =tpheroin_OD1*'Markov Model AD+'!C63 -> 0.0008199200951 | E64: =tpOD1_heroin1*'Markov Model AD+'!D63+Mortality!J63*'Markov Model AD+'!E63+tpDC2_heroin*'Markov Model AD+'!J63 -> 0.005500432123 | F64: =tpheroin1_OD2*'Markov Model AD+'!E63 -> 0.001301640886 | G64: =tpOD2_heroin2*'Markov Model AD+'!F63+Mortality!L63*'Markov Model AD+'!G63+tpOD3_heroin2*'Markov Model AD+'!H63+tpDC3_heroin2*'Markov Model AD+'!K63 -> 0.07303393452 | H64: =tpheroin2_OD3*'Markov Model AD+'!G63 -> 0.02568926592 | I64: =tpheroin_DC1*'Markov Model AD+'!C63+(1-tpDC1_heroin-Mortality!C84)*'Markov Model AD+'!I63 -> 0.01422021665 | J64: =tpOD1_DC2*'Markov Model AD+'!D63+tpheroin1_DC2*'Markov Model AD+'!E63+(1-tpDC2_heroin-Mortality!C84)*'Markov Model AD+'!J63 -> 0.009164624973 | K64: =tpOD2_DC3*'Markov Model AD+'!F63+tpheroin2_DC3*'Markov Model AD+'!G63+tpOD3_DC3*'Markov Model AD+'!H63+(1-tpDC3_heroin2-Mortality!C84)*'Markov Model AD+'!K63 -> 0.07730290601 | L64: =O64*'Markov Model AD+'!C63+death.tcA*'Markov Model AD+'!D63+O64*'Markov Model AD+'!E63+death.tcA*'Markov Model AD+'!F63+O64*'Markov Model AD+'!G63+death.tcA*'Markov Model AD+'!H63+'Markov Model AD+'!L63+Mortality!C84*I63+Mortality!C84*J63+Mortality!C84*K63 -> 0.7845342926 | M64: 1 | N64: 0.2154657074 | O64: 0.04505317987 | Q64: 22.90525273 | R64: 0.2154657074 | S64: 0.02986426331
A65: 744 | B65: 62 | C65: =Mortality!H64*'Markov Model AD+'!C64+tpDC1_heroin*'Markov Model AD+'!I64 -> 0.007781935028 | D65: =tpheroin_OD1*'Markov Model AD+'!C64 -> 0.0007589489621 | E65: =tpOD1_heroin1*'Markov Model AD+'!D64+Mortality!J64*'Markov Model AD+'!E64+tpDC2_heroin*'Markov Model AD+'!J64 -> 0.005098542743 | F65: =tpheroin1_OD2*'Markov Model AD+'!E64 -> 0.001210095067 | G65: =tpOD2_heroin2*'Markov Model AD+'!F64+Mortality!L64*'Markov Model AD+'!G64+tpOD3_heroin2*'Markov Model AD+'!H64+tpDC3_heroin2*'Markov Model AD+'!K64 -> 0.07046800723 | H65: =tpheroin2_OD3*'Markov Model AD+'!G64 -> 0.02483153774 | I65: =tpheroin_DC1*'Markov Model AD+'!C64+(1-tpDC1_heroin-Mortality!C85)*'Markov Model AD+'!I64 -> 0.01280074552 | J65: =tpOD1_DC2*'Markov Model AD+'!D64+tpheroin1_DC2*'Markov Model AD+'!E64+(1-tpDC2_heroin-Mortality!C85)*'Markov Model AD+'!J64 -> 0.008304582984 | K65: =tpOD2_DC3*'Markov Model AD+'!F64+tpheroin2_DC3*'Markov Model AD+'!G64+tpOD3_DC3*'Markov Model AD+'!H64+(1-tpDC3_heroin2-Mortality!C85)*'Markov Model AD+'!K64 -> 0.07289145737 | L65: =O65*'Markov Model AD+'!C64+death.tcA*'Markov Model AD+'!D64+O65*'Markov Model AD+'!E64+death.tcA*'Markov Model AD+'!F64+O65*'Markov Model AD+'!G64+death.tcA*'Markov Model AD+'!H64+'Markov Model AD+'!L64+Mortality!C85*I64+Mortality!C85*J64+Mortality!C85*K64 -> 0.7958541474 | M65: 1 | N65: 0.2041458526 | O65: 0.04522020838 | Q65: 21.89523452 | R65: 0.2041458526 | S65: 0.02745647506
A66: 756 | B66: 63 | C66: =Mortality!H65*'Markov Model AD+'!C65+tpDC1_heroin*'Markov Model AD+'!I65 -> 0.007157512808 | D66: =tpheroin_OD1*'Markov Model AD+'!C65 -> 0.0007003741525 | E66: =tpOD1_heroin1*'Markov Model AD+'!D65+Mortality!J65*'Markov Model AD+'!E65+tpDC2_heroin*'Markov Model AD+'!J65 -> 0.004710879584 | F66: =tpheroin1_OD2*'Markov Model AD+'!E65 -> 0.001121679404 | G66: =tpOD2_heroin2*'Markov Model AD+'!F65+Mortality!L65*'Markov Model AD+'!G65+tpOD3_heroin2*'Markov Model AD+'!H65+tpDC3_heroin2*'Markov Model AD+'!K65 -> 0.06786101739 | H66: =tpheroin2_OD3*'Markov Model AD+'!G65 -> 0.02395912246 | I66: =tpheroin_DC1*'Markov Model AD+'!C65+(1-tpDC1_heroin-Mortality!C86)*'Markov Model AD+'!I65 -> 0.01144708364 | J66: =tpOD1_DC2*'Markov Model AD+'!D65+tpheroin1_DC2*'Markov Model AD+'!E65+(1-tpDC2_heroin-Mortality!C86)*'Markov Model AD+'!J65 -> 0.007476436292 | K66: =tpOD2_DC3*'Markov Model AD+'!F65+tpheroin2_DC3*'Markov Model AD+'!G65+tpOD3_DC3*'Markov Model AD+'!H65+(1-tpDC3_heroin2-Mortality!C86)*'Markov Model AD+'!K65 -> 0.06836717735 | L66: =O66*'Markov Model AD+'!C65+death.tcA*'Markov Model AD+'!D65+O66*'Markov Model AD+'!E65+death.tcA*'Markov Model AD+'!F65+O66*'Markov Model AD+'!G65+death.tcA*'Markov Model AD+'!H65+'Markov Model AD+'!L65+Mortality!C86*I65+Mortality!C86*J65+Mortality!C86*K65 -> 0.8071987169 | M66: 1 | N66: 0.1928012831 | O66: 0.04538513251 | Q66: 20.92160242 | R66: 0.1928012831 | S66: 0.02516037186
A67: 768 | B67: 64 | C67: =Mortality!H66*'Markov Model AD+'!C66+tpDC1_heroin*'Markov Model AD+'!I66 -> 0.006559171264 | D67: =tpheroin_OD1*'Markov Model AD+'!C66 -> 0.0006441761527 | E67: =tpOD1_heroin1*'Markov Model AD+'!D66+Mortality!J66*'Markov Model AD+'!E66+tpDC2_heroin*'Markov Model AD+'!J66 -> 0.004337364807 | F67: =tpheroin1_OD2*'Markov Model AD+'!E66 -> 0.001036393509 | G67: =tpOD2_heroin2*'Markov Model AD+'!F66+Mortality!L66*'Markov Model AD+'!G66+tpOD3_heroin2*'Markov Model AD+'!H66+tpDC3_heroin2*'Markov Model AD+'!K66 -> 0.06521384025 | H67: =tpheroin2_OD3*'Markov Model AD+'!G66 -> 0.02307274591 | I67: =tpheroin_DC1*'Markov Model AD+'!C66+(1-tpDC1_heroin-Mortality!C87)*'Markov Model AD+'!I66 -> 0.01015250612 | J67: =tpOD1_DC2*'Markov Model AD+'!D66+tpheroin1_DC2*'Markov Model AD+'!E66+(1-tpDC2_heroin-Mortality!C87)*'Markov Model AD+'!J66 -> 0.006676497282 | K67: =tpOD2_DC3*'Markov Model AD+'!F66+tpheroin2_DC3*'Markov Model AD+'!G66+tpOD3_DC3*'Markov Model AD+'!H66+(1-tpDC3_heroin2-Mortality!C87)*'Markov Model AD+'!K66 -> 0.06369716892 | L67: =O67*'Markov Model AD+'!C66+death.tcA*'Markov Model AD+'!D66+O67*'Markov Model AD+'!E66+death.tcA*'Markov Model AD+'!F66+O67*'Markov Model AD+'!G66+death.tcA*'Markov Model AD+'!H66+'Markov Model AD+'!L66+Mortality!C87*I66+Mortality!C87*J66+Mortality!C87*K66 -> 0.8186101358 | M67: 1 | N67: 0.1813898642 | O67: 0.04554801174 | Q67: 19.98340746 | R67: =SUM(C67:K67) -> 0.1813898642 | S67: 0.02296601215
Q68: Cost | R68: Life-years | S68: QALYs
Q69: =SUM(Q3:Q67) -> 6280.025808 | R69: =SUM(R3:R67) -> 35.86335614 | S69: =SUM(S3:S67) -> 16.5209451

Sheet Markov Model AD -
A2: Mortality_time | B2: Cycle | C2: Heroin Use | D2: Overdose | E2: Resume Heroin Use 1 | F2: 2nd Overdose | G2: Resume Heroin Use 2 | H2: 3rd Overdose | I2: Discontinue Heroin Use 1 | J2: Discontinue Heroin Use 2 | K2: Discontinue Heroin Use 3 | L2: Death Risk | M2: Total | N2: S(t) | O2: mortality | Q2: Cost | R2: Life-years | S2: QALYs
A3: 0 | B3: 0 | C3: 1 | D3: 0 | E3: 0 | F3: 0 | G3: 0 | H3: 0 | I3: 0 | J3: 0 | K3: 0 | L3: =1-C3 -> 0 | M3: =SUM(C3:L3) -> 1 | N3: =1-L3 -> 1 | O3: 0 | Q3: =(C3*c.society+D3*c.overdose1_tcB+E3*c.society+F3*c.overdose2_tcB+G3*c.society+H3*c.overdose3_tcB+I3*c.discontinue1+J3*c.discontinue2+K3*c.discontinue3+L3*c.death+c.nal1*2)/(1+cDR)^cycle -> 80 | R3: =SUM(C3:K3) -> 1 | S3: =(C3*u.heroin1+D3*u.overdose1_tcB+E3*u.heroin2+F3*u.overdose2_tcB+G3*u.heroin2+H3*u.overdose3_tcB+I3*u.discontinue1+J3*u.discontinue2+K3*u.discontinue3+L3*u.death)/(1+oDR)^cycle -> 0.817
A4: 12 | B4: 1 | C4: =Mortality!H3*'Markov Model AD -'!C3+tpDC1_heroin*'Markov Model AD -'!I3 -> 0.8355897143 | D4: =tpheroin_OD1*'Markov Model AD -'!C3 -> 0.09 | E4: =tpOD1_heroin1_tcB*'Markov Model AD -'!D3+Mortality!J3*'Markov Model AD -'!E3+tpDC2_heroin*'Markov Model AD -'!J3 -> 0 | F4: =tpheroin1_OD2*'Markov Model AD -'!E3 -> 0 | G4: =tpOD2_heroin2_tcB*'Markov Model AD -'!F3+Mortality!L3*'Markov Model AD -'!G3+tpOD3_heroin2_tcB*'Markov Model AD -'!H3+tpDC3_heroin2*'Markov Model AD -'!K3 -> 0 | H4: =tpheroin2_OD3*'Markov Model AD -'!G3 -> 0 | I4: =tpheroin_DC1*'Markov Model AD -'!C3+(1-tpDC1_heroin-Mortality!C24)*'Markov Model AD -'!I3 -> 0.06 | J4: =tpOD1_DC2*'Markov Model AD -'!D3+tpheroin1_DC2*'Markov Model AD -'!E3+(1-tpDC2_heroin-Mortality!C24)*'Markov Model AD -'!J3 -> 0 | K4: =tpOD2_DC3*'Markov Model AD -'!F3+tpheroin2_DC3*'Markov Model AD -'!G3+tpOD3_DC3*'Markov Model AD -'!H3+(1-tpDC3_heroin2-Mortality!C24)*'Markov Model AD -'!K3 -> 0 | L4: =O4*'Markov Model AD -'!C3+death.tcB*'Markov Model AD -'!D3+O4*'Markov Model AD -'!E3+death.tcB*'Markov Model AD -'!F3+O4*'Markov Model AD -'!G3+death.tcB*'Markov Model AD -'!H3+'Markov Model AD -'!L3+Mortality!C24*I3+Mortality!C24*J3+Mortality!C24*K3 -> 0.01441028573 | M4: =SUM(C4:L4) -> 1 | N4: =1-L4 -> 0.9855897143 | O4: =1-EXP(lambda*(A3^gamma - A4^gamma)) -> 0.01441028573 | Q4: 255.272434 | R4: =SUM(C4:K4) -> 0.9855897143 | S4: 0.7813573423
A5: 24 | B5: 2 | C5: =Mortality!H4*'Markov Model AD -'!C4+tpDC1_heroin*'Markov Model AD -'!I4 -> 0.6982687595 | D5: =tpheroin_OD1*'Markov Model AD -'!C4 -> 0.07520307428 | E5: =tpOD1_heroin1_tcB*'Markov Model AD -'!D4+Mortality!J4*'Markov Model AD -'!E4+tpDC2_heroin*'Markov Model AD -'!J4 -> 0.07960968 | F5: =tpheroin1_OD2*'Markov Model AD -'!E4 -> 0 | G5: =tpOD2_heroin2_tcB*'Markov Model AD -'!F4+Mortality!L4*'Markov Model AD -'!G4+tpOD3_heroin2_tcB*'Markov Model AD -'!H4+tpDC3_heroin2*'Markov Model AD -'!K4 -> 0 | H5: =tpheroin2_OD3*'Markov Model AD -'!G4 -> 0 | I5: =tpheroin_DC1*'Markov Model AD -'!C4+(1-tpDC1_heroin-Mortality!C25)*'Markov Model AD -'!I4 -> 0.1058651918 | J5: =tpOD1_DC2*'Markov Model AD -'!D4+tpheroin1_DC2*'Markov Model AD -'!E4+(1-tpDC2_heroin-Mortality!C25)*'Markov Model AD -'!J4 -> 0.00558 | K5: =tpOD2_DC3*'Markov Model AD -'!F4+tpheroin2_DC3*'Markov Model AD -'!G4+tpOD3_DC3*'Markov Model AD -'!H4+(1-tpDC3_heroin2-Mortality!C25)*'Markov Model AD -'!K4 -> 0 | L5: =O5*'Markov Model AD -'!C4+death.tcB*'Markov Model AD -'!D4+O5*'Markov Model AD -'!E4+death.tcB*'Markov Model AD -'!F4+O5*'Markov Model AD -'!G4+death.tcB*'Markov Model AD -'!H4+'Markov Model AD -'!L4+Mortality!C25*I4+Mortality!C25*J4+Mortality!C25*K4 -> 0.03547329443 | M5: 1 | N5: 0.9645267056 | O5: 0.01936655915 | Q5: 219.4881079 | R5: 0.9645267056 | S5: 0.7457970041
A6: 36 | B6: 3 | C6: =Mortality!H5*'Markov Model AD -'!C5+tpDC1_heroin*'Markov Model AD -'!I5 -> 0.5857076924 | D6: =tpheroin_OD1*'Markov Model AD -'!C5 -> 0.06284418836 | E6: =tpOD1_heroin1_tcB*'Markov Model AD -'!D5+Mortality!J5*'Markov Model AD -'!E5+tpDC2_heroin*'Markov Model AD -'!J5 -> 0.1224940757 | F6: =tpheroin1_OD2*'Markov Model AD -'!E5 -> 0.0175141296 | G6: =tpOD2_heroin2_tcB*'Markov Model AD -'!F5+Mortality!L5*'Markov Model AD -'!G5+tpOD3_heroin2_tcB*'Markov Model AD -'!H5+tpDC3_heroin2*'Markov Model AD -'!K5 -> 0 | H6: =tpheroin2_OD3*'Markov Model AD -'!G5 -> 0 | I6: =tpheroin_DC1*'Markov Model AD -'!C5+(1-tpDC1_heroin-Mortality!C26)*'Markov Model AD -'!I5 -> 0.1402175142 | J6: =tpOD1_DC2*'Markov Model AD -'!D5+tpheroin1_DC2*'Markov Model AD -'!E5+(1-tpDC2_heroin-Mortality!C26)*'Markov Model AD -'!J5 -> 0.01462154853 | K6: =tpOD2_DC3*'Markov Model AD -'!F5+tpheroin2_DC3*'Markov Model AD -'!G5+tpOD3_DC3*'Markov Model AD -'!H5+(1-tpDC3_heroin2-Mortality!C26)*'Markov Model AD -'!K5 -> 0 | L6: =O6*'Markov Model AD -'!C5+death.tcB*'Markov Model AD -'!D5+O6*'Markov Model AD -'!E5+death.tcB*'Markov Model AD -'!F5+O6*'Markov Model AD -'!G5+death.tcB*'Markov Model AD -'!H5+'Markov Model AD -'!L5+Mortality!C26*I5+Mortality!C26*J5+Mortality!C26*K5 -> 0.05660085128 | M6: 1 | N6: 0.9433991487 | O6: 0.02181297164 | Q6: 222.6844286 | R6: 0.9433991487 | S6: 0.7103766796
A7: 48 | B7: 4 | C7: =Mortality!H6*'Markov Model AD -'!C6+tpDC1_heroin*'Markov Model AD -'!I6 -> 0.4938622556 | D7: =tpheroin_OD1*'Markov Model AD -'!C6 -> 0.05271369231 | E7: =tpOD1_heroin1_tcB*'Markov Model AD -'!D6+Mortality!J6*'Markov Model AD -'!E6+tpDC2_heroin*'Markov Model AD -'!J6 -> 0.14192114 | F7: =tpheroin1_OD2*'Markov Model AD -'!E6 -> 0.02694869665 | G7: =tpOD2_heroin2_tcB*'Markov Model AD -'!F6+Mortality!L6*'Markov Model AD -'!G6+tpOD3_heroin2_tcB*'Markov Model AD -'!H6+tpDC3_heroin2*'Markov Model AD -'!K6 -> 0.01549215837 | H7: =tpheroin2_OD3*'Markov Model AD -'!G6 -> 0 | I7: =tpheroin_DC1*'Markov Model AD -'!C6+(1-tpDC1_heroin-Mortality!C27)*'Markov Model AD -'!I6 -> 0.1653575705 | J7: =tpOD1_DC2*'Markov Model AD -'!D6+tpheroin1_DC2*'Markov Model AD -'!E6+(1-tpDC2_heroin-Mortality!C27)*'Markov Model AD -'!J6 -> 0.02482450575 | K7: =tpOD2_DC3*'Markov Model AD -'!F6+tpheroin2_DC3*'Markov Model AD -'!G6+tpOD3_DC3*'Markov Model AD -'!H6+(1-tpDC3_heroin2-Mortality!C27)*'Markov Model AD -'!K6 -> 0.001085876035 | L7: =O7*'Markov Model AD -'!C6+death.tcB*'Markov Model AD -'!D6+O7*'Markov Model AD -'!E6+death.tcB*'Markov Model AD -'!F6+O7*'Markov Model AD -'!G6+death.tcB*'Markov Model AD -'!H6+'Markov Model AD -'!L6+Mortality!C27*I6+Mortality!C27*J6+Mortality!C27*K6 -> 0.07779410484 | M7: 1 | N7: 0.9222058952 | O7: 0.0235689391 | Q7: 214.9416925 | R7: 0.9222058952 | S7: 0.6762061595
A8: 60 | B8: 5 | C8: =Mortality!H7*'Markov Model AD -'!C7+tpDC1_heroin*'Markov Model AD -'!I7 -> 0.4190281792 | D8: =tpheroin_OD1*'Markov Model AD -'!C7 -> 0.044447603 | E8: =tpOD1_heroin1_tcB*'Markov Model AD -'!D7+Mortality!J7*'Markov Model AD -'!E7+tpDC2_heroin*'Markov Model AD -'!J7 -> 0.1470057341 | F8: =tpheroin1_OD2*'Markov Model AD -'!E7 -> 0.03122265079 | G8: =tpOD2_heroin2_tcB*'Markov Model AD -'!F7+Mortality!L7*'Markov Model AD -'!G7+tpOD3_heroin2_tcB*'Markov Model AD -'!H7+tpDC3_heroin2*'Markov Model AD -'!K7 -> 0.03282205254 | H8: =tpheroin2_OD3*'Markov Model AD -'!G7 -> 0.005267333844 | I8: =tpheroin_DC1*'Markov Model AD -'!C7+(1-tpDC1_heroin-Mortality!C28)*'Markov Model AD -'!I7 -> 0.1831818479 | J8: =tpOD1_DC2*'Markov Model AD -'!D7+tpheroin1_DC2*'Markov Model AD -'!E7+(1-tpDC2_heroin-Mortality!C28)*'Markov Model AD -'!J7 -> 0.03483541413 | K8: =tpOD2_DC3*'Markov Model AD -'!F7+tpheroin2_DC3*'Markov Model AD -'!G7+tpOD3_DC3*'Markov Model AD -'!H7+(1-tpDC3_heroin2-Mortality!C28)*'Markov Model AD -'!K7 -> 0.00360868709 | L8: =O8*'Markov Model AD -'!C7+death.tcB*'Markov Model AD -'!D7+O8*'Markov Model AD -'!E7+death.tcB*'Markov Model AD -'!F7+O8*'Markov Model AD -'!G7+death.tcB*'Markov Model AD -'!H7+'Markov Model AD -'!L7+Mortality!C28*I7+Mortality!C28*J7+Mortality!C28*K7 -> 0.09858049744 | M8: 1 | N8: 0.9014195026 | O8: 0.02496600592 | Q8: 211.3205899 | R8: 0.9014195026 | S8: 0.6433326727
A9: 72 | B9: 6 | C9: =Mortality!H8*'Markov Model AD -'!C8+tpDC1_heroin*'Markov Model AD -'!I8 -> 0.3580440605 | D9: =tpheroin_OD1*'Markov Model AD -'!C8 -> 0.03771253612 | E9: =tpOD1_heroin1_tcB*'Markov Model AD -'!D8+Mortality!J8*'Markov Model AD -'!E8+tpDC2_heroin*'Markov Model AD -'!J8 -> 0.1437563658 | F9: =tpheroin1_OD2*'Markov Model AD -'!E8 -> 0.03234126151 | G9: =tpOD2_heroin2_tcB*'Markov Model AD -'!F8+Mortality!L8*'Markov Model AD -'!G8+tpOD3_heroin2_tcB*'Markov Model AD -'!H8+tpDC3_heroin2*'Markov Model AD -'!K8 -> 0.0513652208 | H9: =tpheroin2_OD3*'Markov Model AD -'!G8 -> 0.01115949786 | I9: =tpheroin_DC1*'Markov Model AD -'!C8+(1-tpDC1_heroin-Mortality!C29)*'Markov Model AD -'!I8 -> 0.1952297881 | J9: =tpOD1_DC2*'Markov Model AD -'!D8+tpheroin1_DC2*'Markov Model AD -'!E8+(1-tpDC2_heroin-Mortality!C29)*'Markov Model AD -'!J8 -> 0.04392149088 | K9: =tpOD2_DC3*'Markov Model AD -'!F8+tpheroin2_DC3*'Markov Model AD -'!G8+tpOD3_DC3*'Markov Model AD -'!H8+(1-tpDC3_heroin2-Mortality!C29)*'Markov Model AD -'!K8 -> 0.007582442069 | L9: =O9*'Markov Model AD -'!C8+death.tcB*'Markov Model AD -'!D8+O9*'Markov Model AD -'!E8+death.tcB*'Markov Model AD -'!F8+O9*'Markov Model AD -'!G8+death.tcB*'Markov Model AD -'!H8+'Markov Model AD -'!L8+Mortality!C29*I8+Mortality!C29*J8+Mortality!C29*K8 -> 0.1188873363 | M9: 1 | N9: 0.8811126637 | O9: 0.02613814938 | Q9: 206.0731832 | R9: 0.8811126637 | S9: 0.6119099474
A10: 84 | B10: 7 | C10: =Mortality!H9*'Markov Model AD -'!C9+tpDC1_heroin*'Markov Model AD -'!I9 -> 0.3082810742 | D10: =tpheroin_OD1*'Markov Model AD -'!C9 -> 0.03222396545 | E10: =tpOD1_heroin1_tcB*'Markov Model AD -'!D9+Mortality!J9*'Markov Model AD -'!E9+tpDC2_heroin*'Markov Model AD -'!J9 -> 0.1360341729 | F10: =tpheroin1_OD2*'Markov Model AD -'!E9 -> 0.03162640049 | G10: =tpOD2_heroin2_tcB*'Markov Model AD -'!F9+Mortality!L9*'Markov Model AD -'!G9+tpOD3_heroin2_tcB*'Markov Model AD -'!H9+tpDC3_heroin2*'Markov Model AD -'!K9 -> 0.0684337967 | H10: =tpheroin2_OD3*'Markov Model AD -'!G9 -> 0.01746417507 | I10: =tpheroin_DC1*'Markov Model AD -'!C9+(1-tpDC1_heroin-Mortality!C30)*'Markov Model AD -'!I9 -> 0.2027417812 | J10: =tpOD1_DC2*'Markov Model AD -'!D9+tpheroin1_DC2*'Markov Model AD -'!E9+(1-tpDC2_heroin-Mortality!C30)*'Markov Model AD -'!J9 -> 0.05174202665 | K10: =tpOD2_DC3*'Markov Model AD -'!F9+tpheroin2_DC3*'Markov Model AD -'!G9+tpOD3_DC3*'Markov Model AD -'!H9+(1-tpDC3_heroin2-Mortality!C30)*'Markov Model AD -'!K9 -> 0.01281880258 | L10: =O10*'Markov Model AD -'!C9+death.tcB*'Markov Model AD -'!D9+O10*'Markov Model AD -'!E9+death.tcB*'Markov Model AD -'!F9+O10*'Markov Model AD -'!G9+death.tcB*'Markov Model AD -'!H9+'Markov Model AD -'!L9+Mortality!C30*I9+Mortality!C30*J9+Mortality!C30*K9 -> 0.1386338048 | M10: 1 | N10: 0.8613661952 | O10: 0.02715437431 | Q10: 200.6936409 | R10: 0.8613661952 | S10: 0.5819362715
A11: 96 | B11: 8 | C11: =Mortality!H10*'Markov Model AD -'!C10+tpDC1_heroin*'Markov Model AD -'!I10 -> 0.2675819044 | D11: =tpheroin_OD1*'Markov Model AD -'!C10 -> 0.02774529667 | E11: =tpOD1_heroin1_tcB*'Markov Model AD -'!D10+Mortality!J10*'Markov Model AD -'!E10+tpDC2_heroin*'Markov Model AD -'!J10 -> 0.1262538331 | F11: =tpheroin1_OD2*'Markov Model AD -'!E10 -> 0.02992751803 | G11: =tpOD2_heroin2_tcB*'Markov Model AD -'!F10+Mortality!L10*'Markov Model AD -'!G10+tpOD3_heroin2_tcB*'Markov Model AD -'!H10+tpDC3_heroin2*'Markov Model AD -'!K10 -> 0.08346082689 | H11: =tpheroin2_OD3*'Markov Model AD -'!G10 -> 0.02326749088 | I11: =tpheroin_DC1*'Markov Model AD -'!C10+(1-tpDC1_heroin-Mortality!C31)*'Markov Model AD -'!I10 -> 0.2067120114 | J11: =tpOD1_DC2*'Markov Model AD -'!D10+tpheroin1_DC2*'Markov Model AD -'!E10+(1-tpDC2_heroin-Mortality!C31)*'Markov Model AD -'!J10 -> 0.05819459929 | K11: =tpOD2_DC3*'Markov Model AD -'!F10+tpheroin2_DC3*'Markov Model AD -'!G10+tpOD3_DC3*'Markov Model AD -'!H10+(1-tpDC3_heroin2-Mortality!C31)*'Markov Model AD -'!K10 -> 0.01904996712 | L11: =O11*'Markov Model AD -'!C10+death.tcB*'Markov Model AD -'!D10+O11*'Markov Model AD -'!E10+death.tcB*'Markov Model AD -'!F10+O11*'Markov Model AD -'!G10+death.tcB*'Markov Model AD -'!H10+'Markov Model AD -'!L10+Mortality!C31*I10+Mortality!C31*J10+Mortality!C31*K10 -> 0.1578065522 | M11: 1 | N11: 0.8421934478 | O11: 0.02805534968 | Q11: 194.6545811 | R11: 0.8421934478 | S11: 0.5533966034
A12: 108 | B12: 9 | C12: =Mortality!H11*'Markov Model AD -'!C11+tpDC1_heroin*'Markov Model AD -'!I11 -> 0.2341901085 | D12: =tpheroin_OD1*'Markov Model AD -'!C11 -> 0.02408237139 | E12: =tpOD1_heroin1_tcB*'Markov Model AD -'!D11+Mortality!J11*'Markov Model AD -'!E11+tpDC2_heroin*'Markov Model AD -'!J11 -> 0.1158739398 | F12: =tpheroin1_OD2*'Markov Model AD -'!E11 -> 0.02777584329 | G12: =tpOD2_heroin2_tcB*'Markov Model AD -'!F11+Mortality!L11*'Markov Model AD -'!G11+tpOD3_heroin2_tcB*'Markov Model AD -'!H11+tpDC3_heroin2*'Markov Model AD -'!K11 -> 0.09605446163 | H12: =tpheroin2_OD3*'Markov Model AD -'!G11 -> 0.02837668114 | I12: =tpheroin_DC1*'Markov Model AD -'!C11+(1-tpDC1_heroin-Mortality!C32)*'Markov Model AD -'!I11 -> 0.20793558 | J12: =tpOD1_DC2*'Markov Model AD -'!D11+tpheroin1_DC2*'Markov Model AD -'!E11+(1-tpDC2_heroin-Mortality!C32)*'Markov Model AD -'!J11 -> 0.06331464305 | K12: =tpOD2_DC3*'Markov Model AD -'!F11+tpheroin2_DC3*'Markov Model AD -'!G11+tpOD3_DC3*'Markov Model AD -'!H11+(1-tpDC3_heroin2-Mortality!C32)*'Markov Model AD -'!K11 -> 0.02598889437 | L12: =O12*'Markov Model AD -'!C11+death.tcB*'Markov Model AD -'!D11+O12*'Markov Model AD -'!E11+death.tcB*'Markov Model AD -'!F11+O12*'Markov Model AD -'!G11+death.tcB*'Markov Model AD -'!H11+'Markov Model AD -'!L11+Mortality!C32*I11+Mortality!C32*J11+Mortality!C32*K11 -> 0.176407477 | M12: 1 | N12: 0.823592523 | O12: 0.02886724004 | Q12: 188.2339095 | R12: 0.823592523 | S12: 0.5262449725
A13: 120 | B13: 10 | C13: =Mortality!H12*'Markov Model AD -'!C12+tpDC1_heroin*'Markov Model AD -'!I12 -> 0.2066831923 | D13: =tpheroin_OD1*'Markov Model AD -'!C12 -> 0.02107710976 | E13: =tpOD1_heroin1_tcB*'Markov Model AD -'!D12+Mortality!J12*'Markov Model AD -'!E12+tpDC2_heroin*'Markov Model AD -'!J12 -> 0.1057325809 | F13: =tpheroin1_OD2*'Markov Model AD -'!E12 -> 0.02549226675 | G13: =tpOD2_heroin2_tcB*'Markov Model AD -'!F12+Mortality!L12*'Markov Model AD -'!G12+tpOD3_heroin2_tcB*'Markov Model AD -'!H12+tpDC3_heroin2*'Markov Model AD -'!K12 -> 0.1062777511 | H13: =tpheroin2_OD3*'Markov Model AD -'!G12 -> 0.03265851695 | I13: =tpheroin_DC1*'Markov Model AD -'!C12+(1-tpDC1_heroin-Mortality!C33)*'Markov Model AD -'!I12 -> 0.2070469701 | J13: =tpOD1_DC2*'Markov Model AD -'!D12+tpheroin1_DC2*'Markov Model AD -'!E12+(1-tpDC2_heroin-Mortality!C33)*'Markov Model AD -'!J12 -> 0.06721107656 | K13: =tpOD2_DC3*'Markov Model AD -'!F12+tpheroin2_DC3*'Markov Model AD -'!G12+tpOD3_DC3*'Markov Model AD -'!H12+(1-tpDC3_heroin2-Mortality!C33)*'Markov Model AD -'!K12 -> 0.03336633589 | L13: =O13*'Markov Model AD -'!C12+death.tcB*'Markov Model AD -'!D12+O13*'Markov Model AD -'!E12+death.tcB*'Markov Model AD -'!F12+O13*'Markov Model AD -'!G12+death.tcB*'Markov Model AD -'!H12+'Markov Model AD -'!L12+Mortality!C33*I12+Mortality!C33*J12+Mortality!C33*K12 -> 0.1944541999 | M13: 1 | N13: 0.8055458001 | O13: 0.02960795647 | Q13: 181.5113172 | R13: 0.8055458001 | S13: 0.500427144
A14: 132 | B14: 11 | C14: =Mortality!H13*'Markov Model AD -'!C13+tpDC1_heroin*'Markov Model AD -'!I13 -> 0.1839134965 | D14: =tpheroin_OD1*'Markov Model AD -'!C13 -> 0.0186014873 | E14: =tpOD1_heroin1_tcB*'Markov Model AD -'!D13+Mortality!J13*'Markov Model AD -'!E13+tpDC2_heroin*'Markov Model AD -'!J13 -> 0.09627335701 | F14: =tpheroin1_OD2*'Markov Model AD -'!E13 -> 0.02326116779 | G14: =tpOD2_heroin2_tcB*'Markov Model AD -'!F13+Mortality!L13*'Markov Model AD -'!G13+tpOD3_heroin2_tcB*'Markov Model AD -'!H13+tpDC3_heroin2*'Markov Model AD -'!K13 -> 0.1143204966 | H14: =tpheroin2_OD3*'Markov Model AD -'!G13 -> 0.03613443536 | I14: =tpheroin_DC1*'Markov Model AD -'!C13+(1-tpDC1_heroin-Mortality!C34)*'Markov Model AD -'!I13 -> 0.2045516496 | J14: =tpOD1_DC2*'Markov Model AD -'!D13+tpheroin1_DC2*'Markov Model AD -'!E13+(1-tpDC2_heroin-Mortality!C34)*'Markov Model AD -'!J13 -> 0.07002620815 | K14: =tpOD2_DC3*'Markov Model AD -'!F13+tpheroin2_DC3*'Markov Model AD -'!G13+tpOD3_DC3*'Markov Model AD -'!H13+(1-tpDC3_heroin2-Mortality!C34)*'Markov Model AD -'!K13 -> 0.0409477573 | L14: =O14*'Markov Model AD -'!C13+death.tcB*'Markov Model AD -'!D13+O14*'Markov Model AD -'!E13+death.tcB*'Markov Model AD -'!F13+O14*'Markov Model AD -'!G13+death.tcB*'Markov Model AD -'!H13+'Markov Model AD -'!L13+Mortality!C34*I13+Mortality!C34*J13+Mortality!C34*K13 -> 0.2119699444 | M14: 1 | N14: 0.7880300556 | O14: 0.03029034312 | Q14: 174.640319 | R14: 0.7880300556 | S14: 0.4758831668
A15: 144 | B15: 12 | C15: =Mortality!H14*'Markov Model AD -'!C14+tpDC1_heroin*'Markov Model AD -'!I14 -> 0.1649577558 | D15: =tpheroin_OD1*'Markov Model AD -'!C14 -> 0.01655221469 | E15: =tpOD1_heroin1_tcB*'Markov Model AD -'!D14+Mortality!J14*'Markov Model AD -'!E14+tpDC2_heroin*'Markov Model AD -'!J14 -> 0.08769548198 | F15: =tpheroin1_OD2*'Markov Model AD -'!E14 -> 0.02118013854 | G15: =tpOD2_heroin2_tcB*'Markov Model AD -'!F14+Mortality!L14*'Markov Model AD -'!G14+tpOD3_heroin2_tcB*'Markov Model AD -'!H14+tpDC3_heroin2*'Markov Model AD -'!K14 -> 0.1204618993 | H15: =tpheroin2_OD3*'Markov Model AD -'!G14 -> 0.03886896885 | I15: =tpheroin_DC1*'Markov Model AD -'!C14+(1-tpDC1_heroin-Mortality!C35)*'Markov Model AD -'!I14 -> 0.2008506196 | J15: =tpOD1_DC2*'Markov Model AD -'!D14+tpheroin1_DC2*'Markov Model AD -'!E14+(1-tpDC2_heroin-Mortality!C35)*'Markov Model AD -'!J14 -> 0.07191123466 | K15: =tpOD2_DC3*'Markov Model AD -'!F14+tpheroin2_DC3*'Markov Model AD -'!G14+tpOD3_DC3*'Markov Model AD -'!H14+(1-tpDC3_heroin2-Mortality!C35)*'Markov Model AD -'!K14 -> 0.04853965028 | L15: =O15*'Markov Model AD -'!C14+death.tcB*'Markov Model AD -'!D14+O15*'Markov Model AD -'!E14+death.tcB*'Markov Model AD -'!F14+O15*'Markov Model AD -'!G14+death.tcB*'Markov Model AD -'!H14+'Markov Model AD -'!L14+Mortality!C35*I14+Mortality!C35*J14+Mortality!C35*K14 -> 0.2289820363 | M15: 1 | N15: 0.7710179637 | O15: 0.03092394961 | Q15: 167.7342356 | R15: 0.7710179637 | S15: 0.452551578
A16: 156 | B16: 13 | C16: =Mortality!H15*'Markov Model AD -'!C15+tpDC1_heroin*'Markov Model AD -'!I15 -> 0.1490748132 | D16: =tpheroin_OD1*'Markov Model AD -'!C15 -> 0.01484619802 | E16: =tpOD1_heroin1_tcB*'Markov Model AD -'!D15+Mortality!J15*'Markov Model AD -'!E15+tpDC2_heroin*'Markov Model AD -'!J15 -> 0.08005200981 | F16: =tpheroin1_OD2*'Markov Model AD -'!E15 -> 0.01929300603 | G16: =tpOD2_heroin2_tcB*'Markov Model AD -'!F15+Mortality!L15*'Markov Model AD -'!G15+tpOD3_heroin2_tcB*'Markov Model AD -'!H15+tpDC3_heroin2*'Markov Model AD -'!K15 -> 0.1249949857 | H16: =tpheroin2_OD3*'Markov Model AD -'!G15 -> 0.04095704575 | I16: =tpheroin_DC1*'Markov Model AD -'!C15+(1-tpDC1_heroin-Mortality!C36)*'Markov Model AD -'!I15 -> 0.1962611227 | J16: =tpOD1_DC2*'Markov Model AD -'!D15+tpheroin1_DC2*'Markov Model AD -'!E15+(1-tpDC2_heroin-Mortality!C36)*'Markov Model AD -'!J15 -> 0.07301238423 | K16: =tpOD2_DC3*'Markov Model AD -'!F15+tpheroin2_DC3*'Markov Model AD -'!G15+tpOD3_DC3*'Markov Model AD -'!H15+(1-tpDC3_heroin2-Mortality!C36)*'Markov Model AD -'!K15 -> 0.05598933889 | L16: =O16*'Markov Model AD -'!C15+death.tcB*'Markov Model AD -'!D15+O16*'Markov Model AD -'!E15+death.tcB*'Markov Model AD -'!F15+O16*'Markov Model AD -'!G15+death.tcB*'Markov Model AD -'!H15+'Markov Model AD -'!L15+Mortality!C36*I15+Mortality!C36*J15+Mortality!C36*K15 -> 0.2455190957 | M16: 1 | N16: 0.7544809043 | O16: 0.03151608482 | Q16: 160.891915 | R16: 0.7544809043 | S16: 0.4303712469
A17: 168 | B17: 14 | C17: =Mortality!H16*'Markov Model AD -'!C16+tpDC1_heroin*'Markov Model AD -'!I16 -> 0.1356706713 | D17: =tpheroin_OD1*'Markov Model AD -'!C16 -> 0.01341673319 | E17: =tpOD1_heroin1_tcB*'Markov Model AD -'!D16+Mortality!J16*'Markov Model AD -'!E16+tpDC2_heroin*'Markov Model AD -'!J16 -> 0.07331308186 | F17: =tpheroin1_OD2*'Markov Model AD -'!E16 -> 0.01761144216 | G17: =tpOD2_heroin2_tcB*'Markov Model AD -'!F16+Mortality!L16*'Markov Model AD -'!G16+tpOD3_heroin2_tcB*'Markov Model AD -'!H16+tpDC3_heroin2*'Markov Model AD -'!K16 -> 0.1282016501 | H17: =tpheroin2_OD3*'Markov Model AD -'!G16 -> 0.04249829513 | I17: =tpheroin_DC1*'Markov Model AD -'!C16+(1-tpDC1_heroin-Mortality!C37)*'Markov Model AD -'!I16 -> 0.191032504 | J17: =tpOD1_DC2*'Markov Model AD -'!D16+tpheroin1_DC2*'Markov Model AD -'!E16+(1-tpDC2_heroin-Mortality!C37)*'Markov Model AD -'!J16 -> 0.07346333864 | K17: =tpOD2_DC3*'Markov Model AD -'!F16+tpheroin2_DC3*'Markov Model AD -'!G16+tpOD3_DC3*'Markov Model AD -'!H16+(1-tpDC3_heroin2-Mortality!C37)*'Markov Model AD -'!K16 -> 0.06318123959 | L17: =O17*'Markov Model AD -'!C16+death.tcB*'Markov Model AD -'!D16+O17*'Markov Model AD -'!E16+death.tcB*'Markov Model AD -'!F16+O17*'Markov Model AD -'!G16+death.tcB*'Markov Model AD -'!H16+'Markov Model AD -'!L16+Mortality!C37*I16+Mortality!C37*J16+Mortality!C37*K16 -> 0.2616110441 | M17: 1 | N17: 0.7383889559 | O17: 0.03207247711 | Q17: 154.1868239 | R17: 0.7383889559 | S17: 0.4092820116
A18: 180 | B18: 15 | C18: =Mortality!H17*'Markov Model AD -'!C17+tpDC1_heroin*'Markov Model AD -'!I17 -> 0.1242697932 | D18: =tpheroin_OD1*'Markov Model AD -'!C17 -> 0.01221036041 | E18: =tpOD1_heroin1_tcB*'Markov Model AD -'!D17+Mortality!J17*'Markov Model AD -'!E17+tpDC2_heroin*'Markov Model AD -'!J17 -> 0.06740581252 | F18: =tpheroin1_OD2*'Markov Model AD -'!E17 -> 0.01612887801 | G18: =tpOD2_heroin2_tcB*'Markov Model AD -'!F17+Mortality!L17*'Markov Model AD -'!G17+tpOD3_heroin2_tcB*'Markov Model AD -'!H17+tpDC3_heroin2*'Markov Model AD -'!K17 -> 0.1303347855 | H18: =tpheroin2_OD3*'Markov Model AD -'!G17 -> 0.04358856104 | I18: =tpheroin_DC1*'Markov Model AD -'!C17+(1-tpDC1_heroin-Mortality!C38)*'Markov Model AD -'!I17 -> 0.1853595485 | J18: =tpOD1_DC2*'Markov Model AD -'!D17+tpheroin1_DC2*'Markov Model AD -'!E17+(1-tpDC2_heroin-Mortality!C38)*'Markov Model AD -'!J17 -> 0.07338196721 | K18: =tpOD2_DC3*'Markov Model AD -'!F17+tpheroin2_DC3*'Markov Model AD -'!G17+tpOD3_DC3*'Markov Model AD -'!H17+(1-tpDC3_heroin2-Mortality!C38)*'Markov Model AD -'!K17 -> 0.07003162747 | L18: =O18*'Markov Model AD -'!C17+death.tcB*'Markov Model AD -'!D17+O18*'Markov Model AD -'!E17+death.tcB*'Markov Model AD -'!F17+O18*'Markov Model AD -'!G17+death.tcB*'Markov Model AD -'!H17+'Markov Model AD -'!L17+Mortality!C38*I17+Mortality!C38*J17+Mortality!C38*K17 -> 0.2772886662 | M18: 1 | N18: 0.7227113338 | O18: 0.03259770609 | Q18: 147.6724296 | R18: 0.7227113338 | S18: 0.3892251815
A19: 192 | B19: 16 | C19: =Mortality!H18*'Markov Model AD -'!C18+tpDC1_heroin*'Markov Model AD -'!I18 -> 0.1144917223 | D19: =tpheroin_OD1*'Markov Model AD -'!C18 -> 0.01118428139 | E19: =tpOD1_heroin1_tcB*'Markov Model AD -'!D18+Mortality!J18*'Markov Model AD -'!E18+tpDC2_heroin*'Markov Model AD -'!J18 -> 0.0622387927 | F19: =tpheroin1_OD2*'Markov Model AD -'!E18 -> 0.01482927875 | G19: =tpOD2_heroin2_tcB*'Markov Model AD -'!F18+Mortality!L18*'Markov Model AD -'!G18+tpOD3_heroin2_tcB*'Markov Model AD -'!H18+tpDC3_heroin2*'Markov Model AD -'!K18 -> 0.1316127711 | H19: =tpheroin2_OD3*'Markov Model AD -'!G18 -> 0.04431382706 | I19: =tpheroin_DC1*'Markov Model AD -'!C18+(1-tpDC1_heroin-Mortality!C39)*'Markov Model AD -'!I18 -> 0.1793939915 | J19: =tpOD1_DC2*'Markov Model AD -'!D18+tpheroin1_DC2*'Markov Model AD -'!E18+(1-tpDC2_heroin-Mortality!C39)*'Markov Model AD -'!J18 -> 0.07286982559 | K19: =tpOD2_DC3*'Markov Model AD -'!F18+tpheroin2_DC3*'Markov Model AD -'!G18+tpOD3_DC3*'Markov Model AD -'!H18+(1-tpDC3_heroin2-Mortality!C39)*'Markov Model AD -'!K18 -> 0.07648325867 | L19: =O19*'Markov Model AD -'!C18+death.tcB*'Markov Model AD -'!D18+O19*'Markov Model AD -'!E18+death.tcB*'Markov Model AD -'!F18+O19*'Markov Model AD -'!G18+death.tcB*'Markov Model AD -'!H18+'Markov Model AD -'!L18+Mortality!C39*I18+Mortality!C39*J18+Mortality!C39*K18 -> 0.292582251 | M19: 1 | N19: 0.707417749 | O19: 0.03309549516 | Q19: 141.3843064 | R19: 0.707417749 | S19: 0.3701445148
A20: 204 | B20: 17 | C20: =Mortality!H19*'Markov Model AD -'!C19+tpDC1_heroin*'Markov Model AD -'!I19 -> 0.1060321804 | D20: =tpheroin_OD1*'Markov Model AD -'!C19 -> 0.010304255 | E20: =tpOD1_heroin1_tcB*'Markov Model AD -'!D19+Mortality!J19*'Markov Model AD -'!E19+tpDC2_heroin*'Markov Model AD -'!J19 -> 0.05771660822 | F20: =tpheroin1_OD2*'Markov Model AD -'!E19 -> 0.01369253439 | G20: =tpOD2_heroin2_tcB*'Markov Model AD -'!F19+Mortality!L19*'Markov Model AD -'!G19+tpOD3_heroin2_tcB*'Markov Model AD -'!H19+tpDC3_heroin2*'Markov Model AD -'!K19 -> 0.1322185453 | H20: =tpheroin2_OD3*'Markov Model AD -'!G19 -> 0.04474834217 | I20: =tpheroin_DC1*'Markov Model AD -'!C19+(1-tpDC1_heroin-Mortality!C40)*'Markov Model AD -'!I19 -> 0.1732540508 | J20: =tpOD1_DC2*'Markov Model AD -'!D19+tpheroin1_DC2*'Markov Model AD -'!E19+(1-tpDC2_heroin-Mortality!C40)*'Markov Model AD -'!J19 -> 0.07201314343 | K20: =tpOD2_DC3*'Markov Model AD -'!F19+tpheroin2_DC3*'Markov Model AD -'!G19+tpOD3_DC3*'Markov Model AD -'!H19+(1-tpDC3_heroin2-Mortality!C40)*'Markov Model AD -'!K19 -> 0.08250042036 | L20: =O20*'Markov Model AD -'!C19+death.tcB*'Markov Model AD -'!D19+O20*'Markov Model AD -'!E19+death.tcB*'Markov Model AD -'!F19+O20*'Markov Model AD -'!G19+death.tcB*'Markov Model AD -'!H19+'Markov Model AD -'!L19+Mortality!C40*I19+Mortality!C40*J19+Mortality!C40*K19 -> 0.30751992 | M20: 1 | N20: 0.69248008 | O20: 0.03356891563 | Q20: 135.3439111 | R20: 0.69248008 | S20: 0.3519871455
A21: 216 | B21: 18 | C21: =Mortality!H20*'Markov Model AD -'!C20+tpDC1_heroin*'Markov Model AD -'!I20 -> 0.09864786557 | D21: =tpheroin_OD1*'Markov Model AD -'!C20 -> 0.009542896232 | E21: =tpOD1_heroin1_tcB*'Markov Model AD -'!D20+Mortality!J20*'Markov Model AD -'!E20+tpDC2_heroin*'Markov Model AD -'!J20 -> 0.05374797756 | F21: =tpheroin1_OD2*'Markov Model AD -'!E20 -> 0.01269765381 | G21: =tpOD2_heroin2_tcB*'Markov Model AD -'!F20+Mortality!L20*'Markov Model AD -'!G20+tpOD3_heroin2_tcB*'Markov Model AD -'!H20+tpDC3_heroin2*'Markov Model AD -'!K20 -> 0.1323020055 | H21: =tpheroin2_OD3*'Markov Model AD -'!G20 -> 0.0449543054 | I21: =tpheroin_DC1*'Markov Model AD -'!C20+(1-tpDC1_heroin-Mortality!C41)*'Markov Model AD -'!I20 -> 0.1670311066 | J21: =tpOD1_DC2*'Markov Model AD -'!D20+tpheroin1_DC2*'Markov Model AD -'!E20+(1-tpDC2_heroin-Mortality!C41)*'Markov Model AD -'!J20 -> 0.07088409338 | K21: =tpOD2_DC3*'Markov Model AD -'!F20+tpheroin2_DC3*'Markov Model AD -'!G20+tpOD3_DC3*'Markov Model AD -'!H20+(1-tpDC3_heroin2-Mortality!C41)*'Markov Model AD -'!K20 -> 0.08806417939 | L21: =O21*'Markov Model AD -'!C20+death.tcB*'Markov Model AD -'!D20+O21*'Markov Model AD -'!E20+death.tcB*'Markov Model AD -'!F20+O21*'Markov Model AD -'!G20+death.tcB*'Markov Model AD -'!H20+'Markov Model AD -'!L20+Mortality!C41*I20+Mortality!C41*J20+Mortality!C41*K20 -> 0.3221279166 | M21: 1 | N21: 0.6778720834 | O21: 0.03402053302 | Q21: 129.5617001 | R21: 0.6778720834 | S21: 0.3347033203
A22: 228 | B22: 19 | C22: =Mortality!H21*'Markov Model AD -'!C21+tpDC1_heroin*'Markov Model AD -'!I21 -> 0.09214419622 | D22: =tpheroin_OD1*'Markov Model AD -'!C21 -> 0.008878307901 | E22: =tpOD1_heroin1_tcB*'Markov Model AD -'!D21+Mortality!J21*'Markov Model AD -'!E21+tpDC2_heroin*'Markov Model AD -'!J21 -> 0.05024986538 | F22: =tpheroin1_OD2*'Markov Model AD -'!E21 -> 0.01182455506 | G22: =tpOD2_heroin2_tcB*'Markov Model AD -'!F21+Mortality!L21*'Markov Model AD -'!G21+tpOD3_heroin2_tcB*'Markov Model AD -'!H21+tpDC3_heroin2*'Markov Model AD -'!K21 -> 0.131983715 | H22: =tpheroin2_OD3*'Markov Model AD -'!G21 -> 0.04498268186 | I22: =tpheroin_DC1*'Markov Model AD -'!C21+(1-tpDC1_heroin-Mortality!C42)*'Markov Model AD -'!I21 -> 0.1607954161 | J22: =tpOD1_DC2*'Markov Model AD -'!D21+tpheroin1_DC2*'Markov Model AD -'!E21+(1-tpDC2_heroin-Mortality!C42)*'Markov Model AD -'!J21 -> 0.06954251968 | K22: =tpOD2_DC3*'Markov Model AD -'!F21+tpheroin2_DC3*'Markov Model AD -'!G21+tpOD3_DC3*'Markov Model AD -'!H21+(1-tpDC3_heroin2-Mortality!C42)*'Markov Model AD -'!K21 -> 0.09316844435 | L22: =O22*'Markov Model AD -'!C21+death.tcB*'Markov Model AD -'!D21+O22*'Markov Model AD -'!E21+death.tcB*'Markov Model AD -'!F21+O22*'Markov Model AD -'!G21+death.tcB*'Markov Model AD -'!H21+'Markov Model AD -'!L21+Mortality!C42*I21+Mortality!C42*J21+Mortality!C42*K21 -> 0.3364302985 | M22: 1 | N22: 0.6635697015 | O22: 0.03445251402 | Q22: 124.0399904 | R22: 0.6635697015 | S22: 0.3182464452
A23: 240 | B23: 20 | C23: =Mortality!H22*'Markov Model AD -'!C22+tpDC1_heroin*'Markov Model AD -'!I22 -> 0.08636548127 | D23: =tpheroin_OD1*'Markov Model AD -'!C22 -> 0.00829297766 | E23: =tpOD1_heroin1_tcB*'Markov Model AD -'!D22+Mortality!J22*'Markov Model AD -'!E22+tpDC2_heroin*'Markov Model AD -'!J22 -> 0.04714915715 | F23: =tpheroin1_OD2*'Markov Model AD -'!E22 -> 0.01105497038 | G23: =tpOD2_heroin2_tcB*'Markov Model AD -'!F22+Mortality!L22*'Markov Model AD -'!G22+tpOD3_heroin2_tcB*'Markov Model AD -'!H22+tpDC3_heroin2*'Markov Model AD -'!K22 -> 0.1313591377 | H23: =tpheroin2_OD3*'Markov Model AD -'!G22 -> 0.04487446309 | I23: =tpheroin_DC1*'Markov Model AD -'!C22+(1-tpDC1_heroin-Mortality!C43)*'Markov Model AD -'!I22 -> 0.1545994303 | J23: =tpOD1_DC2*'Markov Model AD -'!D22+tpheroin1_DC2*'Markov Model AD -'!E22+(1-tpDC2_heroin-Mortality!C43)*'Markov Model AD -'!J22 -> 0.06803717019 | K23: =tpOD2_DC3*'Markov Model AD -'!F22+tpheroin2_DC3*'Markov Model AD -'!G22+tpOD3_DC3*'Markov Model AD -'!H22+(1-tpDC3_heroin2-Mortality!C43)*'Markov Model AD -'!K22 -> 0.09781599992 | L23: =O23*'Markov Model AD -'!C22+death.tcB*'Markov Model AD -'!D22+O23*'Markov Model AD -'!E22+death.tcB*'Markov Model AD -'!F22+O23*'Markov Model AD -'!G22+death.tcB*'Markov Model AD -'!H22+'Markov Model AD -'!L22+Mortality!C43*I22+Mortality!C43*J22+Mortality!C43*K22 -> 0.3504512123 | M23: 1 | N23: 0.6495487877 | O23: 0.03486670645 | Q23: 118.7752718 | R23: 0.6495487877 | S23: 0.302571844
A24: 252 | B24: 21 | C24: =Mortality!H23*'Markov Model AD -'!C23+tpDC1_heroin*'Markov Model AD -'!I23 -> 0.08118696643 | D24: =tpheroin_OD1*'Markov Model AD -'!C23 -> 0.007772893314 | E24: =tpOD1_heroin1_tcB*'Markov Model AD -'!D23+Mortality!J23*'Markov Model AD -'!E23+tpDC2_heroin*'Markov Model AD -'!J23 -> 0.04438286416 | F24: =tpheroin1_OD2*'Markov Model AD -'!E23 -> 0.01037281457 | G24: =tpOD2_heroin2_tcB*'Markov Model AD -'!F23+Mortality!L23*'Markov Model AD -'!G23+tpOD3_heroin2_tcB*'Markov Model AD -'!H23+tpDC3_heroin2*'Markov Model AD -'!K23 -> 0.1305027543 | H24: =tpheroin2_OD3*'Markov Model AD -'!G23 -> 0.04466210681 | I24: =tpheroin_DC1*'Markov Model AD -'!C23+(1-tpDC1_heroin-Mortality!C44)*'Markov Model AD -'!I23 -> 0.1484834671 | J24: =tpOD1_DC2*'Markov Model AD -'!D23+tpheroin1_DC2*'Markov Model AD -'!E23+(1-tpDC2_heroin-Mortality!C44)*'Markov Model AD -'!J23 -> 0.06640823092 | K24: =tpOD2_DC3*'Markov Model AD -'!F23+tpheroin2_DC3*'Markov Model AD -'!G23+tpOD3_DC3*'Markov Model AD -'!H23+(1-tpDC3_heroin2-Mortality!C44)*'Markov Model AD -'!K23 -> 0.102016928 | L24: =O24*'Markov Model AD -'!C23+death.tcB*'Markov Model AD -'!D23+O24*'Markov Model AD -'!E23+death.tcB*'Markov Model AD -'!F23+O24*'Markov Model AD -'!G23+death.tcB*'Markov Model AD -'!H23+'Markov Model AD -'!L23+Mortality!C44*I23+Mortality!C44*J23+Mortality!C44*K23 -> 0.3642109745 | M24: 1 | N24: 0.6357890255 | O24: 0.0352646999 | Q24: 113.7600685 | R24: 0.6357890255 | S24: 0.2876386219
A25: 264 | B25: 22 | C25: =Mortality!H24*'Markov Model AD -'!C24+tpDC1_heroin*'Markov Model AD -'!I24 -> 0.07650862153 | D25: =tpheroin_OD1*'Markov Model AD -'!C24 -> 0.007306826978 | E25: =tpOD1_heroin1_tcB*'Markov Model AD -'!D24+Mortality!J24*'Markov Model AD -'!E24+tpDC2_heroin*'Markov Model AD -'!J24 -> 0.04189761201 | F25: =tpheroin1_OD2*'Markov Model AD -'!E24 -> 0.009764230116 | G25: =tpOD2_heroin2_tcB*'Markov Model AD -'!F24+Mortality!L24*'Markov Model AD -'!G24+tpOD3_heroin2_tcB*'Markov Model AD -'!H24+tpDC3_heroin2*'Markov Model AD -'!K24 -> 0.1294719417 | H25: =tpheroin2_OD3*'Markov Model AD -'!G24 -> 0.04437093645 | I25: =tpheroin_DC1*'Markov Model AD -'!C24+(1-tpDC1_heroin-Mortality!C45)*'Markov Model AD -'!I24 -> 0.1424792326 | J25: =tpOD1_DC2*'Markov Model AD -'!D24+tpheroin1_DC2*'Markov Model AD -'!E24+(1-tpDC2_heroin-Mortality!C45)*'Markov Model AD -'!J24 -> 0.06468914926 | K25: =tpOD2_DC3*'Markov Model AD -'!F24+tpheroin2_DC3*'Markov Model AD -'!G24+tpOD3_DC3*'Markov Model AD -'!H24+(1-tpDC3_heroin2-Mortality!C45)*'Markov Model AD -'!K24 -> 0.105787179 | L25: =O25*'Markov Model AD -'!C24+death.tcB*'Markov Model AD -'!D24+O25*'Markov Model AD -'!E24+death.tcB*'Markov Model AD -'!F24+O25*'Markov Model AD -'!G24+death.tcB*'Markov Model AD -'!H24+'Markov Model AD -'!L24+Mortality!C45*I24+Mortality!C45*J24+Mortality!C45*K24 -> 0.3777242703 | M25: 1 | N25: 0.6222757297 | O25: 0.03564787245 | Q25: 108.9843385 | R25: 0.6222757297 | S25: 0.2734102148
A26: 276 | B26: 23 | C26: =Mortality!H25*'Markov Model AD -'!C25+tpDC1_heroin*'Markov Model AD -'!I25 -> 0.07225023087 | D26: =tpheroin_OD1*'Markov Model AD -'!C25 -> 0.006885775938 | E26: =tpOD1_heroin1_tcB*'Markov Model AD -'!D25+Mortality!J25*'Markov Model AD -'!E25+tpDC2_heroin*'Markov Model AD -'!J25 -> 0.03964874532 | F26: =tpheroin1_OD2*'Markov Model AD -'!E25 -> 0.009217474642 | G26: =tpOD2_heroin2_tcB*'Markov Model AD -'!F25+Mortality!L25*'Markov Model AD -'!G25+tpOD3_heroin2_tcB*'Markov Model AD -'!H25+tpDC3_heroin2*'Markov Model AD -'!K25 -> 0.1283103912 | H26: =tpheroin2_OD3*'Markov Model AD -'!G25 -> 0.04402046019 | I26: =tpheroin_DC1*'Markov Model AD -'!C25+(1-tpDC1_heroin-Mortality!C46)*'Markov Model AD -'!I25 -> 0.1366103989 | J26: =tpOD1_DC2*'Markov Model AD -'!D25+tpheroin1_DC2*'Markov Model AD -'!E25+(1-tpDC2_heroin-Mortality!C46)*'Markov Model AD -'!J25 -> 0.06290722126 | K26: =tpOD2_DC3*'Markov Model AD -'!F25+tpheroin2_DC3*'Markov Model AD -'!G25+tpOD3_DC3*'Markov Model AD -'!H25+(1-tpDC3_heroin2-Mortality!C46)*'Markov Model AD -'!K25 -> 0.1091460757 | L26: =O26*'Markov Model AD -'!C25+death.tcB*'Markov Model AD -'!D25+O26*'Markov Model AD -'!E25+death.tcB*'Markov Model AD -'!F25+O26*'Markov Model AD -'!G25+death.tcB*'Markov Model AD -'!H25+'Markov Model AD -'!L25+Mortality!C46*I25+Mortality!C46*J25+Mortality!C46*K25 -> 0.391003226 | M26: 1 | N26: 0.608996774 | O26: 0.03601742729 | Q26: 104.4365898 | R26: 0.608996774 | S26: 0.259852639
A27: 288 | B27: 24 | C27: =Mortality!H26*'Markov Model AD -'!C26+tpDC1_heroin*'Markov Model AD -'!I26 -> 0.06834736381 | D27: =tpheroin_OD1*'Markov Model AD -'!C26 -> 0.006502520778 | E27: =tpOD1_heroin1_tcB*'Markov Model AD -'!D26+Mortality!J26*'Markov Model AD -'!E26+tpDC2_heroin*'Markov Model AD -'!J26 -> 0.03759922882 | F27: =tpheroin1_OD2*'Markov Model AD -'!E26 -> 0.00872272397 | G27: =tpOD2_heroin2_tcB*'Markov Model AD -'!F26+Mortality!L26*'Markov Model AD -'!G26+tpOD3_heroin2_tcB*'Markov Model AD -'!H26+tpDC3_heroin2*'Markov Model AD -'!K26 -> 0.1270509655 | H27: =tpheroin2_OD3*'Markov Model AD -'!G26 -> 0.043625533 | I27: =tpheroin_DC1*'Markov Model AD -'!C26+(1-tpDC1_heroin-Mortality!C47)*'Markov Model AD -'!I26 -> 0.1308926325 | J27: =tpOD1_DC2*'Markov Model AD -'!D26+tpheroin1_DC2*'Markov Model AD -'!E26+(1-tpDC2_heroin-Mortality!C47)*'Markov Model AD -'!J26 -> 0.06108389623 | K27: =tpOD2_DC3*'Markov Model AD -'!F26+tpheroin2_DC3*'Markov Model AD -'!G26+tpOD3_DC3*'Markov Model AD -'!H26+(1-tpDC3_heroin2-Mortality!C47)*'Markov Model AD -'!K26 -> 0.1121136943 | L27: =O27*'Markov Model AD -'!C26+death.tcB*'Markov Model AD -'!D26+O27*'Markov Model AD -'!E26+death.tcB*'Markov Model AD -'!F26+O27*'Markov Model AD -'!G26+death.tcB*'Markov Model AD -'!H26+'Markov Model AD -'!L26+Mortality!C47*I26+Mortality!C47*J26+Mortality!C47*K26 -> 0.4040614411 | M27: 1 | N27: 0.5959385589 | O27: 0.03637442153 | Q27: 100.1047057 | R27: 0.5959385589 | S27: 0.2469325951
A28: 300 | B28: 25 | C28: =Mortality!H27*'Markov Model AD -'!C27+tpDC1_heroin*'Markov Model AD -'!I27 -> 0.06474804271 | D28: =tpheroin_OD1*'Markov Model AD -'!C27 -> 0.006151262743 | E28: =tpOD1_heroin1_tcB*'Markov Model AD -'!D27+Mortality!J27*'Markov Model AD -'!E27+tpDC2_heroin*'Markov Model AD -'!J27 -> 0.03571849948 | F28: =tpheroin1_OD2*'Markov Model AD -'!E27 -> 0.00827183034 | G28: =tpOD2_heroin2_tcB*'Markov Model AD -'!F27+Mortality!L27*'Markov Model AD -'!G27+tpOD3_heroin2_tcB*'Markov Model AD -'!H27+tpDC3_heroin2*'Markov Model AD -'!K27 -> 0.1257180086 | H28: =tpheroin2_OD3*'Markov Model AD -'!G27 -> 0.04319732827 | I28: =tpheroin_DC1*'Markov Model AD -'!C27+(1-tpDC1_heroin-Mortality!C48)*'Markov Model AD -'!I27 -> 0.1253346425 | J28: =tpOD1_DC2*'Markov Model AD -'!D27+tpheroin1_DC2*'Markov Model AD -'!E27+(1-tpDC2_heroin-Mortality!C48)*'Markov Model AD -'!J27 -> 0.05923550211 | K28: =tpOD2_DC3*'Markov Model AD -'!F27+tpheroin2_DC3*'Markov Model AD -'!G27+tpOD3_DC3*'Markov Model AD -'!H27+(1-tpDC3_heroin2-Mortality!C48)*'Markov Model AD -'!K27 -> 0.1147092481 | L28: =O28*'Markov Model AD -'!C27+death.tcB*'Markov Model AD -'!D27+O28*'Markov Model AD -'!E27+death.tcB*'Markov Model AD -'!F27+O28*'Markov Model AD -'!G27+death.tcB*'Markov Model AD -'!H27+'Markov Model AD -'!L27+Mortality!C48*I27+Mortality!C48*J27+Mortality!C48*K27 -> 0.4169156351 | M28: 1 | N28: 0.5830843649 | O28: 0.03671978937 | Q28: 95.9764873 | R28: 0.5830843649 | S28: 0.2346168843
A29: 312 | B29: 26 | C29: =Mortality!H28*'Markov Model AD -'!C28+tpDC1_heroin*'Markov Model AD -'!I28 -> 0.06141006395 | D29: =tpheroin_OD1*'Markov Model AD -'!C28 -> 0.005827323844 | E29: =tpOD1_heroin1_tcB*'Markov Model AD -'!D28+Mortality!J28*'Markov Model AD -'!E28+tpDC2_heroin*'Markov Model AD -'!J28 -> 0.03398139037 | F29: =tpheroin1_OD2*'Markov Model AD -'!E28 -> 0.007858069886 | G29: =tpOD2_heroin2_tcB*'Markov Model AD -'!F28+Mortality!L28*'Markov Model AD -'!G28+tpOD3_heroin2_tcB*'Markov Model AD -'!H28+tpDC3_heroin2*'Markov Model AD -'!K28 -> 0.1243291993 | H29: =tpheroin2_OD3*'Markov Model AD -'!G28 -> 0.04274412293 | I29: =tpheroin_DC1*'Markov Model AD -'!C28+(1-tpDC1_heroin-Mortality!C49)*'Markov Model AD -'!I28 -> 0.1199402697 | J29: =tpOD1_DC2*'Markov Model AD -'!D28+tpheroin1_DC2*'Markov Model AD -'!E28+(1-tpDC2_heroin-Mortality!C49)*'Markov Model AD -'!J28 -> 0.05737444028 | K29: =tpOD2_DC3*'Markov Model AD -'!F28+tpheroin2_DC3*'Markov Model AD -'!G28+tpOD3_DC3*'Markov Model AD -'!H28+(1-tpDC3_heroin2-Mortality!C49)*'Markov Model AD -'!K28 -> 0.116950821 | L29: =O29*'Markov Model AD -'!C28+death.tcB*'Markov Model AD -'!D28+O29*'Markov Model AD -'!E28+death.tcB*'Markov Model AD -'!F28+O29*'Markov Model AD -'!G28+death.tcB*'Markov Model AD -'!H28+'Markov Model AD -'!L28+Mortality!C49*I28+Mortality!C49*J28+Mortality!C49*K28 -> 0.4295842988 | M29: 1 | N29: 0.5704157012 | O29: 0.03705436074 | Q29: 92.03997842 | R29: 0.5704157012 | S29: 0.2228731428
A30: 324 | B30: 27 | C30: =Mortality!H29*'Markov Model AD -'!C29+tpDC1_heroin*'Markov Model AD -'!I29 -> 0.05829893403 | D30: =tpheroin_OD1*'Markov Model AD -'!C29 -> 0.005526905755 | E30: =tpOD1_heroin1_tcB*'Markov Model AD -'!D29+Mortality!J29*'Markov Model AD -'!E29+tpDC2_heroin*'Markov Model AD -'!J29 -> 0.03236719665 | F30: =tpheroin1_OD2*'Markov Model AD -'!E29 -> 0.007475905882 | G30: =tpOD2_heroin2_tcB*'Markov Model AD -'!F29+Mortality!L29*'Markov Model AD -'!G29+tpOD3_heroin2_tcB*'Markov Model AD -'!H29+tpDC3_heroin2*'Markov Model AD -'!K29 -> 0.1228970621 | H30: =tpheroin2_OD3*'Markov Model AD -'!G29 -> 0.04227192775 | I30: =tpheroin_DC1*'Markov Model AD -'!C29+(1-tpDC1_heroin-Mortality!C50)*'Markov Model AD -'!I29 -> 0.1147114825 | J30: =tpOD1_DC2*'Markov Model AD -'!D29+tpheroin1_DC2*'Markov Model AD -'!E29+(1-tpDC2_heroin-Mortality!C50)*'Markov Model AD -'!J29 -> 0.05551082198 | K30: =tpOD2_DC3*'Markov Model AD -'!F29+tpheroin2_DC3*'Markov Model AD -'!G29+tpOD3_DC3*'Markov Model AD -'!H29+(1-tpDC3_heroin2-Mortality!C50)*'Markov Model AD -'!K29 -> 0.1188566796 | L30: =O30*'Markov Model AD -'!C29+death.tcB*'Markov Model AD -'!D29+O30*'Markov Model AD -'!E29+death.tcB*'Markov Model AD -'!F29+O30*'Markov Model AD -'!G29+death.tcB*'Markov Model AD -'!H29+'Markov Model AD -'!L29+Mortality!C50*I29+Mortality!C50*J29+Mortality!C50*K29 -> 0.4420830837 | M30: 1 | N30: 0.5579169163 | O30: 0.03737887653 | Q30: 88.2836591 | R30: 0.5579169163 | S30: 0.2116717355
A31: 336 | B31: 28 | C31: =Mortality!H30*'Markov Model AD -'!C30+tpDC1_heroin*'Markov Model AD -'!I30 -> 0.05538637762 | D31: =tpheroin_OD1*'Markov Model AD -'!C30 -> 0.005246904063 | E31: =tpOD1_heroin1_tcB*'Markov Model AD -'!D30+Mortality!J30*'Markov Model AD -'!E30+tpDC2_heroin*'Markov Model AD -'!J30 -> 0.03085892552 | F31: =tpheroin1_OD2*'Markov Model AD -'!E30 -> 0.007120783264 | G31: =tpOD2_heroin2_tcB*'Markov Model AD -'!F30+Mortality!L30*'Markov Model AD -'!G30+tpOD3_heroin2_tcB*'Markov Model AD -'!H30+tpDC3_heroin2*'Markov Model AD -'!K30 -> 0.1214302686 | H31: =tpheroin2_OD3*'Markov Model AD -'!G30 -> 0.04178500112 | I31: =tpheroin_DC1*'Markov Model AD -'!C30+(1-tpDC1_heroin-Mortality!C51)*'Markov Model AD -'!I30 -> 0.1096490658 | J31: =tpOD1_DC2*'Markov Model AD -'!D30+tpheroin1_DC2*'Markov Model AD -'!E30+(1-tpDC2_heroin-Mortality!C51)*'Markov Model AD -'!J30 -> 0.05365302278 | K31: =tpOD2_DC3*'Markov Model AD -'!F30+tpheroin2_DC3*'Markov Model AD -'!G30+tpOD3_DC3*'Markov Model AD -'!H30+(1-tpDC3_heroin2-Mortality!C51)*'Markov Model AD -'!K30 -> 0.1204451806 | L31: =O31*'Markov Model AD -'!C30+death.tcB*'Markov Model AD -'!D30+O31*'Markov Model AD -'!E30+death.tcB*'Markov Model AD -'!F30+O31*'Markov Model AD -'!G30+death.tcB*'Markov Model AD -'!H30+'Markov Model AD -'!L30+Mortality!C51*I30+Mortality!C51*J30+Mortality!C51*K30 -> 0.4544244706 | M31: 1 | N31: 0.5455755294 | O31: 0.0376940011 | Q31: 84.69657541 | R31: 0.5455755294 | S31: 0.2009856702
A32: 348 | B32: 29 | C32: =Mortality!H31*'Markov Model AD -'!C31+tpDC1_heroin*'Markov Model AD -'!I31 -> 0.05264915481 | D32: =tpheroin_OD1*'Markov Model AD -'!C31 -> 0.004984773986 | E32: =tpOD1_heroin1_tcB*'Markov Model AD -'!D31+Mortality!J31*'Markov Model AD -'!E31+tpDC2_heroin*'Markov Model AD -'!J31 -> 0.02944264802 | F32: =tpheroin1_OD2*'Markov Model AD -'!E31 -> 0.006788963615 | G32: =tpOD2_heroin2_tcB*'Markov Model AD -'!F31+Mortality!L31*'Markov Model AD -'!G31+tpOD3_heroin2_tcB*'Markov Model AD -'!H31+tpDC3_heroin2*'Markov Model AD -'!K31 -> 0.1199346426 | H32: =tpheroin2_OD3*'Markov Model AD -'!G31 -> 0.04128629132 | I32: =tpheroin_DC1*'Markov Model AD -'!C31+(1-tpDC1_heroin-Mortality!C52)*'Markov Model AD -'!I31 -> 0.1047530268 | J32: =tpOD1_DC2*'Markov Model AD -'!D31+tpheroin1_DC2*'Markov Model AD -'!E31+(1-tpDC2_heroin-Mortality!C52)*'Markov Model AD -'!J31 -> 0.05180807115 | K32: =tpOD2_DC3*'Markov Model AD -'!F31+tpheroin2_DC3*'Markov Model AD -'!G31+tpOD3_DC3*'Markov Model AD -'!H31+(1-tpDC3_heroin2-Mortality!C52)*'Markov Model AD -'!K31 -> 0.121734664 | L32: =O32*'Markov Model AD -'!C31+death.tcB*'Markov Model AD -'!D31+O32*'Markov Model AD -'!E31+death.tcB*'Markov Model AD -'!F31+O32*'Markov Model AD -'!G31+death.tcB*'Markov Model AD -'!H31+'Markov Model AD -'!L31+Mortality!C52*I31+Mortality!C52*J31+Mortality!C52*K31 -> 0.4666177637 | M32: 1 | N32: 0.5333822363 | O32: 0.03800033267 | Q32: 81.26846016 | R32: 0.5333822363 | S32: 0.1907903782
A33: 360 | B33: 30 | C33: =Mortality!H32*'Markov Model AD -'!C32+tpDC1_heroin*'Markov Model AD -'!I32 -> 0.05006811444 | D33: =tpheroin_OD1*'Markov Model AD -'!C32 -> 0.004738423933 | E33: =tpOD1_heroin1_tcB*'Markov Model AD -'!D32+Mortality!J32*'Markov Model AD -'!E32+tpDC2_heroin*'Markov Model AD -'!J32 -> 0.02810695669 | F33: =tpheroin1_OD2*'Markov Model AD -'!E32 -> 0.006477382564 | G33: =tpOD2_heroin2_tcB*'Markov Model AD -'!F32+Mortality!L32*'Markov Model AD -'!G32+tpOD3_heroin2_tcB*'Markov Model AD -'!H32+tpDC3_heroin2*'Markov Model AD -'!K32 -> 0.1184139686 | H33: =tpheroin2_OD3*'Markov Model AD -'!G32 -> 0.04077777847 | I33: =tpheroin_DC1*'Markov Model AD -'!C32+(1-tpDC1_heroin-Mortality!C53)*'Markov Model AD -'!I32 -> 0.1000232748 | J33: =tpOD1_DC2*'Markov Model AD -'!D32+tpheroin1_DC2*'Markov Model AD -'!E32+(1-tpDC2_heroin-Mortality!C53)*'Markov Model AD -'!J32 -> 0.04998214344 | K33: =tpOD2_DC3*'Markov Model AD -'!F32+tpheroin2_DC3*'Markov Model AD -'!G32+tpOD3_DC3*'Markov Model AD -'!H32+(1-tpDC3_heroin2-Mortality!C53)*'Markov Model AD -'!K32 -> 0.1227438605 | L33: =O33*'Markov Model AD -'!C32+death.tcB*'Markov Model AD -'!D32+O33*'Markov Model AD -'!E32+death.tcB*'Markov Model AD -'!F32+O33*'Markov Model AD -'!G32+death.tcB*'Markov Model AD -'!H32+'Markov Model AD -'!L32+Mortality!C53*I32+Mortality!C53*J32+Mortality!C53*K32 -> 0.4786680966 | M33: 1 | N33: 0.5213319034 | O33: 0.03829841195 | Q33: 77.98978372 | R33: 0.5213319034 | S33: 0.1810638641
A34: 372 | B34: 31 | C34: =Mortality!H33*'Markov Model AD -'!C33+tpDC1_heroin*'Markov Model AD -'!I33 -> 0.0476274616 | D34: =tpheroin_OD1*'Markov Model AD -'!C33 -> 0.0045061303 | E34: =tpOD1_heroin1_tcB*'Markov Model AD -'!D33+Mortality!J33*'Markov Model AD -'!E33+tpDC2_heroin*'Markov Model AD -'!J33 -> 0.02684252948 | F34: =tpheroin1_OD2*'Markov Model AD -'!E33 -> 0.006183530472 | G34: =tpOD2_heroin2_tcB*'Markov Model AD -'!F33+Mortality!L33*'Markov Model AD -'!G33+tpOD3_heroin2_tcB*'Markov Model AD -'!H33+tpDC3_heroin2*'Markov Model AD -'!K33 -> 0.116870654 | H34: =tpheroin2_OD3*'Markov Model AD -'!G33 -> 0.04026074932 | I34: =tpheroin_DC1*'Markov Model AD -'!C33+(1-tpDC1_heroin-Mortality!C54)*'Markov Model AD -'!I33 -> 0.09545703497 | J34: =tpOD1_DC2*'Markov Model AD -'!D33+tpheroin1_DC2*'Markov Model AD -'!E33+(1-tpDC2_heroin-Mortality!C54)*'Markov Model AD -'!J33 -> 0.04817941203 | K34: =tpOD2_DC3*'Markov Model AD -'!F33+tpheroin2_DC3*'Markov Model AD -'!G33+tpOD3_DC3*'Markov Model AD -'!H33+(1-tpDC3_heroin2-Mortality!C54)*'Markov Model AD -'!K33 -> 0.1234885695 | L34: =O34*'Markov Model AD -'!C33+death.tcB*'Markov Model AD -'!D33+O34*'Markov Model AD -'!E33+death.tcB*'Markov Model AD -'!F33+O34*'Markov Model AD -'!G33+death.tcB*'Markov Model AD -'!H33+'Markov Model AD -'!L33+Mortality!C54*I33+Mortality!C54*J33+Mortality!C54*K33 -> 0.4905839284 | M34: 1 | N34: 0.5094160716 | O34: 0.03858872939 | Q34: 74.85177035 | R34: 0.5094160716 | S34: 0.1717838336
A35: 384 | B35: 32 | C35: =Mortality!H34*'Markov Model AD -'!C34+tpDC1_heroin*'Markov Model AD -'!I34 -> 0.04531397291 | D35: =tpheroin_OD1*'Markov Model AD -'!C34 -> 0.004286471544 | E35: =tpOD1_heroin1_tcB*'Markov Model AD -'!D34+Mortality!J34*'Markov Model AD -'!E34+tpDC2_heroin*'Markov Model AD -'!J34 -> 0.02564167104 | F35: =tpheroin1_OD2*'Markov Model AD -'!E34 -> 0.005905356485 | G35: =tpOD2_heroin2_tcB*'Markov Model AD -'!F34+Mortality!L34*'Markov Model AD -'!G34+tpOD3_heroin2_tcB*'Markov Model AD -'!H34+tpDC3_heroin2*'Markov Model AD -'!K34 -> 0.1153060082 | H35: =tpheroin2_OD3*'Markov Model AD -'!G34 -> 0.03973602236 | I35: =tpheroin_DC1*'Markov Model AD -'!C34+(1-tpDC1_heroin-Mortality!C55)*'Markov Model AD -'!I34 -> 0.09104871706 | J35: =tpOD1_DC2*'Markov Model AD -'!D34+tpheroin1_DC2*'Markov Model AD -'!E34+(1-tpDC2_heroin-Mortality!C55)*'Markov Model AD -'!J34 -> 0.04640204004 | K35: =tpOD2_DC3*'Markov Model AD -'!F34+tpheroin2_DC3*'Markov Model AD -'!G34+tpOD3_DC3*'Markov Model AD -'!H34+(1-tpDC3_heroin2-Mortality!C55)*'Markov Model AD -'!K34 -> 0.1239806938 | L35: =O35*'Markov Model AD -'!C34+death.tcB*'Markov Model AD -'!D34+O35*'Markov Model AD -'!E34+death.tcB*'Markov Model AD -'!F34+O35*'Markov Model AD -'!G34+death.tcB*'Markov Model AD -'!H34+'Markov Model AD -'!L34+Mortality!C55*I34+Mortality!C55*J34+Mortality!C55*K34 -> 0.5023790466 | M35: 1 | N35: 0.4976209534 | O35: 0.03887173139 | Q35: =(C35*c.society+D35*c.overdose1_tcB+E35*c.society+F35*c.overdose2_tcB+G35*c.society+H35*c.overdose3_tcB+I35*c.discontinue1+J35*c.discontinue2+K35*c.discontinue3+L35*c.death+c.nal1*2)/(1+cDR)^cycle -> 71.84639878 | R35: 0.4976209534 | S35: =(C35*u.heroin1+D35*u.overdose1_tcB+E35*u.heroin2+F35*u.overdose2_tcB+G35*u.heroin2+H35*u.overdose3_tcB+I35*u.discontinue1+J35*u.discontinue2+K35*u.discontinue3+L35*u.death)/(1+oDR)^cycle -> 0.1629271746
A36: 396 | B36: 33 | C36: =Mortality!H35*'Markov Model AD -'!C35+tpDC1_heroin*'Markov Model AD -'!I35 -> 0.04311634367 | D36: =tpheroin_OD1*'Markov Model AD -'!C35 -> 0.004078257562 | E36: =tpOD1_heroin1_tcB*'Markov Model AD -'!D35+Mortality!J35*'Markov Model AD -'!E35+tpDC2_heroin*'Markov Model AD -'!J35 -> 0.02449793727 | F36: =tpheroin1_OD2*'Markov Model AD -'!E35 -> 0.005641167629 | G36: =tpOD2_heroin2_tcB*'Markov Model AD -'!F35+Mortality!L35*'Markov Model AD -'!G35+tpOD3_heroin2_tcB*'Markov Model AD -'!H35+tpDC3_heroin2*'Markov Model AD -'!K35 -> 0.1137204469 | H36: =tpheroin2_OD3*'Markov Model AD -'!G35 -> 0.03920404278 | I36: =tpheroin_DC1*'Markov Model AD -'!C35+(1-tpDC1_heroin-Mortality!C56)*'Markov Model AD -'!I35 -> 0.08679144779 | J36: =tpOD1_DC2*'Markov Model AD -'!D35+tpheroin1_DC2*'Markov Model AD -'!E35+(1-tpDC2_heroin-Mortality!C56)*'Markov Model AD -'!J35 -> 0.04465100019 | K36: =tpOD2_DC3*'Markov Model AD -'!F35+tpheroin2_DC3*'Markov Model AD -'!G35+tpOD3_DC3*'Markov Model AD -'!H35+(1-tpDC3_heroin2-Mortality!C56)*'Markov Model AD -'!K35 -> 0.1242294804 | L36: =O36*'Markov Model AD -'!C35+death.tcB*'Markov Model AD -'!D35+O36*'Markov Model AD -'!E35+death.tcB*'Markov Model AD -'!F35+O36*'Markov Model AD -'!G35+death.tcB*'Markov Model AD -'!H35+'Markov Model AD -'!L35+Mortality!C56*I35+Mortality!C56*J35+Mortality!C56*K35 -> 0.5140698758 | M36: 1 | N36: 0.4859301242 | O36: 0.03914782544 | Q36: 68.96628487 | R36: 0.4859301242 | S36: 0.1544710912
A37: 408 | B37: 34 | C37: =Mortality!H36*'Markov Model AD -'!C36+tpDC1_heroin*'Markov Model AD -'!I36 -> 0.04102475996 | D37: =tpheroin_OD1*'Markov Model AD -'!C36 -> 0.00388047093 | E37: =tpOD1_heroin1_tcB*'Markov Model AD -'!D36+Mortality!J36*'Markov Model AD -'!E36+tpDC2_heroin*'Markov Model AD -'!J36 -> 0.02340587111 | F37: =tpheroin1_OD2*'Markov Model AD -'!E36 -> 0.005389546199 | G37: =tpOD2_heroin2_tcB*'Markov Model AD -'!F36+Mortality!L36*'Markov Model AD -'!G36+tpOD3_heroin2_tcB*'Markov Model AD -'!H36+tpDC3_heroin2*'Markov Model AD -'!K36 -> 0.1121136897 | H37: =tpheroin2_OD3*'Markov Model AD -'!G36 -> 0.03866495195 | I37: =tpheroin_DC1*'Markov Model AD -'!C36+(1-tpDC1_heroin-Mortality!C57)*'Markov Model AD -'!I36 -> 0.08267949793 | J37: =tpOD1_DC2*'Markov Model AD -'!D36+tpheroin1_DC2*'Markov Model AD -'!E36+(1-tpDC2_heroin-Mortality!C57)*'Markov Model AD -'!J36 -> 0.04292737563 | K37: =tpOD2_DC3*'Markov Model AD -'!F36+tpheroin2_DC3*'Markov Model AD -'!G36+tpOD3_DC3*'Markov Model AD -'!H36+(1-tpDC3_heroin2-Mortality!C57)*'Markov Model AD -'!K36 -> 0.1242445543 | L37: =O37*'Markov Model AD -'!C36+death.tcB*'Markov Model AD -'!D36+O37*'Markov Model AD -'!E36+death.tcB*'Markov Model AD -'!F36+O37*'Markov Model AD -'!G36+death.tcB*'Markov Model AD -'!H36+'Markov Model AD -'!L36+Mortality!C57*I36+Mortality!C57*J36+Mortality!C57*K36 -> 0.5256692823 | M37: 1 | N37: 0.4743307177 | O37: 0.03941738467 | Q37: 66.20458099 | R37: 0.4743307177 | S37: 0.1463951719
A38: 420 | B38: 35 | C38: =Mortality!H37*'Markov Model AD -'!C37+tpDC1_heroin*'Markov Model AD -'!I37 -> 0.03903071751 | D38: =tpheroin_OD1*'Markov Model AD -'!C37 -> 0.003692228396 | E38: =tpOD1_heroin1_tcB*'Markov Model AD -'!D37+Mortality!J37*'Markov Model AD -'!E37+tpDC2_heroin*'Markov Model AD -'!J37 -> 0.02236085926 | F38: =tpheroin1_OD2*'Markov Model AD -'!E37 -> 0.005149291645 | G38: =tpOD2_heroin2_tcB*'Markov Model AD -'!F37+Mortality!L37*'Markov Model AD -'!G37+tpOD3_heroin2_tcB*'Markov Model AD -'!H37+tpDC3_heroin2*'Markov Model AD -'!K37 -> 0.1104850716 | H38: =tpheroin2_OD3*'Markov Model AD -'!G37 -> 0.03811865451 | I38: =tpheroin_DC1*'Markov Model AD -'!C37+(1-tpDC1_heroin-Mortality!C58)*'Markov Model AD -'!I37 -> 0.07871129088 | J38: =tpOD1_DC2*'Markov Model AD -'!D37+tpheroin1_DC2*'Markov Model AD -'!E37+(1-tpDC2_heroin-Mortality!C58)*'Markov Model AD -'!J37 -> 0.04123400665 | K38: =tpOD2_DC3*'Markov Model AD -'!F37+tpheroin2_DC3*'Markov Model AD -'!G37+tpOD3_DC3*'Markov Model AD -'!H37+(1-tpDC3_heroin2-Mortality!C58)*'Markov Model AD -'!K37 -> 0.1240406942 | L38: =O38*'Markov Model AD -'!C37+death.tcB*'Markov Model AD -'!D37+O38*'Markov Model AD -'!E37+death.tcB*'Markov Model AD -'!F37+O38*'Markov Model AD -'!G37+death.tcB*'Markov Model AD -'!H37+'Markov Model AD -'!L37+Mortality!C58*I37+Mortality!C58*J37+Mortality!C58*K37 -> 0.5371771853 | M38: 1 | N38: 0.4628228147 | O38: 0.0396807516 | Q38: 63.5549182 | R38: 0.4628228147 | S38: 0.1386840812
A39: 432 | B39: 36 | C39: =Mortality!H38*'Markov Model AD -'!C38+tpDC1_heroin*'Markov Model AD -'!I38 -> 0.03712708202 | D39: =tpheroin_OD1*'Markov Model AD -'!C38 -> 0.003512764576 | E39: =tpOD1_heroin1_tcB*'Markov Model AD -'!D38+Mortality!J38*'Markov Model AD -'!E38+tpDC2_heroin*'Markov Model AD -'!J38 -> 0.02135911375 | F39: =tpheroin1_OD2*'Markov Model AD -'!E38 -> 0.004919389037 | G39: =tpOD2_heroin2_tcB*'Markov Model AD -'!F38+Mortality!L38*'Markov Model AD -'!G38+tpOD3_heroin2_tcB*'Markov Model AD -'!H38+tpDC3_heroin2*'Markov Model AD -'!K38 -> 0.1088340604 | H39: =tpheroin2_OD3*'Markov Model AD -'!G38 -> 0.03756492435 | I39: =tpheroin_DC1*'Markov Model AD -'!C38+(1-tpDC1_heroin-Mortality!C59)*'Markov Model AD -'!I38 -> 0.07488460206 | J39: =tpOD1_DC2*'Markov Model AD -'!D38+tpheroin1_DC2*'Markov Model AD -'!E38+(1-tpDC2_heroin-Mortality!C59)*'Markov Model AD -'!J38 -> 0.03957310498 | K39: =tpOD2_DC3*'Markov Model AD -'!F38+tpheroin2_DC3*'Markov Model AD -'!G38+tpOD3_DC3*'Markov Model AD -'!H38+(1-tpDC3_heroin2-Mortality!C59)*'Markov Model AD -'!K38 -> 0.1236314554 | L39: =O39*'Markov Model AD -'!C38+death.tcB*'Markov Model AD -'!D38+O39*'Markov Model AD -'!E38+death.tcB*'Markov Model AD -'!F38+O39*'Markov Model AD -'!G38+death.tcB*'Markov Model AD -'!H38+'Markov Model AD -'!L38+Mortality!C59*I38+Mortality!C59*J38+Mortality!C59*K38 -> 0.5485935034 | M39: 1 | N39: 0.4514064966 | O39: 0.03993824152 | Q39: 61.01141695 | R39: 0.4514064966 | S39: 0.1313230013
A40: 444 | B40: 37 | C40: =Mortality!H39*'Markov Model AD -'!C39+tpDC1_heroin*'Markov Model AD -'!I39 -> 0.03530779904 | D40: =tpheroin_OD1*'Markov Model AD -'!C39 -> 0.003341437382 | E40: =tpOD1_heroin1_tcB*'Markov Model AD -'!D39+Mortality!J39*'Markov Model AD -'!E39+tpDC2_heroin*'Markov Model AD -'!J39 -> 0.02039747629 | F40: =tpheroin1_OD2*'Markov Model AD -'!E39 -> 0.004699005024 | G40: =tpOD2_heroin2_tcB*'Markov Model AD -'!F39+Mortality!L39*'Markov Model AD -'!G39+tpOD3_heroin2_tcB*'Markov Model AD -'!H39+tpDC3_heroin2*'Markov Model AD -'!K39 -> 0.1071601658 | H40: =tpheroin2_OD3*'Markov Model AD -'!G39 -> 0.03700358054 | I40: =tpheroin_DC1*'Markov Model AD -'!C39+(1-tpDC1_heroin-Mortality!C60)*'Markov Model AD -'!I39 -> 0.07119321616 | J40: =tpOD1_DC2*'Markov Model AD -'!D39+tpheroin1_DC2*'Markov Model AD -'!E39+(1-tpDC2_heroin-Mortality!C60)*'Markov Model AD -'!J39 -> 0.0379445153 | K40: =tpOD2_DC3*'Markov Model AD -'!F39+tpheroin2_DC3*'Markov Model AD -'!G39+tpOD3_DC3*'Markov Model AD -'!H39+(1-tpDC3_heroin2-Mortality!C60)*'Markov Model AD -'!K39 -> 0.1230234785 | L40: =O40*'Markov Model AD -'!C39+death.tcB*'Markov Model AD -'!D39+O40*'Markov Model AD -'!E39+death.tcB*'Markov Model AD -'!F39+O40*'Markov Model AD -'!G39+death.tcB*'Markov Model AD -'!H39+'Markov Model AD -'!L39+Mortality!C60*I39+Mortality!C60*J39+Mortality!C60*K39 -> 0.5599293259 | M40: 1 | N40: 0.4400706741 | O40: 0.04019014531 | Q40: 58.56877542 | R40: 0.4400706741 | S40: 0.1242943508
A41: 456 | B41: 38 | C41: =Mortality!H40*'Markov Model AD -'!C40+tpDC1_heroin*'Markov Model AD -'!I40 -> 0.03356742231 | D41: =tpheroin_OD1*'Markov Model AD -'!C40 -> 0.003177701914 | E41: =tpOD1_heroin1_tcB*'Markov Model AD -'!D40+Mortality!J40*'Markov Model AD -'!E40+tpDC2_heroin*'Markov Model AD -'!J40 -> 0.01947316684 | F41: =tpheroin1_OD2*'Markov Model AD -'!E40 -> 0.004487444784 | G41: =tpOD2_heroin2_tcB*'Markov Model AD -'!F40+Mortality!L40*'Markov Model AD -'!G40+tpOD3_heroin2_tcB*'Markov Model AD -'!H40+tpDC3_heroin2*'Markov Model AD -'!K40 -> 0.1054626415 | H41: =tpheroin2_OD3*'Markov Model AD -'!G40 -> 0.03643445637 | I41: =tpheroin_DC1*'Markov Model AD -'!C40+(1-tpDC1_heroin-Mortality!C61)*'Markov Model AD -'!I40 -> 0.06763082163 | J41: =tpOD1_DC2*'Markov Model AD -'!D40+tpheroin1_DC2*'Markov Model AD -'!E40+(1-tpDC2_heroin-Mortality!C61)*'Markov Model AD -'!J40 -> 0.03634775051 | K41: =tpOD2_DC3*'Markov Model AD -'!F40+tpheroin2_DC3*'Markov Model AD -'!G40+tpOD3_DC3*'Markov Model AD -'!H40+(1-tpDC3_heroin2-Mortality!C61)*'Markov Model AD -'!K40 -> 0.1222219907 | L41: =O41*'Markov Model AD -'!C40+death.tcB*'Markov Model AD -'!D40+O41*'Markov Model AD -'!E40+death.tcB*'Markov Model AD -'!F40+O41*'Markov Model AD -'!G40+death.tcB*'Markov Model AD -'!H40+'Markov Model AD -'!L40+Mortality!C61*I40+Mortality!C61*J40+Mortality!C61*K40 -> 0.5711966034 | M41: 1 | N41: 0.4288033966 | O41: 0.04043673198 | Q41: 56.22214895 | R41: 0.4288033966 | S41: 0.1175812046
A42: 468 | B42: 39 | C42: =Mortality!H41*'Markov Model AD -'!C41+tpDC1_heroin*'Markov Model AD -'!I41 -> 0.03190100245 | D42: =tpheroin_OD1*'Markov Model AD -'!C41 -> 0.003021068008 | E42: =tpOD1_heroin1_tcB*'Markov Model AD -'!D41+Mortality!J41*'Markov Model AD -'!E41+tpDC2_heroin*'Markov Model AD -'!J41 -> 0.01858373088 | F42: =tpheroin1_OD2*'Markov Model AD -'!E41 -> 0.004284096704 | G42: =tpOD2_heroin2_tcB*'Markov Model AD -'!F41+Mortality!L41*'Markov Model AD -'!G41+tpOD3_heroin2_tcB*'Markov Model AD -'!H41+tpDC3_heroin2*'Markov Model AD -'!K41 -> 0.103740638 | H42: =tpheroin2_OD3*'Markov Model AD -'!G41 -> 0.03585729812 | I42: =tpheroin_DC1*'Markov Model AD -'!C41+(1-tpDC1_heroin-Mortality!C62)*'Markov Model AD -'!I41 -> 0.0641933949 | J42: =tpOD1_DC2*'Markov Model AD -'!D41+tpheroin1_DC2*'Markov Model AD -'!E41+(1-tpDC2_heroin-Mortality!C62)*'Markov Model AD -'!J41 -> 0.0347832994 | K42: =tpOD2_DC3*'Markov Model AD -'!F41+tpheroin2_DC3*'Markov Model AD -'!G41+tpOD3_DC3*'Markov Model AD -'!H41+(1-tpDC3_heroin2-Mortality!C62)*'Markov Model AD -'!K41 -> 0.1212350414 | L42: =O42*'Markov Model AD -'!C41+death.tcB*'Markov Model AD -'!D41+O42*'Markov Model AD -'!E41+death.tcB*'Markov Model AD -'!F41+O42*'Markov Model AD -'!G41+death.tcB*'Markov Model AD -'!H41+'Markov Model AD -'!L41+Mortality!C62*I41+Mortality!C62*J41+Mortality!C62*K41 -> 0.5824004301 | M42: 1 | N42: 0.4175995699 | O42: 0.04067825081 | Q42: 53.96697986 | R42: 0.4175995699 | S42: 0.1111694245
A43: 480 | B43: 40 | C43: =Mortality!H42*'Markov Model AD -'!C42+tpDC1_heroin*'Markov Model AD -'!I42 -> 0.03030416234 | D43: =tpheroin_OD1*'Markov Model AD -'!C42 -> 0.002871090221 | E43: =tpOD1_heroin1_tcB*'Markov Model AD -'!D42+Mortality!J42*'Markov Model AD -'!E42+tpDC2_heroin*'Markov Model AD -'!J42 -> 0.01772705683 | F43: =tpheroin1_OD2*'Markov Model AD -'!E42 -> 0.004088420793 | G43: =tpOD2_heroin2_tcB*'Markov Model AD -'!F42+Mortality!L42*'Markov Model AD -'!G42+tpOD3_heroin2_tcB*'Markov Model AD -'!H42+tpDC3_heroin2*'Markov Model AD -'!K42 -> 0.1019934455 | H43: =tpheroin2_OD3*'Markov Model AD -'!G42 -> 0.03527181692 | I43: =tpheroin_DC1*'Markov Model AD -'!C42+(1-tpDC1_heroin-Mortality!C63)*'Markov Model AD -'!I42 -> 0.06087781345 | J43: =tpOD1_DC2*'Markov Model AD -'!D42+tpheroin1_DC2*'Markov Model AD -'!E42+(1-tpDC2_heroin-Mortality!C63)*'Markov Model AD -'!J42 -> 0.03325193934 | K43: =tpOD2_DC3*'Markov Model AD -'!F42+tpheroin2_DC3*'Markov Model AD -'!G42+tpOD3_DC3*'Markov Model AD -'!H42+(1-tpDC3_heroin2-Mortality!C63)*'Markov Model AD -'!K42 -> 0.1200715943 | L43: =O43*'Markov Model AD -'!C42+death.tcB*'Markov Model AD -'!D42+O43*'Markov Model AD -'!E42+death.tcB*'Markov Model AD -'!F42+O43*'Markov Model AD -'!G42+death.tcB*'Markov Model AD -'!H42+'Markov Model AD -'!L42+Mortality!C63*I42+Mortality!C63*J42+Mortality!C63*K42 -> 0.5935426604 | M43: 1 | N43: 0.4064573396 | O43: 0.04091493328 | Q43: 51.79899985 | R43: 0.4064573396 | S43: 0.1050463618
A44: 492 | B44: 41 | C44: =Mortality!H43*'Markov Model AD -'!C43+tpDC1_heroin*'Markov Model AD -'!I43 -> 0.02877305972 | D44: =tpheroin_OD1*'Markov Model AD -'!C43 -> 0.002727374611 | E44: =tpOD1_heroin1_tcB*'Markov Model AD -'!D43+Mortality!J43*'Markov Model AD -'!E43+tpDC2_heroin*'Markov Model AD -'!J43 -> 0.01690133015 | F44: =tpheroin1_OD2*'Markov Model AD -'!E43 -> 0.003899952503 | G44: =tpOD2_heroin2_tcB*'Markov Model AD -'!F43+Mortality!L43*'Markov Model AD -'!G43+tpOD3_heroin2_tcB*'Markov Model AD -'!H43+tpDC3_heroin2*'Markov Model AD -'!K43 -> 0.1002205321 | H44: =tpheroin2_OD3*'Markov Model AD -'!G43 -> 0.03467777147 | I44: =tpheroin_DC1*'Markov Model AD -'!C43+(1-tpDC1_heroin-Mortality!C64)*'Markov Model AD -'!I43 -> 0.05768378097 | J44: =tpOD1_DC2*'Markov Model AD -'!D43+tpheroin1_DC2*'Markov Model AD -'!E43+(1-tpDC2_heroin-Mortality!C64)*'Markov Model AD -'!J43 -> 0.03175582247 | K44: =tpOD2_DC3*'Markov Model AD -'!F43+tpheroin2_DC3*'Markov Model AD -'!G43+tpOD3_DC3*'Markov Model AD -'!H43+(1-tpDC3_heroin2-Mortality!C64)*'Markov Model AD -'!K43 -> 0.1187456236 | L44: =O44*'Markov Model AD -'!C43+death.tcB*'Markov Model AD -'!D43+O44*'Markov Model AD -'!E43+death.tcB*'Markov Model AD -'!F43+O44*'Markov Model AD -'!G43+death.tcB*'Markov Model AD -'!H43+'Markov Model AD -'!L43+Mortality!C64*I43+Mortality!C64*J43+Mortality!C64*K43 -> 0.6046147524 | M44: 1 | N44: 0.3953852476 | O44: 0.04114699479 | Q44: 49.71426901 | R44: 0.3953852476 | S44: 0.09920256583
A45: 504 | B45: 42 | C45: =Mortality!H44*'Markov Model AD -'!C44+tpDC1_heroin*'Markov Model AD -'!I44 -> 0.02730449056 | D45: =tpheroin_OD1*'Markov Model AD -'!C44 -> 0.002589575375 | E45: =tpOD1_heroin1_tcB*'Markov Model AD -'!D44+Mortality!J44*'Markov Model AD -'!E44+tpDC2_heroin*'Markov Model AD -'!J44 -> 0.01610508357 | F45: =tpheroin1_OD2*'Markov Model AD -'!E44 -> 0.003718292634 | G45: =tpOD2_heroin2_tcB*'Markov Model AD -'!F44+Mortality!L44*'Markov Model AD -'!G44+tpOD3_heroin2_tcB*'Markov Model AD -'!H44+tpDC3_heroin2*'Markov Model AD -'!K44 -> 0.09842192776 | H45: =tpheroin2_OD3*'Markov Model AD -'!G44 -> 0.03407498092 | I45: =tpheroin_DC1*'Markov Model AD -'!C44+(1-tpDC1_heroin-Mortality!C65)*'Markov Model AD -'!I44 -> 0.05461240474 | J45: =tpOD1_DC2*'Markov Model AD -'!D44+tpheroin1_DC2*'Markov Model AD -'!E44+(1-tpDC2_heroin-Mortality!C65)*'Markov Model AD -'!J44 -> 0.03029775779 | K45: =tpOD2_DC3*'Markov Model AD -'!F44+tpheroin2_DC3*'Markov Model AD -'!G44+tpOD3_DC3*'Markov Model AD -'!H44+(1-tpDC3_heroin2-Mortality!C65)*'Markov Model AD -'!K44 -> 0.1172741897 | L45: =O45*'Markov Model AD -'!C44+death.tcB*'Markov Model AD -'!D44+O45*'Markov Model AD -'!E44+death.tcB*'Markov Model AD -'!F44+O45*'Markov Model AD -'!G44+death.tcB*'Markov Model AD -'!H44+'Markov Model AD -'!L44+Mortality!C65*I44+Mortality!C65*J44+Mortality!C65*K44 -> 0.615601297 | M45: 1 | N45: 0.384398703 | O45: 0.04137463607 | Q45: 47.7091488 | R45: 0.384398703 | S45: 0.09363047212
A46: 516 | B46: 43 | C46: =Mortality!H45*'Markov Model AD -'!C45+tpDC1_heroin*'Markov Model AD -'!I45 -> 0.02589587189 | D46: =tpheroin_OD1*'Markov Model AD -'!C45 -> 0.00245740415 | E46: =tpOD1_heroin1_tcB*'Markov Model AD -'!D45+Mortality!J45*'Markov Model AD -'!E45+tpDC2_heroin*'Markov Model AD -'!J45 -> 0.01533717731 | F46: =tpheroin1_OD2*'Markov Model AD -'!E45 -> 0.003543118385 | G46: =tpOD2_heroin2_tcB*'Markov Model AD -'!F45+Mortality!L45*'Markov Model AD -'!G45+tpOD3_heroin2_tcB*'Markov Model AD -'!H45+tpDC3_heroin2*'Markov Model AD -'!K45 -> 0.0965983059 | H46: =tpheroin2_OD3*'Markov Model AD -'!G45 -> 0.03346345544 | I46: =tpheroin_DC1*'Markov Model AD -'!C45+(1-tpDC1_heroin-Mortality!C66)*'Markov Model AD -'!I45 -> 0.05166428382 | J46: =tpOD1_DC2*'Markov Model AD -'!D45+tpheroin1_DC2*'Markov Model AD -'!E45+(1-tpDC2_heroin-Mortality!C66)*'Markov Model AD -'!J45 -> 0.02888018825 | K46: =tpOD2_DC3*'Markov Model AD -'!F45+tpheroin2_DC3*'Markov Model AD -'!G45+tpOD3_DC3*'Markov Model AD -'!H45+(1-tpDC3_heroin2-Mortality!C66)*'Markov Model AD -'!K45 -> 0.1156739146 | L46: =O46*'Markov Model AD -'!C45+death.tcB*'Markov Model AD -'!D45+O46*'Markov Model AD -'!E45+death.tcB*'Markov Model AD -'!F45+O46*'Markov Model AD -'!G45+death.tcB*'Markov Model AD -'!H45+'Markov Model AD -'!L45+Mortality!C66*I45+Mortality!C66*J45+Mortality!C66*K45 -> 0.6264862802 | M46: 1 | N46: 0.3735137198 | O46: 0.04159804459 | Q46: 45.78036627 | R46: 0.3735137198 | S46: 0.08832261434
A47: 528 | B47: 44 | C47: =Mortality!H46*'Markov Model AD -'!C46+tpDC1_heroin*'Markov Model AD -'!I46 -> 0.02454509305 | D47: =tpheroin_OD1*'Markov Model AD -'!C46 -> 0.00233062847 | E47: =tpOD1_heroin1_tcB*'Markov Model AD -'!D46+Mortality!J46*'Markov Model AD -'!E46+tpDC2_heroin*'Markov Model AD -'!J46 -> 0.01459672178 | F47: =tpheroin1_OD2*'Markov Model AD -'!E46 -> 0.003374179007 | G47: =tpOD2_heroin2_tcB*'Markov Model AD -'!F46+Mortality!L46*'Markov Model AD -'!G46+tpOD3_heroin2_tcB*'Markov Model AD -'!H46+tpDC3_heroin2*'Markov Model AD -'!K46 -> 0.09475090688 | H47: =tpheroin2_OD3*'Markov Model AD -'!G46 -> 0.03284342401 | I47: =tpheroin_DC1*'Markov Model AD -'!C46+(1-tpDC1_heroin-Mortality!C67)*'Markov Model AD -'!I46 -> 0.04883701164 | J47: =tpOD1_DC2*'Markov Model AD -'!D46+tpheroin1_DC2*'Markov Model AD -'!E46+(1-tpDC2_heroin-Mortality!C67)*'Markov Model AD -'!J46 -> 0.02750379767 | K47: =tpOD2_DC3*'Markov Model AD -'!F46+tpheroin2_DC3*'Markov Model AD -'!G46+tpOD3_DC3*'Markov Model AD -'!H46+(1-tpDC3_heroin2-Mortality!C67)*'Markov Model AD -'!K46 -> 0.1139553117 | L47: =O47*'Markov Model AD -'!C46+death.tcB*'Markov Model AD -'!D46+O47*'Markov Model AD -'!E46+death.tcB*'Markov Model AD -'!F46+O47*'Markov Model AD -'!G46+death.tcB*'Markov Model AD -'!H46+'Markov Model AD -'!L46+Mortality!C67*I46+Mortality!C67*J46+Mortality!C67*K46 -> 0.6372629258 | M47: 1 | N47: 0.3627370742 | O47: 0.04181739566 | Q47: 43.92499058 | R47: 0.3627370742 | S47: 0.08326928354
A48: 540 | B48: 45 | C48: =Mortality!H47*'Markov Model AD -'!C47+tpDC1_heroin*'Markov Model AD -'!I47 -> 0.02325021961 | D48: =tpheroin_OD1*'Markov Model AD -'!C47 -> 0.002209058375 | E48: =tpOD1_heroin1_tcB*'Markov Model AD -'!D47+Mortality!J47*'Markov Model AD -'!E47+tpDC2_heroin*'Markov Model AD -'!J47 -> 0.01388292573 | F48: =tpheroin1_OD2*'Markov Model AD -'!E47 -> 0.003211278792 | G48: =tpOD2_heroin2_tcB*'Markov Model AD -'!F47+Mortality!L47*'Markov Model AD -'!G47+tpOD3_heroin2_tcB*'Markov Model AD -'!H47+tpDC3_heroin2*'Markov Model AD -'!K47 -> 0.09288111813 | H48: =tpheroin2_OD3*'Markov Model AD -'!G47 -> 0.03221530834 | I48: =tpheroin_DC1*'Markov Model AD -'!C47+(1-tpDC1_heroin-Mortality!C68)*'Markov Model AD -'!I47 -> 0.04612606085 | J48: =tpOD1_DC2*'Markov Model AD -'!D47+tpheroin1_DC2*'Markov Model AD -'!E47+(1-tpDC2_heroin-Mortality!C68)*'Markov Model AD -'!J47 -> 0.0261679681 | K48: =tpOD2_DC3*'Markov Model AD -'!F47+tpheroin2_DC3*'Markov Model AD -'!G47+tpOD3_DC3*'Markov Model AD -'!H47+(1-tpDC3_heroin2-Mortality!C68)*'Markov Model AD -'!K47 -> 0.1121237969 | L48: =O48*'Markov Model AD -'!C47+death.tcB*'Markov Model AD -'!D47+O48*'Markov Model AD -'!E47+death.tcB*'Markov Model AD -'!F47+O48*'Markov Model AD -'!G47+death.tcB*'Markov Model AD -'!H47+'Markov Model AD -'!L47+Mortality!C68*I47+Mortality!C68*J47+Mortality!C68*K47 -> 0.6479322652 | M48: 1 | N48: 0.3520677348 | O48: 0.04203285351 | Q48: 42.14036676 | R48: 0.3520677348 | S48: 0.07845921547
A49: 552 | B49: 46 | C49: =Mortality!H48*'Markov Model AD -'!C48+tpDC1_heroin*'Markov Model AD -'!I48 -> 0.02200931535 | D49: =tpheroin_OD1*'Markov Model AD -'!C48 -> 0.002092519765 | E49: =tpOD1_heroin1_tcB*'Markov Model AD -'!D48+Mortality!J48*'Markov Model AD -'!E48+tpDC2_heroin*'Markov Model AD -'!J48 -> 0.01319501303 | F49: =tpheroin1_OD2*'Markov Model AD -'!E48 -> 0.00305424366 | G49: =tpOD2_heroin2_tcB*'Markov Model AD -'!F48+Mortality!L48*'Markov Model AD -'!G48+tpOD3_heroin2_tcB*'Markov Model AD -'!H48+tpDC3_heroin2*'Markov Model AD -'!K48 -> 0.09099027206 | H49: =tpheroin2_OD3*'Markov Model AD -'!G48 -> 0.03157958017 | I49: =tpheroin_DC1*'Markov Model AD -'!C48+(1-tpDC1_heroin-Mortality!C69)*'Markov Model AD -'!I48 -> 0.04352076056 | J49: =tpOD1_DC2*'Markov Model AD -'!D48+tpheroin1_DC2*'Markov Model AD -'!E48+(1-tpDC2_heroin-Mortality!C69)*'Markov Model AD -'!J48 -> 0.02486847073 | K49: =tpOD2_DC3*'Markov Model AD -'!F48+tpheroin2_DC3*'Markov Model AD -'!G48+tpOD3_DC3*'Markov Model AD -'!H48+(1-tpDC3_heroin2-Mortality!C69)*'Markov Model AD -'!K48 -> 0.1101691011 | L49: =O49*'Markov Model AD -'!C48+death.tcB*'Markov Model AD -'!D48+O49*'Markov Model AD -'!E48+death.tcB*'Markov Model AD -'!F48+O49*'Markov Model AD -'!G48+death.tcB*'Markov Model AD -'!H48+'Markov Model AD -'!L48+Mortality!C69*I48+Mortality!C69*J48+Mortality!C69*K48 -> 0.6585207235 | M49: 1 | N49: 0.3414792765 | O49: 0.0422445722 | Q49: 40.42397861 | R49: 0.3414792765 | S49: 0.07387591362
A50: 564 | B50: 47 | C50: =Mortality!H49*'Markov Model AD -'!C49+tpDC1_heroin*'Markov Model AD -'!I49 -> 0.0208200165 | D50: =tpheroin_OD1*'Markov Model AD -'!C49 -> 0.001980838381 | E50: =tpOD1_heroin1_tcB*'Markov Model AD -'!D49+Mortality!J49*'Markov Model AD -'!E49+tpDC2_heroin*'Markov Model AD -'!J49 -> 0.012531981 | F50: =tpheroin1_OD2*'Markov Model AD -'!E49 -> 0.002902902868 | G50: =tpOD2_heroin2_tcB*'Markov Model AD -'!F49+Mortality!L49*'Markov Model AD -'!G49+tpOD3_heroin2_tcB*'Markov Model AD -'!H49+tpDC3_heroin2*'Markov Model AD -'!K49 -> 0.08907863605 | H50: =tpheroin2_OD3*'Markov Model AD -'!G49 -> 0.0309366925 | I50: =tpheroin_DC1*'Markov Model AD -'!C49+(1-tpDC1_heroin-Mortality!C70)*'Markov Model AD -'!I49 -> 0.04101789711 | J50: =tpOD1_DC2*'Markov Model AD -'!D49+tpheroin1_DC2*'Markov Model AD -'!E49+(1-tpDC2_heroin-Mortality!C70)*'Markov Model AD -'!J49 -> 0.02360514198 | K50: =tpOD2_DC3*'Markov Model AD -'!F49+tpheroin2_DC3*'Markov Model AD -'!G49+tpOD3_DC3*'Markov Model AD -'!H49+(1-tpDC3_heroin2-Mortality!C70)*'Markov Model AD -'!K49 -> 0.1080971462 | L50: =O50*'Markov Model AD -'!C49+death.tcB*'Markov Model AD -'!D49+O50*'Markov Model AD -'!E49+death.tcB*'Markov Model AD -'!F49+O50*'Markov Model AD -'!G49+death.tcB*'Markov Model AD -'!H49+'Markov Model AD -'!L49+Mortality!C70*I49+Mortality!C70*J49+Mortality!C70*K49 -> 0.6690287474 | M50: 1 | N50: 0.3309712526 | O50: 0.04245269649 | Q50: 38.77338509 | R50: 0.3309712526 | S50: 0.06950969234
A51: 576 | B51: 48 | C51: =Mortality!H50*'Markov Model AD -'!C50+tpDC1_heroin*'Markov Model AD -'!I50 -> 0.01968013983 | D51: =tpheroin_OD1*'Markov Model AD -'!C50 -> 0.001873801485 | E51: =tpOD1_heroin1_tcB*'Markov Model AD -'!D50+Mortality!J50*'Markov Model AD -'!E50+tpDC2_heroin*'Markov Model AD -'!J50 -> 0.01189295955 | F51: =tpheroin1_OD2*'Markov Model AD -'!E50 -> 0.002757035819 | G51: =tpOD2_heroin2_tcB*'Markov Model AD -'!F50+Mortality!L50*'Markov Model AD -'!G50+tpOD3_heroin2_tcB*'Markov Model AD -'!H50+tpDC3_heroin2*'Markov Model AD -'!K50 -> 0.08714700395 | H51: =tpheroin2_OD3*'Markov Model AD -'!G50 -> 0.03028673626 | I51: =tpheroin_DC1*'Markov Model AD -'!C50+(1-tpDC1_heroin-Mortality!C71)*'Markov Model AD -'!I50 -> 0.03861149386 | J51: =tpOD1_DC2*'Markov Model AD -'!D50+tpheroin1_DC2*'Markov Model AD -'!E50+(1-tpDC2_heroin-Mortality!C71)*'Markov Model AD -'!J50 -> 0.0223761312 | K51: =tpOD2_DC3*'Markov Model AD -'!F50+tpheroin2_DC3*'Markov Model AD -'!G50+tpOD3_DC3*'Markov Model AD -'!H50+(1-tpDC3_heroin2-Mortality!C71)*'Markov Model AD -'!K50 -> 0.1059060664 | L51: =O51*'Markov Model AD -'!C50+death.tcB*'Markov Model AD -'!D50+O51*'Markov Model AD -'!E50+death.tcB*'Markov Model AD -'!F50+O51*'Markov Model AD -'!G50+death.tcB*'Markov Model AD -'!H50+'Markov Model AD -'!L50+Mortality!C71*I50+Mortality!C71*J50+Mortality!C71*K50 -> 0.6794686316 | M51: 1 | N51: 0.3205313684 | O51: 0.04265736256 | Q51: 37.18599765 | R51: 0.3205313684 | S51: 0.06534874604
A52: 588 | B52: 49 | C52: =Mortality!H51*'Markov Model AD -'!C51+tpDC1_heroin*'Markov Model AD -'!I51 -> 0.01858745824 | D52: =tpheroin_OD1*'Markov Model AD -'!C51 -> 0.001771212585 | E52: =tpOD1_heroin1_tcB*'Markov Model AD -'!D51+Mortality!J51*'Markov Model AD -'!E51+tpDC2_heroin*'Markov Model AD -'!J51 -> 0.01127701814 | F52: =tpheroin1_OD2*'Markov Model AD -'!E51 -> 0.002616451101 | G52: =tpOD2_heroin2_tcB*'Markov Model AD -'!F51+Mortality!L51*'Markov Model AD -'!G51+tpOD3_heroin2_tcB*'Markov Model AD -'!H51+tpDC3_heroin2*'Markov Model AD -'!K51 -> 0.08519555451 | H52: =tpheroin2_OD3*'Markov Model AD -'!G51 -> 0.02962998134 | I52: =tpheroin_DC1*'Markov Model AD -'!C51+(1-tpDC1_heroin-Mortality!C72)*'Markov Model AD -'!I51 -> 0.03629696573 | J52: =tpOD1_DC2*'Markov Model AD -'!D51+tpheroin1_DC2*'Markov Model AD -'!E51+(1-tpDC2_heroin-Mortality!C72)*'Markov Model AD -'!J51 -> 0.02118026721 | K52: =tpOD2_DC3*'Markov Model AD -'!F51+tpheroin2_DC3*'Markov Model AD -'!G51+tpOD3_DC3*'Markov Model AD -'!H51+(1-tpDC3_heroin2-Mortality!C72)*'Markov Model AD -'!K51 -> 0.1035963687 | L52: =O52*'Markov Model AD -'!C51+death.tcB*'Markov Model AD -'!D51+O52*'Markov Model AD -'!E51+death.tcB*'Markov Model AD -'!F51+O52*'Markov Model AD -'!G51+death.tcB*'Markov Model AD -'!H51+'Markov Model AD -'!L51+Mortality!C72*I51+Mortality!C72*J51+Mortality!C72*K51 -> 0.6898487224 | M52: 1 | N52: 0.3101512776 | O52: 0.0428586987 | Q52: 35.65944467 | R52: 0.3101512776 | S52: 0.06138275234
A53: 600 | B53: 50 | C53: =Mortality!H52*'Markov Model AD -'!C52+tpDC1_heroin*'Markov Model AD -'!I52 -> 0.01753981015 | D53: =tpheroin_OD1*'Markov Model AD -'!C52 -> 0.001672871242 | E53: =tpOD1_heroin1_tcB*'Markov Model AD -'!D52+Mortality!J52*'Markov Model AD -'!E52+tpDC2_heroin*'Markov Model AD -'!J52 -> 0.01068324879 | F53: =tpheroin1_OD2*'Markov Model AD -'!E52 -> 0.002480943991 | G53: =tpOD2_heroin2_tcB*'Markov Model AD -'!F52+Mortality!L52*'Markov Model AD -'!G52+tpOD3_heroin2_tcB*'Markov Model AD -'!H52+tpDC3_heroin2*'Markov Model AD -'!K52 -> 0.08322447467 | H53: =tpheroin2_OD3*'Markov Model AD -'!G52 -> 0.02896648853 | I53: =tpheroin_DC1*'Markov Model AD -'!C52+(1-tpDC1_heroin-Mortality!C73)*'Markov Model AD -'!I52 -> 0.03407581861 | J53: =tpOD1_DC2*'Markov Model AD -'!D52+tpheroin1_DC2*'Markov Model AD -'!E52+(1-tpDC2_heroin-Mortality!C73)*'Markov Model AD -'!J52 -> 0.02001982643 | K53: =tpOD2_DC3*'Markov Model AD -'!F52+tpheroin2_DC3*'Markov Model AD -'!G52+tpOD3_DC3*'Markov Model AD -'!H52+(1-tpDC3_heroin2-Mortality!C73)*'Markov Model AD -'!K52 -> 0.1011848667 | L53: =O53*'Markov Model AD -'!C52+death.tcB*'Markov Model AD -'!D52+O53*'Markov Model AD -'!E52+death.tcB*'Markov Model AD -'!F52+O53*'Markov Model AD -'!G52+death.tcB*'Markov Model AD -'!H52+'Markov Model AD -'!L52+Mortality!C73*I52+Mortality!C73*J52+Mortality!C73*K52 -> 0.7001516508 | M53: 1 | N53: 0.2998483492 | O53: 0.0430568259 | Q53: 34.19133394 | R53: 0.2998483492 | S53: 0.0576070615
A54: 612 | B54: 51 | C54: =Mortality!H53*'Markov Model AD -'!C53+tpDC1_heroin*'Markov Model AD -'!I53 -> 0.01653551655 | D54: =tpheroin_OD1*'Markov Model AD -'!C53 -> 0.001578582914 | E54: =tpOD1_heroin1_tcB*'Markov Model AD -'!D53+Mortality!J53*'Markov Model AD -'!E53+tpDC2_heroin*'Markov Model AD -'!J53 -> 0.01011099822 | F54: =tpheroin1_OD2*'Markov Model AD -'!E53 -> 0.002350314735 | G54: =tpOD2_heroin2_tcB*'Markov Model AD -'!F53+Mortality!L53*'Markov Model AD -'!G53+tpOD3_heroin2_tcB*'Markov Model AD -'!H53+tpDC3_heroin2*'Markov Model AD -'!K53 -> 0.08123490161 | H54: =tpheroin2_OD3*'Markov Model AD -'!G53 -> 0.02829632139 | I54: =tpheroin_DC1*'Markov Model AD -'!C53+(1-tpDC1_heroin-Mortality!C74)*'Markov Model AD -'!I53 -> 0.0319408762 | J54: =tpOD1_DC2*'Markov Model AD -'!D53+tpheroin1_DC2*'Markov Model AD -'!E53+(1-tpDC2_heroin-Mortality!C74)*'Markov Model AD -'!J53 -> 0.01889195593 | K54: =tpOD2_DC3*'Markov Model AD -'!F53+tpheroin2_DC3*'Markov Model AD -'!G53+tpOD3_DC3*'Markov Model AD -'!H53+(1-tpDC3_heroin2-Mortality!C74)*'Markov Model AD -'!K53 -> 0.09866360307 | L54: =O54*'Markov Model AD -'!C53+death.tcB*'Markov Model AD -'!D53+O54*'Markov Model AD -'!E53+death.tcB*'Markov Model AD -'!F53+O54*'Markov Model AD -'!G53+death.tcB*'Markov Model AD -'!H53+'Markov Model AD -'!L53+Mortality!C74*I53+Mortality!C74*J53+Mortality!C74*K53 -> 0.7103969294 | M54: 1 | N54: 0.2896030706 | O54: 0.04325185844 | Q54: 32.7793775 | R54: 0.2896030706 | S54: 0.05400976558
A55: 624 | B55: 52 | C55: =Mortality!H54*'Markov Model AD -'!C54+tpDC1_heroin*'Markov Model AD -'!I54 -> 0.015572683 | D55: =tpheroin_OD1*'Markov Model AD -'!C54 -> 0.001488196489 | E55: =tpOD1_heroin1_tcB*'Markov Model AD -'!D54+Mortality!J54*'Markov Model AD -'!E54+tpDC2_heroin*'Markov Model AD -'!J54 -> 0.009559433067 | F55: =tpheroin1_OD2*'Markov Model AD -'!E54 -> 0.002224419608 | G55: =tpOD2_heroin2_tcB*'Markov Model AD -'!F54+Mortality!L54*'Markov Model AD -'!G54+tpOD3_heroin2_tcB*'Markov Model AD -'!H54+tpDC3_heroin2*'Markov Model AD -'!K54 -> 0.07922677516 | H55: =tpheroin2_OD3*'Markov Model AD -'!G54 -> 0.02761986655 | I55: =tpheroin_DC1*'Markov Model AD -'!C54+(1-tpDC1_heroin-Mortality!C75)*'Markov Model AD -'!I54 -> 0.02988672706 | J55: =tpOD1_DC2*'Markov Model AD -'!D54+tpheroin1_DC2*'Markov Model AD -'!E54+(1-tpDC2_heroin-Mortality!C75)*'Markov Model AD -'!J54 -> 0.01779471554 | K55: =tpOD2_DC3*'Markov Model AD -'!F54+tpheroin2_DC3*'Markov Model AD -'!G54+tpOD3_DC3*'Markov Model AD -'!H54+(1-tpDC3_heroin2-Mortality!C75)*'Markov Model AD -'!K54 -> 0.09602799747 | L55: =O55*'Markov Model AD -'!C54+death.tcB*'Markov Model AD -'!D54+O55*'Markov Model AD -'!E54+death.tcB*'Markov Model AD -'!F54+O55*'Markov Model AD -'!G54+death.tcB*'Markov Model AD -'!H54+'Markov Model AD -'!L54+Mortality!C75*I54+Mortality!C75*J54+Mortality!C75*K54 -> 0.7205991861 | M55: 1 | N55: 0.2794008139 | O55: 0.04344390435 | Q55: 31.42157142 | R55: 0.2794008139 | S55: 0.05058064985
A56: 636 | B56: 53 | C56: =Mortality!H55*'Markov Model AD -'!C55+tpDC1_heroin*'Markov Model AD -'!I55 -> 0.01464936754 | D56: =tpheroin_OD1*'Markov Model AD -'!C55 -> 0.00140154147 | E56: =tpOD1_heroin1_tcB*'Markov Model AD -'!D55+Mortality!J55*'Markov Model AD -'!E55+tpDC2_heroin*'Markov Model AD -'!J55 -> 0.009027701704 | F56: =tpheroin1_OD2*'Markov Model AD -'!E55 -> 0.002103075275 | G56: =tpOD2_heroin2_tcB*'Markov Model AD -'!F55+Mortality!L55*'Markov Model AD -'!G55+tpOD3_heroin2_tcB*'Markov Model AD -'!H55+tpDC3_heroin2*'Markov Model AD -'!K55 -> 0.07719994083 | H56: =tpheroin2_OD3*'Markov Model AD -'!G55 -> 0.02693710356 | I56: =tpheroin_DC1*'Markov Model AD -'!C55+(1-tpDC1_heroin-Mortality!C76)*'Markov Model AD -'!I55 -> 0.027903658 | J56: =tpOD1_DC2*'Markov Model AD -'!D55+tpheroin1_DC2*'Markov Model AD -'!E55+(1-tpDC2_heroin-Mortality!C76)*'Markov Model AD -'!J55 -> 0.01672349641 | K56: =tpOD2_DC3*'Markov Model AD -'!F55+tpheroin2_DC3*'Markov Model AD -'!G55+tpOD3_DC3*'Markov Model AD -'!H55+(1-tpDC3_heroin2-Mortality!C76)*'Markov Model AD -'!K55 -> 0.09325805731 | L56: =O56*'Markov Model AD -'!C55+death.tcB*'Markov Model AD -'!D55+O56*'Markov Model AD -'!E55+death.tcB*'Markov Model AD -'!F55+O56*'Markov Model AD -'!G55+death.tcB*'Markov Model AD -'!H55+'Markov Model AD -'!L55+Mortality!C76*I55+Mortality!C76*J55+Mortality!C76*K55 -> 0.7307960579 | M56: 1 | N56: 0.2692039421 | O56: 0.04363306589 | Q56: 30.11577354 | R56: 0.2692039421 | S56: 0.04730591966
A57: 648 | B57: 54 | C57: =Mortality!H56*'Markov Model AD -'!C56+tpDC1_heroin*'Markov Model AD -'!I56 -> 0.01376329139 | D57: =tpheroin_OD1*'Markov Model AD -'!C56 -> 0.001318443079 | E57: =tpOD1_heroin1_tcB*'Markov Model AD -'!D56+Mortality!J56*'Markov Model AD -'!E56+tpDC2_heroin*'Markov Model AD -'!J56 -> 0.008514737453 | F57: =tpheroin1_OD2*'Markov Model AD -'!E56 -> 0.001986094375 | G57: =tpOD2_heroin2_tcB*'Markov Model AD -'!F56+Mortality!L56*'Markov Model AD -'!G56+tpOD3_heroin2_tcB*'Markov Model AD -'!H56+tpDC3_heroin2*'Markov Model AD -'!K56 -> 0.0751527186 | H57: =tpheroin2_OD3*'Markov Model AD -'!G56 -> 0.02624797988 | I57: =tpheroin_DC1*'Markov Model AD -'!C56+(1-tpDC1_heroin-Mortality!C77)*'Markov Model AD -'!I56 -> 0.02599534983 | J57: =tpOD1_DC2*'Markov Model AD -'!D56+tpheroin1_DC2*'Markov Model AD -'!E56+(1-tpDC2_heroin-Mortality!C77)*'Markov Model AD -'!J56 -> 0.01568155972 | K57: =tpOD2_DC3*'Markov Model AD -'!F56+tpheroin2_DC3*'Markov Model AD -'!G56+tpOD3_DC3*'Markov Model AD -'!H56+(1-tpDC3_heroin2-Mortality!C77)*'Markov Model AD -'!K56 -> 0.09037508498 | L57: =O57*'Markov Model AD -'!C56+death.tcB*'Markov Model AD -'!D56+O57*'Markov Model AD -'!E56+death.tcB*'Markov Model AD -'!F56+O57*'Markov Model AD -'!G56+death.tcB*'Markov Model AD -'!H56+'Markov Model AD -'!L56+Mortality!C77*I56+Mortality!C77*J56+Mortality!C77*K56 -> 0.7409647407 | M57: 1 | N57: 0.2590352593 | O57: 0.04381943994 | Q57: 28.85991339 | R57: 0.2590352593 | S57: 0.04418358925
A58: 660 | B58: 55 | C58: =Mortality!H57*'Markov Model AD -'!C57+tpDC1_heroin*'Markov Model AD -'!I57 -> 0.01291284443 | D58: =tpheroin_OD1*'Markov Model AD -'!C57 -> 0.001238696225 | E58: =tpOD1_heroin1_tcB*'Markov Model AD -'!D57+Mortality!J57*'Markov Model AD -'!E57+tpDC2_heroin*'Markov Model AD -'!J57 -> 0.008019876608 | F58: =tpheroin1_OD2*'Markov Model AD -'!E57 -> 0.00187324224 | G58: =tpOD2_heroin2_tcB*'Markov Model AD -'!F57+Mortality!L57*'Markov Model AD -'!G57+tpOD3_heroin2_tcB*'Markov Model AD -'!H57+tpDC3_heroin2*'Markov Model AD -'!K57 -> 0.07308543999 | H58: =tpheroin2_OD3*'Markov Model AD -'!G57 -> 0.02555192433 | I58: =tpheroin_DC1*'Markov Model AD -'!C57+(1-tpDC1_heroin-Mortality!C78)*'Markov Model AD -'!I57 -> 0.02412475832 | J58: =tpOD1_DC2*'Markov Model AD -'!D57+tpheroin1_DC2*'Markov Model AD -'!E57+(1-tpDC2_heroin-Mortality!C78)*'Markov Model AD -'!J57 -> 0.01464760479 | K58: =tpOD2_DC3*'Markov Model AD -'!F57+tpheroin2_DC3*'Markov Model AD -'!G57+tpOD3_DC3*'Markov Model AD -'!H57+(1-tpDC3_heroin2-Mortality!C78)*'Markov Model AD -'!K57 -> 0.08726053086 | L58: =O58*'Markov Model AD -'!C57+death.tcB*'Markov Model AD -'!D57+O58*'Markov Model AD -'!E57+death.tcB*'Markov Model AD -'!F57+O58*'Markov Model AD -'!G57+death.tcB*'Markov Model AD -'!H57+'Markov Model AD -'!L57+Mortality!C78*I57+Mortality!C78*J57+Mortality!C78*K57 -> 0.7512850822 | M58: 1 | N58: 0.2487149178 | O58: 0.0440031184 | Q58: 27.65176003 | R58: 0.2487149178 | S58: 0.04117650429
A59: 672 | B59: 56 | C59: =Mortality!H58*'Markov Model AD -'!C58+tpDC1_heroin*'Markov Model AD -'!I58 -> 0.01209410729 | D59: =tpheroin_OD1*'Markov Model AD -'!C58 -> 0.001162155998 | E59: =tpOD1_heroin1_tcB*'Markov Model AD -'!D58+Mortality!J58*'Markov Model AD -'!E58+tpDC2_heroin*'Markov Model AD -'!J58 -> 0.007540982976 | F59: =tpheroin1_OD2*'Markov Model AD -'!E58 -> 0.001764372854 | G59: =tpOD2_heroin2_tcB*'Markov Model AD -'!F58+Mortality!L58*'Markov Model AD -'!G58+tpOD3_heroin2_tcB*'Markov Model AD -'!H58+tpDC3_heroin2*'Markov Model AD -'!K58 -> 0.07098926623 | H59: =tpheroin2_OD3*'Markov Model AD -'!G58 -> 0.0248490496 | I59: =tpheroin_DC1*'Markov Model AD -'!C58+(1-tpDC1_heroin-Mortality!C79)*'Markov Model AD -'!I58 -> 0.02231978522 | J59: =tpOD1_DC2*'Markov Model AD -'!D58+tpheroin1_DC2*'Markov Model AD -'!E58+(1-tpDC2_heroin-Mortality!C79)*'Markov Model AD -'!J58 -> 0.01363927755 | K59: =tpOD2_DC3*'Markov Model AD -'!F58+tpheroin2_DC3*'Markov Model AD -'!G58+tpOD3_DC3*'Markov Model AD -'!H58+(1-tpDC3_heroin2-Mortality!C79)*'Markov Model AD -'!K58 -> 0.08401494748 | L59: =O59*'Markov Model AD -'!C58+death.tcB*'Markov Model AD -'!D58+O59*'Markov Model AD -'!E58+death.tcB*'Markov Model AD -'!F58+O59*'Markov Model AD -'!G58+death.tcB*'Markov Model AD -'!H58+'Markov Model AD -'!L58+Mortality!C79*I58+Mortality!C79*J58+Mortality!C79*K58 -> 0.7616260548 | M59: 1 | N59: 0.2383739452 | O59: 0.04418418852 | Q59: 26.48952967 | R59: 0.2383739452 | S59: 0.03830344288
A60: 684 | B60: 57 | C60: =Mortality!H59*'Markov Model AD -'!C59+tpDC1_heroin*'Markov Model AD -'!I59 -> 0.01130584851 | D60: =tpheroin_OD1*'Markov Model AD -'!C59 -> 0.001088469656 | E60: =tpOD1_heroin1_tcB*'Markov Model AD -'!D59+Mortality!J59*'Markov Model AD -'!E59+tpDC2_heroin*'Markov Model AD -'!J59 -> 0.007077705968 | F60: =tpheroin1_OD2*'Markov Model AD -'!E59 -> 0.001659016255 | G60: =tpOD2_heroin2_tcB*'Markov Model AD -'!F59+Mortality!L59*'Markov Model AD -'!G59+tpOD3_heroin2_tcB*'Markov Model AD -'!H59+tpDC3_heroin2*'Markov Model AD -'!K59 -> 0.06886628424 | H60: =tpheroin2_OD3*'Markov Model AD -'!G59 -> 0.02413635052 | I60: =tpheroin_DC1*'Markov Model AD -'!C59+(1-tpDC1_heroin-Mortality!C80)*'Markov Model AD -'!I59 -> 0.0205675707 | J60: =tpOD1_DC2*'Markov Model AD -'!D59+tpheroin1_DC2*'Markov Model AD -'!E59+(1-tpDC2_heroin-Mortality!C80)*'Markov Model AD -'!J59 -> 0.01264960747 | K60: =tpOD2_DC3*'Markov Model AD -'!F59+tpheroin2_DC3*'Markov Model AD -'!G59+tpOD3_DC3*'Markov Model AD -'!H59+(1-tpDC3_heroin2-Mortality!C80)*'Markov Model AD -'!K59 -> 0.08059730334 | L60: =O60*'Markov Model AD -'!C59+death.tcB*'Markov Model AD -'!D59+O60*'Markov Model AD -'!E59+death.tcB*'Markov Model AD -'!F59+O60*'Markov Model AD -'!G59+death.tcB*'Markov Model AD -'!H59+'Markov Model AD -'!L59+Mortality!C80*I59+Mortality!C80*J59+Mortality!C80*K59 -> 0.7720518433 | M60: 1 | N60: 0.2279481567 | O60: 0.04436273322 | Q60: 25.37007876 | R60: 0.2279481567 | S60: 0.03554890572
A61: 696 | B61: 58 | C61: =Mortality!H60*'Markov Model AD -'!C60+tpDC1_heroin*'Markov Model AD -'!I60 -> 0.0105461519 | D61: =tpheroin_OD1*'Markov Model AD -'!C60 -> 0.001017526366 | E61: =tpOD1_heroin1_tcB*'Markov Model AD -'!D60+Mortality!J60*'Markov Model AD -'!E60+tpDC2_heroin*'Markov Model AD -'!J60 -> 0.006628996079 | F61: =tpheroin1_OD2*'Markov Model AD -'!E60 -> 0.001557095313 | G61: =tpOD2_heroin2_tcB*'Markov Model AD -'!F60+Mortality!L60*'Markov Model AD -'!G60+tpOD3_heroin2_tcB*'Markov Model AD -'!H60+tpDC3_heroin2*'Markov Model AD -'!K60 -> 0.06671170122 | H61: =tpheroin2_OD3*'Markov Model AD -'!G60 -> 0.02341453664 | I61: =tpheroin_DC1*'Markov Model AD -'!C60+(1-tpDC1_heroin-Mortality!C81)*'Markov Model AD -'!I60 -> 0.01888562298 | J61: =tpOD1_DC2*'Markov Model AD -'!D60+tpheroin1_DC2*'Markov Model AD -'!E60+(1-tpDC2_heroin-Mortality!C81)*'Markov Model AD -'!J60 -> 0.011690108 | K61: =tpOD2_DC3*'Markov Model AD -'!F60+tpheroin2_DC3*'Markov Model AD -'!G60+tpOD3_DC3*'Markov Model AD -'!H60+(1-tpDC3_heroin2-Mortality!C81)*'Markov Model AD -'!K60 -> 0.07707938682 | L61: =O61*'Markov Model AD -'!C60+death.tcB*'Markov Model AD -'!D60+O61*'Markov Model AD -'!E60+death.tcB*'Markov Model AD -'!F60+O61*'Markov Model AD -'!G60+death.tcB*'Markov Model AD -'!H60+'Markov Model AD -'!L60+Mortality!C81*I60+Mortality!C81*J60+Mortality!C81*K60 -> 0.7824688747 | M61: 1 | N61: 0.2175311253 | O61: 0.04453883136 | Q61: 24.29214616 | R61: 0.2175311253 | S61: 0.03292364585
A62: 708 | B62: 59 | C62: =Mortality!H61*'Markov Model AD -'!C61+tpDC1_heroin*'Markov Model AD -'!I61 -> 0.009814677296 | D62: =tpheroin_OD1*'Markov Model AD -'!C61 -> 0.0009491536712 | E62: =tpOD1_heroin1_tcB*'Markov Model AD -'!D61+Mortality!J61*'Markov Model AD -'!E61+tpDC2_heroin*'Markov Model AD -'!J61 -> 0.006194840347 | F62: =tpheroin1_OD2*'Markov Model AD -'!E61 -> 0.001458379137 | G62: =tpOD2_heroin2_tcB*'Markov Model AD -'!F61+Mortality!L61*'Markov Model AD -'!G61+tpOD3_heroin2_tcB*'Markov Model AD -'!H61+tpDC3_heroin2*'Markov Model AD -'!K61 -> 0.06452843399 | H62: =tpheroin2_OD3*'Markov Model AD -'!G61 -> 0.02268197842 | I62: =tpheroin_DC1*'Markov Model AD -'!C61+(1-tpDC1_heroin-Mortality!C82)*'Markov Model AD -'!I61 -> 0.01726099148 | J62: =tpOD1_DC2*'Markov Model AD -'!D61+tpheroin1_DC2*'Markov Model AD -'!E61+(1-tpDC2_heroin-Mortality!C82)*'Markov Model AD -'!J61 -> 0.01075361449 | K62: =tpOD2_DC3*'Markov Model AD -'!F61+tpheroin2_DC3*'Markov Model AD -'!G61+tpOD3_DC3*'Markov Model AD -'!H61+(1-tpDC3_heroin2-Mortality!C82)*'Markov Model AD -'!K61 -> 0.07341702239 | L62: =O62*'Markov Model AD -'!C61+death.tcB*'Markov Model AD -'!D61+O62*'Markov Model AD -'!E61+death.tcB*'Markov Model AD -'!F61+O62*'Markov Model AD -'!G61+death.tcB*'Markov Model AD -'!H61+'Markov Model AD -'!L61+Mortality!C82*I61+Mortality!C82*J61+Mortality!C82*K61 -> 0.7929409088 | M62: 1 | N62: 0.2070590912 | O62: 0.04471255804 | Q62: 23.25355089 | R62: 0.2070590912 | S62: 0.03041268765
A63: 720 | B63: 60 | C63: =Mortality!H62*'Markov Model AD -'!C62+tpDC1_heroin*'Markov Model AD -'!I62 -> 0.009110223279 | D63: =tpheroin_OD1*'Markov Model AD -'!C62 -> 0.0008833209567 | E63: =tpOD1_heroin1_tcB*'Markov Model AD -'!D62+Mortality!J62*'Markov Model AD -'!E62+tpDC2_heroin*'Markov Model AD -'!J62 -> 0.005774564723 | F63: =tpheroin1_OD2*'Markov Model AD -'!E62 -> 0.001362864876 | G63: =tpOD2_heroin2_tcB*'Markov Model AD -'!F62+Mortality!L62*'Markov Model AD -'!G62+tpOD3_heroin2_tcB*'Markov Model AD -'!H62+tpDC3_heroin2*'Markov Model AD -'!K62 -> 0.06231336026 | H63: =tpheroin2_OD3*'Markov Model AD -'!G62 -> 0.02193966756 | I63: =tpheroin_DC1*'Markov Model AD -'!C62+(1-tpDC1_heroin-Mortality!C83)*'Markov Model AD -'!I62 -> 0.01570744267 | J63: =tpOD1_DC2*'Markov Model AD -'!D62+tpheroin1_DC2*'Markov Model AD -'!E62+(1-tpDC2_heroin-Mortality!C83)*'Markov Model AD -'!J62 -> 0.00984941681 | K63: =tpOD2_DC3*'Markov Model AD -'!F62+tpheroin2_DC3*'Markov Model AD -'!G62+tpOD3_DC3*'Markov Model AD -'!H62+(1-tpDC3_heroin2-Mortality!C83)*'Markov Model AD -'!K62 -> 0.06967293026 | L63: =O63*'Markov Model AD -'!C62+death.tcB*'Markov Model AD -'!D62+O63*'Markov Model AD -'!E62+death.tcB*'Markov Model AD -'!F62+O63*'Markov Model AD -'!G62+death.tcB*'Markov Model AD -'!H62+'Markov Model AD -'!L62+Mortality!C83*I62+Mortality!C83*J62+Mortality!C83*K62 -> 0.8033862086 | M63: 1 | N63: 0.1966137914 | O63: 0.0448839848 | Q63: 22.25331771 | R63: 0.1966137914 | S63: 0.02802401854
A64: 732 | B64: 61 | C64: =Mortality!H63*'Markov Model AD -'!C63+tpDC1_heroin*'Markov Model AD -'!I63 -> 0.008432766246 | D64: =tpheroin_OD1*'Markov Model AD -'!C63 -> 0.0008199200951 | E64: =tpOD1_heroin1_tcB*'Markov Model AD -'!D63+Mortality!J63*'Markov Model AD -'!E63+tpDC2_heroin*'Markov Model AD -'!J63 -> 0.005368326593 | F64: =tpheroin1_OD2*'Markov Model AD -'!E63 -> 0.001270404239 | G64: =tpOD2_heroin2_tcB*'Markov Model AD -'!F63+Mortality!L63*'Markov Model AD -'!G63+tpOD3_heroin2_tcB*'Markov Model AD -'!H63+tpDC3_heroin2*'Markov Model AD -'!K63 -> 0.06007000792 | H64: =tpheroin2_OD3*'Markov Model AD -'!G63 -> 0.02118654249 | I64: =tpheroin_DC1*'Markov Model AD -'!C63+(1-tpDC1_heroin-Mortality!C84)*'Markov Model AD -'!I63 -> 0.01422021665 | J64: =tpOD1_DC2*'Markov Model AD -'!D63+tpheroin1_DC2*'Markov Model AD -'!E63+(1-tpDC2_heroin-Mortality!C84)*'Markov Model AD -'!J63 -> 0.008975329188 | K64: =tpOD2_DC3*'Markov Model AD -'!F63+tpheroin2_DC3*'Markov Model AD -'!G63+tpOD3_DC3*'Markov Model AD -'!H63+(1-tpDC3_heroin2-Mortality!C84)*'Markov Model AD -'!K63 -> 0.06583506162 | L64: =O64*'Markov Model AD -'!C63+death.tcB*'Markov Model AD -'!D63+O64*'Markov Model AD -'!E63+death.tcB*'Markov Model AD -'!F63+O64*'Markov Model AD -'!G63+death.tcB*'Markov Model AD -'!H63+'Markov Model AD -'!L63+Mortality!C84*I63+Mortality!C84*J63+Mortality!C84*K63 -> 0.813821425 | M64: 1 | N64: 0.186178575 | O64: 0.04505317987 | Q64: 21.28968061 | R64: 0.186178575 | S64: 0.02575011611
A65: 744 | B65: 62 | C65: =Mortality!H64*'Markov Model AD -'!C64+tpDC1_heroin*'Markov Model AD -'!I64 -> 0.007781935028 | D65: =tpheroin_OD1*'Markov Model AD -'!C64 -> 0.0007589489621 | E65: =tpOD1_heroin1_tcB*'Markov Model AD -'!D64+Mortality!J64*'Markov Model AD -'!E64+tpDC2_heroin*'Markov Model AD -'!J64 -> 0.004975973303 | F65: =tpheroin1_OD2*'Markov Model AD -'!E64 -> 0.00118103185 | G65: =tpOD2_heroin2_tcB*'Markov Model AD -'!F64+Mortality!L64*'Markov Model AD -'!G64+tpOD3_heroin2_tcB*'Markov Model AD -'!H64+tpDC3_heroin2*'Markov Model AD -'!K64 -> 0.05779841793 | H65: =tpheroin2_OD3*'Markov Model AD -'!G64 -> 0.02042380269 | I65: =tpheroin_DC1*'Markov Model AD -'!C64+(1-tpDC1_heroin-Mortality!C85)*'Markov Model AD -'!I64 -> 0.01280074552 | J65: =tpOD1_DC2*'Markov Model AD -'!D64+tpheroin1_DC2*'Markov Model AD -'!E64+(1-tpDC2_heroin-Mortality!C85)*'Markov Model AD -'!J64 -> 0.00813299178 | K65: =tpOD2_DC3*'Markov Model AD -'!F64+tpheroin2_DC3*'Markov Model AD -'!G64+tpOD3_DC3*'Markov Model AD -'!H64+(1-tpDC3_heroin2-Mortality!C85)*'Markov Model AD -'!K64 -> 0.06191743392 | L65: =O65*'Markov Model AD -'!C64+death.tcB*'Markov Model AD -'!D64+O65*'Markov Model AD -'!E64+death.tcB*'Markov Model AD -'!F64+O65*'Markov Model AD -'!G64+death.tcB*'Markov Model AD -'!H64+'Markov Model AD -'!L64+Mortality!C85*I64+Mortality!C85*J64+Mortality!C85*K64 -> 0.824228719 | M65: 1 | N65: 0.175771281 | O65: 0.04522020838 | Q65: 20.36183058 | R65: 0.175771281 | S65: 0.02358876169
A66: 756 | B66: 63 | C66: =Mortality!H65*'Markov Model AD -'!C65+tpDC1_heroin*'Markov Model AD -'!I65 -> 0.007157512808 | D66: =tpheroin_OD1*'Markov Model AD -'!C65 -> 0.0007003741525 | E66: =tpOD1_heroin1_tcB*'Markov Model AD -'!D65+Mortality!J65*'Markov Model AD -'!E65+tpDC2_heroin*'Markov Model AD -'!J65 -> 0.004597504817 | F66: =tpheroin1_OD2*'Markov Model AD -'!E65 -> 0.001094714127 | G66: =tpOD2_heroin2_tcB*'Markov Model AD -'!F65+Mortality!L65*'Markov Model AD -'!G65+tpOD3_heroin2_tcB*'Markov Model AD -'!H65+tpDC3_heroin2*'Markov Model AD -'!K65 -> 0.05550068188 | H66: =tpheroin2_OD3*'Markov Model AD -'!G65 -> 0.0196514621 | I66: =tpheroin_DC1*'Markov Model AD -'!C65+(1-tpDC1_heroin-Mortality!C86)*'Markov Model AD -'!I65 -> 0.01144708364 | J66: =tpOD1_DC2*'Markov Model AD -'!D65+tpheroin1_DC2*'Markov Model AD -'!E65+(1-tpDC2_heroin-Mortality!C86)*'Markov Model AD -'!J65 -> 0.007321895372 | K66: =tpOD2_DC3*'Markov Model AD -'!F65+tpheroin2_DC3*'Markov Model AD -'!G65+tpOD3_DC3*'Markov Model AD -'!H65+(1-tpDC3_heroin2-Mortality!C86)*'Markov Model AD -'!K65 -> 0.05791867064 | L66: =O66*'Markov Model AD -'!C65+death.tcB*'Markov Model AD -'!D65+O66*'Markov Model AD -'!E65+death.tcB*'Markov Model AD -'!F65+O66*'Markov Model AD -'!G65+death.tcB*'Markov Model AD -'!H65+'Markov Model AD -'!L65+Mortality!C86*I65+Mortality!C86*J65+Mortality!C86*K65 -> 0.8346101005 | M66: 1 | N66: 0.1653898995 | O66: 0.04538513251 | Q66: 19.46852665 | R66: 0.1653898995 | S66: 0.02153492644
A67: 768 | B67: 64 | C67: =Mortality!H66*'Markov Model AD -'!C66+tpDC1_heroin*'Markov Model AD -'!I66 -> 0.006559171264 | D67: =tpheroin_OD1*'Markov Model AD -'!C66 -> 0.0006441761527 | E67: =tpOD1_heroin1_tcB*'Markov Model AD -'!D66+Mortality!J66*'Markov Model AD -'!E66+tpDC2_heroin*'Markov Model AD -'!J66 -> 0.004232846298 | F67: =tpheroin1_OD2*'Markov Model AD -'!E66 -> 0.00101145106 | G67: =tpOD2_heroin2_tcB*'Markov Model AD -'!F66+Mortality!L66*'Markov Model AD -'!G66+tpOD3_heroin2_tcB*'Markov Model AD -'!H66+tpDC3_heroin2*'Markov Model AD -'!K66 -> 0.05317784203 | H67: =tpheroin2_OD3*'Markov Model AD -'!G66 -> 0.01887023184 | I67: =tpheroin_DC1*'Markov Model AD -'!C66+(1-tpDC1_heroin-Mortality!C87)*'Markov Model AD -'!I66 -> 0.01015250612 | J67: =tpOD1_DC2*'Markov Model AD -'!D66+tpheroin1_DC2*'Markov Model AD -'!E66+(1-tpDC2_heroin-Mortality!C87)*'Markov Model AD -'!J66 -> 0.006538429056 | K67: =tpOD2_DC3*'Markov Model AD -'!F66+tpheroin2_DC3*'Markov Model AD -'!G66+tpOD3_DC3*'Markov Model AD -'!H66+(1-tpDC3_heroin2-Mortality!C87)*'Markov Model AD -'!K66 -> 0.05381192939 | L67: =O67*'Markov Model AD -'!C66+death.tcB*'Markov Model AD -'!D66+O67*'Markov Model AD -'!E66+death.tcB*'Markov Model AD -'!F66+O67*'Markov Model AD -'!G66+death.tcB*'Markov Model AD -'!H66+'Markov Model AD -'!L66+Mortality!C87*I66+Mortality!C87*J66+Mortality!C87*K66 -> 0.8450014168 | M67: 1 | N67: 0.1549985832 | O67: 0.04554801174 | Q67: 18.60880709 | R67: =SUM(C67:K67) -> 0.1549985832 | S67: 0.01957933349
Q68: Cost | R68: Life-years | S68: QALYs
Q69: =SUM(Q3:Q67) -> 5971.356854 | R69: =SUM(R3:R67) -> 34.03254056 | S69: =SUM(S3:S67) -> 15.91999328

Sheet Simulation
C1: STOCHASTIC PARAMETERS | DH1: cRatio | DI1: 50000 | DR1: Probability of ICER distributions on the CE plane.
C2: Transition probabiliites | AM2: Costs | AZ2: Utilities | DD2: Incremental | DG2: Net monetary benefits | DK2: Cost-effective? | DN2: Acceptability curves | DR2: NW | DS2: NE | DT2: SW | DU2: SE | DV2: NE + < WTP threshold | DW2: NE + < WTP and SE
C3: p.ad_nal_yes1 | D3: p.od_yes1 | E3: p.used_yes1 | F3: p.amb_yes1 | G3: p.live_yes1 | H3: p.nal_ems_live_yes1 | I3: p.nal_yes1 | J3: p.ad_nal_yes2 | K3: p.od_yes2 | L3: p.used_yes2 | M3: p.amb_yes2 | N3: p.live_yes2 | O3: p.nal_ems_live_yes2 | P3: p.nal_yes2 | Q3: p.ad_nal_yes3 | R3: p.od_yes3 | S3: p.used_yes3 | T3: p.amb_yes3 | U3: p.live_yes3 | V3: p.nal_ems_live_yes3 | W3: p.nal_yes3 | Y3: c.society | Z3: c.nal1 | AA3: c.EMS1 | AB3: c.trans1 | AC3: c.ED1 | AD3: c.AD1 | AE3: c.nal2 | AF3: c.EMS2 | AG3: c.trans2 | AH3: c.ED2 | AI3: c.AD2 | AJ3: c.nal3 | AK3: c.EMS3 | AL3: c.trans3 | AM3: c.ED3 | AN3: c.AD3 | AO3: c.discontinue1 | AP3: c.overdose1 | AQ3: c.overdose1_tcB | AR3: c.discontinue2 | AS3: c.overdose2 | AT3: c.overdose2_tcB | AU3: c.discontinue3 | AV3: c.overdose3 | AW3: c.overdose3_tcB | AX3: c.death | AZ3: u.heroin1 | BA3: u.heroin2 | BB3: u.heroin3 | BC3: u.discontinue1 | BD3: u.discontinue2 | BE3: u.discontinue3 | BF3: u.overdose1 | BG3: u.overdose2 | BH3: u.overdose3 | BI3: u.overdose1_tcB | BJ3: u.overdose2_tcB | BK3: u.overdose3_tcB | BL3: u.live1 | BM3: u.live2 | BN3: u.live3 | BO3: u.death | BQ3: tpheroin_OD1 | BR3: tpheroin_DC1 | BS3: tpOD1_heroin1 | BT3: tpOD1_heroin1_tcB | BU3: tpOD1_DC2 | BV3: tpOD1_death | BW3: tpOD1_death_tcB | BX3: tpheroin1_OD2 | BY3: tpheroin_death | BZ3: tpheroin1_DC2 | CA3: tpOD2_heroin2 | CB3: tpOD2_heroin2_tcB | CC3: tpOD2_DC3 | CD3: tpOD2_death | CE3: tpOD2_death_tcB | CF3: tpheroin2_OD3 | CG3: tpheroin_death | CH3: tpheroin2_DC3 | CI3: tpOD3_heroin2 | CJ3: tpOD3_heroin2_tcB | CK3: tpOD3_DC3 | CL3: tpOD3_death | CM3: tpOD3_death_tcB | CN3: tpDC1_heroin | CO3: tpDC1_DC1 | CP3: tpDC2_heroin | CQ3: tpDC2_DC2 | CR3: tpDC3_heroin2 | CS3: tpDC3_DC3 | CT3: add_death | CV3: ad.cost | CW3: ad.ly | CX3: ad.qaly | CZ3: std.cost | DA3: std.ly | DB3: std.qaly | DD3: QALY | DE3: COST | DF3: ICER | DG3: AD+ | DH3: AD- | DI3: iNMB | DK3: AD+ | DL3: AD- | DN3: cRatio | DO3: AD+ | DP3: AD- | DR3: =COUNTIFS(DE6:DE5005, ">0", DD6:DD5005, "<0") -> 395 | DS3: =COUNTIFS(DE6:DE5005, ">0", DD6:DD5005, ">0") -> 3397 | DT3: =COUNTIFS(DE6:DE5005, "<0", DD6:DD5005, "<0") -> 466 | DU3: =COUNTIFS(DE6:DE5005, "<0", DD6:DD5005, ">0") -> 742 | DV3: =COUNTIFS(DE6:DE5005, ">0", DD6:DD5005, ">0", DF6:DF5005,"<50000") -> 3386 | DW3: =DU3+DV3 -> 4128 | DZ3: x | EA3: y
C4: =INDIRECT(C3) -> 0.8 | D4: =INDIRECT(D3) -> 0.85 | E4: =INDIRECT(E3) -> 0.8 | F4: =INDIRECT(F3) -> 0.6 | G4: =INDIRECT(G3) -> 0.979 | H4: =INDIRECT(H3) -> 0.899 | I4: =INDIRECT(I3) -> 0.2 | J4: =INDIRECT(J3) -> 0.8 | K4: =INDIRECT(K3) -> 0.85 | L4: =INDIRECT(L3) -> 0.8 | M4: =INDIRECT(M3) -> 0.6 | N4: =INDIRECT(N3) -> 0.979 | O4: =INDIRECT(O3) -> 0.899 | P4: =INDIRECT(P3) -> 0.2 | Q4: =INDIRECT(Q3) -> 0.8 | R4: =INDIRECT(R3) -> 0.85 | S4: =INDIRECT(S3) -> 0.8 | T4: =INDIRECT(T3) -> 0.6 | U4: =INDIRECT(U3) -> 0.979 | V4: =INDIRECT(V3) -> 0.899 | W4: =INDIRECT(W3) -> 0.2 | Y4: =INDIRECT(Y3) -> 0 | Z4: =INDIRECT(Z3) -> 40 | AA4: =INDIRECT(AA3) -> 3969.73 | AB4: =INDIRECT(AB3) -> 808 | AC4: =INDIRECT(AC3) -> 3161.73 | AD4: =INDIRECT(AD3) -> 64.81 | AE4: =INDIRECT(AE3) -> 40 | AF4: =INDIRECT(AF3) -> 3969.73 | AG4: =INDIRECT(AG3) -> 808 | AH4: =INDIRECT(AH3) -> 3161.73 | AI4: =INDIRECT(AI3) -> 64.81 | AJ4: =INDIRECT(AJ3) -> 40 | AK4: =INDIRECT(AK3) -> 3969.73 | AL4: =INDIRECT(AL3) -> 808 | AM4: =INDIRECT(AM3) -> 3161.73 | AN4: =INDIRECT(AN3) -> 64.81 | AO4: =INDIRECT(AO3) -> 0 | AP4: =INDIRECT(AP3) -> 2121.3723 | AQ4: =INDIRECT(AQ3) -> 2032.5623 | AR4: =INDIRECT(AR3) -> 0 | AS4: =INDIRECT(AS3) -> 2121.3723 | AT4: =INDIRECT(AT3) -> 2032.5623 | AU4: =INDIRECT(AU3) -> 0 | AV4: =INDIRECT(AV3) -> 2121.3723 | AW4: =INDIRECT(AW3) -> 2121.3723 | AX4: =INDIRECT(AX3) -> 0 | AZ4: =INDIRECT(AZ3) -> 0.817 | BA4: =INDIRECT(BA3) -> 0.817 | BB4: =INDIRECT(BB3) -> 0.817 | BC4: =INDIRECT(BC3) -> 0.875 | BD4: =INDIRECT(BD3) -> 0.875 | BE4: =INDIRECT(BE3) -> 0.875 | BF4: =INDIRECT(BF3) -> 0.79368051 | BG4: =INDIRECT(BG3) -> 0.79368051 | BH4: =INDIRECT(BH3) -> 0.79368051 | BI4: =INDIRECT(BI3) -> 0.773569622 | BJ4: =INDIRECT(BJ3) -> 0.773569622 | BK4: =INDIRECT(BK3) -> 0.773569622 | BL4: =INDIRECT(BL3) -> 0.93625 | BM4: =INDIRECT(BM3) -> 0.93625 | BN4: =INDIRECT(BN3) -> 0.93625 | BO4: =INDIRECT(BO3) -> 0 | BQ4: =INDIRECT(BQ3) -> 0.09 | BR4: =INDIRECT(BR3) -> 0.06 | BS4: =INDIRECT(BS3) -> 0.90916 | BT4: =INDIRECT(BT3) -> 0.884552 | BU4: =INDIRECT(BU3) -> 0.062 | BV4: =INDIRECT(BV3) -> 0.06 | BW4: =INDIRECT(BW3) -> 0.053448 | BX4: =INDIRECT(BX3) -> 0.22 | BY4: =INDIRECT(BY3) -> 0.095 | BZ4: =INDIRECT(BZ3) -> 0.06 | CA4: =INDIRECT(CA3) -> 0.90916 | CB4: =INDIRECT(CB3) -> 0.884552 | CC4: =INDIRECT(CC3) -> 0.062 | CD4: =INDIRECT(CD3) -> 0.074 | CE4: =INDIRECT(CE3) -> 0.053448 | CF4: =INDIRECT(CF3) -> 0.34 | CG4: =INDIRECT(CG3) -> 0.095 | CH4: =INDIRECT(CH3) -> 0.06 | CI4: =INDIRECT(CI3) -> 0.90916 | CJ4: =INDIRECT(CJ3) -> 0.884552 | CK4: =INDIRECT(CK3) -> 0.062 | CL4: =INDIRECT(CL3) -> 0.074 | CM4: =INDIRECT(CM3) -> 0.053448 | CN4: =INDIRECT(CN3) -> 0.07 | CO4: =INDIRECT(CO3) -> 0.9289351901 | CP4: =INDIRECT(CP3) -> 0.07 | CQ4: =INDIRECT(CQ3) -> 0.9289351901 | CR4: =INDIRECT(CR3) -> 0.07 | CS4: =INDIRECT(CS3) -> 0.9289351901 | CT4: =INDIRECT(CT3) -> 0.0075 | CV4: =INDIRECT(CV3) -> 6280.025808 | CW4: =INDIRECT(CW3) -> 35.86335614 | CX4: =INDIRECT(CX3) -> 16.5209451 | CZ4: =INDIRECT(CZ3) -> 5971.356854 | DA4: =INDIRECT(DA3) -> 34.03254056 | DB4: =INDIRECT(DB3) -> 15.91999328 | DD4: =CX4-DB4 -> 0.600951827 | DE4: =CV4-CZ4 -> 308.6689536 | DF4: =DE4/DD4 -> 513.633439 | DG4: =CX4*cRatio-CV4 -> 819767.2294 | DH4: =DB4*cRatio-CZ4 -> 790028.307 | DI4: =DG4-DH4 -> 29738.9224 | DK4: =AVERAGE(DK6:DK5005) -> 0.827 | DL4: =AVERAGE(DL6:DL5005) -> 0.173 | DR4: =DR3/5000 -> 0.079 | DS4: =DS3/5000 -> 0.6794 | DT4: 0.0932 | DU4: 0.1484 | DV4: 0.6772 | DW4: =DW3/5000 -> 0.8256 | DZ4: 0 | EA4: 0
DR5: =DR4*100 -> 7.9 | DS5: =DS4*100 -> 67.94 | DT5: 9.32 | DU5: 14.84 | DV5: =DV4*100 -> 67.72 | DW5: =DU5+DV5 -> 82.56 | DZ5: 1 | EA5: 50000
A6: 1 | C6: 0.8310688076 | D6: 0.833270111 | E6: 0.7613716476 | F6: 0.4929948112 | G6: 0.9977992093 | H6: 0.8943580321 | I6: 0.238138163 | J6: 0.8224190319 | K6: 0.8383586051 | L6: 0.8162550028 | M6: 0.6327385401 | N6: 0.9559980661 | O6: 0.924518849 | P6: 0.2537352532 | Q6: 0.7576652916 | R6: 0.8512639994 | S6: 0.7869814329 | T6: 0.6077511066 | U6: 0.9976542294 | V6: 0.8655396844 | W6: 0.1792017852 | Y6: 0 | Z6: 29.39531396 | AA6: 4448.036041 | AB6: 772.5511164 | AC6: 3675.484925 | AD6: 55.17295278 | AE6: 45.57290196 | AF6: 4809.052756 | AG6: 987.7341572 | AH6: 3821.318599 | AI6: 50.30745359 | AJ6: 33.76947701 | AK6: 2999.182831 | AL6: 677.6785308 | AM6: 2321.5043 | AN6: 84.28360841 | AO6: 0 | AP6: 1906.846084 | AQ6: 1834.243749 | AR6: 0 | AS6: 2638.806256 | AT6: 2562.582232 | AU6: 0 | AV6: 1661.516714 | AW6: 1760.576557 | AX6: 0 | AZ6: 0.8696579785 | BA6: 0.8296232146 | BB6: 0.7664310797 | BC6: 0.8670199228 | BD6: 0.9350540327 | BE6: 0.8790084859 | BF6: 0.8170377099 | BG6: 0.7744908965 | BH6: 0.7831287866 | BI6: 0.7850834283 | BJ6: 0.7672954 | BK6: 0.7523767743 | BL6: 0.9463772525 | BM6: 0.9313689847 | BN6: 0.9163195204 | BO6: 0 | BQ6: 0.1008193014 | BR6: 0.0469801311 | BS6: 0.9635221823 | BT6: 0.897765696 | BU6: 0.01997844242 | BV6: 0.1063904562 | BW6: 0.07360550233 | BX6: 0.2390485215 | BY6: 0.1663453043 | BZ6: 0.08789424368 | CA6: 0.9384782334 | CB6: 0.8987452561 | CC6: 0.03438512869 | CD6: 0.04446204104 | CE6: 0.07216206941 | CF6: 0.4022183917 | CG6: 0.1663453043 | CH6: 0.08168942957 | CI6: 0.9588659839 | CJ6: 0.9089697141 | CK6: 0.03060181098 | CL6: 0.06809265815 | CM6: 0.06692570767 | CN6: 0.05960962599 | CO6: 0.9263662746 | CP6: 0.05051403831 | CQ6: 0.9024705285 | CR6: 0.0430624121 | CS6: 0.9599789595 | CT6: 0.001088560886 | CV6: 5677.377831 | CW6: 37.92336067 | CX6: 17.54337303 | CZ6: 5244.092515 | DA6: 33.55005687 | DB6: 16.08973615 | DD6: =CX6-DB6 -> 1.453636884 | DE6: =CV6-CZ6 -> 433.2853162 | DF6: =DE6/DD6 -> 298.0698419 | DG6: =CX6*cRatio-CV6 -> 871491.2738 | DH6: =DB6*cRatio-CZ6 -> 799242.7149 | DI6: =DG6-DH6 -> 72248.55889 | DK6: =IF(DG6=MAX(DG6:DH6),1,0) -> 1 | DL6: =IF(DH6=MAX(DG6:DH6),1,0) -> 0 | DN6: 0 | DO6: 0.2416 | DP6: 0.7584
A7: 2 | C7: 0.7529429587 | D7: 0.9299766177 | E7: 0.8001178929 | F7: 0.5933370196 | G7: 0.9935412824 | H7: 0.8689813504 | I7: 0.2598400127 | J7: 0.7998747647 | K7: 0.8282160529 | L7: 0.804666411 | M7: 0.6512379796 | N7: 0.9767284024 | O7: 0.8964423381 | P7: 0.1863940293 | Q7: 0.831486244 | R7: 0.8598092517 | S7: 0.8499048142 | T7: 0.5994281784 | U7: 0.9950976321 | V7: 0.889070506 | W7: 0.1614145868 | Y7: 0 | Z7: 43.12136927 | AA7: 2540.047083 | AB7: 655.6096045 | AC7: 1884.437479 | AD7: 87.34183628 | AE7: 31.87204309 | AF7: 3528.090758 | AG7: 792.4002532 | AH7: 2735.690505 | AI7: 57.96183796 | AJ7: 37.32124791 | AK7: 3567.436069 | AL7: 812.6886262 | AM7: 2754.747443 | AN7: 68.0523087 | AO7: 0 | AP7: 1521.381216 | AQ7: 1412.776106 | AR7: 0 | AS7: 1986.386795 | AT7: 1908.872073 | AU7: 0 | AV7: 1937.719178 | AW7: 2584.331472 | AX7: 0 | AZ7: 0.7973740127 | BA7: 0.7752161454 | BB7: 0.8318191901 | BC7: 0.8937296347 | BD7: 0.8881413487 | BE7: 0.8860485809 | BF7: 0.8092190556 | BG7: 0.7893256926 | BH7: 0.8163614178 | BI7: 0.7844604314 | BJ7: 0.770163193 | BK7: 0.7871361594 | BL7: 0.9449458471 | BM7: 0.9333025768 | BN7: 0.9465841536 | BO7: 0 | BQ7: 0.09078564475 | BR7: 0.06465551714 | BS7: 0.9494084053 | BT7: 0.8843166837 | BU7: 0.05788245073 | BV7: 0.0808479717 | BW7: 0.03568420497 | BX7: 0.2875557944 | BY7: 0.1210001355 | BZ7: 0.0665970962 | CA7: 0.9681662518 | CB7: 0.9108125321 | CC7: 0.04815286918 | CD7: 0.07373627484 | CE7: 0.05052695161 | CF7: 0.376717965 | CG7: 0.1210001355 | CH7: 0.05376646908 | CI7: 0.8444517235 | CJ7: 0.8497737722 | CK7: 0.08276288755 | CL7: 0.07864340818 | CM7: 0.04493772527 | CN7: 0.0896596079 | CO7: 0.8954912005 | CP7: 0.1020470344 | CQ7: 0.9019894703 | CR7: 0.05839693371 | CS7: 0.9051178532 | CT7: 0.009022483527 | CV7: 6286.205928 | CW7: 35.0440003 | CX7: 16.23802925 | CZ7: 6533.158726 | DA7: 33.09464865 | DB7: 15.46038353 | DD7: 0.7776457185 | DE7: -246.9527975 | DF7: -317.5646591 | DG7: 805615.2563 | DH7: 766486.0176 | DI7: =DG7-DH7 -> 39129.23872 | DK7: =IF(DG7=MAX(DG7:DH7),1,0) -> 1 | DL7: =IF(DH7=MAX(DG7:DH7),1,0) -> 0 | DN7: 100 | DO7: 0.2604 | DP7: 0.7396 | DS7: Min | DT7: Max
A8: 3 | C8: 0.8168097585 | D8: 0.811826832 | E8: 0.7992085654 | F8: 0.5328655424 | G8: 0.9930814325 | H8: 0.9333508189 | I8: 0.1880681209 | J8: 0.792924225 | K8: 0.8336752393 | L8: 0.8143008865 | M8: 0.5393994903 | N8: 0.9838696325 | O8: 0.9328752473 | P8: 0.1962188669 | Q8: 0.8233350371 | R8: 0.905136802 | S8: 0.7385427029 | T8: 0.6306924519 | U8: 0.9872306606 | V8: 0.9328685908 | W8: 0.142897404 | Y8: 0 | Z8: 35.31683728 | AA8: 3338.005111 | AB8: 786.8036243 | AC8: 2551.201486 | AD8: 69.07599842 | AE8: 43.1347973 | AF8: 3906.20826 | AG8: 630.1198448 | AH8: 3276.088415 | AI8: 59.22045346 | AJ8: 41.92388952 | AK8: 4652.485326 | AL8: 738.1130962 | AM8: 3914.37223 | AN8: 52.44872101 | AO8: 0 | AP8: 1541.925938 | AQ8: 1450.644774 | AR8: 0 | AS8: 1849.982431 | AT8: 1765.023213 | AU8: 0 | AV8: 2742.897621 | AW8: 3824.854136 | AX8: 0 | AZ8: 0.7827289618 | BA8: 0.7612969248 | BB8: 0.8475533541 | BC8: 0.8892066604 | BD8: 0.9078120691 | BE8: 0.8720036651 | BF8: 0.8081151646 | BG8: 0.8169593356 | BH8: 0.822855093 | BI8: 0.789965549 | BJ8: 0.8023761813 | BK8: 0.809000602 | BL8: 0.9378645263 | BM8: 0.954286815 | BN8: 0.9559924966 | BO8: 0 | BQ8: 0.1005115765 | BR8: 0.05165195507 | BS8: 0.9483451768 | BT8: 0.931716072 | BU8: 0.06499525067 | BV8: 0.07520815994 | BW8: 0.0437185876 | BX8: 0.2412673129 | BY8: 0.07951643074 | BZ8: 0.06692703208 | CA8: 0.9243225576 | CB8: 0.8997854689 | CC8: 0.03293513773 | CD8: 0.03860356434 | CE8: 0.02081887355 | CF8: 0.3898943373 | CG8: 0.07951643074 | CH8: 0.04233557844 | CI8: 0.8762850276 | CJ8: 0.9059845191 | CK8: 0.06676412929 | CL8: 0.05726262988 | CM8: 0.01925819161 | CN8: 0.07218499055 | CO8: 0.9064434313 | CP8: 0.0575996414 | CQ8: 0.9131646486 | CR8: 0.07774303299 | CS8: 0.9395984892 | CT8: 0.0002344075788 | CV8: 6927.978868 | CW8: 34.48011643 | CX8: 15.84998178 | CZ8: 8259.977157 | DA8: 35.25581549 | DB8: 15.94478487 | DD8: -0.09480309632 | DE8: -1331.998289 | DF8: 14050.15596 | DG8: 785571.11 | DH8: 788979.2665 | DI8: -3408.156527 | DK8: 0 | DL8: 1 | DN8: 200 | DO8: 0.3012 | DP8: 0.6988 | DR8: Incre Cost | DS8: =MIN(DE6:DE5005) -> -2708.614274 | DT8: =MAX(DE6:DE5005) -> 2298.389521
A9: 4 | C9: 0.7999113824 | D9: 0.8659591018 | E9: 0.7978454854 | F9: 0.6607234246 | G9: 0.9722601044 | H9: 0.9041637127 | I9: 0.1212959238 | J9: 0.8575062362 | K9: 0.8555235961 | L9: 0.8012700089 | M9: 0.5534325113 | N9: 0.9771944943 | O9: 0.9052013486 | P9: 0.2005717398 | Q9: 0.8532384215 | R9: 0.8242108813 | S9: 0.8870925835 | T9: 0.4885518363 | U9: 0.974379425 | V9: 0.9270778868 | W9: 0.2003359742 | Y9: 0 | Z9: 26.12793558 | AA9: 4177.902047 | AB9: 734.8087618 | AC9: 3443.093285 | AD9: 72.22455815 | AE9: 35.90636651 | AF9: 2715.968268 | AG9: 767.6153899 | AH9: 1948.352878 | AI9: 76.0356256 | AJ9: 50.12522641 | AK9: 3715.639609 | AL9: 666.610682 | AM9: 3049.028927 | AN9: 67.21507354 | AO9: 0 | AP9: 2483.550784 | AQ9: 2393.595405 | AR9: 0 | AS9: 1392.767473 | AT9: 1293.143717 | AU9: 0 | AV9: 1606.159476 | AW9: 1472.102818 | AX9: 0 | AZ9: 0.8031379053 | BA9: 0.8484745958 | BB9: 0.8822217372 | BC9: 0.8142349106 | BD9: 0.8447993416 | BE9: 0.8748089591 | BF9: 0.8216539554 | BG9: 0.8018875626 | BH9: 0.785889012 | BI9: 0.8044276332 | BJ9: 0.7804347807 | BK9: 0.7705811812 | BL9: 0.9691944358 | BM9: 0.9441628536 | BN9: 0.9290005166 | BO9: 0 | BQ9: 0.0745392463 | BR9: 0.07039713682 | BS9: 0.9045408601 | BT9: 0.8957876621 | BU9: 0.07028697115 | BV9: 0.09396480664 | BW9: 0.03478433537 | BX9: 0.2317083129 | BY9: 0.1095200214 | BZ9: 0.05806869848 | CA9: 0.8907928535 | CB9: 0.8735232859 | CC9: 0.0589775113 | CD9: 0.03589279471 | CE9: 0.06750218354 | CF9: 0.3578517863 | CG9: 0.1095200214 | CH9: 0.06476681894 | CI9: 0.9462777102 | CJ9: 0.8673925919 | CK9: 0.05748883211 | CL9: 0.05210088031 | CM9: 0.07732621209 | CN9: 0.04754909904 | CO9: 0.9079796699 | CP9: 0.09464357149 | CQ9: 0.9350762944 | CR9: 0.02624155236 | CS9: 0.9192965281 | CT9: 0.003274125507 | CV9: 4360.513711 | CW9: 38.77579086 | CX9: 17.08316645 | CZ9: 3977.184192 | DA9: 35.86210433 | DB9: 16.23323048 | DD9: 0.8499359702 | DE9: 383.329519 | DF9: 451.0098789 | DG9: 849797.8089 | DH9: 807684.34 | DI9: 42113.46899 | DK9: 1 | DL9: 0 | DN9: 300 | DO9: 0.3526 | DP9: 0.6474 | DR9: Incre QALY | DS9: =MIN(DD6:DD5005) -> -1.915224115 | DT9: =MAX(DD6:DD5005) -> 3.606503829
A10: 5 | C10: 0.8619200894 | D10: 0.8908608377 | E10: 0.7570813266 | F10: 0.544013982 | G10: 0.9773736308 | H10: 0.898572903 | I10: 0.2205662677 | J10: 0.7572030061 | K10: 0.8559569454 | L10: 0.7804138801 | M10: 0.5740374311 | N10: 0.9724307558 | O10: 0.8929851318 | P10: 0.1438524532 | Q10: 0.7963623991 | R10: 0.9008532351 | S10: 0.8538750894 | T10: 0.5576645738 | U10: 0.9857036329 | V10: 0.9024274324 | W10: 0.2097228151 | Y10: 0 | Z10: 30.11912394 | AA10: 3717.481163 | AB10: 1006.05814 | AC10: 2711.423023 | AD10: 63.78134212 | AE10: 36.6503119 | AF10: 3485.3195 | AG10: 504.8354268 | AH10: 2980.484073 | AI10: 63.53866939 | AJ10: 41.07083107 | AK10: 3431.409133 | AL10: 1035.242137 | AM10: 2396.166995 | AN10: 56.3062209 | AO10: 0 | AP10: 1891.384485 | AQ10: 1808.286128 | AR10: 0 | AS10: 1803.806754 | AT10: 1717.788595 | AU10: 0 | AV10: 1812.863996 | AW10: 2528.808746 | AX10: 0 | AZ10: 0.8033644061 | BA10: 0.7972489766 | BB10: 0.7382595919 | BC10: 0.8479127062 | BD10: 0.9027635823 | BE10: 0.8197979275 | BF10: 0.7642502594 | BG10: 0.7777212249 | BH10: 0.8207528379 | BI10: 0.7424175421 | BJ10: 0.7569572858 | BK10: 0.7994815927 | BL10: 0.9054549407 | BM10: 0.9269218689 | BN10: 0.9588469192 | BO10: 0 | BQ10: 0.1166659274 | BR10: 0.05022153709 | BS10: 0.8982054554 | BT10: 0.8877189944 | BU10: 0.09601161946 | BV10: 0.06388450515 | BW10: 0.04674170052 | BX10: 0.2313439674 | BY10: 0.08247558328 | BZ10: 0.0473186242 | CA10: 0.8844216306 | CB10: 0.8661594194 | CC10: 0.1076314443 | CD10: 0.1147165535 | CE10: 0.02520087874 | CF10: 0.2992214709 | CG10: 0.08247558328 | CH10: 0.04287060722 | CI10: 0.9059023474 | CJ10: 0.8774689776 | CK10: 0.09025252252 | CL10: 0.07601708683 | CM10: 0.03760055727 | CN10: 0.06479928675 | CO10: 0.9571796018 | CP10: 0.09307094186 | CQ10: 0.9312717663 | CR10: 0.03528296033 | CS10: 0.9277977001 | CT10: 0.007706461343 | CV10: 5570.20131 | CW10: 38.13288518 | CX10: 16.76162259 | CZ10: 5972.722787 | DA10: 36.24055848 | DB10: 16.17753731 | DD10: 0.5840852798 | DE10: -402.5214771 | DF10: -689.1484704 | DG10: 832510.9284 | DH10: 802904.1429 | DI10: 29606.78546 | DK10: 1 | DL10: 0 | DN10: 400 | DO10: 0.4112 | DP10: 0.5888
A11: 6 | C11: 0.7381921582 | D11: 0.8323637406 | E11: 0.82764086 | F11: 0.5912767878 | G11: 0.9870917487 | H11: 0.8552185812 | I11: 0.2260854421 | J11: 0.8347589547 | K11: 0.8315428079 | L11: 0.8590433999 | M11: 0.6681262405 | N11: 0.98275767 | O11: 0.883331164 | P11: 0.271211659 | Q11: 0.7918488026 | R11: 0.8687683388 | S11: 0.74757047 | T11: 0.6050916653 | U11: 0.9905184572 | V11: 0.9040365986 | W11: 0.2371203494 | Y11: 0 | Z11: 29.59472453 | AA11: 4056.043199 | AB11: 808.6088527 | AC11: 3247.434346 | AD11: 69.99336198 | AE11: 44.99837692 | AF11: 3307.118397 | AG11: 619.2091677 | AH11: 2687.909229 | AI11: 55.47171483 | AJ11: 30.71983892 | AK11: 3847.806857 | AL11: 829.2882067 | AM11: 3018.51865 | AN11: 54.15288503 | AO11: 0 | AP11: 2088.051464 | AQ11: 2002.902444 | AR11: 0 | AS11: 1930.388701 | AT11: 1849.558273 | AU11: 0 | AV11: 2101.210703 | AW11: 2789.220138 | AX11: 0 | AZ11: 0.7343328537 | BA11: 0.8880895066 | BB11: 0.8359530421 | BC11: 0.9158760918 | BD11: 0.8457919398 | BE11: 0.8917588871 | BF11: 0.7852342533 | BG11: 0.7696970019 | BH11: 0.7920684829 | BI11: 0.7560422497 | BJ11: 0.7492202211 | BK11: 0.772281896 | BL11: 0.9288886708 | BM11: 0.9080637268 | BN11: 0.9256033461 | BO11: 0 | BQ11: 0.04112286818 | BR11: 0.07741616354 | BS11: 0.9472184512 | BT11: 0.7717412314 | BU11: 0.05133343105 | BV11: 0.1105680221 | BW11: 0.06341191869 | BX11: 0.1696391498 | BY11: 0.06745165174 | BZ11: 0.03076005531 | CA11: 0.9150121568 | CB11: 0.8846134154 | CC11: 0.08239658954 | CD11: 0.03013926032 | CE11: 0.08678169133 | CF11: 0.3721472349 | CG11: 0.06745165174 | CH11: 0.03320740823 | CI11: 0.9268710079 | CJ11: 0.8987661664 | CK11: 0.03370602074 | CL11: 0.0415055853 | CM11: 0.05418086367 | CN11: 0.1022522226 | CO11: 0.8842310179 | CP11: 0.07987444478 | CQ11: 0.9437160238 | CR11: 0.05157142862 | CS11: 0.9426406465 | CT11: 0.007574759699 | CV11: 4310.822473 | CW11: 35.24739925 | CX11: 16.13600692 | CZ11: 4158.935958 | DA11: 32.09645276 | DB11: 15.00862613 | DD11: 1.127380791 | DE11: 151.8865148 | DF11: 134.7251222 | DG11: 802489.5237 | DH11: 746272.3707 | DI11: 56217.15303 | DK11: 1 | DL11: 0 | DN11: 500 | DO11: 0.4884 | DP11: 0.5116
A12: 7 | C12: 0.8124074062 | D12: 0.8699214301 | E12: 0.7234510802 | F12: 0.5140060546 | G12: 0.97928392 | H12: 0.8970942902 | I12: 0.2319668526 | J12: 0.8285233696 | K12: 0.8374834726 | L12: 0.7791796379 | M12: 0.6373229767 | N12: 0.9611109072 | O12: 0.882499134 | P12: 0.1783781764 | Q12: 0.8782539224 | R12: 0.863107791 | S12: 0.7719293465 | T12: 0.5054110911 | U12: 0.9915608071 | V12: 0.9492338918 | W12: 0.1505743747 | Y12: 0 | Z12: 36.28600453 | AA12: 3089.463898 | AB12: 868.2460243 | AC12: 2221.217873 | AD12: 54.77868837 | AE12: 26.52937998 | AF12: 4462.707422 | AG12: 824.0021216 | AH12: 3638.705301 | AI12: 71.17701402 | AJ12: 26.24096367 | AK12: 3515.523738 | AL12: 834.5793874 | AM12: 2680.944351 | AN12: 64.04936911 | AO12: 0 | AP12: 1465.695677 | AQ12: 1389.855121 | AR12: 0 | AS12: 2475.115975 | AT12: 2386.691012 | AU12: 0 | AV12: 1620.652306 | AW12: 1538.006639 | AX12: 0 | AZ12: 0.7896538845 | BA12: 0.8153330697 | BB12: 0.7868628785 | BC12: 0.8766669097 | BD12: 0.8254666416 | BE12: 0.9059765156 | BF12: 0.7784129974 | BG12: 0.7508393206 | BH12: 0.7600710792 | BI12: 0.755476855 | BJ12: 0.7313609255 | BK12: 0.746244312 | BL12: 0.9208594411 | BM12: 0.9053626355 | BN12: 0.8877925742 | BO12: 0 | BQ12: 0.1390904206 | BR12: 0.05777194308 | BS12: 0.9348303899 | BT12: 0.8909530668 | BU12: 0.0428174249 | BV12: 0.03725397838 | BW12: 0.07393997934 | BX12: 0.2410692607 | BY12: 0.04446913271 | BZ12: 0.1025934568 | CA12: 0.9201519743 | CB12: 0.8830203171 | CC12: 0.09144640993 | CD12: 0.06290700789 | CE12: 0.04856636542 | CF12: 0.3345596579 | CG12: 0.04446913271 | CH12: 0.05823191707 | CI12: 0.8538228541 | CJ12: 0.8960955698 | CK12: 0.04536242035 | CL12: 0.06697096445 | CM12: 0.08490081165 | CN12: 0.06596092734 | CO12: 0.9580000343 | CP12: 0.02872932542 | CQ12: 0.9108228675 | CR12: 0.06000843705 | CS12: 0.9404207379 | CT12: 0.003771589585 | CV12: 5573.211607 | CW12: 35.28488339 | CX12: 16.21107563 | CZ12: 5376.555961 | DA12: 35.22084778 | DB12: 15.99613657 | DD12: 0.2149390684 | DE12: 196.6556462 | DF12: 914.9367198 | DG12: 804980.5701 | DH12: 794430.2724 | DI12: 10550.29777 | DK12: 1 | DL12: 0 | DN12: 600 | DO12: 0.55 | DP12: 0.45
A13: 8 | C13: 0.7590963667 | D13: 0.8864828459 | E13: 0.8250458865 | F13: 0.6218290644 | G13: 0.9714418588 | H13: 0.9099630591 | I13: 0.15191676 | J13: 0.8312932645 | K13: 0.857845517 | L13: 0.7799503976 | M13: 0.6339841184 | N13: 0.9883012306 | O13: 0.9118216883 | P13: 0.2200377604 | Q13: 0.8273022392 | R13: 0.8667718763 | S13: 0.7708419955 | T13: 0.5646288365 | U13: 0.9837929643 | V13: 0.9492580918 | W13: 0.2320983041 | Y13: 0 | Z13: 32.50482634 | AA13: 4535.888975 | AB13: 1155.659433 | AC13: 3380.229541 | AD13: 64.2630651 | AE13: 33.36608043 | AF13: 3738.043137 | AG13: 525.7137863 | AH13: 3212.32935 | AI13: 60.64986952 | AJ13: 37.01270126 | AK13: 3034.431905 | AL13: 544.8387071 | AM13: 2489.593198 | AN13: 51.72350597 | AO13: 0 | AP13: 2589.304422 | AQ13: 2505.305089 | AR13: 0 | AS13: 2121.360629 | AT13: 2040.315559 | AU13: 0 | AV13: 1567.40851 | AW13: 1702.05569 | AX13: 0 | AZ13: 0.8115434026 | BA13: 0.8443612755 | BB13: 0.8709987738 | BC13: 0.8696543404 | BD13: 0.8906340551 | BE13: 0.8669347741 | BF13: 0.7546205929 | BG13: 0.7901358151 | BH13: 0.8270433237 | BI13: 0.7410897831 | BJ13: 0.7720503522 | BK13: 0.8176082237 | BL13: 0.901155983 | BM13: 0.9232783765 | BN13: 0.9622783516 | BO13: 0 | BQ13: 0.08724803418 | BR13: 0.05178038609 | BS13: 0.8708092116 | BT13: 0.8521378518 | BU13: 0.08833380534 | BV13: 0.03961118529 | BW13: 0.04851849136 | BX13: 0.1507521105 | BY13: 0.1292385954 | BZ13: 0.08510406495 | CA13: 0.9179151559 | CB13: 0.8814868436 | CC13: 0.06699009841 | CD13: 0.06948238698 | CE13: 0.05671647682 | CF13: 0.3052331022 | CG13: 0.1292385954 | CH13: 0.03687567638 | CI13: 0.8785725899 | CJ13: 0.8446763769 | CK13: 0.06552472914 | CL13: 0.05358048247 | CM13: 0.0665250847 | CN13: 0.05320770977 | CO13: 0.899545403 | CP13: 0.06705716134 | CQ13: 0.922886515 | CR13: 0.1234307847 | CS13: 0.9372255819 | CT13: 0.0005423995657 | CV13: 5130.056936 | CW13: 34.69101667 | CX13: 16.32063467 | CZ13: 4985.844454 | DA13: 33.00829554 | DB13: 15.7775459 | DD13: 0.5430887702 | DE13: 144.2124818 | DF13: 265.54127 | DG13: 810901.6765 | DH13: 783891.4505 | DI13: 27010.22603 | DK13: 1 | DL13: 0 | DN13: 700 | DO13: 0.6084 | DP13: 0.3916
A14: 9 | C14: 0.735928537 | D14: 0.8601798371 | E14: 0.7923413395 | F14: 0.579686666 | G14: 0.9767061752 | H14: 0.8708713085 | I14: 0.1840291294 | J14: 0.8041421977 | K14: 0.8845178447 | L14: 0.7955780923 | M14: 0.6656386765 | N14: 0.9853921925 | O14: 0.9105819785 | P14: 0.2076747158 | Q14: 0.7400993955 | R14: 0.865863027 | S14: 0.7433124042 | T14: 0.6591716771 | U14: 0.9752333847 | V14: 0.8586566958 | W14: 0.2429296672 | Y14: 0 | Z14: 37.95690537 | AA14: 3724.673405 | AB14: 799.8334723 | AC14: 2924.839933 | AD14: 75.7056662 | AE14: 30.06832077 | AF14: 4338.14288 | AG14: 902.8333046 | AH14: 3435.309575 | AI14: 53.83106417 | AJ14: 34.91330139 | AK14: 2948.97239 | AL14: 533.0253476 | AM14: 2415.947042 | AN14: 69.69935142 | AO14: 0 | AP14: 1960.890947 | AQ14: 1864.236887 | AR14: 0 | AS14: 2632.175562 | AT14: 2560.409722 | AU14: 0 | AV14: 1778.671685 | AW14: 2305.870655 | AX14: 0 | AZ14: 0.8390313931 | BA14: 0.8475127477 | BB14: 0.7842827588 | BC14: 0.8558359657 | BD14: 0.8739455008 | BE14: 0.863256162 | BF14: 0.7964105846 | BG14: 0.8121772398 | BH14: 0.7917865661 | BI14: 0.7709743341 | BJ14: 0.7961809698 | BK14: 0.769549565 | BL14: 0.9462727936 | BM14: 0.9482881303 | BN14: 0.9418680283 | BO14: 0 | BQ14: 0.08517653892 | BR14: 0.02202709103 | BS14: 0.8676700896 | BT14: 0.890874476 | BU14: 0.05060789894 | BV14: 0.05589686205 | BW14: 0.09693287434 | BX14: 0.2071462694 | BY14: 0.1228870941 | BZ14: 0.02857007861 | CA14: 0.8844457914 | CB14: 0.8440739304 | CC14: 0.09833091129 | CD14: 0.08019899658 | CE14: 0.05670787137 | CF14: 0.3045848875 | CG14: 0.1228870941 | CH14: 0.03745822611 | CI14: 0.9112277143 | CJ14: 0.8289947229 | CK14: 0.05825789976 | CL14: 0.07615571388 | CM14: 0.04603717939 | CN14: 0.04500714612 | CO14: 0.9258927 | CP14: 0.04137281598 | CQ14: 0.9279952155 | CR14: 0.08315950198 | CS14: 0.9257699407 | CT14: 0.008082140834 | CV14: 5990.905166 | CW14: 32.48328588 | CX14: 15.5069822 | CZ14: 6033.281173 | DA14: 29.57975689 | DB14: 14.69293432 | DD14: 0.8140478799 | DE14: -42.37600701 | DF14: -52.05591471 | DG14: 769358.2046 | DH14: 728613.4346 | DI14: 40744.77 | DK14: 1 | DL14: 0 | DN14: 800 | DO14: 0.6494 | DP14: 0.3506
A15: 10 | C15: 0.8706599659 | D15: 0.8628494101 | E15: 0.7877690921 | F15: 0.6829793959 | G15: 0.9970171968 | H15: 0.9249943861 | I15: 0.1659439816 | J15: 0.8125865674 | K15: 0.8493389247 | L15: 0.7464573937 | M15: 0.6149182489 | N15: 0.9818679571 | O15: 0.913670312 | P15: 0.2440024901 | Q15: 0.8408858141 | R15: 0.8643229227 | S15: 0.8457229111 | T15: 0.6012359548 | U15: 0.9701959431 | V15: 0.9001718106 | W15: 0.1884454272 | Y15: 0 | Z15: 49.4199184 | AA15: 3473.018717 | AB15: 900.2758297 | AC15: 2572.742887 | AD15: 63.03703019 | AE15: 41.30302532 | AF15: 3054.912452 | AG15: 907.2918087 | AH15: 2147.620643 | AI15: 49.68221243 | AJ15: 36.2123991 | AK15: 3391.050633 | AL15: 784.6272669 | AM15: 2606.423366 | AN15: 80.98123279 | AO15: 0 | AP15: 2152.74397 | AQ15: 2054.879933 | AR15: 0 | AS15: 1678.745855 | AT15: 1605.5794 | AU15: 0 | AV15: 1873.63194 | AW15: 1721.385318 | AX15: 0 | AZ15: 0.8723608576 | BA15: 0.7907821087 | BB15: 0.8129961491 | BC15: 0.8854639016 | BD15: 0.8629615405 | BE15: 0.9149137445 | BF15: 0.8391211341 | BG15: 0.8336560629 | BH15: 0.7919281238 | BI15: 0.8209236094 | BJ15: 0.8166505853 | BK15: 0.773340122 | BL15: 0.9638735176 | BM15: 0.9733640822 | BN15: 0.9397835087 | BO15: 0 | BQ15: 0.0762711493 | BR15: 0.04079232251 | BS15: 0.9576936348 | BT15: 0.9071920628 | BU15: 0.0696876509 | BV15: 0.05860377396 | BW15: 0.07666019985 | BX15: 0.160716777 | BY15: 0.08702760899 | BZ15: 0.07522151929 | CA15: 0.943994592 | CB15: 0.8759632731 | CC15: 0.04901146287 | CD15: 0.06740159003 | CE15: 0.02243784489 | CF15: 0.2679758797 | CG15: 0.08702760899 | CH15: 0.08771682957 | CI15: 0.9193807846 | CJ15: 0.9169025526 | CK15: 0.1016747922 | CL15: 0.07461745687 | CM15: 0.01593702292 | CN15: 0.06512138356 | CO15: 0.8787167568 | CP15: 0.04457820093 | CQ15: 0.9366211994 | CR15: 0.09105704354 | CS15: 0.8771571067 | CT15: 0.002944951116 | CV15: 5867.826001 | CW15: 39.02572091 | CX15: 17.8420869 | CZ15: 5514.143473 | DA15: 36.79218581 | DB15: 17.06007207 | DD15: 0.7820148287 | DE15: 353.6825275 | DF15: 452.2708707 | DG15: 886236.5189 | DH15: 847489.46 | DI15: 38747.05891 | DK15: 1 | DL15: 0 | DN15: 900 | DO15: 0.685 | DP15: 0.315
A16: 11 | C16: 0.7747583271 | D16: 0.8713166273 | E16: 0.7933440381 | F16: 0.5670416237 | G16: 0.9932851042 | H16: 0.8587882655 | I16: 0.1376177345 | J16: 0.7852650855 | K16: 0.8454582014 | L16: 0.8155668388 | M16: 0.6509436714 | N16: 0.9770726236 | O16: 0.9420585551 | P16: 0.1719420348 | Q16: 0.8033994217 | R16: 0.828789686 | S16: 0.8250359969 | T16: 0.5705933197 | U16: 0.9638042595 | V16: 0.8978676707 | W16: 0.1602541646 | Y16: 0 | Z16: 74.56767333 | AA16: 2808.280518 | AB16: 1326.268894 | AC16: 1482.011624 | AD16: 68.93453077 | AE16: 40.58607492 | AF16: 3067.230969 | AG16: 728.9504176 | AH16: 2338.280552 | AI16: 55.5921708 | AJ16: 43.49636848 | AK16: 3836.517492 | AL16: 737.6127988 | AM16: 3098.904694 | AN16: 76.44041739 | AO16: 0 | AP16: 1514.201462 | AQ16: 1397.756839 | AR16: 0 | AS16: 1775.500268 | AT16: 1695.015722 | AU16: 0 | AV16: 1925.681626 | AW16: 2406.170077 | AX16: 0 | AZ16: 0.8032712548 | BA16: 0.7829386695 | BB16: 0.814729395 | BC16: 0.9163489237 | BD16: 0.8746620864 | BE16: 0.880733598 | BF16: 0.8096801883 | BG16: 0.7812102684 | BH16: 0.7469020761 | BI16: 0.7725909631 | BJ16: 0.7731999443 | BK16: 0.728942716 | BL16: 0.946929072 | BM16: 0.9213178154 | BN16: 0.8994852677 | BO16: 0 | BQ16: 0.08089190466 | BR16: 0.05168959186 | BS16: 0.8609309847 | BT16: 0.8682727466 | BU16: 0.05109350295 | BV16: 0.0814473686 | BW16: 0.06362737252 | BX16: 0.1663126177 | BY16: 0.09348670842 | BZ16: 0.08407614508 | CA16: 0.9441149633 | CB16: 0.9181788035 | CC16: 0.05926657569 | CD16: 0.0307479524 | CE16: 0.04276787379 | CF16: 0.4420461737 | CG16: 0.09348670842 | CH16: 0.04959959753 | CI16: 0.9300903818 | CJ16: 0.8973173843 | CK16: 0.05147231228 | CL16: 0.05953478864 | CM16: 0.05413436646 | CN16: 0.09676600456 | CO16: 0.8782876336 | CP16: 0.08228932726 | CQ16: 0.9415243107 | CR16: 0.08187133893 | CS16: 0.9466521123 | CT16: 0.0002007130236 | CV16: 7825.306893 | CW16: 34.40422357 | CX16: 15.75952583 | CZ16: 7975.128402 | DA16: 32.74348036 | DB16: 15.30805472 | DD16: 0.4514711154 | DE16: -149.8215089 | DF16: -331.8518147 | DG16: 780150.9848 | DH16: 757427.6076 | DI16: 22723.37728 | DK16: 1 | DL16: 0 | DN16: 1000 | DO16: 0.7092 | DP16: 0.2908
A17: 12 | C17: 0.8410454407 | D17: 0.8310537606 | E17: 0.7673209928 | F17: 0.6537800942 | G17: 0.9920902011 | H17: 0.8889603859 | I17: 0.2197288853 | J17: 0.7363197252 | K17: 0.8707411994 | L17: 0.8128043483 | M17: 0.6328182346 | N17: 0.9967579909 | O17: 0.8888019787 | P17: 0.1662661736 | Q17: 0.766079511 | R17: 0.8729592721 | S17: 0.7849686847 | T17: 0.6786003414 | U17: 0.9979142758 | V17: 0.9238793671 | W17: 0.1509573196 | Y17: 0 | Z17: 36.78534549 | AA17: 4239.862117 | AB17: 835.6484586 | AC17: 3404.213658 | AD17: 73.25683397 | AE17: 39.70722003 | AF17: 3416.628986 | AG17: 566.9278869 | AH17: 2849.701099 | AI17: 62.27119158 | AJ17: 41.79787734 | AK17: 3800.617984 | AL17: 686.8856545 | AM17: 3113.732329 | AN17: 64.7652189 | AO17: 0 | AP17: 2407.824027 | AQ17: 2311.711848 | AR17: 0 | AS17: 1974.142409 | AT17: 1889.235976 | AU17: 0 | AV17: 2348.235552 | AW17: 2665.588365 | AX17: 0 | AZ17: 0.8410247124 | BA17: 0.8215490722 | BB17: 0.7464226029 | BC17: 0.8906490363 | BD17: 0.8076519753 | BE17: 0.898663299 | BF17: 0.8213059408 | BG17: 0.8261818995 | BH17: 0.7909148888 | BI17: 0.7956316661 | BJ17: 0.8020803698 | BK17: 0.7755596258 | BL17: 0.9531485149 | BM17: 0.9586350273 | BN17: 0.9172144169 | BO17: 0 | BQ17: 0.09413312607 | BR17: 0.05933391243 | BS17: 0.9496550645 | BT17: 0.9153302737 | BU17: 0.05110884703 | BV17: 0.06734542331 | BW17: 0.05415996898 | BX17: 0.2041780297 | BY17: 0.1240503062 | BZ17: 0.1108139676 | CA17: 0.8971791072 | CB17: 0.9087817621 | CC17: 0.03980426402 | CD17: 0.07238712657 | CE17: 0.05863944614 | CF17: 0.4086173315 | CG17: 0.1240503062 | CH17: 0.09743680162 | CI17: 0.9432235981 | CJ17: 0.9050055174 | CK17: 0.05327981483 | CL17: 0.09096299603 | CM17: 0.06402316744 | CN17: 0.04315081984 | CO17: 0.9527145757 | CP17: 0.06859379465 | CQ17: 0.9547998487 | CR17: 0.07791115535 | CS17: 0.958511029 | CT17: 0.006955733518 | CV17: 6397.261544 | CW17: 39.05198422 | CX17: 17.68309356 | CZ17: 6307.549575 | DA17: 36.83545145 | DB17: 16.99383214 | DD17: 0.6892614172 | DE17: 89.71196965 | DF17: 130.1566683 | DG17: 877757.4162 | DH17: 843384.0573 | DI17: 34373.35889 | DK17: 1 | DL17: 0 | DN17: 1500 | DO17: 0.772 | DP17: 0.228
A18: 13 | C18: 0.8372885622 | D18: 0.852228477 | E18: 0.8377840096 | F18: 0.6503652721 | G18: 0.9760590506 | H18: 0.9125550678 | I18: 0.2914662393 | J18: 0.8052366322 | K18: 0.8318140076 | L18: 0.7922464777 | M18: 0.5150752112 | N18: 0.9803823002 | O18: 0.9277082745 | P18: 0.2806794418 | Q18: 0.7817668639 | R18: 0.8424660457 | S18: 0.7435115819 | T18: 0.6399264374 | U18: 0.9921527002 | V18: 0.9240059752 | W18: 0.1568749287 | Y18: 0 | Z18: 40.333631 | AA18: 4184.180418 | AB18: 799.1842626 | AC18: 3384.996155 | AD18: 75.61037044 | AE18: 40.92109857 | AF18: 4018.198238 | AG18: 646.608612 | AH18: 3371.589626 | AI18: 77.18637636 | AJ18: 37.68434829 | AK18: 4755.690249 | AL18: 919.232472 | AM18: 3836.457777 | AN18: 91.8454521 | AO18: 0 | AP18: 2428.504282 | AQ18: 2330.878915 | AR18: 0 | AS18: 1831.721623 | AT18: 1733.06979 | AU18: 0 | AV18: 2685.175935 | AW18: 2375.166342 | AX18: 0 | AZ18: 0.8039466592 | BA18: 0.8271381578 | BB18: 0.786503924 | BC18: 0.8605251946 | BD18: 0.8800029996 | BE18: 0.8442054387 | BF18: 0.7828405804 | BG18: 0.8126120585 | BH18: 0.812619903 | BI18: 0.769669169 | BJ18: 0.7984103577 | BK18: 0.7957470983 | BL18: 0.9248447936 | BM18: 0.9528598477 | BN18: 0.9437448934 | BO18: 0 | BQ18: 0.121906842 | BR18: 0.06152685953 | BS18: 0.9228773122 | BT18: 0.9360911878 | BU18: 0.03698548787 | BV18: 0.04204127493 | BW18: 0.02275510756 | BX18: 0.1849196674 | BY18: 0.1052296358 | BZ18: 0.1043927022 | CA18: 0.9354958194 | CB18: 0.8859074636 | CC18: 0.08115529242 | CD18: 0.05300685314 | CE18: 0.04967045435 | CF18: 0.3871159743 | CG18: 0.1052296358 | CH18: 0.0568851026 | CI18: 0.9645183419 | CJ18: 0.8233334455 | CK18: 0.05982820358 | CL18: 0.1214088413 | CM18: 0.06237328512 | CN18: 0.07550295879 | CO18: 0.9652756632 | CP18: 0.06964548408 | CQ18: 0.8996795595 | CR18: 0.08306863866 | CS18: 0.907480516 | CT18: 0.0004627128854 | CV18: 8195.084794 | CW18: 39.88878891 | CX18: 17.50494596 | CZ18: 6611.484845 | DA18: 32.66996597 | DB18: 15.57846409 | DD18: 1.926481867 | DE18: 1583.599949 | DF18: 822.016535 | DG18: 867052.2131 | DH18: 772311.7197 | DI18: 94740.49339 | DK18: 1 | DL18: 0 | DN18: 2000 | DO18: 0.795 | DP18: 0.205
A19: 14 | C19: 0.8187564879 | D19: 0.8135345727 | E19: 0.7028378284 | F19: 0.5772428863 | G19: 0.9911169056 | H19: 0.8935657921 | I19: 0.2452200528 | J19: 0.8305147185 | K19: 0.8706641358 | L19: 0.7058232442 | M19: 0.555584572 | N19: 0.9866816744 | O19: 0.8579899865 | P19: 0.1973941387 | Q19: 0.8418630836 | R19: 0.8387993248 | S19: 0.8159190251 | T19: 0.5674004783 | U19: 0.9925697672 | V19: 0.9396159815 | W19: 0.201238981 | Y19: 0 | Z19: 51.30399053 | AA19: 5146.172128 | AB19: 894.5146218 | AC19: 4251.657506 | AD19: 55.08872541 | AE19: 40.22705919 | AF19: 3152.235219 | AG19: 1068.642685 | AH19: 2083.592534 | AI19: 57.70671864 | AJ19: 44.91592242 | AK19: 3902.483133 | AL19: 1219.221473 | AM19: 2683.26166 | AN19: 92.90607479 | AO19: 0 | AP19: 2513.772886 | AQ19: 2429.259452 | AR19: 0 | AS19: 1615.938938 | AT19: 1532.763641 | AU19: 0 | AV19: 1988.047981 | AW19: 1566.776504 | AX19: 0 | AZ19: 0.7412326049 | BA19: 0.8881117382 | BB19: 0.8492553594 | BC19: 0.8330164781 | BD19: 0.8861404134 | BE19: 0.8877550314 | BF19: 0.7989459325 | BG19: 0.7982213017 | BH19: 0.8431238257 | BI19: 0.7728065875 | BJ19: 0.7614321654 | BK19: 0.8273480963 | BL19: 0.9328066195 | BM19: 0.937335097 | BN19: 0.9722076522 | BO19: 0 | BQ19: 0.09403542234 | BR19: 0.03970206518 | BS19: 0.9420184476 | BT19: 0.8788492618 | BU19: 0.05131541451 | BV19: 0.07270056933 | BW19: 0.05272806486 | BX19: 0.2194918733 | BY19: 0.08211494286 | BZ19: 0.08991573501 | CA19: 0.9277065425 | CB19: 0.9098174117 | CC19: 0.07141881772 | CD19: 0.08499107455 | CE19: 0.02874929264 | CF19: 0.302175544 | CG19: 0.08211494286 | CH19: 0.06869018211 | CI19: 0.9408974851 | CJ19: 0.8441361242 | CK19: 0.08713454009 | CL19: 0.1051722206 | CM19: 0.0375676209 | CN19: 0.0669916552 | CO19: 0.9336037806 | CP19: 0.05357313292 | CQ19: 0.9515045966 | CR19: 0.1080645541 | CS19: 0.9507345581 | CT19: 0.0009796228531 | CV19: 7208.103965 | CW19: 39.1566042 | CX19: 17.30325329 | CZ19: 6199.071582 | DA19: 33.23855671 | DB19: 15.44234133 | DD19: 1.860911961 | DE19: 1009.032383 | DF19: 542.224675 | DG19: 857954.5606 | DH19: 765917.9949 | DI19: 92036.56567 | DK19: 1 | DL19: 0 | DN19: 2500 | DO19: 0.806 | DP19: 0.194
A20: 15 | C20: 0.8103456059 | D20: 0.8170827654 | E20: 0.8462045654 | F20: 0.67247166 | G20: 0.99764872 | H20: 0.8871060163 | I20: 0.1925296899 | J20: 0.7493365288 | K20: 0.8322817122 | L20: 0.817224778 | M20: 0.5864867156 | N20: 0.9828808961 | O20: 0.9326528404 | P20: 0.1406857538 | Q20: 0.8198156874 | R20: 0.8667033153 | S20: 0.7990855453 | T20: 0.6033629737 | U20: 0.9687156991 | V20: 0.9244458516 | W20: 0.1258385878 | Y20: 0 | Z20: 49.54244391 | AA20: 3216.17293 | AB20: 728.1451648 | AC20: 2488.027765 | AD20: 61.77508742 | AE20: 35.65810715 | AF20: 3922.062473 | AG20: 875.0193121 | AH20: 3047.043161 | AI20: 93.61564675 | AJ20: 45.02584879 | AK20: 4267.606429 | AL20: 807.0103467 | AM20: 3460.596082 | AN20: 86.61390615 | AO20: 0 | AP20: 1869.096059 | AQ20: 1776.712862 | AR20: 0 | AS20: 2034.781206 | AT20: 1919.462225 | AU20: 0 | AV20: 2355.214782 | AW20: 2512.554937 | AX20: 0 | AZ20: 0.8339759762 | BA20: 0.8052894234 | BB20: 0.8776103112 | BC20: 0.8670852197 | BD20: 0.8630103537 | BE20: 0.8544820881 | BF20: 0.7759690546 | BG20: 0.7982817782 | BH20: 0.7890763345 | BI20: 0.7511201692 | BJ20: 0.7851247639 | BK20: 0.7767760428 | BL20: 0.9042322076 | BM20: 0.9365462911 | BN20: 0.9367717041 | BO20: 0 | BQ20: 0.09977365033 | BR20: 0.05776250362 | BS20: 0.9464290009 | BT20: 0.9216640051 | BU20: 0.0782631797 | BV20: 0.05867157389 | BW20: 0.04143880499 | BX20: 0.1833788547 | BY20: 0.05990510914 | BZ20: 0.0430143763 | CA20: 0.9090859278 | CB20: 0.9361729427 | CC20: 0.08935164861 | CD20: 0.08587294037 | CE20: 0.04621601707 | CF20: 0.3240290496 | CG20: 0.05990510914 | CH20: 0.05057759113 | CI20: 0.9510066053 | CJ20: 0.8371052252 | CK20: 0.02617223947 | CL20: 0.1419713022 | CM20: 0.007255078814 | CN20: 0.07676218953 | CO20: 0.9660166659 | CP20: 0.04309806438 | CQ20: 0.9620609012 | CR20: 0.09242820856 | CS20: 0.9695271636 | CT20: 0.01343790844 | CV20: 7357.635266 | CW20: 36.97188573 | CX20: 16.87783218 | CZ20: 6781.0792 | DA20: 32.51914423 | DB20: 15.64475324 | DD20: 1.233078938 | DE20: 576.5560655 | DF20: 467.574336 | DG20: 836533.9737 | DH20: 775456.5829 | DI20: 61077.39082 | DK20: 1 | DL20: 0 | DN20: 3000 | DO20: 0.8118 | DP20: 0.1882
A21: 16 | C21: 0.8328116704 | D21: 0.9037801927 | E21: 0.8011902556 | F21: 0.6291982185 | G21: 0.9801987656 | H21: 0.8876798914 | I21: 0.2052569115 | J21: 0.8297256258 | K21: 0.8991245228 | L21: 0.7807739971 | M21: 0.5633835844 | N21: 0.9857128305 | O21: 0.8627126494 | P21: 0.2559358242 | Q21: 0.7876885155 | R21: 0.7711913125 | S21: 0.8137020961 | T21: 0.7004940639 | U21: 0.980382923 | V21: 0.9007614727 | W21: 0.1721761432 | Y21: 0 | Z21: 30.66169368 | AA21: 4163.763989 | AB21: 780.7461837 | AC21: 3383.017805 | AD21: 72.8586854 | AE21: 39.19250618 | AF21: 4006.187033 | AG21: 880.8482346 | AH21: 3125.338799 | AI21: 62.15181819 | AJ21: 28.21949166 | AK21: 3524.010778 | AL21: 970.4684985 | AM21: 2553.542279 | AN21: 91.78342241 | AO21: 0 | AP21: 2466.147171 | AQ21: 2374.046594 | AR21: 0 | AS21: 2124.012885 | AT21: 2039.372806 | AU21: 0 | AV21: 2017.734851 | AW21: 2023.387506 | AX21: 0 | AZ21: 0.7970954016 | BA21: 0.8752071641 | BB21: 0.8528652143 | BC21: 0.8919121624 | BD21: 0.8755203667 | BE21: 0.8975426098 | BF21: 0.7938304821 | BG21: 0.7806166413 | BH21: 0.7608429874 | BI21: 0.7723774262 | BJ21: 0.7505765875 | BK21: 0.7427545499 | BL21: 0.9344172533 | BM21: 0.9193220388 | BN21: 0.9012689714 | BO21: 0 | BQ21: 0.1002392231 | BR21: 0.04110058641 | BS21: 0.8980665252 | BT21: 0.9178795115 | BU21: 0.08911430983 | BV21: 0.04090972335 | BW21: 0.04915907019 | BX21: 0.2341947562 | BY21: 0.1099776293 | BZ21: 0.05181108182 | CA21: 0.8791548161 | CB21: 0.939700517 | CC21: 0.07797021176 | CD21: 0.04267810756 | CE21: 0.06415182388 | CF21: 0.354989777 | CG21: 0.1099776293 | CH21: 0.0826694461 | CI21: 0.9567579559 | CJ21: 0.8834345815 | CK21: 0.06793710024 | CL21: 0.138695645 | CM21: 0.03230187742 | CN21: 0.05673310937 | CO21: 0.9464427215 | CP21: 0.06970490642 | CQ21: 0.939476275 | CR21: 0.06194480655 | CS21: 0.9261688348 | CT21: 0.003147844532 | CV21: 6336.630679 | CW21: 38.96741857 | CX21: 17.55304856 | CZ21: 6086.049928 | DA21: 36.85269789 | DB21: 17.07760776 | DD21: 0.4754408013 | DE21: 250.5807507 | DF21: 527.0493193 | DG21: 871315.7972 | DH21: 847794.3379 | DI21: 23521.45931 | DK21: 1 | DL21: 0 | DN21: 3500 | DO21: 0.815 | DP21: 0.185
A22: 17 | C22: 0.7045121035 | D22: 0.8862835635 | E22: 0.8414815572 | F22: 0.5892513034 | G22: 0.9642054865 | H22: 0.9101811562 | I22: 0.127155069 | J22: 0.763444122 | K22: 0.8293904101 | L22: 0.7941210221 | M22: 0.6038003226 | N22: 0.9729804494 | O22: 0.8804694836 | P22: 0.1760360376 | Q22: 0.8410529407 | R22: 0.8764899535 | S22: 0.7863335481 | T22: 0.6941112896 | U22: 0.9770804851 | V22: 0.9106025249 | W22: 0.2723530261 | Y22: 0 | Z22: 36.88143876 | AA22: 3518.673547 | AB22: 605.382642 | AC22: 2913.290905 | AD22: 78.67381384 | AE22: 46.13260788 | AF22: 3529.381202 | AG22: 783.631481 | AH22: 2745.749721 | AI22: 79.29560606 | AJ22: 35.58281704 | AK22: 3488.592743 | AL22: 928.1554097 | AM22: 2560.437334 | AN22: 67.71398227 | AO22: 0 | AP22: 1942.262485 | AQ22: 1842.294913 | AR22: 0 | AS22: 1881.980665 | AT22: 1775.586392 | AU22: 0 | AV22: 2220.036552 | AW22: 1965.516448 | AX22: 0 | AZ22: 0.8396177438 | BA22: 0.7939582784 | BB22: 0.8317687822 | BC22: 0.877187648 | BD22: 0.8945540848 | BE22: 0.9109616324 | BF22: 0.7660614907 | BG22: 0.8130118248 | BH22: 0.7872605477 | BI22: 0.7538101069 | BJ22: 0.7891553953 | BK22: 0.7744413461 | BL22: 0.9198346879 | BM22: 0.9640777524 | BN22: 0.9281542732 | BO22: 0 | BQ22: 0.1014322964 | BR22: 0.04133486209 | BS22: 0.9104810745 | BT22: 0.8633040724 | BU22: 0.06503809198 | BV22: 0.05119834074 | BW22: 0.03022156591 | BX22: 0.2599459245 | BY22: 0.08598706916 | BZ22: 0.08681208284 | CA22: 0.9061604598 | CB22: 0.8704714432 | CC22: 0.08174360684 | CD22: 0.1085174493 | CE22: 0.05720948601 | CF22: 0.3963388622 | CG22: 0.08598706916 | CH22: 0.04915515116 | CI22: 0.9531732607 | CJ22: 0.8562400058 | CK22: 0.06129048885 | CL22: 0.05133181821 | CM22: 0.05256563973 | CN22: 0.08725126257 | CO22: 0.9606513526 | CP22: 0.05071061688 | CQ22: 0.9416580337 | CR22: 0.1332183401 | CS22: 0.9200955945 | CT22: 0.004943035644 | CV22: 7557.490237 | CW22: 37.93259032 | CX22: 17.05349024 | CZ22: 6060.852299 | DA22: 30.78990097 | DB22: 15.00959453 | DD22: 2.043895704 | DE22: 1496.637937 | DF22: 732.2477043 | DG22: 845117.0217 | DH22: 744418.8744 | DI22: 100698.1473 | DK22: 1 | DL22: 0 | DN22: 4000 | DO22: 0.8158 | DP22: 0.1842
A23: 18 | C23: 0.7448192755 | D23: 0.8131247126 | E23: 0.7981357815 | F23: 0.6197839175 | G23: 0.9529850561 | H23: 0.8574226246 | I23: 0.2226394239 | J23: 0.7853706956 | K23: 0.8379872848 | L23: 0.778350081 | M23: 0.658117064 | N23: 0.9914821087 | O23: 0.9477574505 | P23: 0.1903771307 | Q23: 0.7773854528 | R23: 0.9148179069 | S23: 0.8303138619 | T23: 0.562380761 | U23: 0.9528987171 | V23: 0.905213069 | W23: 0.1696330447 | Y23: 0 | Z23: 52.54383856 | AA23: 3271.004923 | AB23: 926.6145705 | AC23: 2344.390353 | AD23: 60.28223538 | AE23: 32.1077043 | AF23: 4875.722193 | AG23: 964.7026281 | AH23: 3911.019565 | AI23: 55.35295197 | AJ23: 31.9185438 | AK23: 3154.196578 | AL23: 637.1119075 | AM23: 2517.084671 | AN23: 76.70322498 | AO23: 0 | AP23: 1747.878839 | AQ23: 1660.159269 | AR23: 0 | AS23: 2769.499628 | AT23: 2695.042799 | AU23: 0 | AV23: 1724.274646 | AW23: 1679.215437 | AX23: 0 | AZ23: 0.8378334469 | BA23: 0.8565032637 | BB23: 0.8009787395 | BC23: 0.863546353 | BD23: 0.8675446823 | BE23: 0.9123633028 | BF23: 0.7756567818 | BG23: 0.8429274562 | BH23: 0.8095215968 | BI23: 0.7541563399 | BJ23: 0.832513833 | BK23: 0.7970333995 | BL23: 0.9433872891 | BM23: 0.9727936367 | BN23: 0.9731558275 | BO23: 0 | BQ23: 0.09164777341 | BR23: 0.05262901178 | BS23: 0.9125015629 | BT23: 0.8578013906 | BU23: 0.06566469424 | BV23: 0.03603203915 | BW23: 0.05625100918 | BX23: 0.1767523749 | BY23: 0.08404440432 | BZ23: 0.06436004468 | CA23: 0.8773962497 | CB23: 0.8994020634 | CC23: 0.07995985997 | CD23: 0.06289258262 | CE23: 0.08570857375 | CF23: 0.3517663386 | CG23: 0.08404440432 | CH23: 0.04529720667 | CI23: 0.8613643435 | CJ23: 0.8349662501 | CK23: 0.05368696888 | CL23: 0.07135858027 | CM23: 0.08627192518 | CN23: 0.04740681316 | CO23: 0.9481812297 | CP23: 0.0872689906 | CQ23: 0.9647649708 | CR23: 0.07301765247 | CS23: 0.8879470514 | CT23: 0.007364287434 | CV23: 6419.1115 | CW23: 33.66116077 | CX23: 16.26541706 | CZ23: 6128.312206 | DA23: 32.14807132 | DB23: 15.70489387 | DD23: 0.5605231873 | DE23: 290.7992936 | DF23: 518.7997574 | DG23: 806851.7415 | DH23: 779116.3814 | DI23: 27735.36007 | DK23: 1 | DL23: 0 | DN23: 4500 | DO23: 0.818 | DP23: 0.182
A24: 19 | C24: 0.8388703562 | D24: 0.8806866428 | E24: 0.8190616651 | F24: 0.6256957356 | G24: 0.967565009 | H24: 0.8633425836 | I24: 0.2293067991 | J24: 0.803672755 | K24: 0.8379760762 | L24: 0.7815738089 | M24: 0.5971593604 | N24: 0.967169574 | O24: 0.9249693683 | P24: 0.2241799299 | Q24: 0.7743404428 | R24: 0.8829933197 | S24: 0.7719138802 | T24: 0.6841089879 | U24: 0.9817892943 | V24: 0.9114967691 | W24: 0.1912752236 | Y24: 0 | Z24: 41.87473546 | AA24: 3963.856495 | AB24: 760.2290903 | AC24: 3203.627405 | AD24: 68.20692552 | AE24: 26.34161814 | AF24: 4697.603766 | AG24: 780.4167991 | AH24: 3917.186966 | AI24: 71.39828607 | AJ24: 42.22094139 | AK24: 3556.917516 | AL24: 807.715155 | AM24: 2749.202361 | AN24: 77.17349443 | AO24: 0 | AP24: 2287.585322 | AQ24: 2193.853084 | AR24: 0 | AS24: 2443.27395 | AT24: 2356.610885 | AU24: 0 | AV24: 2258.471512 | AW24: 2970.299346 | AX24: 0 | AZ24: 0.8259429916 | BA24: 0.8409702054 | BB24: 0.8583057538 | BC24: 0.8752601074 | BD24: 0.9470290788 | BE24: 0.8715352538 | BF24: 0.7838964153 | BG24: 0.7930896849 | BH24: 0.8090243822 | BI24: 0.7594428813 | BJ24: 0.782453719 | BK24: 0.7948569348 | BL24: 0.9355370678 | BM24: 0.9425354559 | BN24: 0.9483357426 | BO24: 0 | BQ24: 0.06245791579 | BR24: 0.03426981 | BS24: 0.90700274 | BT24: 0.8245205157 | BU24: 0.03814970761 | BV24: 0.08127844548 | BW24: 0.08302486953 | BX24: 0.3273946411 | BY24: 0.05146698236 | BZ24: 0.1136998851 | CA24: 0.9112977764 | CB24: 0.7753277005 | CC24: 0.09891273974 | CD24: 0.06181441556 | CE24: 0.05187337596 | CF24: 0.3150666859 | CG24: 0.05146698236 | CH24: 0.07027640704 | CI24: 0.8708656284 | CJ24: 0.8723739232 | CK24: 0.06240517422 | CL24: 0.04419962594 | CM24: 0.02866653231 | CN24: 0.06678248821 | CO24: 0.9370922974 | CP24: 0.02614698831 | CQ24: 0.9361703868 | CR24: 0.04112332942 | CS24: 0.8953439841 | CT24: 5.390044671e-05 | CV24: 5697.556054 | CW24: 35.05731326 | CX24: 16.49082982 | CZ24: 5603.617482 | DA24: 31.92916368 | DB24: 15.3344351 | DD24: 1.156394716 | DE24: 93.93857164 | DF24: 81.23400285 | DG24: 818843.9349 | DH24: 761118.1377 | DI24: 57725.79722 | DK24: 1 | DL24: 0 | DN24: 5000 | DO24: 0.8198 | DP24: 0.1802
A25: 20 | C25: 0.7679696426 | D25: 0.794166028 | E25: 0.8777849625 | F25: 0.5142047986 | G25: 0.9391831799 | H25: 0.8946647436 | I25: 0.2089936406 | J25: 0.8279574095 | K25: 0.8297363886 | L25: 0.7717542451 | M25: 0.5356995713 | N25: 0.9900174446 | O25: 0.8748196284 | P25: 0.2208866465 | Q25: 0.7509326402 | R25: 0.8600263907 | S25: 0.7505431015 | T25: 0.6093574993 | U25: 0.9803788753 | V25: 0.8736501482 | W25: 0.1810160506 | Y25: 0 | Z25: 50.17536023 | AA25: 4268.718245 | AB25: 788.2296265 | AC25: 3480.488618 | AD25: 59.13136628 | AE25: 40.22463929 | AF25: 3539.727136 | AG25: 644.1623723 | AH25: 2895.564764 | AI25: 32.99713213 | AJ25: 45.19235696 | AK25: 3490.82833 | AL25: 880.1443416 | AM25: 2610.683988 | AN25: 84.98109926 | AO25: 0 | AP25: 1840.855302 | AQ25: 1753.677114 | AR25: 0 | AS25: 1639.672709 | AT25: 1582.256374 | AU25: 0 | AV25: 1948.333335 | AW25: 2291.239822 | AX25: 0 | AZ25: 0.7379310685 | BA25: 0.7614620987 | BB25: 0.8793074894 | BC25: 0.8543314344 | BD25: 0.8949116629 | BE25: 0.8632559482 | BF25: 0.7433326203 | BG25: 0.7919762942 | BH25: 0.7782357403 | BI25: 0.7312542741 | BJ25: 0.7587393545 | BK25: 0.7536527398 | BL25: 0.9156510409 | BM25: 0.9279580888 | BN25: 0.9231891548 | BO25: 0 | BQ25: 0.05935417699 | BR25: 0.04560360734 | BS25: 0.9106356023 | BT25: 0.8816413321 | BU25: 0.07011528934 | BV25: 0.04695199155 | BW25: 0.08111540982 | BX25: 0.1919297238 | BY25: 0.112173595 | BZ25: 0.03133598883 | CA25: 0.8600254624 | CB25: 0.9069333608 | CC25: 0.08371406843 | CD25: 0.06821438052 | CE25: 0.06101630041 | CF25: 0.231183211 | CG25: 0.112173595 | CH25: 0.04293392901 | CI25: 0.9142312164 | CJ25: 0.8585726961 | CK25: 0.03229307435 | CL25: 0.06008246972 | CM25: 0.06719381556 | CN25: 0.09222329725 | CO25: 0.9264903011 | CP25: 0.08583922339 | CQ25: 0.9403311907 | CR25: 0.05465380527 | CS25: 0.894578431 | CT25: 0.001699286594 | CV25: 5420.849253 | CW25: 32.93031716 | CX25: 14.63490986 | CZ25: 5447.600668 | DA25: 31.75572705 | DB25: 14.29734302 | DD25: 0.3375668425 | DE25: -26.75141463 | DF25: -79.24775559 | DG25: 726324.6439 | DH25: 709419.5503 | DI25: 16905.09354 | DK25: 1 | DL25: 0 | DN25: 6000 | DO25: 0.8236 | DP25: 0.1764
A26: 21 | C26: 0.7413444663 | D26: 0.8645021885 | E26: 0.7695402993 | F26: 0.5685301444 | G26: 0.9667492832 | H26: 0.8160447956 | I26: 0.1774509745 | J26: 0.784539433 | K26: 0.8643505466 | L26: 0.8550573209 | M26: 0.6280561477 | N26: 0.9823359239 | O26: 0.9060864025 | P26: 0.2465223412 | Q26: 0.7791396342 | R26: 0.8908276078 | S26: 0.8166071238 | T26: 0.5666963593 | U26: 0.9928614444 | V26: 0.9089762131 | W26: 0.2643525079 | Y26: 0 | Z26: 45.32794042 | AA26: 3279.535494 | AB26: 861.0618899 | AC26: 2418.473604 | AD26: 58.53722749 | AE26: 42.84486615 | AF26: 4222.288223 | AG26: 800.9909133 | AH26: 3421.297309 | AI26: 68.90953599 | AJ26: 38.19792982 | AK26: 4123.788748 | AL26: 770.6771499 | AM26: 3353.111598 | AN26: 49.59626993 | AO26: 0 | AP26: 1704.01796 | AQ26: 1619.920602 | AR26: 0 | AS26: 2394.637256 | AT26: 2302.676449 | AU26: 0 | AV26: 2161.16496 | AW26: 1618.310912 | AX26: 0 | AZ26: 0.8572307677 | BA26: 0.7625748168 | BB26: 0.8599550766 | BC26: 0.8634519729 | BD26: 0.8784775324 | BE26: 0.9233878868 | BF26: 0.7764165358 | BG26: 0.7583851639 | BH26: 0.8298936131 | BI26: 0.7390995776 | BJ26: 0.743114094 | BK26: 0.8105293732 | BL26: 0.9389323976 | BM26: 0.8969700231 | BN26: 0.9626557946 | BO26: 0 | BQ26: 0.09784169103 | BR26: 0.08085457835 | BS26: 0.8844991382 | BT26: 0.7722708008 | BU26: 0.02427388835 | BV26: 0.1142298802 | BW26: 0.103589435 | BX26: 0.184557366 | BY26: 0.09259436778 | BZ26: 0.08926260223 | CA26: 0.9050098854 | CB26: 0.8388757623 | CC26: 0.1080921523 | CD26: 0.1306633922 | CE26: 0.1927947106 | CF26: 0.3961850872 | CG26: 0.09259436778 | CH26: 0.03912789439 | CI26: 0.8518226183 | CJ26: 0.9137726513 | CK26: 0.03606125361 | CL26: 0.09367022875 | CM26: 0.09590782132 | CN26: 0.07231680095 | CO26: 0.8873014007 | CP26: 0.06893179782 | CQ26: 0.9158389519 | CR26: 0.06198222443 | CS26: 0.9045530042 | CT26: 0.04010916662 | CV26: 6107.776695 | CW26: 32.76354407 | CX26: 15.73845942 | CZ26: 5443.898383 | DA26: 31.81536129 | DB26: 15.14334009 | DD26: 0.5951193327 | DE26: 663.878312 | DF26: 1115.538138 | DG26: 780815.1942 | DH26: 751723.1059 | DI26: 29092.08832 | DK26: 1 | DL26: 0 | DN26: 7000 | DO26: 0.8232 | DP26: 0.1768
A27: 22 | C27: 0.7488112144 | D27: 0.8084167571 | E27: 0.8413347948 | F27: 0.5755490155 | G27: 0.9935191467 | H27: 0.8714988832 | I27: 0.2051126734 | J27: 0.8311580442 | K27: 0.8381290866 | L27: 0.778568588 | M27: 0.6891362107 | N27: 0.9974809622 | O27: 0.8923390595 | P27: 0.2000458945 | Q27: 0.7856200381 | R27: 0.8848165194 | S27: 0.8251612941 | T27: 0.5450592938 | U27: 0.9921870833 | V27: 0.934411887 | W27: 0.1823585241 | Y27: 0 | Z27: 47.38780805 | AA27: 3054.18201 | AB27: 980.9953266 | AC27: 2073.186683 | AD27: 47.53866995 | AE27: 51.0008819 | AF27: 3961.830766 | AG27: 856.1754279 | AH27: 3105.655339 | AI27: 67.94269859 | AJ27: 31.78437506 | AK27: 4293.329355 | AL27: 713.7931052 | AM27: 3579.53625 | AN27: 55.89465941 | AO27: 0 | AP27: 1504.083591 | AQ27: 1430.780239 | AR27: 0 | AS27: 2398.626922 | AT27: 2298.496948 | AU27: 0 | AV27: 2151.441109 | AW27: 2137.341207 | AX27: 0 | AZ27: 0.8356830848 | BA27: 0.8966579991 | BB27: 0.8446243991 | BC27: 0.9012926741 | BD27: 0.9219143106 | BE27: 0.9272316224 | BF27: 0.8254123027 | BG27: 0.8327999715 | BH27: 0.7961842949 | BI27: 0.7942950257 | BJ27: 0.8081996552 | BK27: 0.7810113581 | BL27: 0.9637312905 | BM27: 0.9602273034 | BN27: 0.9266737343 | BO27: 0 | BQ27: 0.08105676026 | BR27: 0.04366797447 | BS27: 0.857844011 | BT27: 0.8636930472 | BU27: 0.04632844009 | BV27: 0.05835478856 | BW27: 0.09017780535 | BX27: 0.2662002638 | BY27: 0.06758833894 | BZ27: 0.07814924973 | CA27: 0.9011552378 | CB27: 0.8887126902 | CC27: 0.02515003518 | CD27: 0.06432160677 | CE27: 0.05328854202 | CF27: 0.4153151792 | CG27: 0.06758833894 | CH27: 0.0732042881 | CI27: 0.8326873287 | CJ27: 0.8499229134 | CK27: 0.05509094898 | CL27: 0.06113408601 | CM27: 0.08929753874 | CN27: 0.09401401968 | CO27: 0.8729710809 | CP27: 0.07773858715 | CQ27: 0.9461039428 | CR27: 0.05378569593 | CS27: 0.8658742498 | CT27: 0.01044769246 | CV27: 6144.999112 | CW27: 29.94281147 | CX27: 15.2585692 | CZ27: 6117.09862 | DA27: 30.41907005 | DB27: 15.36340047 | DD27: -0.1048312675 | DE27: 27.90049128 | DF27: -266.1466559 | DG27: 756783.4609 | DH27: 762052.9247 | DI27: -5269.463868 | DK27: 0 | DL27: 1 | DN27: 8000 | DO27: 0.8246 | DP27: 0.1754
